Workbook

Sheet Старт
S2: GMT +0 | T2: 4 | U2: =TODAY()-7 -> 2022-03-20 | V2: 8 | W2: flashscore.com (EN) | X2: 4 | Y2: =TODAY()-7 -> 2022-03-20
S3: GMT +1 | U3: =TODAY()-6 -> 2022-03-21 | W3: soccerstand.com (EN) | Y3: =TODAY()-6 -> 2022-03-21
S4: GMT +2 | U4: =TODAY()-5 -> 2022-03-22 | W4: soccerstand.com (RU) | Y4: =TODAY()-5 -> 2022-03-22
S5: GMT +3 | U5: =TODAY()-4 -> 2022-03-23 | W5: myscore.ru (RU) | Y5: =TODAY()-4 -> 2022-03-23
S6: GMT +4 | U6: =TODAY()-3 -> 2022-03-24 | W6: myscore.com.ua (RU) | Y6: =TODAY()-3 -> 2022-03-24
S7: GMT +5 | U7: =TODAY() -2 -> 2022-03-25 | Y7: =TODAY()-2 -> 2022-03-25
S8: GMT +6 | U8: Вчера | Y8: =TODAY()-1 -> 2022-03-26
H9: Incognito DeluX plus | S9: GMT +7 | U9: Сегодня | Y9: =TODAY() -> 2022-03-27
H10: based on InfinityBook engine | S10: GMT +8 | U10: Завтра | Y10: =TODAY()+1 -> 2022-03-28
H11: compilation Dm_35 | S11: GMT +9 | U11: =TODAY()+2 -> 2022-03-29 | Y11: =TODAY()+2 -> 2022-03-29
S12: GMT +10 | U12: =TODAY()+3 -> 2022-03-30 | Y12: =TODAY()+3 -> 2022-03-30
S13: GMT +11 | U13: =TODAY()+4 -> 2022-03-31 | Y13: =TODAY()+4 -> 2022-03-31
S14: GMT +12 | U14: =TODAY()+5 -> 2022-04-01 | Y14: =TODAY()+5 -> 2022-04-01
S15: GMT +13 | U15: =TODAY()+6 -> 2022-04-02 | Y15: =TODAY()+6 -> 2022-04-02
U16: =TODAY()+7 -> 2022-04-03 | Y16: =TODAY()+7 -> 2022-04-03

Sheet Список
A1: Чемпионат | B1: Дата/Время | C1: Дома | D1: Гости | E1: Match_ID | F1: Country_ID | G1: home_ID | H1: away_ID | I1: Загрузить | J1: К1 | K1: К2 | L1: П1 текущий | M1: Х текущий | N1: П2 текущий | O1: П1 старт | P1: Х старт | Q1: П2 старт | R1: П1 прогруз | S1: Х прогруз | T1: П2 прогруз | Y1: rP5ibdZs
A2: БЕРМУДЫ: Премьер-лига | B2: 2022.03.26 23:00 | C2: СБРС | D2: Норт-Вилладж Рэмс | E2: hpEmCVve | F2: 230 | I2: Загрузить | J2: 1 | K2: 2 | R2: =IF(L2="","",L2-O2) ->  | S2: =IF(M2="","",M2-P2) ->  | T2: =IF(N2="","",N2-Q2) -> 
A3: БРАЗИЛИЯ: Чемпионат Мараньенсе - Второй этап | B3: 2022.03.26 23:00 | C3: Пиньейро | D3: Сан Жозе МА | E3: jgTfqX1C | F3: 39 | I3: Загрузить | J3: 3 | K3: 1 | L3: 2.06 | M3: 3.2 | N3: 3.52 | O3: 2.02 | P3: 3.1 | Q3: 3.64 | R3: 0.04 | S3: 0.1 | T3: -0.12
A4: ВЕНЕСУЭЛА: Сегунда | B4: 2022.03.26 23:00 | C4: Academia Anzoategui | D4: Динамо Пуэрто | E4: Yw2SWnc7 | F4: 205 | I4: Загрузить | J4: 3 | K4: 0
A5: КОЛУМБИЯ: Примера Б - Апертура | B5: 2022.03.26 23:00 | C5: Богота | D5: Реал Сантандер | E5: ddRjdOy1 | F5: 53 | I5: Загрузить | J5: 2 | K5: 1 | L5: 1.9 | M5: 3.38 | N5: 3.92 | O5: 1.85 | P5: 3.3 | Q5: 3.88 | R5: 0.05 | S5: 0.08 | T5: 0.04
A6: КОЛУМБИЯ: Примера Б - Апертура | B6: 2022.03.26 23:00 | C6: Бока Хуниорс Кали | D6: Тигрес | E6: pI7oI5bK | F6: 53 | I6: Загрузить | J6: 2 | K6: 0 | L6: 2.46 | M6: 3.1 | N6: 2.9 | O6: 2.12 | P6: 2.88 | Q6: 3.66 | R6: 0.34 | S6: 0.22 | T6: -0.76
A7: КОЛУМБИЯ: Примера Б - Апертура | B7: 2022.03.26 23:00 | C7: Льянерос | D7: Уила | E7: 4MUbf26D | F7: 53 | I7: Загрузить | J7: 2 | K7: 1 | L7: 1.9 | M7: 3.18 | N7: 4.24 | O7: 2.03 | P7: 3 | Q7: 3.7 | R7: -0.13 | S7: 0.18 | T7: 0.54
A8: КОЛУМБИЯ: Лига - Женщины | B8: 2022.03.26 23:00 | C8: Orsomarso (Ж) | D8: Ла Экидад (Ж) | E8: CISigwPL | F8: 53 | I8: Загрузить | J8: 1 | K8: 1 | L8: 1.34 | M8: 4.76 | N8: 8.1 | O8: 1.21 | P8: 6 | Q8: 9.3 | R8: 0.13 | S8: -1.24 | T8: -1.2
A9: КОСТА-РИКА: Ассенсо - Клаусура | B9: 2022.03.26 23:00 | C9: Десампарадос | D9: Мунисипаль Либерия | E9: 6kBbYoHq | F9: 57 | I9: Загрузить | J9: 2 | K9: 1 | L9: 3.38 | M9: 2.92 | N9: 2.25 | O9: 3.34 | P9: 3.1 | Q9: 2.12 | R9: 0.04 | S9: -0.18 | T9: 0.13
A10: США: Чемпионшип ЮСЛ | B10: 2022.03.26 23:00 | C10: Детройт | D10: Питтсбург | E10: AgMXmSv5 | F10: 200 | I10: Загрузить | J10: 1 | K10: 1 | L10: 3.84 | M10: 3.26 | N10: 1.94 | O10: 3.07 | P10: 3.24 | Q10: 2.12 | R10: 0.77 | S10: 0.02 | T10: -0.18
A11: США: Кубок NWSL Челлендж - Женщины | B11: 2022.03.26 23:00 | C11: Angel City (Ж) | D11: Рейн (Ж) | E11: ncEcTZcI | F11: 200 | I11: Загрузить | J11: 1 | K11: 3 | L11: 5.15 | M11: 3.72 | N11: 1.61 | O11: 4.08 | P11: 3.5 | Q11: 1.75 | R11: 1.07 | S11: 0.22 | T11: -0.14
A12: ЯМАЙКА: Премьер-лига | B12: 2022.03.26 23:00 | C12: Тиволи | D12: Кавальер | E12: xYDzHKnb | F12: 99 | I12: Загрузить | J12: 1 | K12: 3 | L12: 2.82 | M12: 2.89 | N12: 2.59 | O12: 2.6 | P12: 2.9 | Q12: 2.7 | R12: 0.22 | S12: -0.01 | T12: -0.11
A13: ИСПАНИЯ: Сегунда | B13: 2022.03.26 23:30 | C13: Реал Овьедо | D13: Фуэнлабрада | E13: QmNRnIuO | F13: 176 | I13: Загрузить | J13: 3 | K13: 0 | L13: 1.73 | M13: 3.25 | N13: 5.84 | O13: 2.07 | P13: 3.24 | Q13: 3.6 | R13: -0.34 | S13: 0.01 | T13: 2.24
A14: БРАЗИЛИЯ: Копа де Нордесте - Плей-офф | B14: 2022.03.26 23:45 | C14: Форталеза | D14: Наутико | E14: S66din9f | F14: 39 | I14: Загрузить | J14: 2 | K14: 0 | L14: 1.45 | M14: 4.36 | N14: 7.2 | O14: 1.45 | P14: 3.74 | Q14: 6.75 | R14: 0 | S14: 0.62 | T14: 0.45
A15: БРАЗИЛИЯ: Чемпионат Рорайменсе - Первый этап | B15: 2022.03.27 00:00 | C15: Рио Негро | D15: Атлетико Рораима | E15: 0hQR2E6K | F15: 39 | I15: Загрузить | J15: 1 | K15: 0 | L15: 1.73 | M15: 4.04 | N15: 3.5 | O15: 2.11 | P15: 3.4 | Q15: 3.26 | R15: -0.38 | S15: 0.64 | T15: 0.24
A16: ВЕНЕСУЭЛА: Высший дивизион | B16: 2022.03.27 00:00 | C16: Минерос де Гуаяна | D16: Арагуа | E16: U5sO51yP | F16: 205 | I16: Загрузить | J16: 0 | K16: 3 | L16: 2.24 | M16: 3.08 | N16: 3.38 | O16: 2.32 | P16: 3.1 | Q16: 2.93 | R16: -0.08 | S16: -0.02 | T16: 0.45
A17: ВЕНЕСУЭЛА: Сегунда | B17: 2022.03.27 00:00 | C17: Хероес Фалькон | D17: Райо Зулиано | E17: O8UlllSs | F17: 205 | I17: Загрузить | J17: 1 | K17: 1
A18: КОСТА-РИКА: Ассенсо - Клаусура | B18: 2022.03.27 00:00 | C18: Уругвай Коронадо | D18: Ад Асерри | E18: bqMOvlvG | F18: 57 | I18: Загрузить | J18: 1 | K18: 1 | L18: 2.12 | M18: 3.3 | N18: 3.26 | O18: 2.16 | P18: 3.1 | Q18: 3.24 | R18: -0.04 | S18: 0.2 | T18: 0.02
A19: МЕКСИКА: Лига Премьер - Серия А - Клаусура | B19: 2022.03.27 00:00 | C19: Донгу | D19: Cafetaleros | E19: 0zyBr4Se | F19: 128 | I19: Загрузить | J19: 1 | K19: 2 | L19: 11.5 | M19: 6.5 | N19: 1.18 | O19: 19 | P19: 10 | Q19: 1.07 | R19: -7.5 | S19: -3.5 | T19: 0.11
A20: МЕКСИКА: Лига Премьер - Серия В - Клаусура | B20: 2022.03.27 00:00 | C20: Ураканес | D20: Лобос Уэрта | E20: 0jBvygas | F20: 128 | I20: Загрузить | J20: 5 | K20: 1 | L20: 1.22 | M20: 6 | N20: 10.5 | O20: 1.45 | P20: 4.2 | Q20: 5.7 | R20: -0.23 | S20: 1.8 | T20: 4.8
A21: МЕКСИКА: Лига Премьер - Серия В - Клаусура | B21: 2022.03.27 00:00 | C21: Уруапан | D21: Сьервос | E21: U7K8tFyK | F21: 128 | I21: Загрузить | J21: 5 | K21: 1
A22: ПАНАМА: ЛПФ - Апертура | B22: 2022.03.27 00:00 | C22: Тауро | D22: Индепендьенте | E22: EJxNxknP | F22: 149 | I22: Загрузить | J22: 1 | K22: 2 | L22: 2.5 | M22: 2.61 | N22: 3.36 | O22: 2.42 | P22: 2.88 | Q22: 2.94 | R22: 0.08 | S22: -0.27 | T22: 0.42
A23: ПАРАГВАЙ: Первый дивизион - Апертура | B23: 2022.03.27 00:00 | C23: Соль де Америка | D23: Олимпия Асунсьон | E23: 0MaCgWld | F23: 151 | I23: Загрузить | J23: 0 | K23: 1 | L23: 3.66 | M23: 3.68 | N23: 1.9 | O23: 3.19 | P23: 3.38 | Q23: 2.17 | R23: 0.47 | S23: 0.3 | T23: -0.27
A24: США: МЛС | B24: 2022.03.27 00:00 | C24: Шарлотт | D24: Цинциннати | E24: pSMiAg4o | F24: 200 | G24: QJF7WTFB | H24: 8btog05R | I24: Загрузить | J24: 2 | K24: 0 | L24: 2.24 | M24: 3.54 | N24: 3.14 | O24: 2.12 | P24: 3.5 | Q24: 3.28 | R24: 0.12 | S24: 0.04 | T24: -0.14
A25: КОЛУМБИЯ: Примера А - Апертура | B25: 2022.03.27 00:05 | C25: Энвигадо | D25: Онсе Кальдас | E25: r5BHs0Bm | F25: 53 | I25: Загрузить | J25: 1 | K25: 1 | L25: 3.03 | M25: 3.01 | N25: 2.46 | O25: 2.52 | P25: 2.75 | Q25: 3.05 | R25: 0.51 | S25: 0.26 | T25: -0.59
A26: БРАЗИЛИЯ: Чемпионат Паулиста - Плей-офф | B26: 2022.03.27 00:30 | C26: Палмейрас | D26: Брагантино | E26: IumdFeTt | F26: 39 | I26: Загрузить | J26: 2 | K26: 1 | L26: 1.52 | M26: 4.22 | N26: 6.55 | O26: 1.62 | P26: 3.4 | Q26: 5.6 | R26: -0.1 | S26: 0.82 | T26: 0.95
A27: ГВАТЕМАЛА: Национальная лига - Клаусура | B27: 2022.03.27 00:30 | C27: Кобан Империаль | D27: Депортиво Малакатеко | E27: IwMoDcnJ | F27: 85 | I27: Загрузить | J27: 1 | K27: 1 | L27: 1.72 | M27: 3.44 | N27: 4.8 | O27: 1.93 | P27: 3.4 | Q27: 3.46 | R27: -0.21 | S27: 0.04 | T27: 1.34
A28: МЕКСИКА: Лига Премьер - Серия А - Клаусура | B28: 2022.03.27 00:30 | C28: Мазоркьерос | D28: Гавиланес де Матаморос | E28: tWDc67K2 | F28: 128 | I28: Загрузить | J28: 0 | K28: 0 | L28: 1.6 | M28: 3.82 | N28: 5.15 | O28: 1.37 | P28: 4.74 | Q28: 6.2 | R28: 0.23 | S28: -0.92 | T28: -1.05
A29: МЕКСИКА: Лига Премьер - Серия А - Клаусура | B29: 2022.03.27 00:30 | C29: Сакатекас | D29: Коррекаминос 2 | E29: vRZEsOs2 | F29: 128 | I29: Загрузить | J29: 4 | K29: 1 | L29: 1.64 | M29: 3.84 | N29: 4.78 | O29: 1.62 | P29: 3.74 | Q29: 4.58 | R29: 0.02 | S29: 0.1 | T29: 0.2
A30: БРАЗИЛИЯ: Чемпионат Акреано - Первый этап | B30: 2022.03.27 01:00 | C30: Умайта | D30: Галвез | E30: 8z5qxhdl | F30: 39 | I30: Загрузить | L30: 2.19 | M30: 3.48 | N30: 2.89 | O30: 2.22 | P30: 3.5 | Q30: 2.75 | R30: -0.03 | S30: -0.02 | T30: 0.14
A31: КОЛУМБИЯ: Лига - Женщины | B31: 2022.03.27 01:00 | C31: Депортиво Перейра (Ж) | D31: Америка Де Кали (Ж) | E31: QLWehcvS | F31: 53 | I31: Загрузить | J31: 1 | K31: 1 | L31: 4.64 | M31: 4.14 | N31: 1.6 | O31: 3.58 | P31: 3.9 | Q31: 1.75 | R31: 1.06 | S31: 0.24 | T31: -0.15
A32: МИР: Клубные товарищеские матчи | B32: 2022.03.27 01:00 | C32: Тигрес | D32: Пачука | E32: WS0lgfgB | F32: 8 | I32: Загрузить | J32: 2 | K32: 1
A33: США: Чемпионшип ЮСЛ | B33: 2022.03.27 01:00 | C33: Нью-Мексико | D33: Оранж Каунти СК | E33: rowAUwvp | F33: 200 | I33: Загрузить | J33: 1 | K33: 1 | L33: 1.87 | M33: 3.4 | N33: 3.94 | O33: 1.93 | P33: 3.3 | Q33: 3.64 | R33: -0.06 | S33: 0.1 | T33: 0.3
A34: США: МЛС Некст Про | B34: 2022.03.27 01:00 | C34: Интер Майами II | D34: Коламбус Крю 2 | E34: MmEuRX9e | F34: 200 | I34: Загрузить | J34: 2 | K34: 0
A35: АРГЕНТИНА: Торнео Федерал | B35: 2022.03.27 01:30 | C35: Сармьенто Ресистенция | D35: Унион Сунчалес | E35: ARqmW2ej | F35: 22 | I35: Загрузить | J35: 2 | K35: 0 | L35: 2.07 | M35: 3.22 | N35: 3.48 | O35: 2.15 | P35: 3.1 | Q35: 3.5 | R35: -0.08 | S35: 0.12 | T35: -0.02
A36: АРУБА: Дивизион ди Онор | B36: 2022.03.27 01:30 | C36: Британниа | D36: Юнайтед | E36: j1PMFDd0 | F36: 229 | I36: Загрузить
A37: МЕКСИКА: Лига Премьер - Серия А - Клаусура | B37: 2022.03.27 01:30 | C37: Колима | D37: Тритонес Вальярта | E37: nTG54okF | F37: 128 | I37: Загрузить | J37: 0 | K37: 2 | L37: 3.9 | M37: 3.54 | N37: 1.84 | O37: 4.08 | P37: 3.74 | Q37: 1.69 | R37: -0.18 | S37: -0.2 | T37: 0.15
A38: АРГЕНТИНА: Кубок Аргентины | B38: 2022.03.27 02:00 | C38: Индепендьенте | D38: Централ Норте | E38: M93FSftF | F38: 22 | I38: Загрузить | J38: 1 | K38: 1 | L38: 1.21 | M38: 5.65 | N38: 13 | O38: 1.3 | P38: 4.5 | Q38: 9.4 | R38: -0.09 | S38: 1.15 | T38: 3.6
A39: КОЛУМБИЯ: Лига - Женщины | B39: 2022.03.27 02:00 | C39: Инд. Санта Фе (Ж) | D39: Кортулуа (Ж) | E39: j3vqeaf9 | F39: 53 | I39: Загрузить | J39: 3 | K39: 0 | L39: 1.13 | M39: 7.6 | N39: 15 | O39: 1.13 | P39: 8.5 | Q39: 10 | R39: 0 | S39: -0.9 | T39: 5
A40: МЕКСИКА: Лига MX - Клаусура | B40: 2022.03.27 02:00 | C40: Пумас | D40: Мазатлан | E40: Y1bnHCnJ | F40: 128 | I40: Загрузить | J40: 1 | K40: 1 | L40: 1.49 | M40: 4.24 | N40: 6.35 | O40: 1.8 | P40: 3.5 | Q40: 4.2 | R40: -0.31 | S40: 0.74 | T40: 2.15
A41: МЕКСИКА: Лига Премьер - Серия А - Клаусура | B41: 2022.03.27 02:00 | C41: Минейрос | D41: Алакранес Дуранго | E41: h6H15RZ8 | F41: 128 | I41: Загрузить | J41: 2 | K41: 3 | L41: 9.4 | M41: 5.5 | N41: 1.26 | O41: 9.4 | P41: 5 | Q41: 1.26 | R41: 0 | S41: 0.5 | T41: 0
A42: ПАНАМА: ЛПФ - Апертура | B42: 2022.03.27 02:00 | C42: Пласа Амадор | D42: Эррера | E42: juUlY8ft | F42: 149 | I42: Загрузить | J42: 1 | K42: 1 | L42: 2.2 | M42: 2.9 | N42: 3.54 | O42: 2.22 | P42: 2.88 | Q42: 3.32 | R42: -0.02 | S42: 0.02 | T42: 0.22
A43: США: МЛС | B43: 2022.03.27 02:00 | C43: Спортинг Канзас-Сити | D43: Реал Солт-Лейк | E43: OILe9DJi | F43: 200 | I43: Загрузить | J43: 1 | K43: 0 | L43: 1.96 | M43: 3.64 | N43: 3.82 | O43: 1.77 | P43: 3.74 | Q43: 4.18 | R43: 0.19 | S43: -0.1 | T43: -0.36
A44: США: Чемпионшип ЮСЛ | B44: 2022.03.27 02:00 | C44: Майами | D44: Лаудон | E44: UwJ4jL03 | F44: 200 | I44: Загрузить | J44: 0 | K44: 0 | L44: 1.34 | M44: 5.4 | N44: 6.8 | O44: 1.21 | P44: 5.5 | Q44: 9.1 | R44: 0.13 | S44: -0.1 | T44: -2.3
A45: США: Кубок NWSL Челлендж - Женщины | B45: 2022.03.27 02:00 | C45: Нью-Йорк Флэш (Ж) | D45: Орландо Прайд (Ж) | E45: OMyRB7Sp | F45: 200 | I45: Загрузить | J45: 1 | K45: 0 | L45: 1.95 | M45: 3.36 | N45: 3.7 | O45: 2.02 | P45: 3.2 | Q45: 3.36 | R45: -0.07 | S45: 0.16 | T45: 0.34
A46: ЧИЛИ: Кубок Чили | B46: 2022.03.27 02:00 | C46: La Higuera | D46: Сантьяго Вандерерс | E46: vXAHZ8dL | F46: 51 | I46: Загрузить | J46: 0 | K46: 4
A47: ЭКВАДОР: Серия В | B47: 2022.03.27 02:00 | C47: Ольмедо | D47: Индепендент Хуниорс | E47: 4AESiPVb | F47: 68 | G47: OMFYOCcJ | H47: M9z5NMQc | I47: Загрузить | J47: 1 | K47: 0 | L47: 2.3 | M47: 3.12 | N47: 3.08 | O47: 1.93 | P47: 3.2 | Q47: 3.68 | R47: 0.37 | S47: -0.08 | T47: -0.6
A48: КОЛУМБИЯ: Примера А - Апертура | B48: 2022.03.27 02:10 | C48: Унион Магдалена | D48: Агилас Дорадас | E48: GI9Puvt0 | F48: 53 | I48: Загрузить | J48: 2 | K48: 1 | L48: 2.4 | M48: 2.96 | N48: 3.06 | O48: 2.8 | P48: 2.75 | Q48: 2.63 | R48: -0.4 | S48: 0.21 | T48: 0.43
A49: БРАЗИЛИЯ: Чемпионат Рорайменсе - Первый этап | B49: 2022.03.27 02:15 | C49: Баре | D49: Наутико | E49: ITKW1YLQ | F49: 39 | I49: Загрузить | J49: 4 | K49: 1 | L49: 2.28 | M49: 3.68 | N49: 2.65 | O49: 3.26 | P49: 3.54 | Q49: 2.06 | R49: -0.98 | S49: 0.14 | T49: 0.59
A50: ВЕНЕСУЭЛА: Высший дивизион | B50: 2022.03.27 02:15 | C50: Каракас | D50: Португеза | E50: 2gCxPOym | F50: 205 | I50: Загрузить | J50: 1 | K50: 1 | L50: 1.88 | M50: 3.46 | N50: 4.06 | O50: 1.85 | P50: 3.4 | Q50: 3.8 | R50: 0.03 | S50: 0.06 | T50: 0.26
A51: США: Чемпионшип ЮСЛ | B51: 2022.03.27 02:30 | C51: Бирмингем | D51: Колорадо Спрингс | E51: GWMTl8Pb | F51: 200 | I51: Загрузить | J51: 0 | K51: 2 | L51: 2.19 | M51: 3.2 | N51: 3.2 | O51: 1.97 | P51: 3.3 | Q51: 3.38 | R51: 0.22 | S51: -0.1 | T51: -0.18
A52: США: Чемпионшип ЮСЛ | B52: 2022.03.27 02:30 | C52: Луисвилл Сити | D52: Инди Элевен | E52: 6LFtn69H | F52: 200 | I52: Загрузить | J52: 1 | K52: 1 | L52: 1.28 | M52: 5.1 | N52: 9.4 | O52: 1.41 | P52: 4.2 | Q52: 6.25 | R52: -0.13 | S52: 0.9 | T52: 3.15
A53: США: Чемпионшип ЮСЛ | B53: 2022.03.27 02:30 | C53: Тампа Бэй | D53: Хартфорд Атлетик | E53: jmK0i1oc | F53: 200 | I53: Загрузить | J53: 1 | K53: 1 | L53: 1.32 | M53: 5.05 | N53: 7.9 | O53: 1.26 | P53: 5 | Q53: 8.5 | R53: 0.06 | S53: 0.05 | T53: -0.6
A54: БЕРМУДЫ: Премьер-лига | B54: 2022.03.27 03:00 | C54: Робин Гуд | D54: Девоншир Кугарс | E54: jiWZXC1E | F54: 230 | I54: Загрузить | J54: 0 | K54: 0
A55: БРАЗИЛИЯ: Чемпионат Паулиста А2 - Плей-офф | B55: 2022.03.27 03:00 | C55: Сан-Бенто | D55: Пирасикаба | E55: Sf0mqX9C | F55: 39 | I55: Загрузить | J55: 1 | K55: 0 | L55: 2.83 | M55: 2.87 | N55: 2.59 | O55: 2.7 | P55: 2.55 | Q55: 3 | R55: 0.13 | S55: 0.32 | T55: -0.41
A56: КОСТА-РИКА: Ассенсо - Клаусура | B56: 2022.03.27 03:00 | C56: Эскорпионес | D56: Мунисипаль Гарабито | E56: xveGbTCb | F56: 57 | I56: Загрузить | J56: 5 | K56: 1 | L56: 1.99 | M56: 3.48 | N56: 3.34 | O56: 2.36 | P56: 3.4 | Q56: 2.6 | R56: -0.37 | S56: 0.08 | T56: 0.74
A57: ЭКВАДОР: Серия В | B57: 2022.03.27 03:00 | C57: Имбабура | D57: Санто Доминго | E57: bXDWjqo5 | F57: 68 | I57: Загрузить | J57: 2 | K57: 0 | L57: 1.98 | M57: 3.11 | N57: 3.92 | O57: 2.02 | P57: 3.1 | Q57: 3.48 | R57: -0.04 | S57: 0.01 | T57: 0.44
A58: АРУБА: Дивизион ди Онор | B58: 2022.03.27 03:30 | C58: Депортиво Насьональ | D58: Ла Фама | E58: lnrQEXB6 | F58: 229 | I58: Загрузить
A59: КОЛУМБИЯ: Примера Б - Апертура | B59: 2022.03.27 04:00 | C59: Чико | D59: Форталеза | E59: 6R8sJoqE | F59: 53 | I59: Загрузить | J59: 0 | K59: 1 | L59: 2.14 | M59: 3.14 | N59: 3.44 | O59: 1.89 | P59: 3.24 | Q59: 3.86 | R59: 0.25 | S59: -0.1 | T59: -0.42
A60: КОСТА-РИКА: Ассенсо - Клаусура | B60: 2022.03.27 04:00 | C60: Маринейорс де Пунтаренас | D60: Пунтаренас | E60: rybOd7sB | F60: 57 | I60: Загрузить | J60: 1 | K60: 2 | L60: 2.79 | M60: 3.42 | N60: 2.32 | O60: 2.78 | P60: 3.44 | Q60: 2.32 | R60: 0.01 | S60: -0.02 | T60: 0
A61: МЕКСИКА: Лига Экспансьон МХ - Клаусура | B61: 2022.03.27 04:00 | C61: Алебрихес де Оахака | D61: Дорадос де Синалоа | E61: MVv6fLKQ | F61: 128 | I61: Загрузить | J61: 5 | K61: 1 | L61: 2.07 | M61: 3.2 | N61: 3.56 | O61: 2.12 | P61: 3 | Q61: 3.36 | R61: -0.05 | S61: 0.2 | T61: 0.2
A62: МЕКСИКА: Лига MX - Женщины - Клаусура | B62: 2022.03.27 04:00 | C62: Хуарес (Ж) | D62: Пумас (Ж) | E62: d2leIIta | F62: 128 | I62: Загрузить | J62: 1 | K62: 0 | L62: 3.8 | M62: 3.56 | N62: 1.86 | O62: 4.14 | P62: 3.5 | Q62: 1.78 | R62: -0.34 | S62: 0.06 | T62: 0.08
A63: МИР: Клубные товарищеские матчи | B63: 2022.03.27 04:00 | C63: Америка | D63: Монтеррей | E63: 6qEnRdMF | F63: 8 | I63: Загрузить | J63: 1 | K63: 2
A64: ПАНАМА: ЛПФ - Апертура | B64: 2022.03.27 04:00 | C64: Чирики | D64: Арабе Юнидо | E64: Y3JgXS9n | F64: 149 | I64: Загрузить | J64: 1 | K64: 0 | L64: 2.59 | M64: 2.75 | N64: 2.97 | O64: 2.17 | P64: 2.9 | Q64: 3.38 | R64: 0.42 | S64: -0.15 | T64: -0.41
A65: США: МЛС Некст Про | B65: 2022.03.27 04:00 | C65: Северный Техас | D65: Миннесота 2 | E65: GADqQiP1 | F65: 200 | I65: Загрузить | J65: 3 | K65: 1
A66: США: МЛС Некст Про | B66: 2022.03.27 04:00 | C66: Хьюстон Динамо 2 | D66: Ванкувер 2 | E66: EH5UkWHD | F66: 200 | I66: Загрузить | J66: 1 | K66: 0 | R66: =IF(L66="","",L66-O66) ->  | S66: =IF(M66="","",M66-P66) ->  | T66: =IF(N66="","",N66-Q66) -> 
A67: КОЛУМБИЯ: Примера А - Апертура | B67: 2022.03.27 04:15 | C67: Перейра | D67: Медельин | E67: nJgFplqP | F67: 53 | I67: Загрузить | J67: 1 | K67: 1 | L67: 3.54 | M67: 3.05 | N67: 2.11 | O67: 3.16 | P67: 2.9 | Q67: 2.32 | R67: 0.38 | S67: 0.15 | T67: -0.21
A68: США: Чемпионшип ЮСЛ | B68: 2022.03.27 05:00 | C68: Лас-Вегас Лайтс | D68: Мемфис | E68: lpLymnfB | F68: 200 | I68: Загрузить | J68: 0 | K68: 1 | L68: 2.69 | M68: 3.86 | N68: 2.22 | O68: 3.44 | P68: 3.74 | Q68: 1.85 | R68: -0.75 | S68: 0.12 | T68: 0.37
A69: США: Чемпионшип ЮСЛ | B69: 2022.03.27 05:00 | C69: Окленд Рутс | D69: Monterey Bay | E69: x8xETcgj | F69: 200 | I69: Загрузить | J69: 2 | K69: 3 | L69: 1.86 | M69: 3.5 | N69: 3.84 | O69: 1.67 | P69: 3.74 | Q69: 4.26 | R69: 0.19 | S69: -0.24 | T69: -0.42
A70: США: НИСА | B70: 2022.03.27 05:00 | C70: Калифорния Юнайтед | D70: Valley United | E70: SlLIG9RI | F70: 200 | I70: Загрузить | J70: 0 | K70: 0 | L70: 1.44 | M70: 4.44 | N70: 6.15 | O70: 1.34 | P70: 4.74 | Q70: 6.75 | R70: 0.1 | S70: -0.3 | T70: -0.6
A71: США: НИСА | B71: 2022.03.27 05:00 | C71: Л-А Форс | D71: Bay Cities | E71: 6uKMFTtP | F71: 200 | I71: Загрузить | J71: 0 | K71: 0 | L71: 1.46 | M71: 4.4 | N71: 5.95 | O71: 1.45 | P71: 3.7 | Q71: 6.2 | R71: 0.01 | S71: 0.7 | T71: -0.25
A72: США: Кубок NWSL Челлендж - Женщины | B72: 2022.03.27 05:00 | C72: San Diego Wave (Ж) | D72: Портленд (Ж) | E72: QRF9zi5o | F72: 200 | I72: Загрузить | J72: 0 | K72: 1 | L72: 4.18 | M72: 3.2 | N72: 1.9 | O72: 3.68 | P72: 3.5 | Q72: 1.82 | R72: 0.5 | S72: -0.3 | T72: 0.08
A73: США: Чемпионшип ЮСЛ | B73: 2022.03.27 05:30 | C73: Финикс Райзинг | D73: Сан-Диего Лойял | E73: lrtISH8d | F73: 200 | I73: Загрузить | J73: 2 | K73: 3 | L73: 1.62 | M73: 4.06 | N73: 4.58 | O73: 1.41 | P73: 4.32 | Q73: 5.75 | R73: 0.21 | S73: -0.26 | T73: -1.17
A74: АВСТРАЛИЯ: НПЛ Северный Новый Южный Уэльс | B74: 2022.03.27 06:00 | C74: Бродмидоу | D74: Cooks Hill United | E74: xhWvR0fs | F74: 24 | I74: Загрузить | J74: 4 | K74: 1 | L74: 1.54 | M74: 4.46 | N74: 4.8 | O74: 1.71 | P74: 3.7 | Q74: 4.22 | R74: -0.17 | S74: 0.76 | T74: 0.58
A75: АВСТРАЛИЯ: НПЛ Северный Новый Южный Уэльс | B75: 2022.03.27 06:00 | C75: Валентайн | D75: Лэйк-Макуаир | E75: WAgCVtnQ | F75: 24 | I75: Загрузить | L75: 1.65 | M75: 4.22 | N75: 4.2 | O75: 2.84 | P75: 3.44 | Q75: 2.22 | R75: -1.19 | S75: 0.78 | T75: 1.98
A76: МЕКСИКА: Лига Экспансьон МХ - Клаусура | B76: 2022.03.27 06:00 | C76: Симарронес Сонора | D76: Венадос | E76: OvRXkuTs | F76: 128 | I76: Загрузить | J76: 1 | K76: 1 | L76: 1.82 | M76: 3.34 | N76: 4.4 | O76: 2.12 | P76: 3.2 | Q76: 3.17 | R76: -0.3 | S76: 0.14 | T76: 1.23
A77: ФИДЖИ: Премьер-лига | B77: 2022.03.27 06:00 | C77: Нади | D77: Ба | E77: fHdAfCYk | F77: 75 | I77: Загрузить | J77: 1 | K77: 2
A78: ЯПОНИЯ: Женская лига Надешико | B78: 2022.03.27 06:00 | C78: Ниттаидаи (Ж) | D78: Харима Альбион (Ж) | E78: j7xjtLbR | F78: 100 | I78: Загрузить | J78: 0 | K78: 0 | L78: 2.45 | M78: 3.36 | N78: 2.62 | O78: 2.25 | P78: 3.5 | Q78: 2.63 | R78: 0.2 | S78: -0.14 | T78: -0.01
A79: МЕКСИКА: Лига Экспансьон МХ - Клаусура | B79: 2022.03.27 06:05 | C79: Тепатитлан де Морельос | D79: Атланте | E79: hdz2e15K | F79: 128 | I79: Загрузить | J79: 2 | K79: 1 | L79: 2.75 | M79: 2.79 | N79: 2.78 | O79: 2.95 | P79: 2.88 | Q79: 2.4 | R79: -0.2 | S79: -0.09 | T79: 0.38
A80: АВСТРАЛИЯ: НПЛ Новый Южный Уэльс | B80: 2022.03.27 07:00 | C80: Нортбридж Буллс | D80: Сидней Юнайтед | E80: 69cOcHNR | F80: 24 | I80: Загрузить | J80: 4 | K80: 2 | L80: 5.75 | M80: 4.92 | N80: 1.48 | O80: 5.1 | P80: 4.4 | Q80: 1.5 | R80: 0.65 | S80: 0.52 | T80: -0.02
A81: АВСТРАЛИЯ: НПЛ Виктория | B81: 2022.03.27 07:00 | C81: Гейдельберг Юнайтед | D81: Альтона Мэджик | E81: 0vaSFOA8 | F81: 24 | I81: Загрузить | J81: 1 | K81: 2 | L81: 1.91 | M81: 3.74 | N81: 3.74 | O81: 2.07 | P81: 3.1 | Q81: 3.36 | R81: -0.16 | S81: 0.64 | T81: 0.38
A82: ЮЖНАЯ КОРЕЯ: К-Лига 2 | B82: 2022.03.27 07:00 | C82: Сеул Е-Лэнд | D82: Аньянг | E82: U3tEMftt | F82: 106 | I82: Загрузить | J82: 0 | K82: 0 | L82: 2.71 | M82: 3.05 | N82: 2.69 | O82: 2.52 | P82: 3.1 | Q82: 3.04 | R82: 0.19 | S82: -0.05 | T82: -0.35
A83: ЯПОНИЯ: Лига Джей-3 | B83: 2022.03.27 07:00 | C83: Азул-Кларо | D83: Гифу | E83: I5Wv2MHq | F83: 100 | I83: Загрузить | J83: 2 | K83: 0 | L83: 3.64 | M83: 3.3 | N83: 1.98 | O83: 2.75 | P83: 3.1 | Q83: 2.45 | R83: 0.89 | S83: 0.2 | T83: -0.47
A84: ЯПОНИЯ: Лига Джей-3 | B84: 2022.03.27 07:00 | C84: Ванрауре | D84: Фудзиэда МИФК | E84: v9ChFAyB | F84: 100 | I84: Загрузить | J84: 1 | K84: 0 | L84: 3.17 | M84: 3.3 | N84: 2.16 | O84: 3.24 | P84: 3.24 | Q84: 2.09 | R84: -0.07 | S84: 0.06 | T84: 0.07
A85: ЯПОНИЯ: Лига Джей-3 | B85: 2022.03.27 07:00 | C85: Тоттори | D85: Имабари | E85: Wbc8WB6o | F85: 100 | I85: Загрузить | J85: 1 | K85: 1 | L85: 2.61 | M85: 3.2 | N85: 2.56 | O85: 2.9 | P85: 3.1 | Q85: 2.36 | R85: -0.29 | S85: 0.1 | T85: 0.2
A86: ЯПОНИЯ: Лига Джей-3 | B86: 2022.03.27 07:00 | C86: Фукусима Юнайтед | D86: Иокогама | E86: MX1cEUjH | F86: 100 | I86: Загрузить | J86: 2 | K86: 1 | L86: 1.93 | M86: 3.42 | N86: 3.68 | O86: 2.02 | P86: 3.24 | Q86: 3.44 | R86: -0.09 | S86: 0.18 | T86: 0.24
A87: ЯПОНИЯ: WE Лига (Ж) | B87: 2022.03.27 07:00 | C87: Минави Сендай (Ж) | D87: Парсеиро Нагано (Ж) | E87: WYPgQnXb | F87: 100 | I87: Загрузить | J87: 2 | K87: 0 | L87: 1.46 | M87: 3.74 | N87: 6.7 | O87: 1.45 | P87: 3.74 | Q87: 6.75 | R87: 0.01 | S87: 0 | T87: -0.05
A88: ЯПОНИЯ: WE Лига (Ж) | B88: 2022.03.27 07:00 | C88: Омия (Ж) | D88: Белеза (Ж) | E88: vaPcP6n5 | F88: 100 | I88: Загрузить | J88: 0 | K88: 1 | L88: 5.45 | M88: 5 | N88: 1.37 | O88: 5.1 | P88: 3.74 | Q88: 1.55 | R88: 0.35 | S88: 1.26 | T88: -0.18
A89: ЯПОНИЯ: Женская лига Надешико | B89: 2022.03.27 07:00 | C89: Анжевиолет Хиросима (Ж) | D89: Эхимэ (Ж) | E89: MkTLzaMl | F89: 100 | I89: Загрузить | J89: 1 | K89: 0 | L89: 6.3 | M89: 4.04 | N89: 1.48 | O89: 4.34 | P89: 3.1 | Q89: 1.86 | R89: 1.96 | S89: 0.94 | T89: -0.38
A90: ЯПОНИЯ: Женская лига Надешико | B90: 2022.03.27 07:00 | C90: Орка (Ж) | D90: Сэтагая (Ж) | E90: hGOHyu7r | F90: 100 | I90: Загрузить | J90: 0 | K90: 1 | L90: 3.48 | M90: 3.38 | N90: 2.01 | O90: 3.54 | P90: 3 | Q90: 2.1 | R90: -0.06 | S90: 0.38 | T90: -0.09
A91: АВСТРАЛИЯ: НПЛ Северный Новый Южный Уэльс | B91: 2022.03.27 07:30 | C91: Чарльзтаун Адзурри | D91: Лэмбтон Джаффас | E91: lSZrQK9m | F91: 24 | I91: Загрузить | J91: 3 | K91: 1 | L91: 3.46 | M91: 3.74 | N91: 1.91 | O91: 2.55 | P91: 3.34 | Q91: 2.46 | R91: 0.91 | S91: 0.4 | T91: -0.55
A92: ЮЖНАЯ КОРЕЯ: К-Лига 1 | B92: 2022.03.27 08:00 | C92: Ульсан | D92: Пхохан Стилерс | E92: Kz6rbak6 | F92: 106 | I92: Загрузить | J92: 2 | K92: 0 | L92: 2.78 | M92: 3.2 | N92: 2.78 | O92: 1.85 | P92: 3.3 | Q92: 4.56 | R92: 0.93 | S92: -0.1 | T92: -1.78
A93: ЮЖНАЯ КОРЕЯ: К-Лига 3 | B93: 2022.03.27 08:00 | C93: Гимхэ | D93: Бусан Киотонг | E93: rqtFwZBl | F93: 106 | I93: Загрузить | J93: 0 | K93: 0 | L93: 1.7 | M93: 3.52 | N93: 4.88 | O93: 2.27 | P93: 2.85 | Q93: 3.34 | R93: -0.57 | S93: 0.67 | T93: 1.54
A94: ЮЖНАЯ КОРЕЯ: К-Лига 3 | B94: 2022.03.27 08:00 | C94: Хвасон | D94: Siheung Citizen | E94: Q7VJxgRf | F94: 106 | I94: Загрузить | J94: 0 | K94: 1 | L94: 2.06 | M94: 3.2 | N94: 3.58 | O94: 2.27 | P94: 2.95 | Q94: 3.4 | R94: -0.21 | S94: 0.25 | T94: 0.18
A95: ЯПОНИЯ: Лига Джей-3 | B95: 2022.03.27 08:00 | C95: Нагано Парсейро | D95: Каматамаре | E95: Uc55C8LT | F95: 100 | I95: Загрузить | J95: 3 | K95: 1 | L95: 1.73 | M95: 3.38 | N95: 4.86 | O95: 1.78 | P95: 3.4 | Q95: 4.32 | R95: -0.05 | S95: -0.02 | T95: 0.54
A96: ЯПОНИЯ: Лига Джей-3 | B96: 2022.03.27 08:00 | C96: Тояма | D96: Гираванз Китакуюши | E96: W6iX7STp | F96: 100 | I96: Загрузить | J96: 1 | K96: 2 | L96: 2.18 | M96: 3.17 | N96: 3.26 | O96: 2.36 | P96: 3 | Q96: 3 | R96: -0.18 | S96: 0.17 | T96: 0.26
A97: ЯПОНИЯ: WE Лига (Ж) | B97: 2022.03.27 08:00 | C97: Нодзима Стелла (Ж) | D97: ДЖЕФ Юнайтед (Ж) | E97: IkO1OQ1B | F97: 100 | I97: Загрузить | J97: 0 | K97: 3 | L97: 3.62 | M97: 3 | N97: 2.12 | O97: 3.26 | P97: 3.1 | Q97: 2.12 | R97: 0.36 | S97: -0.1 | T97: 0
A98: ЯПОНИЯ: WE Лига (Ж) | B98: 2022.03.27 08:00 | C98: Хиросима (Ж) | D98: Урава (Ж) | E98: 0ED6NpHH | F98: 100 | I98: Загрузить | J98: 0 | K98: 1 | L98: 5.75 | M98: 3.9 | N98: 1.54 | O98: 4.84 | P98: 3.5 | Q98: 1.64 | R98: 0.91 | S98: 0.4 | T98: -0.1
A99: АВСТРАЛИЯ: А-Лига Женщины - Плей-офф | B99: 2022.03.27 08:05 | C99: Сидней (Ж) | D99: Мельбурн (Ж) | E99: ng23vAjM | F99: 24 | I99: Загрузить | J99: 1 | K99: 2 | L99: 1.65 | M99: 3.92 | N99: 4.58 | O99: 1.49 | P99: 4.2 | Q99: 5.35 | R99: 0.16 | S99: -0.28 | T99: -0.77
A100: ЯПОНИЯ: Лига Джей-3 | B100: 2022.03.27 09:00 | C100: Эхимэ | D100: Iwaki | E100: 0ULq1tXk | F100: 100 | I100: Загрузить | J100: 1 | K100: 2 | L100: 2.66 | M100: 3.16 | N100: 2.53 | O100: 2.55 | P100: 2.9 | Q100: 2.75 | R100: 0.11 | S100: 0.26 | T100: -0.22
A101: АВСТРАЛИЯ: НПЛ Виктория | B101: 2022.03.27 10:00 | C101: Сент Олбанс | D101: Мельбурн Найтс | E101: vVcWErQE | F101: 24 | I101: Загрузить | J101: 0 | K101: 2 | L101: 2.78 | M101: 3.68 | N101: 2.36 | O101: 3.16 | P101: 3.5 | Q101: 2.02 | R101: -0.38 | S101: 0.18 | T101: 0.34
A102: МАКАО: Элитная Лига | B102: 2022.03.27 10:00 | C102: Спортинг Макао | D102: Чен Фун | E102: hvJgkmHl | F102: 233 | I102: Загрузить | J102: 0 | K102: 3 | L102: 16 | M102: 11 | N102: 1.07 | O102: 7.8 | P102: 5.5 | Q102: 1.26 | R102: 8.2 | S102: 5.5 | T102: -0.19
A103: РУМЫНИЯ: Лига 1 - Женщины - Группа вылета | B103: 2022.03.27 10:00 | C103: Тыргу Муреш (Ж) | D103: Банат (Ж) | E103: dhVx1jGh | F103: 157 | I103: Загрузить | J103: 2 | K103: 2 | L103: 2.43 | M103: 4.04 | N103: 2.33 | O103: 2.12 | P103: 4.2 | Q103: 2.55 | R103: 0.31 | S103: -0.16 | T103: -0.22
A104: ЮЖНАЯ КОРЕЯ: К-Лига 2 | B104: 2022.03.27 10:00 | C104: Пусан Ай Парк | D104: Gimpo FC | E104: 8fuILEen | F104: 106 | I104: Загрузить | J104: 2 | K104: 0 | L104: 2.45 | M104: 3.01 | N104: 3.09 | O104: 2.32 | P104: 3.15 | Q104: 3.4 | R104: 0.13 | S104: -0.14 | T104: -0.31
A105: АВСТРАЛИЯ: НПЛ Новый Южный Уэльс | B105: 2022.03.27 10:30 | C105: ФК Сидней U21 | D105: Мэнли Юнайтед | E105: 8IqjgyWr | F105: 24 | I105: Загрузить | J105: 2 | K105: 2 | L105: 2.45 | M105: 3.68 | N105: 2.64 | O105: 2.34 | P105: 3.4 | Q105: 2.65 | R105: 0.11 | S105: 0.28 | T105: -0.01
A106: АВСТРАЛИЯ: НПЛ Квинсленд | B106: 2022.03.27 10:30 | C106: Брисбен U21 | D106: Олимпик ФК | E106: 8On0iiSL | F106: 24 | I106: Загрузить | J106: 0 | K106: 5 | L106: 4.54 | M106: 4.46 | N106: 1.64 | O106: 2.79 | P106: 3.7 | Q106: 2.16 | R106: 1.75 | S106: 0.76 | T106: -0.52
A107: АВСТРАЛИЯ: НПЛ Квинсленд | B107: 2022.03.27 11:00 | C107: Саншайн-Кост Уондерерз | D107: Логан Лайтнинг | E107: nFo4jBsS | F107: 24 | I107: Загрузить | J107: 3 | K107: 0 | L107: 1.71 | M107: 4.36 | N107: 4.12 | O107: 1.89 | P107: 4 | Q107: 3.22 | R107: -0.18 | S107: 0.36 | T107: 0.9
A108: МИР: Международные товарищеские матчи | B108: 2022.03.27 11:00 | C108: Хорватия U18 | D108: Латвия U18 | E108: UZSOTwQa | F108: 8 | I108: Загрузить | J108: 2 | K108: 3
A109: РУМЫНИЯ: Лига 1 - Женщины - Чемпионшип - плей-офф | B109: 2022.03.27 11:00 | C109: Вашаш Од (Ж) | D109: Университатя Александрия (Ж) | E109: hG85OcRM | F109: 157 | I109: Загрузить | J109: 1 | K109: 3 | L109: 5.35 | M109: 6 | N109: 1.34 | O109: 3.04 | P109: 5 | Q109: 1.75 | R109: 2.31 | S109: 1 | T109: -0.41
A110: ТУРЦИЯ: Суперлига - Женщина | B110: 2022.03.27 11:00 | C110: Сивасспор (Ж) | D110: Конак Беледиеси (Ж) | E110: 0Ayjlye0 | F110: 191 | I110: Загрузить | J110: 0 | K110: 2 | L110: 7.2 | M110: 5.7 | N110: 1.27 | O110: 9.3 | P110: 6 | Q110: 1.21 | R110: -2.1 | S110: -0.3 | T110: 0.06
A111: ЧЕХИЯ: Оломоуцкий край | B111: 2022.03.27 11:00 | C111: Сокол Усти | D111: Доляны | E111: jPBpDZD4 | F111: 62 | I111: Загрузить | J111: 5 | K111: 0 | L111: 1.13 | M111: 8.4 | N111: 10 | O111: 1.13 | P111: 8.5 | Q111: 10 | R111: 0 | S111: -0.1 | T111: 0
A112: ЮЖНАЯ АФРИКА: Кубок Вызова Диски | B112: 2022.03.27 11:00 | C112: Роял АМ U23 | D112: ТС Гэлакси U23 | E112: 8z9vR6vm | F112: 175 | I112: Загрузить | J112: 1 | K112: 1 | L112: 2.23 | M112: 3.4 | N112: 2.8 | O112: 2.22 | P112: 3.4 | Q112: 2.81 | R112: 0.01 | S112: 0 | T112: -0.01
A113: ЮЖНАЯ АФРИКА: Кубок Вызова Диски | B113: 2022.03.27 11:00 | C113: Сехухуне U23 | D113: Амазулу U23 | E113: QB3qQQgg | F113: 175 | I113: Загрузить | J113: 2 | K113: 2
A114: АВСТРАЛИЯ: Лига А | B114: 2022.03.27 11:05 | C114: Мельбурн Виктори | D114: ВС Уондерерс | E114: ClXzMwgi | F114: 24 | I114: Загрузить | J114: 1 | K114: 1 | L114: 1.89 | M114: 3.85 | N114: 4.14 | O114: 1.72 | P114: 3.8 | Q114: 4.46 | R114: 0.17 | S114: 0.05 | T114: -0.32
A115: ЧЕХИЯ: ЧФЛ - Группа A | B115: 2022.03.27 11:15 | C115: Славия Прага (Б) | D115: Домазлице | E115: nZDoORH3 | F115: 62 | I115: Загрузить | J115: 1 | K115: 1 | L115: 2.03 | M115: 4.1 | N115: 2.92 | O115: 2.09 | P115: 3.6 | Q115: 2.99 | R115: -0.06 | S115: 0.5 | T115: -0.07
A116: ЧЕХИЯ: ЧФЛ - Группа B | B116: 2022.03.27 11:15 | C116: Богемианс 1905 (Б) | D116: Либерец (Б) | E116: CGBTu61d | F116: 62 | I116: Загрузить | J116: 1 | K116: 0 | L116: 2.29 | M116: 3.6 | N116: 2.68 | O116: 1.97 | P116: 5 | Q116: 2.54 | R116: 0.32 | S116: -1.4 | T116: 0.14
A117: ЧЕХИЯ: ЧФЛ - Группа B | B117: 2022.03.27 11:15 | C117: Дукла Прага (Б) | D117: Пршеперже | E117: 0xhO1mOF | F117: 62 | I117: Загрузить | J117: 1 | K117: 0 | L117: 2.45 | M117: 3.78 | N117: 2.4 | O117: 2.55 | P117: 4.74 | Q117: 1.97 | R117: -0.1 | S117: -0.96 | T117: 0.43
A118: ЧЕХИЯ: ЧФЛ - Группа B | B118: 2022.03.27 11:15 | C118: Млада-Болеслав (Б) | D118: Усти-над-Орлици | E118: YPCPtnnj | F118: 62 | I118: Загрузить | J118: 0 | K118: 0 | L118: 1.56 | M118: 4.24 | N118: 4.94 | O118: 1.34 | P118: 5.6 | Q118: 5.9 | R118: 0.22 | S118: -1.36 | T118: -0.96
A119: ЧЕХИЯ: Моравскосилезская футбольная лига | B119: 2022.03.27 11:15 | C119: Бланско | D119: Зноймо | E119: KEpBnHCs | F119: 62 | I119: Загрузить | J119: 0 | K119: 4 | L119: 1.85 | M119: 3.96 | N119: 3.48 | O119: 1.42 | P119: 4.9 | Q119: 5.5 | R119: 0.43 | S119: -0.94 | T119: -2.02
A120: ЧЕХИЯ: Моравскосилезская футбольная лига | B120: 2022.03.27 11:15 | C120: Велке Мезиржичи | D120: Острава (Б) | E120: GtvKpesf | F120: 62 | I120: Загрузить | J120: 2 | K120: 4 | L120: 3.74 | M120: 4.04 | N120: 1.77 | O120: 3.52 | P120: 3.9 | Q120: 1.82 | R120: 0.22 | S120: 0.14 | T120: -0.05
A121: ЧЕХИЯ: Моравскосилезская футбольная лига | B121: 2022.03.27 11:15 | C121: Сигма Оломоуц (Б) | D121: Угерски-Брод | E121: Wl0ygJZD | F121: 62 | I121: Загрузить | J121: 2 | K121: 1 | L121: 1.22 | M121: 6.05 | N121: 10.5 | O121: 1.15 | P121: 7.8 | Q121: 10.5 | R121: 0.07 | S121: -1.75 | T121: 0
A122: ЧЕХИЯ: Моравскосилезская футбольная лига | B122: 2022.03.27 11:15 | C122: Уников | D122: Росице | E122: I5bqic4Q | F122: 62 | I122: Загрузить | J122: 2 | K122: 0 | L122: 1.74 | M122: 3.8 | N122: 4.1 | O122: 1.77 | P122: 3.9 | Q122: 3.72 | R122: -0.03 | S122: -0.1 | T122: 0.38
A123: ЧЕХИЯ: Дивизион D | B123: 2022.03.27 11:15 | C123: Велка-Битеш | D123: Гумполец | E123: tG7CuIIt | F123: 62 | I123: Загрузить | J123: 0 | K123: 1 | L123: 1.74 | M123: 4.2 | N123: 3.46 | O123: 1.75 | P123: 4.2 | Q123: 3.44 | R123: -0.01 | S123: 0 | T123: 0.02
A124: ЧЕХИЯ: Дивизион F | B124: 2022.03.27 11:15 | C124: Карвина (Б) | D124: Фридлант-над-Остравици | E124: lfxPpayH | F124: 62 | I124: Загрузить | J124: 2 | K124: 0 | L124: 1.56 | M124: 5.05 | N124: 2.8 | O124: 2.67 | P124: 4.32 | Q124: 2.02 | R124: -1.11 | S124: 0.73 | T124: 0.78
A125: ЧЕХИЯ: Край Высочина | B125: 2022.03.27 11:15 | C125: Пельгржимов | D125: Бедржихов | E125: KCPzDONN | F125: 62 | I125: Загрузить | J125: 4 | K125: 0
A126: СЛОВАКИЯ: Первая лига - Женщины - Группа вылета | B126: 2022.03.27 11:30 | C126: Б. Быстрица (Ж) | D126: Нитра (Ж) | E126: 0jLE6A07 | F126: 171 | I126: Загрузить | J126: 5 | K126: 2 | L126: 1.93 | M126: 4 | N126: 2.96 | O126: 2.15 | P126: 4 | Q126: 2.5 | R126: -0.22 | S126: 0 | T126: 0.46
A127: ЧЕХИЯ: ЧФЛ - Группа A | B127: 2022.03.27 11:30 | C127: Плзень (Б) | D127: Адмира Прага | E127: 0Q5b2pep | F127: 62 | I127: Загрузить | J127: 1 | K127: 1 | L127: 2.17 | M127: 3.64 | N127: 2.9 | O127: 1.56 | P127: 4.3 | Q127: 4.6 | R127: 0.61 | S127: -0.66 | T127: -1.7
A128: ЧЕХИЯ: Устецкий край | B128: 2022.03.27 11:30 | C128: Кадан | D128: Баник Мост (Б) | E128: b3vNs7Vb | F128: 62 | I128: Загрузить | J128: 1 | K128: 1
A129: ГЕРМАНИЯ: Оберлига Гамбург - Этап победителей | B129: 2022.03.27 11:45 | C129: ХЕБК Гамбург | D129: Палома | E129: AaZhpkg5 | F129: 81 | I129: Загрузить | J129: 1 | K129: 2 | L129: 2.94 | M129: 3.78 | N129: 2.1 | O129: 3.05 | P129: 4 | Q129: 1.93 | R129: -0.11 | S129: -0.22 | T129: 0.17
A130: ИСПАНИЯ: Терсера - Группа 4 | B130: 2022.03.27 11:45 | C130: Сантутксу | D130: Баскония | E130: tvQsp4Vl | F130: 176 | I130: Загрузить | J130: 0 | K130: 1 | L130: 4.94 | M130: 3.4 | N130: 1.71 | O130: 3.28 | P130: 3.08 | Q130: 2.21 | R130: =IF(L130="","",L130-O130) -> 1.66 | S130: =IF(M130="","",M130-P130) -> 0.32 | T130: =IF(N130="","",N130-Q130) -> -0.5
A131: ВЕНГРИЯ: НБ III - Восток | B131: 2022.03.27 12:00 | C131: Дебрецен II | D131: Сенио Карнифекс | E131: U1F401U9 | F131: 91 | I131: Загрузить | J131: 5 | K131: 1 | L131: 2.3 | M131: 3.48 | N131: 2.79 | O131: 2.38 | P131: 3.5 | Q131: 2.45 | R131: -0.08 | S131: -0.02 | T131: 0.34
A132: ВЕНГРИЯ: НБ III - Центр | B132: 2022.03.27 12:00 | C132: Гонвед II | D132: Дунауйварош Пальхальмаи | E132: z5Pl6GGL | F132: 91 | I132: Загрузить | J132: 2 | K132: 3 | L132: 3.66 | M132: 3.64 | N132: 1.87 | O132: 2.76 | P132: 3.3 | Q132: 2.27 | R132: 0.9 | S132: 0.34 | T132: -0.4
A133: ВЕНГРИЯ: НБ III - Центр | B133: 2022.03.27 12:00 | C133: Пакш II | D133: МТК II | E133: v1YH54s8 | F133: 91 | I133: Загрузить | J133: 3 | K133: 1
A134: ВЕНГРИЯ: НБ III - Центр | B134: 2022.03.27 12:00 | C134: Ференцварош II | D134: Цеглед | E134: UROh5zWR | F134: 91 | I134: Загрузить | J134: 1 | K134: 1
A135: ВЕНГРИЯ: НБ III - Запад | B135: 2022.03.27 12:00 | C135: Залаэгерсег II | D135: Гардони Вароши | E135: SvxujCMm | F135: 91 | I135: Загрузить | J135: 3 | K135: 0 | L135: 1.3 | M135: 4.34 | N135: 9.5 | O135: 1.51 | P135: 3.74 | Q135: 5.7 | R135: -0.21 | S135: 0.6 | T135: 3.8
A136: ВЕНГРИЯ: НБ III - Запад | B136: 2022.03.27 12:00 | C136: МОЛ Фехервар II | D136: Шопрон | E136: YyJHYAiD | F136: 91 | I136: Загрузить | J136: 3 | K136: 2
A137: ВЕНГРИЯ: НБ III - Запад | B137: 2022.03.27 12:00 | C137: Пушкаш Академи II | D137: Мошонмадьяровар ТЕ | E137: pGnzih7s | F137: 91 | I137: Загрузить | J137: 0 | K137: 4
A138: ГЕРМАНИЯ: Оберлига Бремен | B138: 2022.03.27 12:00 | C138: Геестмюнде | D138: Леер | E138: GdY7LqoM | F138: 81 | I138: Загрузить | J138: 2 | K138: 3 | L138: 2.48 | M138: 3.98 | N138: 2.31 | O138: 2.02 | P138: 4.32 | Q138: 2.67 | R138: 0.46 | S138: -0.34 | T138: -0.36
A139: ГЕРМАНИЯ: Вторая Бундеслига Женщины | B139: 2022.03.27 12:00 | C139: Вольфсбург II (Ж) | D139: Бавария II (Ж) | E139: lQdwLw70 | F139: 81 | I139: Загрузить | L139: 3.4 | M139: 3.62 | N139: 1.92 | O139: 3.42 | P139: 3.6 | Q139: 1.92 | R139: -0.02 | S139: 0.02 | T139: 0
A140: ГЕРМАНИЯ: Вторая Бундеслига Женщины | B140: 2022.03.27 12:00 | C140: Генштедт-Ульцбург (Ж) | D140: Андернах (Ж) | E140: zsakIyiJ | F140: 81 | I140: Загрузить | J140: 1 | K140: 3 | L140: 5.45 | M140: 4.7 | N140: 1.44 | O140: 5.5 | P140: 4.7 | Q140: 1.44 | R140: -0.05 | S140: 0 | T140: 0
A141: ГЕРМАНИЯ: Вторая Бундеслига Женщины | B141: 2022.03.27 12:00 | C141: Ингольштадт (Ж) | D141: Эльфсберг (Ж) | E141: 2T0sKcM6 | F141: 81 | I141: Загрузить | J141: 3 | K141: 5 | L141: 1.45 | M141: 4.54 | N141: 5.85 | O141: 1.5 | P141: 4.4 | Q141: 5.1 | R141: -0.05 | S141: 0.14 | T141: 0.75
A142: ГЕРМАНИЯ: Вторая Бундеслига Женщины | B142: 2022.03.27 12:00 | C142: Нюрнберг (Ж) | D142: Боруссия Бохольт (Ж) | E142: dj0oJHyD | F142: 81 | I142: Загрузить
A143: ГЕРМАНИЯ: Вторая Бундеслига Женщины | B143: 2022.03.27 12:00 | C143: РБ Лейпциг (Ж) | D143: Меппен (Ж) | E143: SA8UMaxl | F143: 81 | I143: Загрузить | J143: 4 | K143: 2 | L143: 3.14 | M143: 3.74 | N143: 2.02 | O143: 3.72 | P143: 3.8 | Q143: 1.79 | R143: -0.58 | S143: -0.06 | T143: 0.23
A144: ГЕРМАНИЯ: Вторая Бундеслига Женщины | B144: 2022.03.27 12:00 | C144: Хоффенхайм II (Ж) | D144: Гутерслох (Ж) | E144: YZgRNuNs | F144: 81 | I144: Загрузить | J144: 0 | K144: 0 | L144: 4.28 | M144: 4.04 | N144: 1.67 | O144: 3.62 | P144: 3.8 | Q144: 1.81 | R144: 0.66 | S144: 0.24 | T144: -0.14
A145: ЕВРОПА: Женский чемпионат Европы до 17 лет - Квалификация - Round 2 - League A | B145: 2022.03.27 12:00 | C145: Франция U17 (Ж) | D145: Хорватия U17 (Ж) | E145: zqWTFw9n | F145: 6 | I145: Загрузить | J145: 5 | K145: 0
A146: ИСПАНИЯ: Сегунда (Ж) | B146: 2022.03.27 12:00 | C146: Атлетико (Б) (Ж) | D146: Эспаньол (Ж) | E146: fJ9zkCT3 | F146: 176 | I146: Загрузить | J146: 0 | K146: 0 | L146: 4.94 | M146: 4.18 | N146: 1.56 | O146: 4.82 | P146: 4 | Q146: 1.55 | R146: 0.12 | S146: 0.18 | T146: 0.01
A147: МАКАО: Элитная Лига | B147: 2022.03.27 12:00 | C147: CFB Macau | D147: Бенфика | E147: n1Icl7Wf | F147: 233 | I147: Загрузить | J147: 1 | K147: 1
A148: РУМЫНИЯ: Лига 1 - Женщины - Группа вылета | B148: 2022.03.27 12:00 | C148: Тырговиште (Ж) | D148: Университатя Галац (Ж) | E148: zqUt0AVb | F148: 157 | I148: Загрузить | J148: 2 | K148: 0 | L148: 4.86 | M148: 4.78 | N148: 1.5 | O148: 2.6 | P148: 4 | Q148: 2.12 | R148: 2.26 | S148: 0.78 | T148: -0.62
A149: РУМЫНИЯ: Лига 1 - Женщины - Чемпионшип - плей-офф | B149: 2022.03.27 12:00 | C149: Олимпия Клуж-Напока (Ж) | D149: Фэирплэй Бухарест (Ж) | E149: bg91PwCG | F149: 157 | I149: Загрузить | J149: 11 | K149: 0
A150: СЛОВАКИЯ: Вторая лига | B150: 2022.03.27 12:00 | C150: Рогожник | D150: Петржалка | E150: Ymyc0hIB | F150: 171 | I150: Загрузить | J150: 1 | K150: 1 | L150: 3.36 | M150: 3.2 | N150: 2.12 | O150: 3.19 | P150: 3.34 | Q150: 2.1 | R150: 0.17 | S150: -0.14 | T150: 0.02
A151: ТУРЦИЯ: Суперлига - Женщина | B151: 2022.03.27 12:00 | C151: 1207 Antalyaspor (Ж) | D151: Алтай (Ж) | E151: 0Yq3eORn | F151: 191 | I151: Загрузить | J151: 6 | K151: 0 | L151: 1.14 | M151: 6.75 | N151: 15 | O151: 1.08 | P151: 10 | Q151: 23 | R151: 0.06 | S151: -3.25 | T151: -8
A152: ТУРЦИЯ: Суперлига - Женщина | B152: 2022.03.27 12:00 | C152: Kirecburnu (Ж) | D152: Бешикташ (Ж) | E152: Wbuad4Ct | F152: 191 | I152: Загрузить | J152: 6 | K152: 0
A153: ТУРЦИЯ: Суперлига - Женщина | B153: 2022.03.27 12:00 | C153: Галатасарай (Ж) | D153: Adana Idmanyurduspor (Ж) | E153: rZtokHuf | F153: 191 | I153: Загрузить | J153: 1 | K153: 1 | L153: 1.71 | M153: 3.2 | N153: 3.86 | O153: 2.12 | P153: 3.6 | Q153: 2.85 | R153: -0.41 | S153: -0.4 | T153: 1.01
A154: ТУРЦИЯ: Суперлига - Женщина | B154: 2022.03.27 12:00 | C154: Кайсери (Ж) | D154: ALG Spor (Ж) | E154: pxtAgWWu | F154: 191 | I154: Загрузить | J154: 0 | K154: 4
A155: ТУРЦИЯ: Суперлига - Женщина | B155: 2022.03.27 12:00 | C155: Карагюмрюк (Ж) | D155: Hakkarigucu Spor (Ж) | E155: YNZcnFPC | F155: 191 | I155: Загрузить | J155: 2 | K155: 0 | L155: 2.64 | M155: 3.6 | N155: 2.24 | O155: 2.95 | P155: 3.64 | Q155: 2.14 | R155: -0.31 | S155: -0.04 | T155: 0.1
A156: ТУРЦИЯ: Суперлига - Женщина | B156: 2022.03.27 12:00 | C156: Ризеспор (Ж) | D156: Илькадим (Ж) | E156: pbw2oZvJ | F156: 191 | I156: Загрузить | J156: 3 | K156: 0 | L156: 1.15 | M156: 8 | N156: 11 | O156: 1.14 | P156: 8 | Q156: 11.5 | R156: 0.01 | S156: 0 | T156: -0.5
A157: ТУРЦИЯ: Суперлига - Женщина | B157: 2022.03.27 12:00 | C157: Фенербахче (Ж) | D157: Fatih Vatan Spor (Ж) | E157: vPr7frsg | F157: 191 | I157: Загрузить | J157: 2 | K157: 1 | L157: 1.26 | M157: 5.15 | N157: 9.3 | O157: 1.51 | P157: 4.32 | Q157: 4.66 | R157: -0.25 | S157: 0.83 | T157: 4.64
A158: ТУРЦИЯ: Суперлига - Женщина | B158: 2022.03.27 12:00 | C158: Хатайспор (Ж) | D158: Аташехир Беледийеспор (Ж) | E158: SpFlx1RO | F158: 191 | I158: Загрузить | J158: 3 | K158: 0 | L158: 7.8 | M158: 4.8 | N158: 1.32 | O158: 9.3 | P158: 7 | Q158: 1.18 | R158: -1.5 | S158: -2.2 | T158: 0.14
A159: ХОРВАТИЯ: 3. ХНЛ - Центр | B159: 2022.03.27 12:00 | C159: Гай Маче | D159: Сегеста | E159: fuZjMhGr | F159: 59 | I159: Загрузить | J159: 2 | K159: 1 | L159: 1.44 | M159: 4.4 | N159: 6.25 | O159: 1.41 | P159: 4.74 | Q159: 5.4 | R159: 0.03 | S159: -0.34 | T159: 0.85
A160: ЧЕХИЯ: ЧФЛ - Группа B | B160: 2022.03.27 12:00 | C160: Теплице (Б) | D160: Хлумец-над-Цидлиноу | E160: SOgG39g3 | F160: 62 | I160: Загрузить | J160: 4 | K160: 0 | L160: 2.08 | M160: 3.78 | N160: 2.98 | O160: 1.69 | P160: 5 | Q160: 3.32 | R160: 0.39 | S160: -1.22 | T160: -0.34
A161: ИСПАНИЯ: Терсера - Группа 6 | B161: 2022.03.27 12:30 | C161: Рекамбьос Колон | D161: Эркулес (Б) | E161: EDH4Qv33 | F161: 176 | I161: Загрузить | J161: 1 | K161: 2 | L161: 2.88 | M161: 2.66 | N161: 2.74 | O161: 3.07 | P161: 2.8 | Q161: 2.4 | R161: -0.19 | S161: -0.14 | T161: 0.34
A162: ИСПАНИЯ: Терсера - Группа 7 | B162: 2022.03.27 12:30 | C162: Колония | D162: Лас-Росас | E162: 8xC8gynI | F162: 176 | I162: Загрузить | J162: 1 | K162: 2 | L162: 11 | M162: 5.9 | N162: 1.22 | O162: 10 | P162: 6.5 | Q162: 1.18 | R162: 1 | S162: -0.6 | T162: 0.04
A163: ИСПАНИЯ: Терсера - Группа 13 | B163: 2022.03.27 12:30 | C163: Ла Унион | D163: Архена | E163: Cn49oaqR | F163: 176 | I163: Загрузить | J163: 0 | K163: 0 | L163: 1.59 | M163: 3.8 | N163: 5.25 | O163: 1.45 | P163: 4.2 | Q163: 5.7 | R163: 0.14 | S163: -0.4 | T163: -0.45
A164: ИСПАНИЯ: Терсера - Группа 17 | B164: 2022.03.27 12:30 | C164: Сарагоса (Б) | D164: Робрес | E164: zLH7FXoT | F164: 176 | I164: Загрузить | J164: 2 | K164: 1 | L164: 1.63 | M164: 3.4 | N164: 5.75 | O164: 1.64 | P164: 3.6 | Q164: 5.15 | R164: -0.01 | S164: -0.2 | T164: 0.6
A165: ИСПАНИЯ: Терсера - Группа 18 | B165: 2022.03.27 12:30 | C165: Ийескас | D165: Уракан де Баласоте | E165: 4vlKvj3c | F165: 176 | I165: Загрузить | J165: 2 | K165: 0 | L165: 1.59 | M165: 3.8 | N165: 5.3 | O165: 1.51 | P165: 3.74 | Q165: 5.7 | R165: 0.08 | S165: 0.06 | T165: -0.4
A166: ИСПАНИЯ: Терсера - Группа 2 | B166: 2022.03.27 12:45 | C166: Правиано | D166: Лангрео (Б) | E166: MqWfsKa1 | F166: 176 | I166: Загрузить | J166: 1 | K166: 0 | L166: 1.36 | M166: 4.72 | N166: 7.4 | O166: 1.3 | P166: 5 | Q166: 7.7 | R166: 0.06 | S166: -0.28 | T166: -0.3
A167: ГЕРМАНИЯ: Младшая северная Бундеслига | B167: 2022.03.27 13:00 | C167: ФК Хемницер U19 | D167: Виктория Берлин U19 | E167: bsmIny3B | F167: 81 | I167: Загрузить | J167: 0 | K167: 3 | L167: 2.46 | M167: 3.5 | N167: 2.46 | O167: 2.45 | P167: 3.8 | Q167: 2.34 | R167: 0.01 | S167: -0.3 | T167: 0.12
A168: ЕВРОПА: Чемпионат Европы до 17 лет - Квалификация - Второй этап | B168: 2022.03.27 13:00 | C168: Греция U17 | D168: Венгрия U17 | E168: UZWcW86f | F168: 6 | I168: Загрузить | J168: 1 | K168: 1
A169: ИСПАНИЯ: Примера РФЕФ - Группа 1 | B169: 2022.03.27 13:00 | C169: Атлетик (Б) | D169: Туделано | E169: CElGgeaN | F169: 176 | I169: Загрузить | J169: 1 | K169: 0 | L169: 1.88 | M169: 3.4 | N169: 4 | O169: 1.82 | P169: 3.2 | Q169: 4.1 | R169: 0.06 | S169: 0.2 | T169: -0.1
A170: ИСПАНИЯ: Примера РФЕФ - Группа 1 | B170: 2022.03.27 13:00 | C170: Расинг | D170: СД Логроньес | E170: UkaBfypH | F170: 176 | I170: Загрузить | J170: 1 | K170: 0 | L170: 1.44 | M170: 4.08 | N170: 7.4 | O170: 1.51 | P170: 3.6 | Q170: 6.25 | R170: -0.07 | S170: 0.48 | T170: 1.15
A171: ИСПАНИЯ: Примера РФЕФ - Группа 1 | B171: 2022.03.27 13:00 | C171: Сельта (Б) | D171: Депортиво | E171: MPe3dcF4 | F171: 176 | I171: Загрузить | J171: 2 | K171: 1 | L171: 2.98 | M171: 3.19 | N171: 2.35 | O171: 2.4 | P171: 3 | Q171: 2.75 | R171: 0.58 | S171: 0.19 | T171: -0.4
A172: ИСПАНИЯ: Примера РФЕФ - Группа 2 | B172: 2022.03.27 13:00 | C172: Корнелья | D172: Коста-Брава | E172: js58Mtjj | F172: 176 | I172: Загрузить | J172: 2 | K172: 0 | L172: 1.89 | M172: 3.26 | N172: 4.16 | O172: 2.02 | P172: 3.24 | Q172: 3.36 | R172: -0.13 | S172: 0.02 | T172: 0.8
A173: ИСПАНИЯ: Примера РФЕФ - Группа 2 | B173: 2022.03.27 13:00 | C173: Севилья (Б) | D173: Балеарес | E173: nTlBt2sM | F173: 176 | I173: Загрузить | J173: 1 | K173: 1 | L173: 2.98 | M173: 3.13 | N173: 2.39 | O173: 3.3 | P173: 3.3 | Q173: 2.02 | R173: -0.32 | S173: -0.17 | T173: 0.37
A174: ИСПАНИЯ: Сегунда РФЕФ - Группа 1 | B174: 2022.03.27 13:00 | C174: Мостолес | D174: Гимнастика Сеговиана | E174: QekfFThi | F174: 176 | I174: Загрузить | J174: 0 | K174: 3 | L174: 2.23 | M174: 2.98 | N174: 3.42 | O174: 1.93 | P174: 3.2 | Q174: 3.68 | R174: 0.3 | S174: -0.22 | T174: -0.26
A175: ИСПАНИЯ: Сегунда РФЕФ - Группа 1 | B175: 2022.03.27 13:00 | C175: Унион Сеарес | D175: Реал Авилес | E175: fysBBohG | F175: 176 | I175: Загрузить | J175: 1 | K175: 0 | L175: 5.9 | M175: 3.64 | N175: 1.58 | O175: 4.82 | P175: 3.74 | Q175: 1.59 | R175: 1.08 | S175: -0.1 | T175: -0.01
A176: ИСПАНИЯ: Сегунда РФЕФ Б - Группа 3 | B176: 2022.03.27 13:00 | C176: Бреа | D176: Европа | E176: YwWSublR | F176: 176 | I176: Загрузить | J176: 0 | K176: 0 | L176: 2 | M176: 3.2 | N176: 3.8 | O176: 2.02 | P176: 3.1 | Q176: 3.48 | R176: -0.02 | S176: 0.1 | T176: 0.32
A177: ИСПАНИЯ: Сегунда РФЕФ Б - Группа 3 | B177: 2022.03.27 13:00 | C177: Пенья Депортина | D177: Таразона | E177: WSQ2ZeRf | F177: 176 | I177: Загрузить | J177: 3 | K177: 1 | L177: 1.75 | M177: 3.44 | N177: 4.68 | O177: 1.85 | P177: 3.3 | Q177: 3.86 | R177: -0.1 | S177: 0.14 | T177: 0.82
A178: ИСПАНИЯ: Сегунда РФЕФ Б - Группа 3 | B178: 2022.03.27 13:00 | C178: Уэска (Б) | D178: Андрач | E178: jJIfyIdr | F178: 176 | I178: Загрузить | J178: 0 | K178: 0 | L178: 2.13 | M178: 3.16 | N178: 3.44 | O178: 2.32 | P178: 3.2 | Q178: 2.81 | R178: -0.19 | S178: -0.04 | T178: 0.63
A179: ИСПАНИЯ: Сегунда РФЕФ Б - Группа 3 | B179: 2022.03.27 13:00 | C179: Эхеа | D179: Ибица Ислас Питиусас | E179: l4ybzxCl | F179: 176 | I179: Загрузить | J179: 2 | K179: 2 | L179: 3.94 | M179: 3.15 | N179: 1.98 | O179: 3.32 | P179: 3 | Q179: 2.12 | R179: 0.62 | S179: 0.15 | T179: -0.14
A180: ИСПАНИЯ: Сегунда РФЕФ Б - Группа 4 | B180: 2022.03.27 13:00 | C180: Антекера | D180: Вильяновенсе | E180: 8xdsNVVf | F180: 176 | I180: Загрузить | J180: 0 | K180: 1 | L180: 2.65 | M180: 2.81 | N180: 2.9 | O180: 2.5 | P180: 3 | Q180: 2.63 | R180: 0.15 | S180: -0.19 | T180: 0.27
A181: ИСПАНИЯ: Сегунда РФЕФ Б - Группа 4 | B181: 2022.03.27 13:00 | C181: Дон Бенито | D181: Сеута | E181: A1xxqDhE | F181: 176 | I181: Загрузить | J181: 0 | K181: 2 | L181: 2.84 | M181: 2.83 | N181: 2.67 | O181: 2.63 | P181: 3 | Q181: 2.5 | R181: 0.21 | S181: -0.17 | T181: 0.17
A182: ИСПАНИЯ: Сегунда РФЕФ Б - Группа 4 | B182: 2022.03.27 13:00 | C182: Кадис (Б) | D182: Херес Депортиво | E182: WGQpsiNQ | F182: 176 | I182: Загрузить | J182: 0 | K182: 0 | L182: 2.76 | M182: 2.92 | N182: 2.66 | O182: 2.4 | P182: 3.2 | Q182: 2.63 | R182: 0.36 | S182: -0.28 | T182: 0.03
A183: ИСПАНИЯ: Сегунда РФЕФ Б - Группа 4 | B183: 2022.03.27 13:00 | C183: Монтижу | D183: Кордоба | E183: zPcZOi1r | F183: 176 | I183: Загрузить | J183: 1 | K183: 1 | L183: 3.96 | M183: 3.42 | N183: 1.88 | O183: 4.08 | P183: 3.5 | Q183: 1.75 | R183: -0.12 | S183: -0.08 | T183: 0.13
A184: ИСПАНИЯ: Сегунда РФЕФ Б - Группа 5 | B184: 2022.03.27 13:00 | C184: Манча | D184: Пульпиленьо | E184: MJd7qwNb | F184: 176 | I184: Загрузить | J184: 1 | K184: 1 | L184: 2.39 | M184: 2.99 | N184: 3.11 | O184: 2.32 | P184: 3 | Q184: 2.97 | R184: 0.07 | S184: -0.01 | T184: 0.14
A185: ИСПАНИЯ: Сегунда РФЕФ Б - Группа 5 | B185: 2022.03.27 13:00 | C185: Мелилла | D185: Эхидо | E185: rZpGsHiB | F185: 176 | I185: Загрузить | J185: 2 | K185: 0 | L185: 2.6 | M185: 2.86 | N185: 2.89 | O185: 2.4 | P185: 3 | Q185: 2.75 | R185: 0.2 | S185: -0.14 | T185: 0.14
A186: ИСПАНИЯ: Терсера - Группа 2 | B186: 2022.03.27 13:00 | C186: Спортинг (Б) | D186: Сан-Мартин | E186: UaWl31MK | F186: 176 | I186: Загрузить | J186: 2 | K186: 0 | L186: 1.45 | M186: 4.1 | N186: 6.7 | O186: 1.75 | P186: 3.4 | Q186: 4.28 | R186: -0.3 | S186: 0.7 | T186: 2.42
A187: ИСПАНИЯ: Терсера - Группа 4 | B187: 2022.03.27 13:00 | C187: Алавес (Б) | D187: Португалете | E187: p8vCkQ7R | F187: 176 | I187: Загрузить | J187: 0 | K187: 0 | L187: 2.18 | M187: 3.19 | N187: 3.22 | O187: 2.02 | P187: 3 | Q187: 3.42 | R187: 0.16 | S187: 0.19 | T187: -0.2
A188: ИСПАНИЯ: Терсера - Группа 5 | B188: 2022.03.27 13:00 | C188: Вильяфранка | D188: Гинеуэта | E188: tYt7OoXG | F188: 176 | I188: Загрузить | J188: 2 | K188: 2 | L188: 1.5 | M188: 3.88 | N188: 6.4 | O188: 1.51 | P188: 3.74 | Q188: 5.7 | R188: -0.01 | S188: 0.14 | T188: 0.7
A189: ИСПАНИЯ: Терсера - Группа 5 | B189: 2022.03.27 13:00 | C189: Кастельдефельс | D189: Гранольерс | E189: zetBN5nN | F189: 176 | I189: Загрузить | J189: 3 | K189: 0 | L189: 1.97 | M189: 3.3 | N189: 3.66 | O189: 2.17 | P189: 3.1 | Q189: 3.17 | R189: -0.2 | S189: 0.2 | T189: 0.49
A190: ИСПАНИЯ: Терсера - Группа 6 | B190: 2022.03.27 13:00 | C190: Адзанета | D190: Кальоса | E190: zil0FEf2 | F190: 176 | I190: Загрузить | J190: 3 | K190: 0 | L190: 1.27 | M190: 5 | N190: 10.5 | O190: 1.34 | P190: 4 | Q190: 9 | R190: -0.07 | S190: 1 | T190: 1.5
A191: ИСПАНИЯ: Терсера - Группа 7 | B191: 2022.03.27 13:00 | C191: Алкала Херанес | D191: СДЕ Мадрид | E191: GO6lbaXn | F191: 176 | I191: Загрузить | J191: 0 | K191: 4 | L191: 1.91 | M191: 3.08 | N191: 4.3 | O191: 2.1 | P191: 3 | Q191: 3.54 | R191: -0.19 | S191: 0.08 | T191: 0.76
A192: ИСПАНИЯ: Терсера - Группа 7 | B192: 2022.03.27 13:00 | C192: Атлетико (Б) | D192: Торрехон | E192: QD6Dhe1O | F192: 176 | I192: Загрузить | J192: 1 | K192: 0 | L192: 1.36 | M192: 4.52 | N192: 8 | O192: 1.34 | P192: 4.32 | Q192: 7.8 | R192: 0.02 | S192: 0.2 | T192: 0.2
A193: ИСПАНИЯ: Терсера - Группа 7 | B193: 2022.03.27 13:00 | C193: Вильявисьоса | D193: Тривал Вальдерас | E193: 8K0YiOAD | F193: 176 | I193: Загрузить | J193: 0 | K193: 1 | L193: 3.2 | M193: 3.14 | N193: 2.22 | O193: 2.94 | P193: 3 | Q193: 2.32 | R193: 0.26 | S193: 0.14 | T193: -0.1
A194: ИСПАНИЯ: Терсера - Группа 7 | B194: 2022.03.27 13:00 | C194: Карабанчель | D194: Алькоркон (Б) | E194: UoD4fHWB | F194: 176 | I194: Загрузить | J194: 0 | K194: 3 | L194: 2.88 | M194: 3.09 | N194: 2.45 | O194: 3.36 | P194: 3.24 | Q194: 2.02 | R194: =IF(L194="","",L194-O194) -> -0.48 | S194: =IF(M194="","",M194-P194) -> -0.15 | T194: =IF(N194="","",N194-Q194) -> 0.43
A195: ИСПАНИЯ: Терсера - Группа 7 | B195: 2022.03.27 13:00 | C195: Посуэло-де-Аларкон | D195: Хетафе (Б) | E195: fF5hcJng | F195: 176 | I195: Загрузить | J195: 0 | K195: 0 | L195: 2.53 | M195: 3.03 | N195: 2.83 | O195: 2.63 | P195: 3 | Q195: 2.5 | R195: -0.1 | S195: 0.03 | T195: 0.33
A196: ИСПАНИЯ: Терсера - Группа 8 | B196: 2022.03.27 13:00 | C196: Леонеса (Б) | D196: Санта-Марта-де-Тормес | E196: IozRj7Go | F196: 176 | I196: Загрузить | J196: 1 | K196: 1 | L196: 1.64 | M196: 3.78 | N196: 4.84 | O196: 1.37 | P196: 4.2 | Q196: 7.3 | R196: 0.27 | S196: -0.42 | T196: -2.46
A197: ИСПАНИЯ: Терсера - Группа 9 | B197: 2022.03.27 13:00 | C197: Малага (Б) | D197: Уэтор Вега | E197: 0xneR2jH | F197: 176 | I197: Загрузить | J197: 1 | K197: 1 | L197: 1.33 | M197: 4.66 | N197: 8.8 | O197: 1.45 | P197: 4.2 | Q197: 5.7 | R197: -0.12 | S197: 0.46 | T197: 3.1
A198: ИСПАНИЯ: Терсера - Группа 9 | B198: 2022.03.27 13:00 | C198: Сан-Педро | D198: Пало | E198: IDdjSryB | F198: 176 | I198: Загрузить | J198: 4 | K198: 0 | L198: 4.26 | M198: 2.9 | N198: 1.96 | O198: 4.82 | P198: 3.7 | Q198: 1.63 | R198: -0.56 | S198: -0.8 | T198: 0.33
A199: ИСПАНИЯ: Терсера - Группа 10 | B199: 2022.03.27 13:00 | C199: Рота | D199: Херена | E199: th31CIom | F199: 176 | I199: Загрузить | J199: 0 | K199: 1 | L199: 4.28 | M199: 3.34 | N199: 1.82 | O199: 3.17 | P199: 3.1 | Q199: 2.17 | R199: 1.11 | S199: 0.24 | T199: -0.35
A200: ИСПАНИЯ: Терсера - Группа 10 | B200: 2022.03.27 13:00 | C200: Сьюдад де Лусена | D200: Севилья C | E200: SlacDbWt | F200: 176 | I200: Загрузить | J200: 1 | K200: 2 | L200: 1.6 | M200: 3.4 | N200: 5.8 | O200: 1.6 | P200: 3.4 | Q200: 5.8 | R200: 0 | S200: 0 | T200: 0
... 791 more rows

Sheet Анализ
AS1: - | AT1: =CONCATENATE(E3,AS1,K3) -> Жарково-Нови Белград
E2: =Расчеты!C126 -> СЕРБИЯ: Первая лига | K2: =Расчеты!D127 -> 27.03.22 17:00
D3: =IFERROR('Incognito DATA'!I2,"RISK") -> 6 | E3: ='Incognito DATA'!A1 -> Жарково | K3: ='Incognito DATA'!A7 -> Нови Белград | P3: =IFERROR('Incognito DATA'!I8,"RISK") -> 5
D5: =IFERROR('Incognito DATA'!AA57,"RISK") -> -0.2 | E5: =TRANSPOSE(ДомаДома!N2:N7) -> Н | F5: Н | G5: П | H5: П | I5: В | J5: д/г | K5: =TRANSPOSE(ГостиГости!N2:N7) -> Н | L5: В | M5: В | N5: Н | O5: Н | P5: =IFERROR('Incognito DATA'!AC57,"RISK") -> 0.285 | Q5: GD-xGD
C6: рейтинг | D6: =Графики!AJ26 -> 2.1 | E6: =TRANSPOSE(Дома!N2:N7) -> Н | F6: Н | G6: Н | H6: В | I6: П | J6: общие | K6: =TRANSPOSE(Гости!N2:N7) -> Н | L6: Н | M6: В | N6: В | O6: В | P6: =Графики!AJ27 -> 1.6 | Q6: ТБ 2.5 | R6: ТМ 2.5
E7: =TRANSPOSE(Очные!G2:G7) -> Н | F7: В | G7: П | H7: П | J7: очные | K7: =TRANSPOSE(Очные!M2:M7) -> Н | L7: П | M7: В | N7: В | Q7: =Коэффициенты!C5 -> 2.45 | R7: =Коэффициенты!C6 -> 1.55 | S7: kf
H8: =IFERROR('Incognito DATA'!S6,"RISK") -> 0.2140625 | J8: =IFERROR('Incognito DATA'!T6,"RISK") -> 0.3739583333 | K8: =IFERROR('Incognito DATA'!U6,"RISK") -> 0.4119791667 | M8: 1 пр | Q8: =Mill!Y42 -> 75.51912568 | R8: =Mill!W42 -> 24.48087432 | S8: =Mill!G90 -> ОЗ-нет | T8: mill
B9: Букмекер | Q9: =Elizabet2!V20 -> 0.4912685136 | R9: ТБ2.5/ОЗ да | S9: =Elizabet2!V19 -> 0.5085787549 | T9: Elizabet
B10: 1 | C10: x | D10: 2 | H10: =IFERROR('Incognito DATA'!W6,"RISK") -> 0.2333333333 | J10: =IFERROR('Incognito DATA'!X6,"RISK") -> 0.2833333333 | K10: =IFERROR('Incognito DATA'!Y6,"RISK") -> 0.4833333333 | M10: 2 пр
B11: =Коэффициенты!C2 -> 2.54 | C11: =Коэффициенты!C3 -> 2.88 | D11: =Коэффициенты!C4 -> 2.95 | E11: kf | O11: =Mill!C75 -> П2 | P11: mill | Q11: =Elizabet2!V10 -> 1 | R11: =Elizabet2!W10 -> 1 | S11: Elizabet
B12: =IFERROR('Incognito DATA'!S43,"RISK") -> 0.3571428571 | C12: =IFERROR('Incognito DATA'!T43,"RISK") -> 0.3389830508 | D12: =IFERROR('Incognito DATA'!U43,"RISK") -> 0.3846153846 | H12: =IFERROR('Incognito DATA'!C44,"RISK") -> 0.205 | J12: =IFERROR('Incognito DATA'!C47,"RISK") -> 0.35 | K12: =IFERROR('Incognito DATA'!D44,"RISK") -> 0.445 | M12: de lux | O12: =Mill!M2 -> П2 | P12: 10 д/г | Q12: =IFERROR('Incognito DATA'!C45,"RISK") -> 1 | R12: =IFERROR('Incognito DATA'!D45,"RISK") -> 1.97
B13: =IFERROR(Valui!M41,"RISK") -> 0.1 | C13: =IFERROR(Valui!N41,"RISK") -> 0.5 | D13: =IFERROR(Valui!O41,"RISK") -> 0.4 | E13: Valui | O13: =Mill!C39 -> П2 - | P13: 3 оч | Q13: =Расчеты!X112 -> 2 | R13: =Расчеты!Y112 -> 2 | S13: =Расчеты!Z112 -> X2 | T13: NTB
B14: =IFERROR(Valui!I21,"") -> - | C14: =IFERROR(Valui!I23,"") -> - | D14: =IFERROR(Valui!I25,"") -> - | H14: =IFERROR(Poisson!B13,"RISK") -> 0.222 | J14: =IFERROR(Poisson!C13,"RISK") -> 0.24 | K14: =IFERROR(Poisson!D13,"RISK") -> 0.538 | M14: poisson | O14: =Mill!J49 -> П2 | P14: 5 д/г+оч | Q14: ='Incognito DATA'!D12 -> 0.5625 | R14: ='Incognito DATA'!E13 -> 1.16 | S14: Mini Vini
O15: =Mill!I55 -> П2 | P15: тот | Q15: ='Incognito DATA'!D13 -> 0.9225 | R15: ='Incognito DATA'!E13 -> 1.16
H16: =IFERROR('Incognito DATA'!H96,"RISK") -> 0.1884727211 | J16: =IFERROR('Incognito DATA'!I96,"RISK") -> 0.2861296391 | K16: =IFERROR('Incognito DATA'!J96,"RISK") -> 0.5253976398 | M16: ср взвеш
H18: =IFERROR(Mill!W37,"RISK") -> 0.2694300518 | J18: =IFERROR(Mill!X39,"RISK") -> 0.1295336788 | K18: =IFERROR(Mill!Y37,"RISK") -> 0.6010362694 | M18: mill
H20: ='Incognito DATA'!J13 -> 0.2537037037 | J20: ='Incognito DATA'!K13 -> 0.4425925926 | K20: ='Incognito DATA'!L13 -> 0.3037037037 | M20: Mini Vini
H22: =Elizabet2!W16 -> 0.250872981 | J22: =Elizabet2!W17 -> 0.322482516 | K22: =Elizabet2!W18 -> 0.426644503 | M22: Elizabet
H24: =Графики!M26 -> 0.1588366318 | J24: =Графики!M28 -> 0.2061608709 | K24: =Графики!M27 -> 0.6338121728 | M24: 5Match p
H26: =Графики!M30 -> 0.07142857143 | J26: =Графики!M31 -> 0.59375 | K26: =Графики!M32 -> 0.3348214286 | M26: 5Match

Sheet Incognito DATA
A1: =Очные!A1 -> Жарково | B1: Игр ХОЗЯЕВ | C1: В | D1: Н | E1: П | F1: Заб | G1: Проп | H1: Очки | I1: Место | K1: ОЧНЫЕ ХОЗЯЕВ | L1: В | M1: Н | N1: П | O1: Заб | P1: Проп
A2: Общая | B2: =MAX(Дома!O2:'Дома'!O21) -> 20 | C2: =MAX(Дома!P2:'Дома'!P21) -> 7 | D2: =MAX(Дома!Q2:'Дома'!Q21) -> 5 | E2: =MAX(Дома!R2:'Дома'!R21) -> 8 | F2: =MAX(Дома!S2:'Дома'!S21) -> 21 | G2: =MAX(Дома!T2:'Дома'!T21) -> 21 | H2: =MAX(Дома!U2:'Дома'!U21) -> 26 | I2: =IFERROR(MATCH(A1,Таблица!B:B,0)-1,"") -> 6 | J2: Общая | K2: =K3+K4 -> 4 | L2: =COUNTIFS(Очные!G:G,"В") -> 1 | M2: =COUNTIFS(Очные!G:G,"Н") -> 1 | N2: =COUNTIFS(Очные!G:G,"П") -> 2 | O2: =MAXA(Очные!H:H) -> 4 | P2: =MAXA(Очные!I:I) -> 6 | AD2: =SUM(ДомаДома!L2:L11) -> 7 | AE2: =SUM(ГостиГости!L2:L11) -> 14
A3: Дом | B3: =MAX(Дома!V2:'Дома'!V21) -> 10 | C3: =MAX(Дома!W2:'Дома'!W21) -> 2 | D3: =MAX(Дома!X2:'Дома'!X21) -> 3 | E3: =MAX(Дома!Y2:'Дома'!Y21) -> 5 | F3: =MAX(Дома!Z2:'Дома'!Z21) -> 7 | G3: =MAX(Дома!AA2:'Дома'!AA21) -> 12 | H3: =MAX(Дома!AB2:'Дома'!AB21) -> 9 | I3: =IFERROR(MATCH(A1,Таблица!L:L,0)-1,"") -> 11 | J3: Дома | K3: =COUNTIF(Очные!S:S,"Дома") -> 2 | L3: =COUNTIFS(Очные!T:T,"В") -> 0 | M3: =COUNTIFS(Очные!T:T,"Н") -> 1 | N3: =COUNTIFS(Очные!T:T,"П") -> 1 | O3: =SUM(Очные!U:U) -> 3 | P3: =SUM(Очные!V:V) -> 5 | S3: Тотал | T3: =(E45+E46+O45+O46)/2 -> 2.945833333 | AD3: =IFERROR(H3/B3*F3/G3,H3/B3*F3/G2) -> 0.525 | AE3: =H10/B10*F10/G10 -> 0.9090909091
A4: Гости | B4: =MAX(Дома!AC2:'Дома'!AC21) -> 10 | C4: =MAX(Дома!AD2:'Дома'!AD21) -> 5 | D4: =MAX(Дома!AE2:'Дома'!AE21) -> 2 | E4: =MAX(Дома!AF2:'Дома'!AF21) -> 3 | F4: =MAX(Дома!AG2:'Дома'!AG21) -> 14 | G4: =MAX(Дома!AH2:'Дома'!AH21) -> 9 | H4: =MAX(Дома!AI2:'Дома'!AI21) -> 17 | I4: =IFERROR(MATCH(A1,Таблица!V:V,0)-1,"") -> 4 | J4: В Гостях | K4: =COUNTIF(Очные!S:S,"Гости") -> 2 | L4: =COUNTIFS(Очные!W:W,"В") -> 1 | M4: =COUNTIFS(Очные!W:W,"Н") -> 0 | N4: =COUNTIFS(Очные!W:W,"П") -> 1 | O4: =SUM(Очные!X:X) -> 1 | P4: =SUM(Очные!Y:Y) -> 1 | S4: Прогноз 1 | W4: Прогноз 2 | AA4: Прогноз 3
A5: Форма 5 Общ | B5: =MAX(Дома!O2:'Дома'!O6) -> 5 | C5: =MAX(Дома!P2:'Дома'!P6) -> 1 | D5: =MAX(Дома!Q2:'Дома'!Q6) -> 3 | E5: =MAX(Дома!R2:'Дома'!R6) -> 1 | F5: =MAX(Дома!S2:'Дома'!S6) -> 4 | G5: =MAX(Дома!T2:'Дома'!T6) -> 5 | H5: =MAX(Дома!U2:'Дома'!U6) -> 6 | I5: =IFERROR(MATCH(A1&5,Форма!BB:BB,0)-1,"") -> 10 | S5: 1 | T5: Х | U5: 2 | W5: 1 | X5: Х | Y5: 2 | AA5: 1 | AB5: Х | AC5: 2
S6: =T32+T34 -> 0.2140625 | T6: =U32+T34 -> 0.3739583333 | U6: =V32+T34 -> 0.4119791667 | V6: =SUM(S6:U6) -> 1 | W6: =W13+Z11 -> 0.2333333333 | X6: =X13+Z11 -> 0.2833333333 | Y6: =Y13+Z11 -> 0.4833333333 | Z6: =SUM(W6:Y6) -> 1 | AA6: =AB32 -> 0.35 | AB6: =AB34 -> 0.15 | AC6: =AB33 -> 0.5
A7: =Очные!B1 -> Нови Белград | B7: Игр ГОСТЕЙ | C7: В | D7: Н | E7: П | F7: Заб | G7: Проп | H7: Очки | I7: Место | K7: ОЧНЫЕ ГОСТЕЙ | L7: В | M7: Н | N7: П | O7: Заб | P7: Проп
A8: Общая | B8: =MAX(Гости!O2:'Гости'!O21) -> 20 | C8: =MAX(Гости!P2:'Гости'!P21) -> 8 | D8: =MAX(Гости!Q2:'Гости'!Q21) -> 7 | E8: =MAX(Гости!R2:'Гости'!R21) -> 5 | F8: =MAX(Гости!S2:'Гости'!S21) -> 30 | G8: =MAX(Гости!T2:'Гости'!T21) -> 22 | H8: =MAX(Гости!U2:'Гости'!U21) -> 31 | I8: =IFERROR(MATCH(A7,Таблица!B:B,0)-1,"") -> 5 | J8: Общая | K8: =K9+K10 -> 4 | L8: =COUNTIFS(Очные!M:M,"В") -> 2 | M8: =COUNTIFS(Очные!M:M,"Н") -> 1 | N8: =COUNTIFS(Очные!M:M,"П") -> 1 | O8: =MAXA(Очные!N:N) -> 6 | P8: =MAXA(Очные!O:O) -> 4 | S8: 1К | T8: ТС | U8: 2К | W8: =G16*G20+G24*G28+G33*G37+G41*G28/8 -> 0.1825 | X8: =L16*L20+L24*L28+L33*L37+L41*L28/8 -> 0.6375 | AB8: =((F5+G5)/2)/B5 -> 0.9 | AC8: =AB8+AB9 -> 2.7
A9: Дом | B9: =MAX(Гости!V2:'Гости'!V21) -> 12 | C9: =MAX(Гости!W2:'Гости'!W21) -> 6 | D9: =MAX(Гости!X2:'Гости'!X21) -> 3 | E9: =MAX(Гости!Y2:'Гости'!Y21) -> 3 | F9: =MAX(Гости!Z2:'Гости'!Z21) -> 22 | G9: =MAX(Гости!AA2:'Гости'!AA21) -> 11 | H9: =MAX(Гости!AB2:'Гости'!AB21) -> 21 | I9: =IFERROR(MATCH(A7,Таблица!L:L,0)-1,"") -> 6 | J9: Дома | K9: =COUNTIF(Очные!S:S,"Дома") -> 2 | L9: =COUNTIFS(Очные!AA:AA,"В") -> 1 | M9: =COUNTIFS(Очные!AA:AA,"Н") -> 0 | N9: =COUNTIFS(Очные!AA:AA,"П") -> 1 | O9: =SUM(Очные!AB:AB) -> 1 | P9: =SUM(Очные!AC:AC) -> 1 | S9: =E45 -> 1 | U9: =O45 -> 1.966666667 | W9: =G17*G21+G25*G29 -> 0.195 | X9: =L17*L21+L25*L29 -> 0.2875 | AB9: =((F11+G11)/2)/B11 -> 1.8 | AC9: =IF(AB12>=2,"Да","Нет") -> Нет
A10: Гости | B10: =MAX(Гости!AC2:'Гости'!AC21) -> 8 | C10: =MAX(Гости!AD2:'Гости'!AD21) -> 2 | D10: =MAX(Гости!AE2:'Гости'!AE21) -> 4 | E10: =MAX(Гости!AF2:'Гости'!AF21) -> 2 | F10: =MAX(Гости!AG2:'Гости'!AG21) -> 8 | G10: =MAX(Гости!AH2:'Гости'!AH21) -> 11 | H10: =MAX(Гости!AI2:'Гости'!AI21) -> 10 | I10: =IFERROR(MATCH(A7,Таблица!V:V,0)-1,"") -> 6 | J10: В Гостях | K10: =COUNTIF(Очные!S:S,"Гости") -> 2 | L10: =COUNTIFS(Очные!AD:AD,"В") -> 1 | M10: =COUNTIFS(Очные!AD:AD,"Н") -> 1 | N10: =COUNTIFS(Очные!AD:AD,"П") -> 0 | O10: =SUM(Очные!AE:AE) -> 5 | P10: =SUM(Очные!AF:AF) -> 3 | W10: =G18*G22+G26*G30 -> 0.26 | X10: =L18*L22+L26*L30 -> 0.0625 | AB10: =IF(AB8>=1.7,"1","0") -> 0 | AC10: =IF(AB9>=1.8,"1","0") -> 1
A11: Форма 5 Общ | B11: =MAX(Гости!O2:'Гости'!O6) -> 5 | C11: =MAX(Гости!P2:'Гости'!P6) -> 3 | D11: =MAX(Гости!Q2:'Гости'!Q6) -> 2 | E11: =MAX(Гости!R2:'Гости'!R6) -> 0 | F11: =MAX(Гости!S2:'Гости'!S6) -> 12 | G11: =MAX(Гости!T2:'Гости'!T6) -> 6 | H11: =MAX(Гости!U2:'Гости'!U6) -> 11 | I11: =IFERROR(MATCH(A7&5,Форма!BB:BB,0)-1,"") -> 2 | S11: Pa(B1)= | T11: P(B1)*PB1(A) | Z11: =Z12/3 -> -0.01666666667 | AB11: =AB10 -> 0 | AC11: =AC10 -> 1
D12: =((G10/B10/B3)*F3)-40% -> 0.5625 | E12: =((G3/B3/B10)*F10)-40% -> 0.8 | F12: =SUM(D12:E13) -> 3.445 | G12: =F12/2 -> 1.7225 | H12: =IF(G12>=4,("Over"),("")) ->  | J12: =C3/B3 -> 0.2 | K12: =(D3+D10)/(B3+B10) -> 0.3888888889 | L12: =C10/B10 -> 0.25 | N12: =SUM(J12:L12) -> 0.8388888889 | O12: =N12-100% -> -0.1611111111 | T12: P(A) | W12: =MEDIAN(G17,G21,G25,G29,G34,G38,G42) -> 0.25 | Y12: =MEDIAN(L17,L21,L25,L29,L34,L38,L42) -> 0.35 | Z12: =100%-Z13 -> -0.05 | AB12: =AB11+AC11 -> 1
D13: =((G10/B10/B3)*F3)-4% -> 0.9225 | E13: =((G3/B3/B10)*F10)-4% -> 1.16 | J13: =J12-O13 -> 0.2537037037 | K13: =K12-O13 -> 0.4425925926 | L13: =L12-O13 -> 0.3037037037 | N13: =SUM(J13:M13) -> 1 | O13: =O12/3 -> -0.0537037037 | S13: P(A)=P(B1)*PB1(A)+P(B2)*PB2(A) | W13: =MEDIAN(G16,G20,G24,G28,G33,G37,G41) -> 0.25 | X13: =(W12+Y12)/2 -> 0.3 | Y13: =MEDIAN(L16,L20,L24,L28,L33,L37,L41) -> 0.5 | Z13: =SUM(W13:Y13) -> 1.05
G14: =AVERAGE(G28:H29,G24:H25,G20:H21,G16:H17) -> 0.325 | H14: =AVERAGE(G30,G26,G22,G18) -> 0.35 | L14: =AVERAGE(L28:M29,L24:M25,L20:M21,L16:M17) -> 0.40625 | M14: =AVERAGE(L30,L26,L22,L18) -> 0.1875
B15: 1 Команда | D15: 2 Команда | G15: =A1 -> Жарково | J15: =A2 -> Общая | L15: =A7 -> Нови Белград | O15: =J15 -> Общая | P15: 1 | Q15: Х | R15: 2 | T15: 1 | U15: Х | V15: 2
B16: 10 | C16: =B16*G16/100 -> 0.035 | D16: =E16*L16/100 -> 0.04 | E16: 10 | G16: =C2/B2 -> 0.35 | J16: Побед | L16: =C8/B8 -> 0.4 | P16: =(G16+G20+G24+G28)/4 -> 0.3125 | Q16: =(G17+G21+G25+G29+L29+L25+L21+L17)/8 -> 0.35625 | R16: =(L16+L20+L24+L28)/4 -> 0.4375 | T16: =(P16+P20+P24+P28)/4 -> 0.303125 | U16: =(Q16+Q20+Q24+Q28)/4 -> 0.3703125 | V16: =(R16+R20+R24+R28)/4 -> 0.446875 | W16: =SUM(T16:V16) -> 1.1203125
G17: =D2/B2 -> 0.25 | J17: Ничья | L17: =D8/B8 -> 0.35 | Y17: =S6*100 -> 21.40625 | Z17: =T6*100 -> 37.39583333 | AA17: =U6*100 -> 41.19791667
G18: =E2/B2 -> 0.4 | J18: Проигрыш | L18: =E8/B8 -> 0.25 | Y18: =100/Y17 -> 4.671532847 | Z18: =100/Z17 -> 2.674094708 | AA18: 2.427307206
J19: Дом | O19: =J19 -> Дом | P19: 1 | Q19: Х | R19: 2
B20: 30 | C20: =B20*G20/100 -> 0.06 | D20: =E20*L20/100 -> 0.025 | E20: 5 | G20: =C3/B3 -> 0.2 | J20: Побед | L20: =C9/B9 -> 0.5 | P20: =G20 -> 0.2 | Q20: =(G21+L21)/2 -> 0.275 | R20: =L20 -> 0.5 | T20: 1 | U20: Х | V20: 2 | Y20: =W6*100 -> 23.33333333 | Z20: =X6*100 -> 28.33333333 | AA20: 48.33333333
G21: =D3/B3 -> 0.3 | J21: Ничья | L21: =D9/B9 -> 0.25 | T21: =P20 -> 0.2 | U21: =(Q20+Q24)/2 -> 0.3125 | V21: =R24 -> 0.25 | W21: =SUM(T21:V21) -> 0.7625 | Y21: =100/Y20 -> 4.285714286 | Z21: =100/Z20 -> 3.529411765 | AA21: 2.068965517
G22: =E3/B3 -> 0.5 | J22: Проигрыш | L22: =E9/B9 -> 0.25
J23: Гости | O23: =J23 -> Гости | P23: 1 | Q23: Х | R23: 2 | Y23: Win | Z23: X | AA23: Lose
B24: 5 | C24: =B24*G24/100 -> 0.025 | D24: =E24*L24/100 -> 0.075 | E24: 30 | G24: =C4/B4 -> 0.5 | J24: Побед | L24: =C10/B10 -> 0.25 | P24: =G24 -> 0.5 | Q24: =(G25+L25)/2 -> 0.35 | R24: =L24 -> 0.25
G25: =D4/B4 -> 0.2 | J25: Ничья | L25: =D10/B10 -> 0.5 | Y25: =(C5+C11)/B11 -> 0.8 | Z25: =(D5+D11)/B11 -> 1
G26: =E4/B4 -> 0.3 | J26: Проигрыш | L26: =E10/B10 -> 0.25
J27: Форма | O27: =J27 -> Форма | P27: 1 | Q27: Х | R27: 2 | T27: 1 | U27: Х | V27: 2
B28: 30 | C28: =B28*G28/100 -> 0.06 | D28: =E28*L28/100 -> 0.18 | E28: 30 | G28: =C5/B5 -> 0.2 | J28: Побед | L28: =C11/B11 -> 0.6 | P28: =G28 -> 0.2 | Q28: =(G29+L29)/2 -> 0.5 | R28: =L28 -> 0.6 | T28: =P28 -> 0.2 | U28: =Q28 -> 0.5 | V28: =R28 -> 0.6 | W28: =SUM(T28:V28) -> 1.3
G29: =D5/B5 -> 0.6 | J29: Ничья | L29: =D11/B11 -> 0.4
G30: =E5/B5 -> 0.2 | J30: Проигрыш | L30: =E11/B11 -> 0
J31: Очные | T31: 1 | U31: Х | V31: 2 | W31: =(W16+W21+W28)/3 -> 1.0609375
J32: Общая | T32: =(T16+T21+T28)/3 -> 0.234375 | U32: =(U16+U21+U28)/3 -> 0.3942708333 | V32: =(V16+V21+V28)/3 -> 0.4322916667 | W32: =SUM(T32:V32) -> 1.0609375 | Z32: =C3/B3 -> 0.2 | AA32: =(D3/B3)/2 -> 0.15 | AB32: =SUM(Z32:AA32) -> 0.35
G33: =IFERROR(L2/K2,0) -> 0.25 | J33: Побед | L33: =IFERROR(L8/K8,0) -> 0.5 | Z33: =C10/B10 -> 0.25 | AA33: =(D10/B10)/2 -> 0.25 | AB33: =SUM(Z33:AA33) -> 0.5
G34: =IFERROR(M2/K2,0) -> 0.25 | J34: Ничья | L34: =IFERROR(M8/K8,0) -> 0.25 | T34: =(100%-W31)/3 -> -0.0203125 | AB34: =100%-AB33-AB32 -> 0.15
G35: =IFERROR(N2/K2,0) -> 0.5 | J35: Проигрыш | L35: =IFERROR(N8/K8,0) -> 0.25
J36: Дом
B37: 20 | C37: =B37*G37/100 -> 0 | D37: =E37*L37/100 -> 0.025 | E37: 5 | G37: =IFERROR(L3/K3,0) -> 0 | J37: Побед | L37: =IFERROR(L9/K9,0) -> 0.5
G38: =IFERROR(M3/K3,0) -> 0.5 | J38: Ничья | L38: =IFERROR(M9/K9,0) -> 0
G39: =IFERROR(N3/K3,0) -> 0.5 | J39: Проигрыш | L39: =IFERROR(N9/K9,0) -> 0.5
J40: Гости | S40: Кофициэнт букмекера стартовый | W40: Кофициэнт анализа 1 | AA40: =A1 -> Жарково | AC40: =A7 -> Нови Белград
B41: 5 | C41: =B41*G41/100 -> 0.025 | D41: =E41*L41/100 -> 0.1 | E41: 20 | G41: =IFERROR(L4/K4,0) -> 0.5 | J41: Побед | L41: =IFERROR(L10/K10,0) -> 0.5 | S41: 1 | T41: Х | U41: 2 | W41: 1 | X41: Х | Y41: 2 | Z41: в ср. пропущ. Дома | AA41: =G3/B3 -> 1.2 | AB41: по статистике матчей Дома/в Гостях | AC41: =G10/B10 -> 1.375 | AD41: в ср. пропущ. в Гостях | AF41: по статистике Гостевых матчей
G42: =IFERROR(M4/K4,0) -> 0 | J42: Ничья | L42: =IFERROR(M10/K10,0) -> 0.5 | S42: =Коэффициенты!B2 -> 2.8 | T42: =Коэффициенты!B3 -> 2.95 | U42: =Коэффициенты!B4 -> 2.6 | W42: =Y18 -> 4.671532847 | X42: =Z18 -> 2.674094708 | Y42: =AA18 -> 2.427307206 | Z42: в ср. Поражен Дома | AA42: =E3/B3 -> 0.5 | AC42: =E10/B10 -> 0.25 | AD42: в ср. Поражен в Гостях
G43: =IFERROR(N4/K4,0) -> 0.5 | J43: Проигрыш | L43: =IFERROR(N10/K10,0) -> 0 | S43: =1/S42 -> 0.3571428571 | T43: =1/T42 -> 0.3389830508 | U43: 0.3846153846 | W43: =S6 -> 0.2140625 | X43: =T6 -> 0.3739583333 | Y43: =U6 -> 0.4119791667 | Z43: в ср. очков Дома | AA43: =H3/B3 -> 0.9 | AC43: =H10/B10 -> 1.25 | AD43: в ср. очков в Гостях
C44: =SUM(C16:C43) -> 0.205 | D44: =SUM(D16:D43) -> 0.445 | J44: Общая | Z44: в ср. Пропущено Хозяевами | AA44: =G5/B5 -> 1 | AB44: по Форме5 | AC44: =G11/B11 -> 1.2 | AD44: в ср. Пропущено Гостями | AF44: по Форме5
C45: =VALUE(TEXT((G48+G54+G57)/3,"0,00")) -> 1 | D45: =VALUE(TEXT((L51+L54+L57)/3,"0,00")) -> 1.97 | E45: =(G48+G54+G57)/3 -> 1 | G45: =F2/B2 -> 1.05 | J45: Забили | L45: =F8/B8 -> 1.5 | O45: =(L51+L54+L57)/3 -> 1.966666667 | S45: Кофициэнт букмекера актуальный | W45: Кофициэнт анализа 2 | Z45: в ср. Поражен Хозяев | AA45: =E5/B5 -> 0.2 | AC45: =E11/B11 -> 0 | AD45: в ср. Поражен Гостей
E46: =(G49+G55+G58)/3 -> 1.566666667 | G46: =G2/B2 -> 1.05 | J46: Пропустили | L46: =G8/B8 -> 1.1 | O46: =(L52+L55+L58)/3 -> 1.358333333 | S46: 1 | T46: Х | U46: 2 | W46: 1 | X46: Х | Y46: 2 | AA46: =(AA41+AA42+AA43+AA44+AA45)/5 -> 0.76 | AB46: Проиграет | AC46: =(AC41+AC42+AC43+AC44+AC45)/5 -> 0.815
C47: =100%-C44-D44 -> 0.35 | E47: =(E45+O46)/2 -> 1.179166667 | J47: Дом | O47: =(O45+E46)/2 -> 1.766666667 | S47: =Коэффициенты!C2 -> 2.54 | T47: =Коэффициенты!C3 -> 2.88 | U47: =Коэффициенты!C4 -> 2.95 | W47: =Y21 -> 4.285714286 | X47: =Z21 -> 3.529411765 | Y47: =AA21 -> 2.068965517 | AA47: средние кф-ты поражения
C48: =SUMPRODUCT(C16:C41,B16:B41)/SUM(B16:B41) -> 0.042 | D48: =SUMPRODUCT(D16:D41,E16:E41)/SUM(E16:E41) -> 0.103 | E48: ср взвеш | G48: =F3/B3 -> 0.7 | I48: =G48 -> 0.7 | J48: Забили | L48: =F9/B9 -> 1.833333333 | S48: =1/S47 -> 0.3937007874 | T48: =1/T47 -> 0.3472222222 | U48: 0.3389830508 | W48: =W6 -> 0.2333333333 | X48: =X6 -> 0.2833333333 | Y48: =Y6 -> 0.4833333333
C49: =C48/(C48+D48) -> 0.2896551724 | D49: =D48/(D48+C48) -> 0.7103448276 | G49: =G3/B3 -> 1.2 | I49: =G49 -> 1.2 | J49: Пропустили | L49: =G9/B9 -> 0.9166666667 | AA49: =A1 -> Жарково | AC49: =A7 -> Нови Белград | AD49: Adv
C50: =H3/B3 -> 0.9 | D50: =H10/B10 -> 1.25 | J50: Гости | Y50: в ср. забито Дома | AA50: =F3/B3 -> 0.7 | AB50: по статистике матчей Дома/в Гостях | AC50: =F10/B10 -> 1 | AD50: в ср. забито в Гостях
C51: =H5/B5 -> 1.2 | D51: =H11/B11 -> 2.2 | G51: =F4/B4 -> 1.4 | J51: Забили | K51: =L51 -> 1 | L51: =F10/B10 -> 1 | Y51: в ср. Побед Дома | AA51: =C3/B3 -> 0.2 | AC51: =C10/B10 -> 0.25 | AD51: в ср. Побед в Гостях
C52: =(C50+C51)/2 -> 1.05 | D52: =(D50+D51)/2 -> 1.725 | G52: =G4/B4 -> 0.9 | J52: Пропустили | K52: =L52 -> 1.375 | L52: =G10/B10 -> 1.375 | S52: =H3/B3 -> 0.9 | U52: =H10/B10 -> 1.25 | Y52: в ср. очков Дома | AA52: =H3/B3 -> 0.9 | AC52: =H10/B10 -> 1.25 | AD52: в ср. очков в Гостях
C53: Adv | D53: Adv | J53: Форма | S53: =H5/B5 -> 1.2 | U53: =H11/B11 -> 2.2 | Y53: в ср. забито Хозяевами | AA53: =F5/B5 -> 0.8 | AB53: по Форме5 | AC53: =F11/B11 -> 2.4 | AD53: в ср. забито Гостями
B54: 1 Команда | D54: 2 Команда | G54: =F5/B5 -> 0.8 | J54: Забили | L54: =F11/B11 -> 2.4 | S54: =O3/K3 -> 1.5 | U54: =O10/K10 -> 2.5 | Y54: в ср. Побед Хозяев | AA54: =C5/B5 -> 0.2 | AC54: =C11/B11 -> 0.6 | AD54: в ср. Побед Гостей
B55: 10 | C55: =B55*G18/100 -> 0.04 | D55: =E55*L18/100 -> 0.025 | E55: 10 | G55: =G5/B5 -> 1 | J55: Пропустили | L55: =G11/B11 -> 1.2 | S55: =SUM(S52:S54) -> 3.6 | U55: =SUM(U52:U54) -> 5.95 | AA55: =(AA50+AA51+AA52+AA53+AA54)/5 -> 0.56 | AB55: Выйграет | AC55: =(AC50+AC51+AC52+AC53+AC54)/5 -> 1.1
J56: Очные | S56: =S55-U55 -> -2.35 | U56: =U55-S55 -> 2.35 | AA56: средние кф-ты победы
G57: =IFERROR(O3/K3,0) -> 1.5 | J57: Забили | L57: =IFERROR(O10/K10,0) -> 2.5 | AA57: =VALUE(TEXT(AA55-AA46,"0,000")) -> -0.2 | AC57: =VALUE(TEXT(AC55-AC46,"0,000")) -> 0.285
G58: =IFERROR(P3/K3,0) -> 2.5 | J58: Пропустили | L58: =IFERROR(P10/K10,0) -> 1.5 | AA58: Индексы Победы/Поражения
B59: 30 | C59: =B59*G22/100 -> 0.15 | D59: =E59*L22/100 -> 0.0125 | E59: 5
G60: 1 Команда | I60: 2 Команда | AA60: =AA49 -> Жарково | AC60: =AC49 -> Нови Белград
G61: 10 | H61: =G61*G17/100 -> 0.025 | I61: =J61*L17/100 -> 0.035 | J61: 10 | AA61: =F3/F2 -> 0.3333333333 | AB61: =J45 -> Забили | AC61: =F10/F8 -> 0.2666666667
AA62: =G3/G2 -> 0.5714285714 | AB62: =J46 -> Пропустили | AC62: =G10/G8 -> 0.5
B63: 5 | C63: =B63*G26/100 -> 0.015 | D63: =E63*L26/100 -> 0.075 | E63: 30
G65: 30 | H65: =G65*G21/100 -> 0.09 | I65: =J65*L21/100 -> 0.0125 | J65: 5
B67: 30 | C67: =B67*G30/100 -> 0.06 | D67: =E67*L30/100 -> 0 | E67: 30
G69: 5 | H69: =G69*G25/100 -> 0.01 | I69: =J69*L25/100 -> 0.15 | J69: 30
G73: 30 | H73: =G73*G29/100 -> 0.18 | I73: =J73*L29/100 -> 0.12 | J73: 30
B76: 20 | C76: =B76*G39/100 -> 0.1 | D76: =E76*L39/100 -> 0.025 | E76: 5
B80: 5 | C80: =B80*G43/100 -> 0.025 | D80: =E80*L43/100 -> 0 | E80: 20
G82: 20 | H82: =G82*G38/100 -> 0.1 | I82: =J82*L38/100 -> 0 | J82: 5
C83: =SUM(C55:C82) -> 0.39 | D83: =SUM(D55:D82) -> 0.1375
B86: 1 Команда | D86: 2 Команда | G86: 5 | H86: =G86*G42/100 -> 0 | I86: =J86*L42/100 -> 0.1 | J86: 20
B87: =C44 -> 0.205 | C87: Выйграет | E87: =D44 -> 0.445
B89: 1 Команда | D89: 2 Команда | H89: =VALUE(TEXT(SUM(H61:H88),"0,000")) -> 0.405 | I89: =VALUE(TEXT(SUM(I61:I88),"0,000")) -> 0.418
B90: =C83 -> 0.39 | C90: Проиграет | E90: =D83 -> 0.1375
H91: =SUMPRODUCT(C16:C41,B16:B41)/SUM(B16:B41) -> 0.042 | I91: =SUMPRODUCT(D16:D41,E16:E41)/SUM(E16:E41) -> 0.103 | J91: =H91+I92 -> 0.068875
B92: 1 Команда | D92: 2 Команда | H92: =SUMPRODUCT(C55:C80,B55:B80)/SUM(B55:B80) -> 0.089 | I92: =SUMPRODUCT(D55:D80,E55:E80)/SUM(E55:E80) -> 0.026875 | J92: =I91+H92 -> 0.192
B93: =(B87+E90)/2 -> 0.17125 | C93: =100%-B93-E93 -> 0.41125 | E93: =(B90+E87)/2 -> 0.4175 | H93: =SUMPRODUCT(H61:H86,G61:G86)/SUM(G61:G86) -> 0.104 | I93: =SUMPRODUCT(I61:I86,J61:J86)/SUM(J61:J86) -> 0.105125 | J93: =(H93+I93)/2 -> 0.1045625
J94: =SUM(J91:J93) -> 0.3654375
B95: 1 Команда | D95: 2 Команда
B96: =H89 -> 0.405 | C96: ничья | E96: =I89 -> 0.418 | H96: =(J91/J94) -> 0.1884727211 | I96: =(J93/J94) -> 0.2861296391 | J96: =(J92/J94) -> 0.5253976398
B98: 1 Команда | D98: 2 Команда
B99: =(B87+E90+B96)/3 -> 0.2491666667 | C99: =100%-B99-E99 -> 0.3331666667 | E99: =(B90+E87+E96)/3 -> 0.4176666667

Sheet Elizabet2
A1: HOME Team | F1: 16 | G1: =F1*2-2 -> 30 | I1: Prob. Goals | M1: Prob. CS | P1: Prob. Bets | S1: Prob. CS | AG1: команда1 | AH1: =C6/B6 -> 0.8 | AI1: =D6/B6 -> 1 | AL1: Очки
A2: ='Incognito DATA'!A1 -> Жарково | B2: Played | C2: G For | D2: G Against | E2: Points | F2: =TEXT(B3/(F1*2-2),"0%") -> 67% | G2: =IFERROR(B3&" / "&F2,"") -> 20 / 67% | I2: HOME | J2: AWAY | M2: HOME | N2: AWAY | P2: Forecasts | S2: main + addit. | U2: Totals | Y2: Total Forecasts | AG2: команда2 | AH2: =C12/B12 -> 2.4 | AI2: =D12/B12 -> 1.2 | AL2: =A2 -> Жарково
A3: Overall | B3: ='Incognito DATA'!B2 -> 20 | C3: ='Incognito DATA'!F2 -> 21 | D3: ='Incognito DATA'!G2 -> 21 | E3: ='Incognito DATA'!H2 -> 26 | F3: =(C3/B3+D9/B9)/2 -> 1.075 | H3: Overall | I3: =F3 -> 1.075 | J3: =F9 -> 1.275 | M3: =IF(I3<1,IF(I3>0.9,CEILING(I3,1),FLOOR(I3,1)),IF(I3>1.54,CEILING(I3,1),FLOOR(I3,1))) -> 1 | N3: =IF(J3<1,IF(J3>0.95,CEILING(J3,1),FLOOR(J3,1)),IF(J3>1.7,CEILING(J3,1),FLOOR(J3,1))) -> 1 | O3: =ABS(I3-J3) -> 0.2 | P3: =IF(I3>J3,"1X","X2") -> X2 | Q3: =IF(AND(I3>J3,O3>0.29),"W1",IF(AND(I3<J3,O3>0.29),"W2","X")) -> X | R3: =IF(COUNTIF(S$2:S3,S3)=1,MAX(R$2:R2)+1,"") -> 1 | S3: =M3&" - "&N3 -> 1 - 1 | U3: =(C3/B3)+(C9/B9) -> 2.55 | V3: Goals For | W3: =MOD(U3,1) -> 0.55 | X3: =IF(W3>0.6,CEILING(U3,1),FLOOR(U3,1)) -> 2 | Y3: =TEXT(Z3,"0,00") ->  | Z3: =IF(U5>=2.95,"O 2,5",IF(U5<1.8,"U 2,5","")) ->  | AH3: =SUM(AH1:AH2) -> 3.2 | AI3: =SUM(AI1:AI2) -> 2.2 | AL3: Общие | AM3: =E3 -> 26 | AR3: На сколько процентов лучше хуже от нетрального поля
A4: @Home | B4: ='Incognito DATA'!B3 -> 10 | C4: ='Incognito DATA'!F3 -> 7 | D4: ='Incognito DATA'!G3 -> 12 | E4: ='Incognito DATA'!H3 -> 9 | F4: =(C4/B4+D11/B11)/2 -> 1.0375 | H4: Home / Away | I4: =F4 -> 1.0375 | J4: =F11 -> 1.1 | M4: =IF(I4<1,IF(I4>0.9,CEILING(I4,1),FLOOR(I4,1)),IF(I4>1.6,CEILING(I4,1),FLOOR(I4,1))) -> 1 | N4: =IF(J4<1,IF(J4>0.95,CEILING(J4,1),FLOOR(J4,1)),IF(J4>1.7,CEILING(J4,1),FLOOR(J4,1))) -> 1 | O4: =ABS(I4-J4) -> 0.0625 | P4: =IF(I4>J4,"1X","X2") -> X2 | Q4: =IF(AND(I4>J4,O4>0.29),"W1",IF(AND(I4<J4,O4>0.29),"W2","X")) -> X | R4: =IF(COUNTIF(S$2:S4,S4)=1,MAX(R$2:R3)+1,"") ->  | S4: =M4&" - "&N4 -> 1 - 1 | U4: =(D3/B3)+(D9/B9) -> 2.15 | V4: Goals Against | W4: =MOD(U4,1) -> 0.15 | X4: =IF(W4>0.6,CEILING(U4,1),FLOOR(U4,1)) -> 2 | Y4: =Z4 -> U 2,5 | Z4: =IF(X8>=2.6,"O 2,5",IF(X8<2.3,"U 2,5","")) -> U 2,5 | AI4: =AH3+AI3 -> 5.4 | AL4: Дом | AM4: =E4 -> 9 | AN4: =AM4/AM3 -> 0.3461538462 | AO4: =AN4/0.5 -> 0.6923076923 | AP4: =AO4 -> 0.6923076923 | AQ4: =AP4*100-100 -> -30.76923077
A5: @Away | B5: ='Incognito DATA'!B4 -> 10 | C5: ='Incognito DATA'!F4 -> 14 | D5: ='Incognito DATA'!G4 -> 9 | E5: ='Incognito DATA'!H4 -> 17 | R5: =IF(COUNTIF(S$2:S5,S5)=1,MAX(R$2:R4)+1,"") ->  | U5: =I3+J3 -> 2.35 | V5: Overal | W5: =MOD(U5,1) -> 0.35 | X5: =IF(W5>0.6,CEILING(U5,1),FLOOR(U5,1)) -> 2 | Y5: =TEXT(U5,"0,00") -> 2,35 | Z5: =IF(X8>=2.6,"O 1,5",IF(X8<0.8,"U 1,5","")) ->  | AG5: голы по форме | AI5: =AI4/2 -> 2.7 | AL5: Выезд | AM5: =E5 -> 17 | AN5: =AM5/AM3 -> 0.6538461538 | AO5: =AN5/0.5 -> 1.307692308 | AP5: =AO5 -> 1.307692308 | AQ5: =AP5*100-100 -> 30.76923077
A6: Form 5 | B6: ='Incognito DATA'!B5 -> 5 | C6: ='Incognito DATA'!F5 -> 4 | D6: ='Incognito DATA'!G5 -> 5 | E6: ='Incognito DATA'!H5 -> 6 | F6: =(C6/B6+D12/B12)/2 -> 1 | H6: Form 5 | I6: =F6 -> 1 | J6: =F12 -> 1.7 | M6: =IF(I6<1,IF(I6>0.9,CEILING(I6,1),FLOOR(I6,1)),IF(I6>1.69,CEILING(I6,1),FLOOR(I6,1))) -> 1 | N6: =IF(J6<1,IF(J6>0.95,CEILING(J6,1),FLOOR(J6,1)),IF(J6>1.7,CEILING(J6,1),FLOOR(J6,1))) -> 1 | O6: =ABS(I6-J6) -> 0.7 | P6: =IF(I6>J6,"1X","X2") -> X2 | Q6: =IF(AND(I6>J6,O6>0.29),"W1",IF(AND(I6<J6,O6>0.29),"W2","X")) -> W2 | R6: =IF(COUNTIF(S$2:S6,S6)=1,MAX(R$2:R5)+1,"") ->  | S6: =M6&" - "&N6 -> 1 - 1 | U6: =I6+J6 -> 2.7 | V6: Form 5 | W6: =MOD(U6,1) -> 0.7 | X6: =IF(W6>0.6,CEILING(U6,1),FLOOR(U6,1)) -> 3 | AJ6: =IF(AI7<1,IF(AI7>0.9,CEILING(AI7,1),FLOOR(AI7,1)),IF(AI7>1.6,CEILING(AI7,1),FLOOR(AI7,1))) -> 1
A7: AWAY Team | K7: Additional CS | O7: 1 | P7: =IFERROR(VLOOKUP(O7,R$3:S$13,2,FALSE),"") -> 1 - 1 | Q7: =IF(P8="",""," / ") ->  | R7: =IF(COUNTIF(S$2:S7,S7)=1,MAX(R$2:R6)+1,"") ->  | U7: =I4+J4 -> 2.1375 | V7: Home / Away | W7: =MOD(U7,1) -> 0.1375 | X7: =IF(W7>0.6,CEILING(U7,1),FLOOR(U7,1)) -> 2 | AG7: команда1 | AI7: =AG9/AH9 -> 1.022222222 | AJ7: =IF(AI8<1,IF(AI8>0.9,CEILING(AI8,1),FLOOR(AI8,1)),IF(AI8>1.5,CEILING(AI8,1),FLOOR(AI8,1))) -> 2 | AL7: =A8 -> Нови Белград
A8: ='Incognito DATA'!A7 -> Нови Белград | B8: Played | C8: G For | D8: G Against | E8: Points | F8: =TEXT(B9/(F1*2-2),"0%") -> 67% | G8: =IFERROR(B9&" / "&F8,"") -> 20 / 67% | H8: Both To Score YES / NO | K8: =IF(AND(K3<=0.95,K3>=0.6),1,0) -> 0 | L8: =IF(AND(L3<=0.95,L3>=0.6),1,0) -> 0 | M8: =IF(K$14<9,"",IF(M3=N3,"",IF(M3>N3,N3,IF(N3>M3,M3,"")))) ->  | N8: =IF(K$14<9,"",IF(M3=N3,"",IF(M3<N3,N3,IF(N3<M3,M3,"")))) ->  | O8: 2 | P8: =IFERROR(VLOOKUP(O8,R$3:S$13,2,FALSE),"") ->  | R8: =IF(COUNTIF(S$2:S8,S8)=1,MAX(R$2:R7)+1,"") ->  | S8: =IF(M8="","",M8&" - "&N8) ->  | U8: =AVERAGE(U3:U7) -> 2.3775 | X8: =SUM(X3:X7)/5 -> 2.2 | AG8: команда2 | AI8: =AG10/AH10 -> 1.6 | AL8: Общие | AM8: =E9 -> 31
A9: Overall | B9: ='Incognito DATA'!B8 -> 20 | C9: ='Incognito DATA'!F8 -> 30 | D9: ='Incognito DATA'!G8 -> 22 | E9: ='Incognito DATA'!H8 -> 31 | F9: =(C9/B9+D3/B3)/2 -> 1.275 | H9: =(C3/B3)+(C9/B9) -> 2.55 | I9: =(D3/B3)+(D9/B9) -> 2.15 | J9: =I3+J3 -> 2.35 | K9: =IF(AND(K4<=0.95,K4>=0.6),1,0) -> 0 | L9: =IF(AND(L4<=0.95,L4>=0.6),1,0) -> 0 | M9: =IF(K$14<9,"",IF(M4=N4,"",IF(M4>N4,N4,IF(N4>M4,M4,"")))) ->  | N9: =IF(K$14<9,"",IF(M4=N4,"",IF(M4<N4,N4,IF(N4<M4,M4,"")))) ->  | O9: 3 | R9: =IF(COUNTIF(S$2:S9,S9)=1,MAX(R$2:R8)+1,"") ->  | AG9: =C3+C4+C5+C6 -> 46 | AH9: =B3+B4+B5+B6 -> 45 | AL9: Дом | AM9: =E10 -> 21 | AN9: =AM9/AM8 -> 0.6774193548 | AO9: =AN9/0.5 -> 1.35483871 | AP9: =AO9 -> 1.35483871 | AQ9: =AP9*100-100 -> 35.48387097
A10: @Home | B10: ='Incognito DATA'!B9 -> 12 | C10: ='Incognito DATA'!F9 -> 22 | D10: ='Incognito DATA'!G9 -> 11 | E10: ='Incognito DATA'!H9 -> 21 | H10: =H9+I9+J9 -> 7.05 | I10: =IF(H10>8.55,"YES","") ->  | K10: =IF(AND(K6<=0.95,K6>=0.6),1,0) -> 0 | L10: =IF(AND(L6<=0.95,L6>=0.6),1,0) -> 0 | M10: =IF(K$14<9,"",IF(M6=N6,"",IF(M6>N6,N6,IF(N6>M6,M6,"")))) ->  | N10: =IF(K$14<9,"",IF(M6=N6,"",IF(M6<N6,N6,IF(N6<M6,M6,"")))) ->  | O10: 4 | R10: =IF(COUNTIF(S$2:S10,S10)=1,MAX(R$2:R9)+1,"") ->  | V10: =AVERAGE(M3:M6) -> 1 | W10: =AVERAGE(N3:N6) -> 1 | AG10: =C9+C10+C11+C12 -> 72 | AH10: =B9+B10+B11+B12 -> 45 | AJ10: =AJ6+AJ7 -> 3 | AL10: Выезд | AM10: =E11 -> 10 | AN10: =AM10/AM8 -> 0.3225806452 | AO10: =AN10/0.5 -> 0.6451612903 | AP10: =AO10 -> 0.6451612903 | AQ10: =AP10*100-100 -> -35.48387097
A11: @Away | B11: ='Incognito DATA'!B10 -> 8 | C11: ='Incognito DATA'!F10 -> 8 | D11: ='Incognito DATA'!G10 -> 11 | E11: ='Incognito DATA'!H10 -> 10 | F11: =(C11/B11+D4/B4)/2 -> 1.1 | K11: =IF(ABS(K3-L3)<=0.25,1,0) -> 1 | L11: =IF((I3+J3)<=1.45,1,0) -> 0 | M11: =IF(L11=0,"",0) ->  | N11: =IF(L11=0,"",0) ->  | O11: 5 | R11: =IF(COUNTIF(S$2:S11,S11)=1,MAX(R$2:R10)+1,"") ->  | AG11: общие голы | AI11: =AI7+AI8 -> 2.622222222
A12: Form 5 | B12: ='Incognito DATA'!B11 -> 5 | C12: ='Incognito DATA'!F11 -> 12 | D12: ='Incognito DATA'!G11 -> 6 | E12: ='Incognito DATA'!H11 -> 11 | F12: =(C12/B12+D6/B6)/2 -> 1.7 | G12: Rank | H12: =A2 -> Жарково | I12: =IFERROR('Incognito DATA'!I2,"RISK") -> 6 | K12: =IF(ABS(K4-L4)<=0.25,1,0) -> 1 | L12: =IF((I4+J4)<=1.45,1,0) -> 0 | M12: =IF(L12=0,"",0) ->  | N12: =IF(L12=0,"",0) ->  | O12: 6 | R12: =IF(COUNTIF(S$2:S12,S12)=1,MAX(R$2:R11)+1,"") -> 
H13: =A8 -> Нови Белград | I13: =IFERROR('Incognito DATA'!I8,"RISK") -> 5 | K13: =IF(ABS(K6-L6)<=0.25,1,0) -> 1 | L13: =IF((I6+J6)<=1.45,1,0) -> 0 | M13: =IF(L13=0,"",0) ->  | N13: =IF(L13=0,"",0) ->  | O13: 7 | R13: =IF(COUNTIF(S$2:S13,S13)=1,MAX(R$2:R12)+1,"") -> 
K14: =K13+K12+K11+K10+K9+K8+L8+L9+L10 -> 3 | L14: =L11+L12+L13 -> 0 | S14: =P7&Q7&P8&Q8&P9&Q9&P10&Q10&P11&Q11&P12&Q12&P13&Q13 -> 1 - 1 | T14: =AVERAGE(H29,H56,H83,H110) -> 1.145517677 | U14: ТС | V14: =AVERAGE(H30,H57,H84,H111) -> 1.541224747 | AD14: HOME @ home
A15: Пуассон | T15: Форма | V15: Среднее | W15: Прогноз | AD15: Победы | AF15: Ничьи | AH15: Порожения | AJ15: =A2 -> Жарково | AL15: =AD16*3 -> 6 | AM15: =AF16*1.5 -> 4.5 | AP15: =-AH16*AH16 -> -25
A16: Общая | B16: 1 | C16: X | D16: 2 | F16: Дома | G16: 1 | H16: X | I16: 2 | K16: В гостях | L16: 1 | M16: X | N16: 2 | P16: Дом\Гости | Q16: 1 | R16: X | S16: 2 | T16: =A143 -> 0.2218253555 | U16: П1 | V16: =AVERAGE(B17,G17,L17,Q17) -> 0.2943385546 | W16: =AVERAGE(V16,V22) -> 0.250872981 | X16: П1 | AD16: ='Incognito DATA'!C3 -> 2 | AF16: ='Incognito DATA'!D3 -> 3 | AH16: ='Incognito DATA'!E3 -> 5 | AI16: =AL15+AM15+AP15 -> -14.5
B17: =A35 -> 0.3119808494 | C17: =B35 -> 0.2783137876 | D17: =C35 -> 0.409705363 | G17: =A62 -> 0.1984180126 | H17: =B62 -> 0.2563619975 | I17: =C62 -> 0.5452199898 | L17: =A89 -> 0.4718916474 | M17: =B89 -> 0.2724912662 | N17: =C89 -> 0.2556170864 | Q17: =A116 -> 0.1950637088 | R17: =B116 -> 0.1875078917 | S17: =C116 -> 0.6174283995 | T17: =C143 -> 0.5379480937 | U17: X | V17: =AVERAGE(C17,H17,M17,R17) -> 0.2486687358 | W17: =AVERAGE(V17,V23) -> 0.322482516 | X17: Х | AC17: =AD16+AF16+AH16 -> 10 | AD17: =AD16/AC17 -> 0.2 | AF17: =AF16/AC17 -> 0.3 | AH17: =AH16/AC17 -> 0.5 | AJ17: =A8 -> Нови Белград | AL17: =AD18*3 -> 6 | AM17: =AF18*1.5 -> 6 | AP17: =-AH18*AH18 -> -4
A18: ОЗ | B18: Over 1.5 | C18: Over 2.5 | D18: Over 3.5 | F18: ОЗ | G18: Over 1.5 | H18: Over 2.5 | I18: Over 3.5 | K18: ОЗ | L18: Over 1.5 | M18: Over 2.5 | N18: Over 3.5 | P18: ОЗ | Q18: Over 1.5 | R18: Over 2.5 | S18: Over 3.5 | T18: =B143 -> 0.2402265508 | U18: П2 | V18: =AVERAGE(D17,I17,N17,S17) -> 0.4569927097 | W18: =AVERAGE(V18,V24) -> 0.426644503 | X18: П2 | AD18: ='Incognito DATA'!C10 -> 2 | AF18: ='Incognito DATA'!D10 -> 4 | AH18: ='Incognito DATA'!E10 -> 2 | AI18: =AL17+AM17+AP17 -> 8 | AK18: =AD15 -> Победы | AL18: =AF15 -> Ничьи | AM18: =AH15 -> Порожения
A19: =F47 -> 0.4746396336 | B19: =B41 -> 0.6805121045 | C19: =B42 -> 0.4171740053 | D19: =B43 -> 0.2108924943 | F19: =F74 -> 0.4396264228 | G19: =B68 -> 0.6835521787 | H19: =B69 -> 0.4207571775 | I19: =B70 -> 0.2137065705 | K19: =F101 -> 0.4587228639 | L19: =B95 -> 0.6767579439 | M19: =B96 -> 0.412778698 | N19: =B97 -> 0.2074615068 | P19: =F128 -> 0.6613260994 | Q19: =B122 -> 0.8835967121 | R19: =B123 -> 0.7143641734 | S19: =B124 -> 0.5056440424 | T19: =F155 -> 0.5166348882 | U19: ОЗ | V19: =AVERAGE(A19,F19,K19,P19) -> 0.5085787549 | AC19: =AD18+AF18+AH18 -> 8 | AD19: =AD18/AC19 -> 0.25 | AF19: =AF18/AC19 -> 0.5 | AH19: =AH18/AC19 -> 0.25 | AJ19: =AJ15 -> Жарково | AK19: =AD17 -> 0.2 | AL19: =AF17 -> 0.3 | AM19: =AH17 -> 0.5
T20: =B150 -> 0.5063634247 | U20: ТБ2.5 | V20: =AVERAGE(C19,H19,M19,R19) -> 0.4912685136 | AD20: AWAY @ away | AJ20: =AJ17 -> Нови Белград | AK20: =AD19 -> 0.25 | AL20: =AF19 -> 0.5 | AM20: =AH19 -> 0.25
A21: Пиччетто
A22: Общая | B22: 1 | C22: X | D22: 2 | F22: Дом\Гости | G22: 1 | H22: X | I22: 2 | K22: Форма | L22: 1 | M22: X | N22: 2 | U22: П1 | V22: =AVERAGE(B23,G23,L23) -> 0.2074074074 | AG22: Счет | AH22: Общая | AI22: Дом\Вые | AJ22: Форма | AK22: среднее
B23: =IFERROR(IF(B22="","",((R33+T34)/(B3+B9))),"") -> 0.3 | C23: =IFERROR(IF(C22="","",((S33+S34)/(B3+B9))),"") -> 0.3 | D23: =IFERROR(IF(D22="","",((R34+T33)/(B9+B3))),"") -> 0.4 | G23: =IFERROR(IF(G22="","",((R37+T38)/(B4+B11))),"") -> 0.2222222222 | H23: =IFERROR(IF(H22="","",((S37+S38)/(B11+B4))),"") -> 0.3888888889 | I23: =IFERROR(IF(I22="","",((R38+T37)/(B11+B4))),"") -> 0.3888888889 | L23: =IFERROR(IF(L22="","",((R41+T42)/(B6+B12))),"") -> 0.1 | M23: =IFERROR(IF(M22="","",((S41+S42)/(B6+B12))),"") -> 0.5 | N23: =IFERROR(IF(N22="","",((R42+T41)/(B12+B6))),"") -> 0.4 | P23: 0 голов | Q23: пропустят | R23: забьют | U23: Х | V23: =AVERAGE(C23,H23,M23) -> 0.3962962963
O24: =A2 -> Жарково | P24: =B4/C4 -> 1.428571429 | Q24: =D4/B4 -> 1.2 | R24: =C4/B4 -> 0.7 | U24: П2 | V24: =AVERAGE(D23,I23,N23) -> 0.3962962963 | AF24: =AK24 -> 0.06243273381 | AG24: 0 - 0 | AH24: =G33 -> 0.09536916222 | AI24: =G114 -> 0.02472352647 | AJ24: =G141 -> 0.06720551274 | AK24: =AVERAGE(AH24,AI24,AJ24) -> 0.06243273381 | AL24: =LARGE(AK24:AK39,1) -> 0.1073673774 | AM24: =VLOOKUP(AL24,AF24:AG39,2,FALSE) -> 1 - 1
O25: =A8 -> Нови Белград | P25: =B11/C11 -> 1 | Q25: =D11/B11 -> 1.375 | R25: =C11/B11 -> 1 | AF25: =AK25 -> 0.06728931551 | AG25: 1 - 0 | AH25: =G34 -> 0.1025218494 | AI25: =G115 -> 0.03214058441 | AJ25: =G142 -> 0.06720551274 | AK25: =AVERAGE(AH25:AJ25) -> 0.06728931551 | AL25: =LARGE(AK24:AK39,2) -> 0.098393839 | AM25: =VLOOKUP(AL25,AF24:AG39,2,FALSE) -> 0 -1
AF26: 0.03653321009 | AG26: 2 - 0 | AH26: =G35 -> 0.05510549404 | AI26: =G116 -> 0.02089137987 | AJ26: =G143 -> 0.03360275637 | AK26: 0.03653321009 | AL26: =LARGE(AK24:AK39,3) -> 0.0910026299 | AM26: =VLOOKUP(AL26,AF24:AG39,2,FALSE) -> 1 - 2
A27: Общая | R27: Атака | S27: Защита | U27: Победа по очкам | AF27: 0.01333332848 | AG27: 3 - 0 | AH27: =G36 -> 0.01974613537 | AI27: =G117 -> 0.009052931276 | AJ27: =G144 -> 0.01120091879 | AK27: 0.01333332848 | AL27: =LARGE(AK24:AK39,4) -> 0.0819443231 | AM27: =VLOOKUP(AL27,AF24:AG39,2,FALSE) -> 0 - 2
C28: Команда | D28: Забито | E28: Пропущено | F28: Игры | H28: Средний | K28: Алгоритм3 | Q28: =A2 -> Жарково | R28: =A197 -> 0.2237524122 | S28: =A224 -> 0.2805991319 | U28: =A2 -> Жарково | W28: =A251 -> 0.2558101125 | AF28: 0.098393839 | AG28: 0 -1 | AH28: =H33 -> 0.1215956818 | AI28: =H114 -> 0.05933646353 | AJ28: =H141 -> 0.1142493717 | AK28: 0.098393839
B29: Дом | C29: =A2 -> Жарково | D29: =C3 -> 21 | E29: =D3 -> 21 | F29: =B3 -> 20 | H29: =(D29+E30)/(F30+F29) -> 1.075 | K29: 1 | L29: х | M29: 2 | Q29: =A8 -> Нови Белград | R29: =C197 -> 0.2632248872 | S29: =C224 -> 0.3151187134 | U29: =A8 -> Нови Белград | W29: =C251 -> 0.2926006751 | AF29: 0.0819443231 | AG29: 0 - 2 | AH29: =I33 -> 0.07751724716 | AI29: =I114 -> 0.07120375623 | AJ29: =I141 -> 0.09711196591 | AK29: 0.0819443231 | AM29: =AM24&" / "&AM25&" / "&AM26&" / "&AM27 -> 1 - 1 / 0 -1 / 1 - 2 / 0 - 2
B30: Гости | C30: =A8 -> Нови Белград | D30: =C9 -> 30 | E30: =D9 -> 22 | F30: =B9 -> 20 | H30: =(D30+E29)/(F29+F30) -> 1.275 | K30: =A170 -> 0.1407621366 | L30: =B170 -> 0.590674728 | M30: =C170 -> 0.2685631354 | AF30: 0.04831264968 | AG30: 0 - 3 | AH30: =J33 -> 0.03294483004 | AI30: =J114 -> 0.05696300499 | AJ30: =J141 -> 0.05503011402 | AK30: 0.04831264968
Q31: Пиччетто | V31: ТБ2.5 | W31: =IFERROR(IF(V31="","",((C4+D11)/(B4+B11))),"") -> 1 | X31: =IFERROR(IF(V31="","",((C11+D4)/(B4+B11))),"") -> 1.111111111 | AF31: 0.1073673774 | AG31: 1 - 1 | AH31: =H34 -> 0.130715358 | AI31: =H115 -> 0.07713740259 | AJ31: =H142 -> 0.1142493717 | AK31: 0.1073673774
G32: 0 | H32: 1 | I32: 2 | J32: 3 | K32: 4 | L32: 5 | M32: 6 | N32: 7 | O32: 8 | P32: 9 | Q32: ОБЩАЯ | R32: В | S32: Н | T32: П | AF32: 0.05117119712 | AG32: 2 - 2 | AH32: =I35 -> 0.04479043438 | AI32: =I116 -> 0.06016717402 | AJ32: =I143 -> 0.04855598295 | AK32: 0.05117119712
F33: 0 | G33: =POISSON(F33,H29,0)*POISSON(G32,H30,0) -> 0.09536916222 | H33: =POISSON(F33,H29,0)*POISSON(H32,H30,0) -> 0.1215956818 | I33: =POISSON(F33,H29,0)*POISSON(I32,H30,0) -> 0.07751724716 | J33: =POISSON(F33,H29,0)*POISSON(J32,H30,0) -> 0.03294483004 | K33: =POISSON(F33,H29,0)*POISSON(K32,H30,0) -> 0.01050116458 | L33: =POISSON(F33,H29,0)*POISSON(L32,H30,0) -> 0.002677796967 | M33: =POISSON(F33,H29,0)*POISSON(M32,H30,0) -> 0.0005690318555 | N33: =POISSON(F33,H29,0)*POISSON(N32,H30,0) -> 0.000103645088 | O33: =POISSON(F33,H29,0)*POISSON(O32,H30,0) -> 1.651843589e-05 | P33: =POISSON(F33,H29,0)*POISSON(P32,H30,0) -> 2.340111752e-06 | Q33: Team 1 | R33: ='Incognito DATA'!C2 -> 7 | S33: ='Incognito DATA'!D2 -> 5 | T33: ='Incognito DATA'!E2 -> 8 | AF33: 0.01228361641 | AG33: 3 - 3 | AH33: =J36 -> 0.006821209902 | AI33: =J117 -> 0.02085795366 | AJ33: =J144 -> 0.009171685669 | AK33: 0.01228361641
A34: ="1" -> 1 | B34: ="X" -> X | C34: ="2" -> 2 | F34: 1 | G34: =POISSON(F34,H29,0)*POISSON(G32,H30,0) -> 0.1025218494 | H34: =POISSON(F34,H29,0)*POISSON(H32,H30,0) -> 0.130715358 | I34: =POISSON(F34,H29,0)*POISSON(I32,H30,0) -> 0.0833310407 | J34: =POISSON(F34,H29,0)*POISSON(J32,H30,0) -> 0.0354156923 | K34: =POISSON(F34,H29,0)*POISSON(K32,H30,0) -> 0.01128875192 | L34: =POISSON(F34,H29,0)*POISSON(L32,H30,0) -> 0.00287863174 | M34: =POISSON(F34,H29,0)*POISSON(M32,H30,0) -> 0.0006117092447 | N34: =POISSON(F34,H29,0)*POISSON(N32,H30,0) -> 0.0001114184696 | O34: =POISSON(F34,H29,0)*POISSON(O32,H30,0) -> 1.775731859e-05 | P34: =POISSON(F34,H29,0)*POISSON(P32,H30,0) -> 2.515620133e-06 | Q34: Team 2 | R34: ='Incognito DATA'!C8 -> 8 | S34: ='Incognito DATA'!D8 -> 7 | T34: ='Incognito DATA'!E8 -> 5 | AF34: 0.05917450081 | AG34: 2 - 1 | AH34: =H35 -> 0.0702595049 | AI34: =H116 -> 0.05013931168 | AJ34: =H143 -> 0.05712468583 | AK34: 0.05917450081
A35: =SUM(G34:G42,H35:H42,I36:I42,J37:J42,K38:K42,L39:L42,M40:M42,N41:N42,O42) -> 0.3119808494 | B35: =SUM(G33,H34,I35,J36,K37,L38,M39,N40,O41,P42) -> 0.2783137876 | C35: =1-B35-A35 -> 0.409705363 | F35: 2 | G35: =POISSON(F35,H29,0)*POISSON(G32,H30,0) -> 0.05510549404 | H35: =POISSON(F35,H29,0)*POISSON(H32,H30,0) -> 0.0702595049 | I35: =POISSON(F35,H29,0)*POISSON(I32,H30,0) -> 0.04479043438 | J35: =POISSON(F35,H29,0)*POISSON(J32,H30,0) -> 0.01903593461 | K35: =POISSON(F35,H29,0)*POISSON(K32,H30,0) -> 0.006067704157 | L35: =POISSON(F35,H29,0)*POISSON(L32,H30,0) -> 0.00154726456 | M35: =POISSON(F35,H29,0)*POISSON(M32,H30,0) -> 0.000328793719 | N35: =POISSON(F35,H29,0)*POISSON(N32,H30,0) -> 5.988742739e-05 | O35: =POISSON(F35,H29,0)*POISSON(O32,H30,0) -> 9.54455874e-06 | P35: =POISSON(F35,H29,0)*POISSON(P32,H30,0) -> 1.352145822e-06 | AF35: 0.02198163987 | AG35: 3 - 1 | AH35: =H36 -> 0.02517632259 | AI35: =H117 -> 0.02172703506 | AJ35: =H144 -> 0.01904156194 | AK35: 0.02198163987
A36: =1/A35 -> 3.205324948 | B36: =1/B35 -> 3.593066691 | C36: =1/C35 -> 2.440778399 | F36: 3 | G36: =POISSON(F36,H29,0)*POISSON(G32,H30,0) -> 0.01974613537 | H36: =POISSON(F36,H29,0)*POISSON(H32,H30,0) -> 0.02517632259 | I36: =POISSON(F36,H29,0)*POISSON(I32,H30,0) -> 0.01604990565 | J36: =POISSON(F36,H29,0)*POISSON(J32,H30,0) -> 0.006821209902 | K36: =POISSON(F36,H29,0)*POISSON(K32,H30,0) -> 0.002174260656 | L36: =POISSON(F36,H29,0)*POISSON(L32,H30,0) -> 0.0005544364673 | M36: =POISSON(F36,H29,0)*POISSON(M32,H30,0) -> 0.0001178177493 | N36: =POISSON(F36,H29,0)*POISSON(N32,H30,0) -> 2.145966148e-05 | O36: =POISSON(F36,H29,0)*POISSON(O32,H30,0) -> 3.420133549e-06 | P36: =POISSON(F36,H29,0)*POISSON(P32,H30,0) -> 4.845189194e-07 | Q36: Д\Г | R36: В | S36: Н | T36: П | AF36: 0.01943589179 | AG36: 3 - 2 | AH36: =I36 -> 0.01604990565 | AI36: =I117 -> 0.02607244207 | AJ36: =I144 -> 0.01618532765 | AK36: 0.01943589179
F37: 4 | G37: =POISSON(F37,H29,0)*POISSON(G32,H30,0) -> 0.005306773879 | H37: =POISSON(F37,H29,0)*POISSON(H32,H30,0) -> 0.006766136696 | I37: =POISSON(F37,H29,0)*POISSON(I32,H30,0) -> 0.004313412144 | J37: =POISSON(F37,H29,0)*POISSON(J32,H30,0) -> 0.001833200161 | K37: =POISSON(F37,H29,0)*POISSON(K32,H30,0) -> 0.0005843325514 | L37: =POISSON(F37,H29,0)*POISSON(L32,H30,0) -> 0.0001490048006 | M37: =POISSON(F37,H29,0)*POISSON(M32,H30,0) -> 3.166352013e-05 | N37: =POISSON(F37,H29,0)*POISSON(N32,H30,0) -> 5.767284023e-06 | O37: =POISSON(F37,H29,0)*POISSON(O32,H30,0) -> 9.191608912e-07 | P37: =POISSON(F37,H29,0)*POISSON(P32,H30,0) -> 1.302144596e-07 | Q37: Team 1 | R37: ='Incognito DATA'!C3 -> 2 | S37: ='Incognito DATA'!D3 -> 3 | T37: ='Incognito DATA'!E3 -> 5 | AF37: 0.0910026299 | AG37: 1 - 2 | AH37: =I34 -> 0.0833310407 | AI37: =I115 -> 0.0925648831 | AJ37: =I142 -> 0.09711196591 | AK37: 0.0910026299
F38: 5 | G38: =POISSON(F38,H29,0)*POISSON(G32,H30,0) -> 0.001140956384 | H38: =POISSON(F38,H29,0)*POISSON(H32,H30,0) -> 0.00145471939 | I38: =POISSON(F38,H29,0)*POISSON(I32,H30,0) -> 0.0009273836109 | J38: =POISSON(F38,H29,0)*POISSON(J32,H30,0) -> 0.0003941380346 | K38: =POISSON(F38,H29,0)*POISSON(K32,H30,0) -> 0.0001256314985 | L38: =POISSON(F38,H29,0)*POISSON(L32,H30,0) -> 3.203603213e-05 | M38: =POISSON(F38,H29,0)*POISSON(M32,H30,0) -> 6.807656827e-06 | N38: =POISSON(F38,H29,0)*POISSON(N32,H30,0) -> 1.239966065e-06 | O38: =POISSON(F38,H29,0)*POISSON(O32,H30,0) -> 1.976195916e-07 | P38: =POISSON(F38,H29,0)*POISSON(P32,H30,0) -> 2.799610881e-08 | Q38: Team 2 | R38: ='Incognito DATA'!C10 -> 2 | S38: ='Incognito DATA'!D10 -> 4 | T38: ='Incognito DATA'!E10 -> 2 | AF38: 0.05483257093 | AG38: 1 - 3 | AH38: =J34 -> 0.0354156923 | AI38: =J115 -> 0.07405190648 | AJ38: =J142 -> 0.05503011402 | AK38: 0.05483257093
F39: 6 | G39: =POISSON(F39,H29,0)*POISSON(G32,H30,0) -> 0.0002044213521 | H39: =POISSON(F39,H29,0)*POISSON(H32,H30,0) -> 0.000260637224 | I39: =POISSON(F39,H29,0)*POISSON(I32,H30,0) -> 0.0001661562303 | J39: =POISSON(F39,H29,0)*POISSON(J32,H30,0) -> 7.061639787e-05 | K39: =POISSON(F39,H29,0)*POISSON(K32,H30,0) -> 2.250897682e-05 | L39: =POISSON(F39,H29,0)*POISSON(L32,H30,0) -> 5.73978909e-06 | M39: =POISSON(F39,H29,0)*POISSON(M32,H30,0) -> 1.219705182e-06 | N39: =POISSON(F39,H29,0)*POISSON(N32,H30,0) -> 2.221605866e-07 | O39: =POISSON(F39,H29,0)*POISSON(O32,H30,0) -> 3.54068435e-08 | P39: =POISSON(F39,H29,0)*POISSON(P32,H30,0) -> 5.015969495e-09 | AF39: 0.03156157694 | AG39: 2 - 3 | AH39: =J35 -> 0.01903593461 | AI39: =J116 -> 0.04813373921 | AJ39: =J143 -> 0.02751505701 | AK39: 0.03156157694
A40: ТБ 0.5 | B40: =SUM(G33:P42)-G33 -> 0.9046296357 | C40: =1/B40 -> 1.105424762 | F40: 7 | G40: =POISSON(F40,H29,0)*POISSON(G32,H30,0) -> 3.139327908e-05 | H40: =POISSON(F40,H29,0)*POISSON(H32,H30,0) -> 4.002643083e-05 | I40: =POISSON(F40,H29,0)*POISSON(I32,H30,0) -> 2.551684965e-05 | J40: =POISSON(F40,H29,0)*POISSON(J32,H30,0) -> 1.08446611e-05 | K40: =POISSON(F40,H29,0)*POISSON(K32,H30,0) -> 3.456735726e-06 | L40: =POISSON(F40,H29,0)*POISSON(L32,H30,0) -> 8.814676102e-07 | M40: =POISSON(F40,H29,0)*POISSON(M32,H30,0) -> 1.873118672e-07 | N40: =POISSON(F40,H29,0)*POISSON(N32,H30,0) -> 3.411751866e-08 | O40: =POISSON(F40,H29,0)*POISSON(O32,H30,0) -> 5.437479537e-09 | P40: =POISSON(F40,H29,0)*POISSON(P32,H30,0) -> 7.703096011e-10 | Q40: Форма | R40: В | S40: Н | T40: П
A41: ТБ 1.5 | B41: =SUM(G35:G42,H34:H42,I33:I42,J33:P42) -> 0.6805121045 | C41: =1/B41 -> 1.469481576 | F41: 8 | G41: =POISSON(F41,H29,0)*POISSON(G32,H30,0) -> 4.218471876e-06 | H41: =POISSON(F41,H29,0)*POISSON(H32,H30,0) -> 5.378551642e-06 | I41: =POISSON(F41,H29,0)*POISSON(I32,H30,0) -> 3.428826672e-06 | J41: =POISSON(F41,H29,0)*POISSON(J32,H30,0) -> 1.457251336e-06 | K41: =POISSON(F41,H29,0)*POISSON(K32,H30,0) -> 4.644988632e-07 | L41: =POISSON(F41,H29,0)*POISSON(L32,H30,0) -> 1.184472101e-07 | M41: =POISSON(F41,H29,0)*POISSON(M32,H30,0) -> 2.517003215e-08 | N41: =POISSON(F41,H29,0)*POISSON(N32,H30,0) -> 4.58454157e-09 | O41: =POISSON(F41,H29,0)*POISSON(O32,H30,0) -> 7.306613128e-10 | P41: =POISSON(F41,H29,0)*POISSON(P32,H30,0) -> 1.035103526e-10 | Q41: Team 1 | R41: ='Incognito DATA'!C5 -> 1 | S41: ='Incognito DATA'!D5 -> 3 | T41: ='Incognito DATA'!E5 -> 1
A42: ТБ 2.5 | B42: =SUM(G36:G42,H35:H42,I34:I42,J33:P42) -> 0.4171740053 | C42: =1/B42 -> 2.397081283 | F42: 9 | G42: =POISSON(F42,H29,0)*POISSON(G32,H30,0) -> 5.038730297e-07 | H42: =POISSON(F42,H29,0)*POISSON(H32,H30,0) -> 6.424381128e-07 | I42: =POISSON(F42,H29,0)*POISSON(I32,H30,0) -> 4.095542969e-07 | J42: =POISSON(F42,H29,0)*POISSON(J32,H30,0) -> 1.740605762e-07 | K42: =POISSON(F42,H29,0)*POISSON(K32,H30,0) -> 5.548180866e-08 | L42: =POISSON(F42,H29,0)*POISSON(L32,H30,0) -> 1.414786121e-08 | M42: =POISSON(F42,H29,0)*POISSON(M32,H30,0) -> 3.006420507e-09 | N42: =POISSON(F42,H29,0)*POISSON(N32,H30,0) -> 5.475980209e-10 | O42: =POISSON(F42,H29,0)*POISSON(O32,H30,0) -> 8.727343458e-11 | P42: =POISSON(F42,H29,0)*POISSON(P32,H30,0) -> 1.236373657e-11 | Q42: Team 2 | R42: ='Incognito DATA'!C11 -> 3 | S42: ='Incognito DATA'!D11 -> 2 | T42: ='Incognito DATA'!E11 -> 0
A43: ТБ 3.5 | B43: =SUM(G37:G42,H36:H42,I35:I42,J34:J42,K33:P42) -> 0.2108924943 | C43: =1/B43 -> 4.741752443
A44: ТБ 4.5 | B44: =SUM(G38:G42,H37:H42,I36:I42,J35:J42,K34:K42,L33:P42) -> 0.08970210658 | C44: 11.14801021 | R44: забьют | S44: пропустят
A45: ТБ 5.5 | B45: =SUM(G39:G42,H38:H42,I37:I42,J36:J42,K35:K42,L34:L42,M33:P42) -> 0.03274262435 | C45: 30.54122936 | R45: =(C3+C4+C6)/(B3+B4+B6) -> 0.9142857143 | S45: =(D3+D4+D6)/(B3+B4+B6) -> 1.085714286
R46: =(C9+C11+C12)/(B9+B11+B12) -> 1.515151515 | S46: =(D9+D11+D12)/(B9+B11+B12) -> 1.181818182
A47: ТМ 0.5 | B47: =1-B40 -> 0.09537036431 | C47: 10.48543756 | E47: ОЗ | F47: =SUM(H34:P42) -> 0.4746396336 | G47: =1/F47 -> 2.106861562
A48: ТМ 1.5 | B48: 0.3194878955 | C48: 3.130009036 | E48: НЕ ОЗ | F48: =1-F47 -> 0.5253603664 | G48: =1/F48 -> 1.90345535
A49: ТМ 2.5 | B49: 0.5828259947 | C49: 1.715777967
A50: ТМ 3.5 | B50: 0.7891075057 | C50: 1.267254452 | E50: P | F50: =SUM(G33,G35,G37,G39,G41,H34,H36,H38,H40,H42,I33,I35,I37,I39,I41,J34,J36,J38,J40,J42,K33,K35,K37,K39,K41,L34,L36,L38,L40,L42)+SUM(M33,M35,M37,M39,M41,N34,N36,N38,N40,N42,O33,O35,O37,O39,O41,P34,P36,P38,P40,P42) -> 0.504546985 | G50: =1/F50 -> 1.98197597 | Q50: BTTS ALL | R50: =AVERAGE(F47,F74,F101,F128,F155) -> 0.5101899816
A51: ТМ 4.5 | B51: 0.9102978934 | C51: 1.098541485 | E51: D | F51: =1-F50 -> 0.495453015 | G51: =1/F51 -> 2.018354859
A52: ТМ 5.5 | B52: 0.9672573757 | C52: 1.033850995
A54: Дома | Q54: =(H56+H57+H83+H84)/2 -> 2.348484848 | S54: Очки команд
C55: Команда | D55: Забито | E55: Пропущено | F55: Игры | H55: Средний | S55: 1К | T55: Дом | V55: =U55/B4 ->  | W55: XP1
B56: Дом | C56: =A2 -> Жарково | D56: =C4 -> 7 | E56: =D4 -> 12 | F56: =B4 -> 10 | H56: =(D56+E57)/(F57+F56) -> 0.8181818182 | S56: 2К | T56: Гости | V56: =U56/B11 ->  | W56: XP2
B57: Гости | C57: =A8 -> Нови Белград | D57: =C10 -> 22 | E57: =D10 -> 11 | F57: =B10 -> 12 | H57: =(D57+E56)/(F56+F57) -> 1.545454545
S58: 1К | T58: Общая | V58: =U58/B3 ->  | W58: XP1
G59: 0 | H59: 1 | I59: 2 | J59: 3 | K59: 4 | L59: 5 | M59: 6 | N59: 7 | O59: 8 | P59: 9 | S59: 2К | T59: Общая | V59: =U59/B9 ->  | W59: XP2
F60: 0 | G60: =POISSON(F60,H56,0)*POISSON(G59,H57,0) -> 0.09407750044 | H60: =POISSON(F60,H56,0)*POISSON(H59,H57,0) -> 0.1453925007 | I60: =POISSON(F60,H56,0)*POISSON(I59,H57,0) -> 0.1123487505 | J60: =POISSON(F60,H56,0)*POISSON(J59,H57,0) -> 0.05787662906 | K60: =POISSON(F60,H56,0)*POISSON(K59,H57,0) -> 0.02236142486 | L60: =POISSON(F60,H56,0)*POISSON(L59,H57,0) -> 0.00691171314 | M60: =POISSON(F60,H56,0)*POISSON(M59,H57,0) -> 0.001780289748 | N60: =POISSON(F60,H56,0)*POISSON(N59,H57,0) -> 0.0003930509833 | O60: =POISSON(F60,H56,0)*POISSON(O59,H57,0) -> 7.59303036e-05 | P60: =POISSON(F60,H56,0)*POISSON(P59,H57,0) -> 1.303853698e-05
A61: ="1" -> 1 | B61: ="X" -> X | C61: ="2" -> 2 | F61: 1 | G61: =POISSON(F61,H56,0)*POISSON(G59,H57,0) -> 0.07697250036 | H61: =POISSON(F61,H56,0)*POISSON(H59,H57,0) -> 0.1189575006 | I61: =POISSON(F61,H56,0)*POISSON(I59,H57,0) -> 0.09192170498 | J61: =POISSON(F61,H56,0)*POISSON(J59,H57,0) -> 0.04735360559 | K61: =POISSON(F61,H56,0)*POISSON(K59,H57,0) -> 0.01829571125 | L61: =POISSON(F61,H56,0)*POISSON(L59,H57,0) -> 0.005655038023 | M61: =POISSON(F61,H56,0)*POISSON(M59,H57,0) -> 0.001456600703 | N61: =POISSON(F61,H56,0)*POISSON(N59,H57,0) -> 0.0003215871682 | O61: =POISSON(F61,H56,0)*POISSON(O59,H57,0) -> 6.212479386e-05 | P61: =POISSON(F61,H56,0)*POISSON(P59,H57,0) -> 1.066789389e-05 | S61: 1К | T61: Форма 5 | V61: =U61/5 ->  | W61: XP1
A62: =SUM(G61:G69,H62:H69,I63:I69,J64:J69,K65:K69,L66:L69,M67:M69,N68:N69,O69) -> 0.1984180126 | B62: =SUM(G60,H61,I62,J63,K64,L65,M66,N67,O68,P69) -> 0.2563619975 | C62: =1-B62-A62 -> 0.5452199898 | F62: 2 | G62: =POISSON(F62,H56,0)*POISSON(G59,H57,0) -> 0.03148875015 | H62: =POISSON(F62,H56,0)*POISSON(H59,H57,0) -> 0.04866443205 | I62: =POISSON(F62,H56,0)*POISSON(I59,H57,0) -> 0.03760433385 | J62: =POISSON(F62,H56,0)*POISSON(J59,H57,0) -> 0.01937192956 | K62: =POISSON(F62,H56,0)*POISSON(K59,H57,0) -> 0.007484609149 | L62: =POISSON(F62,H56,0)*POISSON(L59,H57,0) -> 0.002313424646 | M62: =POISSON(F62,H56,0)*POISSON(M59,H57,0) -> 0.0005958821058 | N62: =POISSON(F62,H56,0)*POISSON(N59,H57,0) -> 0.000131558387 | O62: =POISSON(F62,H56,0)*POISSON(O59,H57,0) -> 2.54146884e-05 | P62: =POISSON(F62,H56,0)*POISSON(P59,H57,0) -> 4.364138411e-06 | S62: 2К | T62: Форма 5 | V62: =U62/5 ->  | W62: XP2
A63: =1/A62 -> 5.039865014 | B63: =1/B62 -> 3.900734156 | C63: =1/C62 -> 1.83412204 | F63: 3 | G63: =POISSON(F63,H56,0)*POISSON(G59,H57,0) -> 0.008587840949 | H63: =POISSON(F63,H56,0)*POISSON(H59,H57,0) -> 0.01327211783 | I63: =POISSON(F63,H56,0)*POISSON(I59,H57,0) -> 0.01025572741 | J63: =POISSON(F63,H56,0)*POISSON(J59,H57,0) -> 0.005283253517 | K63: =POISSON(F63,H56,0)*POISSON(K59,H57,0) -> 0.002041257041 | L63: =POISSON(F63,H56,0)*POISSON(L59,H57,0) -> 0.0006309339943 | M63: =POISSON(F63,H56,0)*POISSON(M59,H57,0) -> 0.0001625133016 | N63: =POISSON(F63,H56,0)*POISSON(N59,H57,0) -> 3.587956009e-05 | O63: =POISSON(F63,H56,0)*POISSON(O59,H57,0) -> 6.931278653e-06 | P63: =POISSON(F63,H56,0)*POISSON(P59,H57,0) -> 1.190219567e-06
F64: 4 | G64: =POISSON(F64,H56,0)*POISSON(G59,H57,0) -> 0.001756603831 | H64: =POISSON(F64,H56,0)*POISSON(H59,H57,0) -> 0.002714751374 | I64: =POISSON(F64,H56,0)*POISSON(I59,H57,0) -> 0.002097762426 | J64: =POISSON(F64,H56,0)*POISSON(J59,H57,0) -> 0.001080665492 | K64: =POISSON(F64,H56,0)*POISSON(K59,H57,0) -> 0.0004175298492 | L64: =POISSON(F64,H56,0)*POISSON(L59,H57,0) -> 0.0001290546807 | M64: =POISSON(F64,H56,0)*POISSON(M59,H57,0) -> 3.324135714e-05 | N64: =POISSON(F64,H56,0)*POISSON(N59,H57,0) -> 7.339000927e-06 | O64: =POISSON(F64,H56,0)*POISSON(O59,H57,0) -> 1.417761543e-06 | P64: =POISSON(F64,H56,0)*POISSON(P59,H57,0) -> 2.434540023e-07
F65: 5 | G65: =POISSON(F65,H56,0)*POISSON(G59,H57,0) -> 0.0002874442632 | H65: =POISSON(F65,H56,0)*POISSON(H59,H57,0) -> 0.0004442320431 | I65: =POISSON(F65,H56,0)*POISSON(I59,H57,0) -> 0.0003432702151 | J65: =POISSON(F65,H56,0)*POISSON(J59,H57,0) -> 0.0001768361714 | K65: =POISSON(F65,H56,0)*POISSON(K59,H57,0) -> 6.832306623e-05 | L65: =POISSON(F65,H56,0)*POISSON(L59,H57,0) -> 2.111803865e-05 | M65: =POISSON(F65,H56,0)*POISSON(M59,H57,0) -> 5.439494805e-06 | N65: =POISSON(F65,H56,0)*POISSON(N59,H57,0) -> 1.200927424e-06 | O65: =POISSON(F65,H56,0)*POISSON(O59,H57,0) -> 2.319973434e-07 | P65: =POISSON(F65,H56,0)*POISSON(P59,H57,0) -> 3.983792765e-08
F66: 6 | G66: =POISSON(F66,H56,0)*POISSON(G59,H57,0) -> 3.919694498e-05 | H66: =POISSON(F66,H56,0)*POISSON(H59,H57,0) -> 6.057709679e-05 | I66: =POISSON(F66,H56,0)*POISSON(I59,H57,0) -> 4.680957479e-05 | J66: =POISSON(F66,H56,0)*POISSON(J59,H57,0) -> 2.411402338e-05 | K66: =POISSON(F66,H56,0)*POISSON(K59,H57,0) -> 9.316781759e-06 | L66: =POISSON(F66,H56,0)*POISSON(L59,H57,0) -> 2.879732544e-06 | M66: =POISSON(F66,H56,0)*POISSON(M59,H57,0) -> 7.417492915e-07 | N66: =POISSON(F66,H56,0)*POISSON(N59,H57,0) -> 1.637628306e-07 | O66: =POISSON(F66,H56,0)*POISSON(O59,H57,0) -> 3.163600137e-08 | P66: =POISSON(F66,H56,0)*POISSON(P59,H57,0) -> 5.432444679e-09
A67: ТБ 0.5 | B67: =SUM(G60:P69)-G60 -> 0.9059171798 | C67: =1/B67 -> 1.103853666 | F67: 7 | G67: =POISSON(F67,H56,0)*POISSON(G59,H57,0) -> 4.581461101e-06 | H67: =POISSON(F67,H56,0)*POISSON(H59,H57,0) -> 7.080439884e-06 | I67: =POISSON(F67,H56,0)*POISSON(I59,H57,0) -> 5.471249001e-06 | J67: =POISSON(F67,H56,0)*POISSON(J59,H57,0) -> 2.818522213e-06 | K67: =POISSON(F67,H56,0)*POISSON(K59,H57,0) -> 1.088974491e-06 | L67: =POISSON(F67,H56,0)*POISSON(L59,H57,0) -> 3.365921155e-07 | M67: =POISSON(F67,H56,0)*POISSON(M59,H57,0) -> 8.669796914e-08 | N67: =POISSON(F67,H56,0)*POISSON(N59,H57,0) -> 1.914111007e-08 | O67: =POISSON(F67,H56,0)*POISSON(O59,H57,0) -> 3.697714445e-09 | P67: =POISSON(F67,H56,0)*POISSON(P59,H57,0) -> 6.349610664e-10
A68: ТБ 1.5 | B68: =SUM(G62:G69,H61:H69,I60:I69,J60:P69) -> 0.6835521787 | C68: =1/B68 -> 1.462946109 | F68: 8 | G68: =POISSON(F68,H56,0)*POISSON(G59,H57,0) -> 4.685585217e-07 | H68: =POISSON(F68,H56,0)*POISSON(H59,H57,0) -> 7.241358972e-07 | I68: =POISSON(F68,H56,0)*POISSON(I59,H57,0) -> 5.595595569e-07 | J68: =POISSON(F68,H56,0)*POISSON(J59,H57,0) -> 2.882579536e-07 | K68: =POISSON(F68,H56,0)*POISSON(K59,H57,0) -> 1.113723912e-07 | L68: =POISSON(F68,H56,0)*POISSON(L59,H57,0) -> 3.442419363e-08 | M68: =POISSON(F68,H56,0)*POISSON(M59,H57,0) -> 8.866837753e-09 | N68: =POISSON(F68,H56,0)*POISSON(N59,H57,0) -> 1.95761353e-09 | O68: =POISSON(F68,H56,0)*POISSON(O59,H57,0) -> 3.78175341e-10 | P68: =POISSON(F68,H56,0)*POISSON(P59,H57,0) -> 6.493919997e-11
A69: ТБ 2.5 | B69: =SUM(G63:G69,H62:H69,I61:I69,J60:P69) -> 0.4207571775 | C69: =1/B69 -> 2.376667716 | F69: 9 | G69: =POISSON(F69,H56,0)*POISSON(G59,H57,0) -> 4.259622925e-08 | H69: =POISSON(F69,H56,0)*POISSON(H59,H57,0) -> 6.583053611e-08 | I69: =POISSON(F69,H56,0)*POISSON(I59,H57,0) -> 5.086905063e-08 | J69: =POISSON(F69,H56,0)*POISSON(J59,H57,0) -> 2.620526851e-08 | K69: =POISSON(F69,H56,0)*POISSON(K59,H57,0) -> 1.012476283e-08 | L69: =POISSON(F69,H56,0)*POISSON(L59,H57,0) -> 3.129472148e-09 | M69: =POISSON(F69,H56,0)*POISSON(M59,H57,0) -> 8.060761594e-10 | N69: =POISSON(F69,H56,0)*POISSON(N59,H57,0) -> 1.779648664e-10 | O69: =POISSON(F69,H56,0)*POISSON(O59,H57,0) -> 3.437957646e-11 | P69: =POISSON(F69,H56,0)*POISSON(P59,H57,0) -> 5.903563634e-12
A70: ТБ 3.5 | B70: =SUM(G64:G69,H63:H69,I62:I69,J61:J69,K60:P69) -> 0.2137065705 | C70: =1/B70 -> 4.679313312
A71: ТБ 4.5 | B71: =SUM(G65:G69,H64:H69,I63:I69,J62:J69,K61:K69,L60:P69) -> 0.0913584845 | C71: 10.94589085
A72: ТБ 5.5 | B72: =SUM(G66:G69,H65:H69,I64:I69,J63:J69,K62:K69,L61:L69,M60:P69) -> 0.03352120749 | C72: 29.83186093
A74: ТМ 0.5 | B74: =1-B67 -> 0.09408282023 | C74: 10.62893308 | E74: ОЗ | F74: =SUM(H61:P69) -> 0.4396264228 | G74: =1/F74 -> 2.274658547
A75: ТМ 1.5 | B75: 0.3164478213 | C75: 3.160078638 | E75: НЕ ОЗ | F75: =1-F74 -> 0.5603735772 | G75: =1/F75 -> 1.784523826
A76: ТМ 2.5 | B76: 0.5792428225 | C76: 1.726391698
A77: ТМ 3.5 | B77: 0.7862934295 | C77: 1.271789846 | E77: P | F77: =SUM(G60,G62,G64,G66,G68,H61,H63,H65,H67,H69,I60,I62,I64,I66,I68,J61,J63,J65,J67,J69,K60,K62,K64,K66,K68,L61,L63,L65,L67,L69)+SUM(M60,M62,M64,M66,M68,N61,N63,N65,N67,N69,O60,O62,O64,O66,O68,P61,P63,P65,P67,P69) -> 0.5044222385 | G77: =1/F77 -> 1.982466124
A78: ТМ 4.5 | B78: 0.9086415155 | C78: 1.100544035 | E78: D | F78: =1-F77 -> 0.4955777615 | G78: =1/F78 -> 2.0178468
A79: ТМ 5.5 | B79: 0.9664787925 | C79: 1.034683852
A81: В гостях
C82: Команда | D82: Забито | E82: Пропущено | F82: Игры | H82: Средний
B83: Дом | C83: =A2 -> Жарково | D83: =C5 -> 14 | E83: =D5 -> 9 | F83: =B5 -> 10 | H83: =(D83+E84)/(F84+F83) -> 1.388888889
B84: Гости | C84: =A8 -> Нови Белград | D84: =C11 -> 8 | E84: =D11 -> 11 | F84: =B11 -> 8 | H84: =(D84+E83)/(F83+F84) -> 0.9444444444
G86: 0 | H86: 1 | I86: 2 | J86: 3 | K86: 4 | L86: 5 | M86: 6 | N86: 7 | O86: 8 | P86: 9
F87: 0 | G87: =POISSON(F87,H83,0)*POISSON(G86,H84,0) -> 0.09697196786 | H87: =POISSON(F87,H83,0)*POISSON(H86,H84,0) -> 0.09158463632 | I87: =POISSON(F87,H83,0)*POISSON(I86,H84,0) -> 0.04324830048 | J87: =POISSON(F87,H83,0)*POISSON(J86,H84,0) -> 0.01361520571 | K87: =POISSON(F87,H83,0)*POISSON(K86,H84,0) -> 0.003214701348 | L87: =POISSON(F87,H83,0)*POISSON(L86,H84,0) -> 0.0006072213657 | M87: =POISSON(F87,H83,0)*POISSON(M86,H84,0) -> 9.558114089e-05 | N87: =POISSON(F87,H83,0)*POISSON(N86,H84,0) -> 1.289586822e-05 | O87: =POISSON(F87,H83,0)*POISSON(O86,H84,0) -> 1.522428887e-06 | P87: =POISSON(F87,H83,0)*POISSON(P86,H84,0) -> 1.59761056e-07
A88: ="1" -> 1 | B88: ="X" -> X | C88: ="2" -> 2 | F88: 1 | G88: =POISSON(F88,H83,0)*POISSON(G86,H84,0) -> 0.1346832887 | H88: =POISSON(F88,H83,0)*POISSON(H86,H84,0) -> 0.1272008838 | I88: =POISSON(F88,H83,0)*POISSON(I86,H84,0) -> 0.060067084 | J88: =POISSON(F88,H83,0)*POISSON(J86,H84,0) -> 0.01891000793 | K88: =POISSON(F88,H83,0)*POISSON(K86,H84,0) -> 0.004464862983 | L88: =POISSON(F88,H83,0)*POISSON(L86,H84,0) -> 0.0008433630079 | M88: =POISSON(F88,H83,0)*POISSON(M86,H84,0) -> 0.0001327515846 | N88: =POISSON(F88,H83,0)*POISSON(N86,H84,0) -> 1.791092808e-05 | O88: =POISSON(F88,H83,0)*POISSON(O86,H84,0) -> 2.114484565e-06 | P88: =POISSON(F88,H83,0)*POISSON(P86,H84,0) -> 2.218903555e-07
A89: =SUM(G88:G96,H89:H96,I90:I96,J91:J96,K92:K96,L93:L96,M94:M96,N95:N96,O96) -> 0.4718916474 | B89: =SUM(G87,H88,I89,J90,K91,L92,M93,N94,O95,P96) -> 0.2724912662 | C89: =1-B89-A89 -> 0.2556170864 | F89: 2 | G89: =POISSON(F89,H83,0)*POISSON(G86,H84,0) -> 0.0935300616 | H89: =POISSON(F89,H83,0)*POISSON(H86,H84,0) -> 0.08833394706 | I89: =POISSON(F89,H83,0)*POISSON(I86,H84,0) -> 0.04171325278 | J89: =POISSON(F89,H83,0)*POISSON(J86,H84,0) -> 0.01313194995 | K89: =POISSON(F89,H83,0)*POISSON(K86,H84,0) -> 0.003100599294 | L89: =POISSON(F89,H83,0)*POISSON(L86,H84,0) -> 0.0005856687555 | M89: =POISSON(F89,H83,0)*POISSON(M86,H84,0) -> 9.21886004e-05 | N89: =POISSON(F89,H83,0)*POISSON(N86,H84,0) -> 1.24381445e-05 | O89: =POISSON(F89,H83,0)*POISSON(O86,H84,0) -> 1.468392059e-06 | P89: =POISSON(F89,H83,0)*POISSON(P86,H84,0) -> 1.540905247e-07
A90: =1/A89 -> 2.119130537 | B90: =1/B89 -> 3.669842391 | C90: =1/C89 -> 3.912101551 | F90: 3 | G90: =POISSON(F90,H83,0)*POISSON(G86,H84,0) -> 0.04330095444 | H90: =POISSON(F90,H83,0)*POISSON(H86,H84,0) -> 0.04089534586 | I90: =POISSON(F90,H83,0)*POISSON(I86,H84,0) -> 0.0193116911 | J90: =POISSON(F90,H83,0)*POISSON(J86,H84,0) -> 0.006079606458 | K90: =POISSON(F90,H83,0)*POISSON(K86,H84,0) -> 0.001435462636 | L90: =POISSON(F90,H83,0)*POISSON(L86,H84,0) -> 0.0002711429423 | M90: =POISSON(F90,H83,0)*POISSON(M86,H84,0) -> 4.267990759e-05 | N90: =POISSON(F90,H83,0)*POISSON(N86,H84,0) -> 5.758400231e-06 | O90: =POISSON(F90,H83,0)*POISSON(O86,H84,0) -> 6.798111383e-07 | P90: =POISSON(F90,H83,0)*POISSON(P86,H84,0) -> 7.133820587e-08
F91: 4 | G91: =POISSON(F91,H83,0)*POISSON(G86,H84,0) -> 0.01503505363 | H91: =POISSON(F91,H83,0)*POISSON(H86,H84,0) -> 0.01419977287 | I91: =POISSON(F91,H83,0)*POISSON(I86,H84,0) -> 0.006705448299 | J91: =POISSON(F91,H83,0)*POISSON(J86,H84,0) -> 0.002110974465 | K91: =POISSON(F91,H83,0)*POISSON(K86,H84,0) -> 0.0004984245264 | L91: =POISSON(F91,H83,0)*POISSON(L86,H84,0) -> 9.414685498e-05 | M91: =POISSON(F91,H83,0)*POISSON(M86,H84,0) -> 1.481941236e-05 | N91: =POISSON(F91,H83,0)*POISSON(N86,H84,0) -> 1.999444524e-06 | O91: =POISSON(F91,H83,0)*POISSON(O86,H84,0) -> 2.360455341e-07 | P91: =POISSON(F91,H83,0)*POISSON(P86,H84,0) -> 2.477021037e-08
F92: 5 | G92: =POISSON(F92,H83,0)*POISSON(G86,H84,0) -> 0.004176403785 | H92: =POISSON(F92,H83,0)*POISSON(H86,H84,0) -> 0.003944381353 | I92: =POISSON(F92,H83,0)*POISSON(I86,H84,0) -> 0.001862624528 | J92: =POISSON(F92,H83,0)*POISSON(J86,H84,0) -> 0.0005863817957 | K92: =POISSON(F92,H83,0)*POISSON(K86,H84,0) -> 0.0001384512573 | L92: =POISSON(F92,H83,0)*POISSON(L86,H84,0) -> 2.615190416e-05 | M92: =POISSON(F92,H83,0)*POISSON(M86,H84,0) -> 4.116503433e-06 | N92: =POISSON(F92,H83,0)*POISSON(N86,H84,0) -> 5.554012568e-07 | O92: =POISSON(F92,H83,0)*POISSON(O86,H84,0) -> 6.556820393e-08 | P92: =POISSON(F92,H83,0)*POISSON(P86,H84,0) -> 6.880613992e-09
F93: 6 | G93: =POISSON(F93,H83,0)*POISSON(G86,H84,0) -> 0.0009667601354 | H93: =POISSON(F93,H83,0)*POISSON(H86,H84,0) -> 0.000913051239 | I93: =POISSON(F93,H83,0)*POISSON(I86,H84,0) -> 0.0004311630851 | J93: =POISSON(F93,H83,0)*POISSON(J86,H84,0) -> 0.0001357365268 | K93: =POISSON(F93,H83,0)*POISSON(K86,H84,0) -> 3.204890216e-05 | L93: =POISSON(F93,H83,0)*POISSON(L86,H84,0) -> 6.053681519e-06 | M93: =POISSON(F93,H83,0)*POISSON(M86,H84,0) -> 9.528943131e-07 | N93: =POISSON(F93,H83,0)*POISSON(N86,H84,0) -> 1.285651057e-07 | O93: =POISSON(F93,H83,0)*POISSON(O86,H84,0) -> 1.517782498e-08 | P93: =POISSON(F93,H83,0)*POISSON(P86,H84,0) -> 1.59273472e-09
A94: ТБ 0.5 | B94: =SUM(G87:P96)-G87 -> 0.9030258689 | C94: =1/B94 -> 1.107387988 | F94: 7 | G94: =POISSON(F94,H83,0)*POISSON(G86,H84,0) -> 0.0001918174872 | H94: =POISSON(F94,H83,0)*POISSON(H86,H84,0) -> 0.0001811609601 | I94: =POISSON(F94,H83,0)*POISSON(I86,H84,0) -> 8.554823117e-05 | J94: =POISSON(F94,H83,0)*POISSON(J86,H84,0) -> 2.693185055e-05 | K94: =POISSON(F94,H83,0)*POISSON(K86,H84,0) -> 6.358909158e-06 | L94: =POISSON(F94,H83,0)*POISSON(L86,H84,0) -> 1.201127285e-06 | M94: =POISSON(F94,H83,0)*POISSON(M86,H84,0) -> 1.89066332e-07 | N94: =POISSON(F94,H83,0)*POISSON(N86,H84,0) -> 2.550894955e-08 | O94: =POISSON(F94,H83,0)*POISSON(O86,H84,0) -> 3.011473211e-09 | P94: =POISSON(F94,H83,0)*POISSON(P86,H84,0) -> 3.160187937e-10
A95: ТБ 1.5 | B95: =SUM(G89:G96,H88:H96,I87:I96,J87:P96) -> 0.6767579439 | C95: =1/B95 -> 1.477633191 | F95: 8 | G95: =POISSON(F95,H83,0)*POISSON(G86,H84,0) -> 3.330164708e-05 | H95: =POISSON(F95,H83,0)*POISSON(H86,H84,0) -> 3.145155558e-05 | I95: =POISSON(F95,H83,0)*POISSON(I86,H84,0) -> 1.485212347e-05 | J95: =POISSON(F95,H83,0)*POISSON(J86,H84,0) -> 4.675668499e-06 | K95: =POISSON(F95,H83,0)*POISSON(K86,H84,0) -> 1.103977284e-06 | L95: =POISSON(F95,H83,0)*POISSON(L86,H84,0) -> 2.085290426e-07 | M95: =POISSON(F95,H83,0)*POISSON(M86,H84,0) -> 3.282401597e-08 | N95: =POISSON(F95,H83,0)*POISSON(N86,H84,0) -> 4.428637075e-09 | O95: =POISSON(F95,H83,0)*POISSON(O86,H84,0) -> 5.228252102e-10 | P95: =POISSON(F95,H83,0)*POISSON(P86,H84,0) -> 5.486437391e-11
A96: ТБ 2.5 | B96: =SUM(G90:G96,H89:H96,I88:I96,J87:P96) -> 0.412778698 | C96: =1/B96 -> 2.422605636 | F96: 9 | G96: =POISSON(F96,H83,0)*POISSON(G86,H84,0) -> 5.139143068e-06 | H96: =POISSON(F96,H83,0)*POISSON(H86,H84,0) -> 4.85363512e-06 | I96: =POISSON(F96,H83,0)*POISSON(I86,H84,0) -> 2.291994362e-06 | J96: =POISSON(F96,H83,0)*POISSON(J86,H84,0) -> 7.215537807e-07 | K96: =POISSON(F96,H83,0)*POISSON(K86,H84,0) -> 1.703668649e-07 | L96: =POISSON(F96,H83,0)*POISSON(L86,H84,0) -> 3.218040781e-08 | M96: =POISSON(F96,H83,0)*POISSON(M86,H84,0) -> 5.065434563e-09 | N96: =POISSON(F96,H83,0)*POISSON(N86,H84,0) -> 6.834316474e-10 | O96: =POISSON(F96,H83,0)*POISSON(O86,H84,0) -> 8.068290281e-11 | P96: =POISSON(F96,H83,0)*POISSON(P86,H84,0) -> 8.466724369e-12
A97: ТБ 3.5 | B97: =SUM(G91:G96,H90:H96,I89:I96,J88:J96,K87:P96) -> 0.2074615068 | C97: =1/B97 -> 4.820171296
A98: ТБ 4.5 | B98: =SUM(G92:G96,H91:H96,I90:I96,J89:J96,K88:K96,L87:P96) -> 0.08769314524 | C98: 11.40339986
A99: ТБ 5.5 | B99: =SUM(G93:G96,H92:H96,I91:I96,J90:J96,K89:K96,L88:L96,M87:P96) -> 0.03180124318 | C99: 31.44531156
A101: ТМ 0.5 | B101: =1-B94 -> 0.09697413113 | C101: 10.31202846 | E101: ОЗ | F101: =SUM(H88:P96) -> 0.4587228639 | G101: =1/F101 -> 2.179965462
A102: ТМ 1.5 | B102: 0.3232420561 | C102: 3.093656846 | E102: НЕ ОЗ | F102: =1-F101 -> 0.5412771361 | G102: =1/F102 -> 1.847482432
A103: ТМ 2.5 | B103: 0.587221302 | C103: 1.702935497
A104: ТМ 3.5 | B104: 0.7925384932 | C104: 1.261768367 | E104: P | F104: =SUM(G87,G89,G91,G93,G95,H88,H90,H92,H94,H96,I87,I89,I91,I93,I95,J88,J90,J92,J94,J96,K87,K89,K91,K93,K95,L88,L90,L92,L94,L96)+SUM(M87,M89,M91,M93,M95,N88,N90,N92,N94,N96,O87,O89,O91,O93,O95,P88,P90,P92,P94,P96) -> 0.5047005748 | G104: =1/F104 -> 1.981372818
A105: ТМ 4.5 | B105: 0.9123068548 | C105: 1.096122423 | E105: D | F105: =1-F104 -> 0.4952994252 | G105: =1/F105 -> 2.01898074
A106: ТМ 5.5 | B106: 0.9681987568 | C106: 1.03284578
A108: Дом/Гости
C109: Команда | D109: Забито | E109: Пропущено | F109: Игры | H109: Средний
B110: Дом | C110: =A2 -> Жарково | D110: =C4 -> 7 | E110: =D4 -> 12 | F110: =B6 -> 5 | H110: =(D110+E111)/(F111+F110) -> 1.3 | I110: =H110+H111 -> 3.7
B111: Гости | C111: =A8 -> Нови Белград | D111: =C12 -> 12 | E111: =D12 -> 6 | F111: =B12 -> 5 | H111: =(D111+E110)/(F110+F111) -> 2.4
G113: 0 | H113: 1 | I113: 2 | J113: 3 | K113: 4 | L113: 5 | M113: 6 | N113: 7 | O113: 8 | P113: 9
F114: 0 | G114: =POISSON(F114,H110,0)*POISSON(G113,H111,0) -> 0.02472352647 | H114: =POISSON(F114,H110,0)*POISSON(H113,H111,0) -> 0.05933646353 | I114: =POISSON(F114,H110,0)*POISSON(I113,H111,0) -> 0.07120375623 | J114: =POISSON(F114,H110,0)*POISSON(J113,H111,0) -> 0.05696300499 | K114: =POISSON(F114,H110,0)*POISSON(K113,H111,0) -> 0.03417780299 | L114: =POISSON(F114,H110,0)*POISSON(L113,H111,0) -> 0.01640534544 | M114: =POISSON(F114,H110,0)*POISSON(M113,H111,0) -> 0.006562138175 | N114: =POISSON(F114,H110,0)*POISSON(N113,H111,0) -> 0.002249875946 | O114: =POISSON(F114,H110,0)*POISSON(O113,H111,0) -> 0.0006749627837 | P114: =POISSON(F114,H110,0)*POISSON(P113,H111,0) -> 0.0001799900756
A115: ="1" -> 1 | B115: ="X" -> X | C115: ="2" -> 2 | F115: 1 | G115: =POISSON(F115,H110,0)*POISSON(G113,H111,0) -> 0.03214058441 | H115: =POISSON(F115,H110,0)*POISSON(H113,H111,0) -> 0.07713740259 | I115: =POISSON(F115,H110,0)*POISSON(I113,H111,0) -> 0.0925648831 | J115: =POISSON(F115,H110,0)*POISSON(J113,H111,0) -> 0.07405190648 | K115: =POISSON(F115,H110,0)*POISSON(K113,H111,0) -> 0.04443114389 | L115: =POISSON(F115,H110,0)*POISSON(L113,H111,0) -> 0.02132694907 | M115: =POISSON(F115,H110,0)*POISSON(M113,H111,0) -> 0.008530779627 | N115: =POISSON(F115,H110,0)*POISSON(N113,H111,0) -> 0.002924838729 | O115: =POISSON(F115,H110,0)*POISSON(O113,H111,0) -> 0.0008774516188 | P115: =POISSON(F115,H110,0)*POISSON(P113,H111,0) -> 0.0002339870983
A116: =SUM(G115:G123,H116:H123,I117:I123,J118:J123,K119:K123,L120:L123,M121:M123,N122:N123,O123) -> 0.1950637088 | B116: =SUM(G114,H115,I116,J117,K118,L119,M120,N121,O122,P123) -> 0.1875078917 | C116: =1-B116-A116 -> 0.6174283995 | F116: 2 | G116: =POISSON(F116,H110,0)*POISSON(G113,H111,0) -> 0.02089137987 | H116: =POISSON(F116,H110,0)*POISSON(H113,H111,0) -> 0.05013931168 | I116: =POISSON(F116,H110,0)*POISSON(I113,H111,0) -> 0.06016717402 | J116: =POISSON(F116,H110,0)*POISSON(J113,H111,0) -> 0.04813373921 | K116: =POISSON(F116,H110,0)*POISSON(K113,H111,0) -> 0.02888024353 | L116: =POISSON(F116,H110,0)*POISSON(L113,H111,0) -> 0.01386251689 | M116: =POISSON(F116,H110,0)*POISSON(M113,H111,0) -> 0.005545006758 | N116: =POISSON(F116,H110,0)*POISSON(N113,H111,0) -> 0.001901145174 | O116: =POISSON(F116,H110,0)*POISSON(O113,H111,0) -> 0.0005703435522 | P116: =POISSON(F116,H110,0)*POISSON(P113,H111,0) -> 0.0001520916139
A117: =1/A116 -> 5.12653023 | B117: =1/B116 -> 5.333108867 | C117: =1/C116 -> 1.619620997 | F117: 3 | G117: =POISSON(F117,H110,0)*POISSON(G113,H111,0) -> 0.009052931276 | H117: =POISSON(F117,H110,0)*POISSON(H113,H111,0) -> 0.02172703506 | I117: =POISSON(F117,H110,0)*POISSON(I113,H111,0) -> 0.02607244207 | J117: =POISSON(F117,H110,0)*POISSON(J113,H111,0) -> 0.02085795366 | K117: =POISSON(F117,H110,0)*POISSON(K113,H111,0) -> 0.0125147722 | L117: =POISSON(F117,H110,0)*POISSON(L113,H111,0) -> 0.006007090654 | M117: =POISSON(F117,H110,0)*POISSON(M113,H111,0) -> 0.002402836262 | N117: =POISSON(F117,H110,0)*POISSON(N113,H111,0) -> 0.0008238295754 | O117: =POISSON(F117,H110,0)*POISSON(O113,H111,0) -> 0.0002471488726 | P117: =POISSON(F117,H110,0)*POISSON(P113,H111,0) -> 6.590636603e-05
F118: 4 | G118: =POISSON(F118,H110,0)*POISSON(G113,H111,0) -> 0.002942202665 | H118: =POISSON(F118,H110,0)*POISSON(H113,H111,0) -> 0.007061286395 | I118: =POISSON(F118,H110,0)*POISSON(I113,H111,0) -> 0.008473543674 | J118: =POISSON(F118,H110,0)*POISSON(J113,H111,0) -> 0.006778834939 | K118: =POISSON(F118,H110,0)*POISSON(K113,H111,0) -> 0.004067300964 | L118: =POISSON(F118,H110,0)*POISSON(L113,H111,0) -> 0.001952304463 | M118: =POISSON(F118,H110,0)*POISSON(M113,H111,0) -> 0.000780921785 | N118: =POISSON(F118,H110,0)*POISSON(N113,H111,0) -> 0.000267744612 | O118: =POISSON(F118,H110,0)*POISSON(O113,H111,0) -> 8.03233836e-05 | P118: =POISSON(F118,H110,0)*POISSON(P113,H111,0) -> 2.141956896e-05
F119: 5 | G119: =POISSON(F119,H110,0)*POISSON(G113,H111,0) -> 0.0007649726928 | H119: =POISSON(F119,H110,0)*POISSON(H113,H111,0) -> 0.001835934463 | I119: =POISSON(F119,H110,0)*POISSON(I113,H111,0) -> 0.002203121355 | J119: =POISSON(F119,H110,0)*POISSON(J113,H111,0) -> 0.001762497084 | K119: =POISSON(F119,H110,0)*POISSON(K113,H111,0) -> 0.001057498251 | L119: =POISSON(F119,H110,0)*POISSON(L113,H111,0) -> 0.0005075991603 | M119: =POISSON(F119,H110,0)*POISSON(M113,H111,0) -> 0.0002030396641 | N119: =POISSON(F119,H110,0)*POISSON(N113,H111,0) -> 6.961359912e-05 | O119: =POISSON(F119,H110,0)*POISSON(O113,H111,0) -> 2.088407974e-05 | P119: =POISSON(F119,H110,0)*POISSON(P113,H111,0) -> 5.56908793e-06
F120: 6 | G120: =POISSON(F120,H110,0)*POISSON(G113,H111,0) -> 0.0001657440834 | H120: =POISSON(F120,H110,0)*POISSON(H113,H111,0) -> 0.0003977858003 | I120: =POISSON(F120,H110,0)*POISSON(I113,H111,0) -> 0.0004773429603 | J120: =POISSON(F120,H110,0)*POISSON(J113,H111,0) -> 0.0003818743683 | K120: =POISSON(F120,H110,0)*POISSON(K113,H111,0) -> 0.000229124621 | L120: =POISSON(F120,H110,0)*POISSON(L113,H111,0) -> 0.0001099798181 | M120: =POISSON(F120,H110,0)*POISSON(M113,H111,0) -> 4.399192722e-05 | N120: =POISSON(F120,H110,0)*POISSON(N113,H111,0) -> 1.508294648e-05 | O120: =POISSON(F120,H110,0)*POISSON(O113,H111,0) -> 4.524883943e-06 | P120: =POISSON(F120,H110,0)*POISSON(P113,H111,0) -> 1.206635718e-06
A121: ТБ 0.5 | B121: =SUM(G114:P123)-G114 -> 0.9750737601 | C121: =1/B121 -> 1.02556344 | F121: 7 | G121: =POISSON(F121,H110,0)*POISSON(G113,H111,0) -> 3.078104407e-05 | H121: =POISSON(F121,H110,0)*POISSON(H113,H111,0) -> 7.387450576e-05 | I121: =POISSON(F121,H110,0)*POISSON(I113,H111,0) -> 8.864940692e-05 | J121: =POISSON(F121,H110,0)*POISSON(J113,H111,0) -> 7.091952553e-05 | K121: =POISSON(F121,H110,0)*POISSON(K113,H111,0) -> 4.255171532e-05 | L121: =POISSON(F121,H110,0)*POISSON(L113,H111,0) -> 2.042482335e-05 | M121: =POISSON(F121,H110,0)*POISSON(M113,H111,0) -> 8.169929341e-06 | N121: =POISSON(F121,H110,0)*POISSON(N113,H111,0) -> 2.801118631e-06 | O121: =POISSON(F121,H110,0)*POISSON(O113,H111,0) -> 8.403355894e-07 | P121: =POISSON(F121,H110,0)*POISSON(P113,H111,0) -> 2.240894905e-07
A122: ТБ 1.5 | B122: =SUM(G116:G123,H115:H123,I114:I123,J114:P123) -> 0.8835967121 | C122: =1/B122 -> 1.131738027 | F122: 8 | G122: =POISSON(F122,H110,0)*POISSON(G113,H111,0) -> 5.001919661e-06 | H122: =POISSON(F122,H110,0)*POISSON(H113,H111,0) -> 1.200460719e-05 | I122: =POISSON(F122,H110,0)*POISSON(I113,H111,0) -> 1.440552862e-05 | J122: =POISSON(F122,H110,0)*POISSON(J113,H111,0) -> 1.15244229e-05 | K122: =POISSON(F122,H110,0)*POISSON(K113,H111,0) -> 6.914653739e-06 | L122: =POISSON(F122,H110,0)*POISSON(L113,H111,0) -> 3.319033795e-06 | M122: =POISSON(F122,H110,0)*POISSON(M113,H111,0) -> 1.327613518e-06 | N122: =POISSON(F122,H110,0)*POISSON(N113,H111,0) -> 4.551817776e-07 | O122: =POISSON(F122,H110,0)*POISSON(O113,H111,0) -> 1.365545333e-07 | P122: =POISSON(F122,H110,0)*POISSON(P113,H111,0) -> 3.641454221e-08
A123: ТБ 2.5 | B123: =SUM(G117:G123,H116:H123,I115:I123,J114:P123) -> 0.7143641734 | C123: =1/B123 -> 1.399846237 | F123: 9 | G123: =POISSON(F123,H110,0)*POISSON(G113,H111,0) -> 7.224995066e-07 | H123: =POISSON(F123,H110,0)*POISSON(H113,H111,0) -> 1.733998816e-06 | I123: =POISSON(F123,H110,0)*POISSON(I113,H111,0) -> 2.080798579e-06 | J123: =POISSON(F123,H110,0)*POISSON(J113,H111,0) -> 1.664638863e-06 | K123: =POISSON(F123,H110,0)*POISSON(K113,H111,0) -> 9.987833179e-07 | L123: =POISSON(F123,H110,0)*POISSON(L113,H111,0) -> 4.794159926e-07 | M123: =POISSON(F123,H110,0)*POISSON(M113,H111,0) -> 1.91766397e-07 | N123: =POISSON(F123,H110,0)*POISSON(N113,H111,0) -> 6.574847899e-08 | O123: =POISSON(F123,H110,0)*POISSON(O113,H111,0) -> 1.97245437e-08 | P123: =POISSON(F123,H110,0)*POISSON(P113,H111,0) -> 5.259878319e-09
A124: ТБ 3.5 | B124: =SUM(G118:G123,H117:H123,I116:I123,J115:J123,K114:P123) -> 0.5056440424 | C124: =1/B124 -> 1.977675828
A125: ТБ 4.5 | B125: =SUM(G119:G123,H118:H123,I117:I123,J116:J123,K115:K123,L114:P123) -> 0.3125779212 | C125: 3.199202286
A126: ТБ 5.5 | B126: =SUM(G120:G123,H119:H123,I118:I123,J117:J123,K116:K123,L115:L123,M114:P123) -> 0.1697089915 | C126: 5.892439707
A128: ТМ 0.5 | B128: =1-B121 -> 0.02492623993 | C128: 40.11836533 | E128: ОЗ | F128: =SUM(H115:P123) -> 0.6613260994 | G128: =1/F128 -> 1.512113314
A129: ТМ 1.5 | B129: 0.1164032879 | C129: 8.590822633 | E129: НЕ ОЗ | F129: =1-F128 -> 0.3386739006 | G129: =1/F129 -> 2.952692836
A130: ТМ 2.5 | B130: 0.2856358266 | C130: 3.500961389
A131: ТМ 3.5 | B131: 0.4943559576 | C131: 2.022833921 | E131: P | F131: =SUM(G114,G116,G118,G120,G122,H115,H117,H119,H121,H123,I114,I116,I118,I120,I122,J115,J117,J119,J121,J123,K114,K116,K118,K120,K122,L115,L117,L119,L121,L123)+SUM(M114,M116,M118,M120,M122,N115,N117,N119,N121,N123,O114,O116,O118,O120,O122,P115,P117,P119,P121,P123) -> 0.5001994474 | G131: =1/F131 -> 1.999202529
A132: ТМ 4.5 | B132: 0.6874220788 | C132: 1.454710331 | E132: D | F132: =1-F131 -> 0.4998005526 | G132: =1/F132 -> 2.000798108
A133: ТМ 5.5 | B133: 0.8302910085 | C133: 1.204397
A135: Форма
C136: Команда | D136: Забито | E136: Пропущено | F136: Игры | H136: Средний
B137: Дом | C137: =C110 -> Жарково | D137: =C6 -> 4 | E137: =D6 -> 5 | F137: =B6 -> 5 | H137: =(D137+E138)/(F138+F137) -> 1
B138: Гости | C138: =C111 -> Нови Белград | D138: =C12 -> 12 | E138: =D12 -> 6 | F138: =B12 -> 5 | H138: =(D138+E137)/(F137+F138) -> 1.7
G140: 0 | H140: 1 | I140: 2 | J140: 3 | K140: 4 | L140: 5 | M140: 6 | N140: 7 | O140: 8 | P140: 9
F141: 0 | G141: =POISSON(F141,H137,0)*POISSON(G140,H138,0) -> 0.06720551274 | H141: =POISSON(F141,H137,0)*POISSON(H140,H138,0) -> 0.1142493717 | I141: =POISSON(F141,H137,0)*POISSON(I140,H138,0) -> 0.09711196591 | J141: =POISSON(F141,H137,0)*POISSON(J140,H138,0) -> 0.05503011402 | K141: =POISSON(F141,H137,0)*POISSON(K140,H138,0) -> 0.02338779846 | L141: =POISSON(F141,H137,0)*POISSON(L140,H138,0) -> 0.007951851475 | M141: =POISSON(F141,H137,0)*POISSON(M140,H138,0) -> 0.002253024585 | N141: =POISSON(F141,H137,0)*POISSON(N140,H138,0) -> 0.0005471631134 | O141: =POISSON(F141,H137,0)*POISSON(O140,H138,0) -> 0.0001162721616 | P141: =POISSON(F141,H137,0)*POISSON(P140,H138,0) -> 2.196251941e-05
A142: ="1" -> 1 | B142: ="X" -> X | C142: ="2" -> 2 | F142: 1 | G142: =POISSON(F142,H137,0)*POISSON(G140,H138,0) -> 0.06720551274 | H142: =POISSON(F142,H137,0)*POISSON(H140,H138,0) -> 0.1142493717 | I142: =POISSON(F142,H137,0)*POISSON(I140,H138,0) -> 0.09711196591 | J142: =POISSON(F142,H137,0)*POISSON(J140,H138,0) -> 0.05503011402 | K142: =POISSON(F142,H137,0)*POISSON(K140,H138,0) -> 0.02338779846 | L142: =POISSON(F142,H137,0)*POISSON(L140,H138,0) -> 0.007951851475 | M142: =POISSON(F142,H137,0)*POISSON(M140,H138,0) -> 0.002253024585 | N142: =POISSON(F142,H137,0)*POISSON(N140,H138,0) -> 0.0005471631134 | O142: =POISSON(F142,H137,0)*POISSON(O140,H138,0) -> 0.0001162721616 | P142: =POISSON(F142,H137,0)*POISSON(P140,H138,0) -> 2.196251941e-05
A143: =SUM(G142:G150,H143:H150,I144:I150,J145:J150,K146:K150,L147:L150,M148:M150,N149:N150,O150) -> 0.2218253555 | B143: =SUM(G141,H142,I143,J144,K145,L146,M147,N148,O149,P150) -> 0.2402265508 | C143: =1-B143-A143 -> 0.5379480937 | F143: 2 | G143: =POISSON(F143,H137,0)*POISSON(G140,H138,0) -> 0.03360275637 | H143: =POISSON(F143,H137,0)*POISSON(H140,H138,0) -> 0.05712468583 | I143: =POISSON(F143,H137,0)*POISSON(I140,H138,0) -> 0.04855598295 | J143: =POISSON(F143,H137,0)*POISSON(J140,H138,0) -> 0.02751505701 | K143: =POISSON(F143,H137,0)*POISSON(K140,H138,0) -> 0.01169389923 | L143: =POISSON(F143,H137,0)*POISSON(L140,H138,0) -> 0.003975925738 | M143: =POISSON(F143,H137,0)*POISSON(M140,H138,0) -> 0.001126512292 | N143: =POISSON(F143,H137,0)*POISSON(N140,H138,0) -> 0.0002735815567 | O143: =POISSON(F143,H137,0)*POISSON(O140,H138,0) -> 5.81360808e-05 | P143: =POISSON(F143,H137,0)*POISSON(P140,H138,0) -> 1.098125971e-05
A144: =1/A143 -> 4.508050929 | B144: =1/B143 -> 4.162737203 | C144: =1/C143 -> 1.858915408 | F144: 3 | G144: =POISSON(F144,H137,0)*POISSON(G140,H138,0) -> 0.01120091879 | H144: =POISSON(F144,H137,0)*POISSON(H140,H138,0) -> 0.01904156194 | I144: =POISSON(F144,H137,0)*POISSON(I140,H138,0) -> 0.01618532765 | J144: =POISSON(F144,H137,0)*POISSON(J140,H138,0) -> 0.009171685669 | K144: =POISSON(F144,H137,0)*POISSON(K140,H138,0) -> 0.003897966409 | L144: =POISSON(F144,H137,0)*POISSON(L140,H138,0) -> 0.001325308579 | M144: =POISSON(F144,H137,0)*POISSON(M140,H138,0) -> 0.0003755040974 | N144: =POISSON(F144,H137,0)*POISSON(N140,H138,0) -> 9.119385224e-05 | O144: =POISSON(F144,H137,0)*POISSON(O140,H138,0) -> 1.93786936e-05 | P144: =POISSON(F144,H137,0)*POISSON(P140,H138,0) -> 3.660419902e-06
F145: 4 | G145: =POISSON(F145,H137,0)*POISSON(G140,H138,0) -> 0.002800229697 | H145: =POISSON(F145,H137,0)*POISSON(H140,H138,0) -> 0.004760390486 | I145: =POISSON(F145,H137,0)*POISSON(I140,H138,0) -> 0.004046331913 | J145: =POISSON(F145,H137,0)*POISSON(J140,H138,0) -> 0.002292921417 | K145: =POISSON(F145,H137,0)*POISSON(K140,H138,0) -> 0.0009744916024 | L145: =POISSON(F145,H137,0)*POISSON(L140,H138,0) -> 0.0003313271448 | M145: =POISSON(F145,H137,0)*POISSON(M140,H138,0) -> 9.387602436e-05 | N145: =POISSON(F145,H137,0)*POISSON(N140,H138,0) -> 2.279846306e-05 | O145: =POISSON(F145,H137,0)*POISSON(O140,H138,0) -> 4.8446734e-06 | P145: =POISSON(F145,H137,0)*POISSON(P140,H138,0) -> 9.151049756e-07
F146: 5 | G146: =POISSON(F146,H137,0)*POISSON(G140,H138,0) -> 0.0005600459395 | H146: =POISSON(F146,H137,0)*POISSON(H140,H138,0) -> 0.0009520780971 | I146: =POISSON(F146,H137,0)*POISSON(I140,H138,0) -> 0.0008092663826 | J146: =POISSON(F146,H137,0)*POISSON(J140,H138,0) -> 0.0004585842835 | K146: =POISSON(F146,H137,0)*POISSON(K140,H138,0) -> 0.0001948983205 | L146: =POISSON(F146,H137,0)*POISSON(L140,H138,0) -> 6.626542896e-05 | M146: =POISSON(F146,H137,0)*POISSON(M140,H138,0) -> 1.877520487e-05 | N146: =POISSON(F146,H137,0)*POISSON(N140,H138,0) -> 4.559692612e-06 | O146: =POISSON(F146,H137,0)*POISSON(O140,H138,0) -> 9.6893468e-07 | P146: =POISSON(F146,H137,0)*POISSON(P140,H138,0) -> 1.830209951e-07
F147: 6 | G147: =POISSON(F147,H137,0)*POISSON(G140,H138,0) -> 9.334098992e-05 | H147: =POISSON(F147,H137,0)*POISSON(H140,H138,0) -> 0.0001586796829 | I147: =POISSON(F147,H137,0)*POISSON(I140,H138,0) -> 0.0001348777304 | J147: =POISSON(F147,H137,0)*POISSON(J140,H138,0) -> 7.643071391e-05 | K147: =POISSON(F147,H137,0)*POISSON(K140,H138,0) -> 3.248305341e-05 | L147: =POISSON(F147,H137,0)*POISSON(L140,H138,0) -> 1.104423816e-05 | M147: =POISSON(F147,H137,0)*POISSON(M140,H138,0) -> 3.129200812e-06 | N147: =POISSON(F147,H137,0)*POISSON(N140,H138,0) -> 7.599487686e-07 | O147: =POISSON(F147,H137,0)*POISSON(O140,H138,0) -> 1.614891133e-07 | P147: =POISSON(F147,H137,0)*POISSON(P140,H138,0) -> 3.050349919e-08
A148: ТБ 0.5 | B148: =SUM(G141:P150)-G141 -> 0.9327824031 | C148: =1/B148 -> 1.07206139 | F148: 7 | G148: =POISSON(F148,H137,0)*POISSON(G140,H138,0) -> 1.333442713e-05 | H148: =POISSON(F148,H137,0)*POISSON(H140,H138,0) -> 2.266852612e-05 | I148: =POISSON(F148,H137,0)*POISSON(I140,H138,0) -> 1.92682472e-05 | J148: =POISSON(F148,H137,0)*POISSON(J140,H138,0) -> 1.091867342e-05 | K148: =POISSON(F148,H137,0)*POISSON(K140,H138,0) -> 4.640436202e-06 | L148: =POISSON(F148,H137,0)*POISSON(L140,H138,0) -> 1.577748309e-06 | M148: =POISSON(F148,H137,0)*POISSON(M140,H138,0) -> 4.470286874e-07 | N148: =POISSON(F148,H137,0)*POISSON(N140,H138,0) -> 1.085641098e-07 | O148: =POISSON(F148,H137,0)*POISSON(O140,H138,0) -> 2.306987333e-08 | P148: =POISSON(F148,H137,0)*POISSON(P140,H138,0) -> 4.357642741e-09
A149: ТБ 1.5 | B149: =SUM(G143:G150,H142:H150,I141:I150,J141:P150) -> 0.7513275187 | C149: 1.33097747 | F149: 8 | G149: =POISSON(F149,H137,0)*POISSON(G140,H138,0) -> 1.666803391e-06 | H149: =POISSON(F149,H137,0)*POISSON(H140,H138,0) -> 2.833565765e-06 | I149: =POISSON(F149,H137,0)*POISSON(I140,H138,0) -> 2.408530901e-06 | J149: =POISSON(F149,H137,0)*POISSON(J140,H138,0) -> 1.364834177e-06 | K149: =POISSON(F149,H137,0)*POISSON(K140,H138,0) -> 5.800545252e-07 | L149: =POISSON(F149,H137,0)*POISSON(L140,H138,0) -> 1.972185386e-07 | M149: =POISSON(F149,H137,0)*POISSON(M140,H138,0) -> 5.587858593e-08 | N149: =POISSON(F149,H137,0)*POISSON(N140,H138,0) -> 1.357051373e-08 | O149: =POISSON(F149,H137,0)*POISSON(O140,H138,0) -> 2.883734167e-09 | P149: =POISSON(F149,H137,0)*POISSON(P140,H138,0) -> 5.447053426e-10
A150: ТБ 2.5 | B150: =SUM(G144:G150,H143:H150,I142:I150,J141:P150) -> 0.5063634247 | C150: 1.974866176 | F150: 9 | G150: =POISSON(F150,H137,0)*POISSON(G140,H138,0) -> 1.852003768e-07 | H150: =POISSON(F150,H137,0)*POISSON(H140,H138,0) -> 3.148406406e-07 | I150: =POISSON(F150,H137,0)*POISSON(I140,H138,0) -> 2.676145445e-07 | J150: =POISSON(F150,H137,0)*POISSON(J140,H138,0) -> 1.516482419e-07 | K150: =POISSON(F150,H137,0)*POISSON(K140,H138,0) -> 6.44505028e-08 | L150: =POISSON(F150,H137,0)*POISSON(L140,H138,0) -> 2.191317095e-08 | M150: =POISSON(F150,H137,0)*POISSON(M140,H138,0) -> 6.20873177e-09 | N150: =POISSON(F150,H137,0)*POISSON(N140,H138,0) -> 1.507834858e-09 | O150: =POISSON(F150,H137,0)*POISSON(O140,H138,0) -> 3.204149074e-10 | P150: =POISSON(F150,H137,0)*POISSON(P140,H138,0) -> 6.052281584e-11
A151: ТБ 3.5 | B151: =SUM(G145:G150,H144:H150,I143:I150,J142:J150,K141:P150) -> 0.2858957402 | C151: 3.497778594
A152: ТБ 4.5 | B152: =SUM(G146:G150,H145:H150,I144:I150,J143:J150,K142:K150,L141:P150) -> 0.1370800531 | C152: 7.295007386
A153: ТБ 5.5 | B153: =SUM(G147:G150,H146:H150,I145:I150,J144:J150,K143:K150,L142:L150,M141:P150) -> 0.0567195821 | C153: 17.63059534
A155: ТМ 0.5 | B155: =1-B148 -> 0.06721759694 | C155: =1/B155 -> 14.87705669 | E155: ОЗ | F155: =SUM(H142:P150) -> 0.5166348882 | G155: =1/F155 -> 1.935602924
A156: ТМ 1.5 | B156: 0.2486724813 | C156: 4.021353688 | E156: НЕ ОЗ | F156: =1-F155 -> 0.4833651118 | G156: =1/F156 -> 2.068829495
A157: ТМ 2.5 | B157: 0.4936365753 | C157: 2.02578182
A158: ТМ 3.5 | B158: 0.7141042598 | C158: 1.400355741 | E158: P | F158: =SUM(G141,G143,G145,G147,G149,H142,H144,H146,H148,H150,I141,I143,I145,I147,I149,J142,J144,J146,J148,J150,K141,K143,K145,K147,K149,L142,L144,L146,L148,L150)+SUM(M141,M143,M145,M147,M149,N142,N144,N146,N148,N150,O141,O143,O145,O147,O149,P142,P144,P146,P148,P150) -> 0.5022516529 | G158: =1/F158 -> 1.991033766
A159: ТМ 4.5 | B159: 0.8629199469 | C159: 1.158856049 | E159: D | F159: =1-F158 -> 0.4977483471 | G159: =1/F159 -> 2.009047355
A160: ТМ 5.5 | B160: 0.9432804179 | C160: 1.060130138
A162: Побед Дома\выезд
C163: Команда | D163: Победы | E163: Порожения | F163: Игры | H163: Средний
B164: Дом | C164: =A2 -> Жарково | D164: =AD16 -> 2 | E164: =AH16 -> 5 | F164: =B4 -> 10 | H164: =(D164+E165)/(F165+F164) -> 0.2222222222
B165: Гости | C165: =A8 -> Нови Белград | D165: =AD18 -> 2 | E165: =AH18 -> 2 | F165: =B11 -> 8 | H165: =(D165+E164)/(F164+F165) -> 0.3888888889
G167: 0 | H167: 1 | I167: 2 | J167: 3 | K167: 4 | L167: 5 | M167: 6 | N167: 7 | O167: 8 | P167: 9
F168: 0 | G168: =POISSON(F168,H164,0)*POISSON(G167,H165,0) -> 0.5427474812 | H168: =POISSON(F168,H164,0)*POISSON(H167,H165,0) -> 0.2110684649 | I168: =POISSON(F168,H164,0)*POISSON(I167,H165,0) -> 0.0410410904 | J168: =POISSON(F168,H164,0)*POISSON(J167,H165,0) -> 0.005320141348 | K168: =POISSON(F168,H164,0)*POISSON(K167,H165,0) -> 0.0005172359644 | L168: =POISSON(F168,H164,0)*POISSON(L167,H165,0) -> 4.022946389e-05 | M168: =POISSON(F168,H164,0)*POISSON(M167,H165,0) -> 2.607465252e-06 | N168: =POISSON(F168,H164,0)*POISSON(N167,H165,0) -> 1.448591807e-07 | O168: =POISSON(F168,H164,0)*POISSON(O167,H165,0) -> 7.041765728e-09 | P168: =POISSON(F168,H164,0)*POISSON(P167,H165,0) -> 3.042738278e-10
A169: ="1" -> 1 | B169: ="X" -> X | C169: ="2" -> 2 | F169: 1 | G169: =POISSON(F169,H164,0)*POISSON(G167,H165,0) -> 0.1206105514 | H169: =POISSON(F169,H164,0)*POISSON(H167,H165,0) -> 0.04690410331 | I169: =POISSON(F169,H164,0)*POISSON(I167,H165,0) -> 0.00912024231 | J169: =POISSON(F169,H164,0)*POISSON(J167,H165,0) -> 0.001182253633 | K169: =POISSON(F169,H164,0)*POISSON(K167,H165,0) -> 0.0001149413254 | L169: =POISSON(F169,H164,0)*POISSON(L167,H165,0) -> 8.939880866e-06 | M169: =POISSON(F169,H164,0)*POISSON(M167,H165,0) -> 5.794367228e-07 | N169: =POISSON(F169,H164,0)*POISSON(N167,H165,0) -> 3.219092904e-08 | O169: =POISSON(F169,H164,0)*POISSON(O167,H165,0) -> 1.564836828e-09 | P169: =POISSON(F169,H164,0)*POISSON(P167,H165,0) -> 6.761640617e-11
A170: =SUM(G169:G177,H170:H177,I171:I177,J172:J177,K173:K177,L174:L177,M175:M177,N176:N177,O177) -> 0.1407621366 | B170: =SUM(G168,H169,I170,J171,K172,L173,M174,N175,O176,P177) -> 0.590674728 | C170: =1-B170-A170 -> 0.2685631354 | F170: 2 | G170: =POISSON(F170,H164,0)*POISSON(G167,H165,0) -> 0.01340117237 | H170: =POISSON(F170,H164,0)*POISSON(H167,H165,0) -> 0.005211567034 | I170: =POISSON(F170,H164,0)*POISSON(I167,H165,0) -> 0.001013360257 | J170: =POISSON(F170,H164,0)*POISSON(J167,H165,0) -> 0.0001313615148 | K170: =POISSON(F170,H164,0)*POISSON(K167,H165,0) -> 1.277125838e-05 | L170: =POISSON(F170,H164,0)*POISSON(L167,H165,0) -> 9.933200962e-07 | M170: =POISSON(F170,H164,0)*POISSON(M167,H165,0) -> 6.438185808e-08 | N170: =POISSON(F170,H164,0)*POISSON(N167,H165,0) -> 3.576769894e-09 | O170: =POISSON(F170,H164,0)*POISSON(O167,H165,0) -> 1.738707587e-10 | P170: =POISSON(F170,H164,0)*POISSON(P167,H165,0) -> 7.512934019e-12
A171: =1/A170 -> 7.104183156 | B171: =1/B170 -> 1.692979152 | C171: =1/C170 -> 3.723519233 | F171: 3 | G171: =POISSON(F171,H164,0)*POISSON(G167,H165,0) -> 0.0009926794351 | H171: =POISSON(F171,H164,0)*POISSON(H167,H165,0) -> 0.0003860420026 | I171: =POISSON(F171,H164,0)*POISSON(I167,H165,0) -> 7.506372272e-05 | J171: =POISSON(F171,H164,0)*POISSON(J167,H165,0) -> 9.730482575e-06 | K171: =POISSON(F171,H164,0)*POISSON(K167,H165,0) -> 9.460191392e-07 | L171: =POISSON(F171,H164,0)*POISSON(L167,H165,0) -> 7.357926638e-08 | M171: =POISSON(F171,H164,0)*POISSON(M167,H165,0) -> 4.769026525e-09 | N171: =POISSON(F171,H164,0)*POISSON(N167,H165,0) -> 2.64945918e-10 | O171: =POISSON(F171,H164,0)*POISSON(O167,H165,0) -> 1.287931546e-11 | P171: =POISSON(F171,H164,0)*POISSON(P167,H165,0) -> 5.56513631e-13
F172: 4 | G172: =POISSON(F172,H164,0)*POISSON(G167,H165,0) -> 5.514885751e-05 | H172: =POISSON(F172,H164,0)*POISSON(H167,H165,0) -> 2.144677792e-05 | I172: =POISSON(F172,H164,0)*POISSON(I167,H165,0) -> 4.170206818e-06 | J172: =POISSON(F172,H164,0)*POISSON(J167,H165,0) -> 5.405823653e-07 | K172: =POISSON(F172,H164,0)*POISSON(K167,H165,0) -> 5.255661884e-08 | L172: =POISSON(F172,H164,0)*POISSON(L167,H165,0) -> 4.087737021e-09 | M172: =POISSON(F172,H164,0)*POISSON(M167,H165,0) -> 2.64945918e-10 | N172: =POISSON(F172,H164,0)*POISSON(N167,H165,0) -> 1.471921767e-11 | O172: =POISSON(F172,H164,0)*POISSON(O167,H165,0) -> 7.155175256e-13 | P172: =POISSON(F172,H164,0)*POISSON(P167,H165,0) -> 3.091742395e-14
F173: 5 | G173: =POISSON(F173,H164,0)*POISSON(G167,H165,0) -> 2.451060334e-06 | H173: =POISSON(F173,H164,0)*POISSON(H167,H165,0) -> 9.531901298e-07 | I173: =POISSON(F173,H164,0)*POISSON(I167,H165,0) -> 1.853425252e-07 | J173: =POISSON(F173,H164,0)*POISSON(J167,H165,0) -> 2.40258829e-08 | K173: =POISSON(F173,H164,0)*POISSON(K167,H165,0) -> 2.335849726e-09 | L173: =POISSON(F173,H164,0)*POISSON(L167,H165,0) -> 1.816772009e-10 | M173: =POISSON(F173,H164,0)*POISSON(M167,H165,0) -> 1.177537414e-11 | N173: =POISSON(F173,H164,0)*POISSON(N167,H165,0) -> 6.54187452e-13 | O173: =POISSON(F173,H164,0)*POISSON(O167,H165,0) -> 3.180077891e-14 | P173: =POISSON(F173,H164,0)*POISSON(P167,H165,0) -> 1.374107731e-15
F174: 6 | G174: =POISSON(F174,H164,0)*POISSON(G167,H165,0) -> 9.078001236e-08 | H174: =POISSON(F174,H164,0)*POISSON(H167,H165,0) -> 3.530333814e-08 | I174: =POISSON(F174,H164,0)*POISSON(I167,H165,0) -> 6.864537972e-09 | J174: =POISSON(F174,H164,0)*POISSON(J167,H165,0) -> 8.898475148e-10 | K174: =POISSON(F174,H164,0)*POISSON(K167,H165,0) -> 8.651295283e-11 | L174: =POISSON(F174,H164,0)*POISSON(L167,H165,0) -> 6.72878522e-12 | M174: =POISSON(F174,H164,0)*POISSON(M167,H165,0) -> 4.36124968e-13 | N174: =POISSON(F174,H164,0)*POISSON(N167,H165,0) -> 2.422916489e-14 | O174: =POISSON(F174,H164,0)*POISSON(O167,H165,0) -> 1.177806626e-15 | P174: =POISSON(F174,H164,0)*POISSON(P167,H165,0) -> 5.089287892e-17
A175: ТБ 0.5 | B175: =SUM(G168:P177)-G168 -> 0.4572525188 | C175: =1/B175 -> 2.186975378 | F175: 7 | G175: =POISSON(F175,H164,0)*POISSON(G167,H165,0) -> 2.881905154e-09 | H175: =POISSON(F175,H164,0)*POISSON(H167,H165,0) -> 1.120740893e-09 | I175: =POISSON(F175,H164,0)*POISSON(I167,H165,0) -> 2.179218404e-10 | J175: =POISSON(F175,H164,0)*POISSON(J167,H165,0) -> 2.824912746e-11 | K175: =POISSON(F175,H164,0)*POISSON(K167,H165,0) -> 2.746442947e-12 | L175: =POISSON(F175,H164,0)*POISSON(L167,H165,0) -> 2.136122292e-13 | M175: =POISSON(F175,H164,0)*POISSON(M167,H165,0) -> 1.384523708e-14 | N175: =POISSON(F175,H164,0)*POISSON(N167,H165,0) -> 7.691798377e-16 | O175: =POISSON(F175,H164,0)*POISSON(O167,H165,0) -> 3.739068655e-17 | P175: =POISSON(F175,H164,0)*POISSON(P167,H165,0) -> 1.61564695e-18
A176: ТБ 1.5 | B176: =SUM(G170:G177,H169:H177,I168:I177,J168:P177) -> 0.1255735026 | C176: 7.963463467 | F176: 8 | G176: =POISSON(F176,H164,0)*POISSON(G167,H165,0) -> 8.005292095e-11 | H176: =POISSON(F176,H164,0)*POISSON(H167,H165,0) -> 3.113169148e-11 | I176: =POISSON(F176,H164,0)*POISSON(I167,H165,0) -> 6.053384455e-12 | J176: =POISSON(F176,H164,0)*POISSON(J167,H165,0) -> 7.846979849e-13 | K176: =POISSON(F176,H164,0)*POISSON(K167,H165,0) -> 7.629008186e-14 | L176: =POISSON(F176,H164,0)*POISSON(L167,H165,0) -> 5.933673034e-15 | M176: =POISSON(F176,H164,0)*POISSON(M167,H165,0) -> 3.845899188e-16 | N176: =POISSON(F176,H164,0)*POISSON(N167,H165,0) -> 2.13661066e-17 | O176: =POISSON(F176,H164,0)*POISSON(O167,H165,0) -> 1.038630182e-18 | P176: =POISSON(F176,H164,0)*POISSON(P167,H165,0) -> 4.487908194e-20
A177: ТБ 2.5 | B177: =SUM(G171:G177,H170:H177,I169:I177,J168:P177) -> 0.02422713647 | C177: 41.27602951 | F177: 9 | G177: =POISSON(F177,H164,0)*POISSON(G167,H165,0) -> 1.976615332e-12 | H177: =POISSON(F177,H164,0)*POISSON(H167,H165,0) -> 7.686837403e-13 | I177: =POISSON(F177,H164,0)*POISSON(I167,H165,0) -> 1.494662828e-13 | J177: =POISSON(F177,H164,0)*POISSON(J167,H165,0) -> 1.937525889e-14 | K177: =POISSON(F177,H164,0)*POISSON(K167,H165,0) -> 1.883705725e-15 | L177: =POISSON(F177,H164,0)*POISSON(L167,H165,0) -> 1.465104453e-16 | M177: =POISSON(F177,H164,0)*POISSON(M167,H165,0) -> 9.496047379e-18 | N177: =POISSON(F177,H164,0)*POISSON(N167,H165,0) -> 5.275581877e-19 | O177: =POISSON(F177,H164,0)*POISSON(O167,H165,0) -> 2.564518968e-20 | P177: =POISSON(F177,H164,0)*POISSON(P167,H165,0) -> 1.10812548e-21
A178: ТБ 3.5 | B178: =SUM(G172:G177,H171:H177,I170:I177,J169:J177,K168:P177) -> 0.003582506344 | C178: 279.1341882
A179: ТБ 4.5 | B179: =SUM(G173:G177,H172:H177,I171:I177,J170:J177,K169:K177,L168:P177) -> 0.0004284656301 | C179: 2333.90949
A180: ТБ 5.5 | B180: =SUM(G174:G177,H173:H177,I172:I177,J171:J177,K170:K177,L169:L177,M168:P177) -> 4.297176505e-05 | C180: 23271.09438
A182: ТМ 0.5 | B182: =1-B175 -> 0.5427474812 | C182: =1/B182 -> 1.842477459 | E182: ОЗ | F182: =SUM(H169:P177) -> 0.06420050024 | G182: =1/F182 -> 15.57620262
A183: ТМ 1.5 | B183: 0.8744264974 | C183: 1.143606699 | E183: НЕ ОЗ | F183: =1-F182 -> 0.9357994998 | G183: =1/F183 -> 1.068604974
A184: ТМ 2.5 | B184: 0.9757728635 | C184: 1.024828664
A185: ТМ 3.5 | B185: 0.9964174937 | C185: 1.003595387 | E185: P | F185: =SUM(G168,G170,G172,G174,G176,H169,H171,H173,H175,H177,I168,I170,I172,I174,I176,J169,J171,J173,J175,J177,K168,K170,K172,K174,K176,L169,L171,L173,L175,L177)+SUM(M168,M170,M172,M174,M176,N169,N171,N173,N175,N177,O168,O170,O172,O174,O176,P169,P171,P173,P175,P177) -> 0.6472874141 | G185: =1/F185 -> 1.544908766
A186: ТМ 4.5 | B186: 0.9995715344 | C186: 1.000428649 | E186: D | F186: =1-F185 -> 0.3527125859 | G186: =1/F186 -> 2.835169597
A187: ТМ 5.5 | B187: 0.9999570282 | C187: 1.000042974
A189: Атака
C190: Команда | D190: Забито | E190: Порожения | F190: Игры | H190: Средний
B191: Дом | C191: =C164 -> Жарково | D191: =C4 -> 7 | E191: =AH43 -> 0 | F191: =B4 -> 10 | H191: =(D191+E192)/(F192+F191) -> 0.3888888889
B192: Гости | C192: =C165 -> Нови Белград | D192: =C11 -> 8 | E192: =AH45 -> 0 | F192: =B11 -> 8 | H192: =(D192+E191)/(F191+F192) -> 0.4444444444
G194: 0 | H194: 1 | I194: 2 | J194: 3 | K194: 4 | L194: 5 | M194: 6 | N194: 7 | O194: 8 | P194: 9
F195: 0 | G195: =POISSON(F195,H191,0)*POISSON(G194,H192,0) -> 0.4345982085 | H195: =POISSON(F195,H191,0)*POISSON(H194,H192,0) -> 0.1931547593 | I195: =POISSON(F195,H191,0)*POISSON(I194,H192,0) -> 0.04292327985 | J195: =POISSON(F195,H191,0)*POISSON(J194,H192,0) -> 0.006359004423 | K195: =POISSON(F195,H191,0)*POISSON(K194,H192,0) -> 0.000706556047 | L195: =POISSON(F195,H191,0)*POISSON(L194,H192,0) -> 6.280498195e-05 | M195: =POISSON(F195,H191,0)*POISSON(M194,H192,0) -> 4.652220885e-06 | N195: =POISSON(F195,H191,0)*POISSON(N194,H192,0) -> 2.953791038e-07 | O195: =POISSON(F195,H191,0)*POISSON(O194,H192,0) -> 1.640995021e-08 | P195: =POISSON(F195,H191,0)*POISSON(P194,H192,0) -> 8.103679117e-10
A196: ="1" -> 1 | B196: ="X" -> X | C196: ="2" -> 2 | F196: 1 | G196: =POISSON(F196,H191,0)*POISSON(G194,H192,0) -> 0.1690104144 | H196: =POISSON(F196,H191,0)*POISSON(H194,H192,0) -> 0.07511573974 | I196: =POISSON(F196,H191,0)*POISSON(I194,H192,0) -> 0.01669238661 | J196: =POISSON(F196,H191,0)*POISSON(J194,H192,0) -> 0.002472946164 | K196: =POISSON(F196,H191,0)*POISSON(K194,H192,0) -> 0.000274771796 | L196: =POISSON(F196,H191,0)*POISSON(L194,H192,0) -> 2.442415965e-05 | M196: =POISSON(F196,H191,0)*POISSON(M194,H192,0) -> 1.809197011e-06 | N196: =POISSON(F196,H191,0)*POISSON(N194,H192,0) -> 1.148696515e-07 | O196: =POISSON(F196,H191,0)*POISSON(O194,H192,0) -> 6.381647305e-09 | P196: =POISSON(F196,H191,0)*POISSON(P194,H192,0) -> 3.151430768e-10
A197: =SUM(G196:G204,H197:H204,I198:I204,J199:J204,K200:K204,L201:L204,M202:M204,N203:N204,O204) -> 0.2237524122 | B197: =SUM(G195,H196,I197,J198,K199,L200,M201,N202,O203,P204) -> 0.5130227006 | C197: =1-B197-A197 -> 0.2632248872 | F197: 2 | G197: =POISSON(F197,H191,0)*POISSON(G194,H192,0) -> 0.03286313614 | H197: =POISSON(F197,H191,0)*POISSON(H194,H192,0) -> 0.01460583828 | I197: =POISSON(F197,H191,0)*POISSON(I194,H192,0) -> 0.003245741841 | J197: =POISSON(F197,H191,0)*POISSON(J194,H192,0) -> 0.0004808506431 | K197: =POISSON(F197,H191,0)*POISSON(K194,H192,0) -> 5.342784923e-05 | L197: =POISSON(F197,H191,0)*POISSON(L194,H192,0) -> 4.749142154e-06 | M197: =POISSON(F197,H191,0)*POISSON(M194,H192,0) -> 3.517883077e-07 | N197: =POISSON(F197,H191,0)*POISSON(N194,H192,0) -> 2.233576557e-08 | O197: =POISSON(F197,H191,0)*POISSON(O194,H192,0) -> 1.240875865e-09 | P197: =POISSON(F197,H191,0)*POISSON(P194,H192,0) -> 6.127782049e-11
A198: =1/A197 -> 4.469225561 | B198: =1/B197 -> 1.949231484 | C198: =1/C197 -> 3.799032876 | F198: 3 | G198: =POISSON(F198,H191,0)*POISSON(G194,H192,0) -> 0.004260036166 | H198: =POISSON(F198,H191,0)*POISSON(H194,H192,0) -> 0.001893349407 | I198: =POISSON(F198,H191,0)*POISSON(I194,H192,0) -> 0.0004207443127 | J198: =POISSON(F198,H191,0)*POISSON(J194,H192,0) -> 6.233249077e-05 | K198: =POISSON(F198,H191,0)*POISSON(K194,H192,0) -> 6.925832308e-06 | L198: =POISSON(F198,H191,0)*POISSON(L194,H192,0) -> 6.156295384e-07 | M198: =POISSON(F198,H191,0)*POISSON(M194,H192,0) -> 4.560218803e-08 | N198: =POISSON(F198,H191,0)*POISSON(N194,H192,0) -> 2.895377018e-09 | O198: =POISSON(F198,H191,0)*POISSON(O194,H192,0) -> 1.608542788e-10 | P198: =POISSON(F198,H191,0)*POISSON(P194,H192,0) -> 7.943421174e-12
F199: 4 | G199: =POISSON(F199,H191,0)*POISSON(G194,H192,0) -> 0.0004141701828 | H199: =POISSON(F199,H191,0)*POISSON(H194,H192,0) -> 0.0001840756368 | I199: =POISSON(F199,H191,0)*POISSON(I194,H192,0) -> 4.090569707e-05 | J199: =POISSON(F199,H191,0)*POISSON(J194,H192,0) -> 6.060103269e-06 | K199: =POISSON(F199,H191,0)*POISSON(K194,H192,0) -> 6.733448077e-07 | L199: =POISSON(F199,H191,0)*POISSON(L194,H192,0) -> 5.985287179e-08 | M199: =POISSON(F199,H191,0)*POISSON(M194,H192,0) -> 4.433546059e-09 | N199: =POISSON(F199,H191,0)*POISSON(N194,H192,0) -> 2.814949879e-10 | O199: =POISSON(F199,H191,0)*POISSON(O194,H192,0) -> 1.563861044e-11 | P199: =POISSON(F199,H191,0)*POISSON(P194,H192,0) -> 7.722770586e-13
F200: 5 | G200: =POISSON(F200,H191,0)*POISSON(G194,H192,0) -> 3.221323644e-05 | H200: =POISSON(F200,H191,0)*POISSON(H194,H192,0) -> 1.431699397e-05 | I200: =POISSON(F200,H191,0)*POISSON(I194,H192,0) -> 3.181554216e-06 | J200: =POISSON(F200,H191,0)*POISSON(J194,H192,0) -> 4.713413654e-07 | K200: =POISSON(F200,H191,0)*POISSON(K194,H192,0) -> 5.237126282e-08 | L200: =POISSON(F200,H191,0)*POISSON(L194,H192,0) -> 4.655223362e-09 | M200: =POISSON(F200,H191,0)*POISSON(M194,H192,0) -> 3.448313601e-10 | N200: =POISSON(F200,H191,0)*POISSON(N194,H192,0) -> 2.189405461e-11 | O200: =POISSON(F200,H191,0)*POISSON(O194,H192,0) -> 1.216336367e-12 | P200: =POISSON(F200,H191,0)*POISSON(P194,H192,0) -> 6.006599345e-14
F201: 6 | G201: =POISSON(F201,H191,0)*POISSON(G194,H192,0) -> 2.087894954e-06 | H201: =POISSON(F201,H191,0)*POISSON(H194,H192,0) -> 9.279533131e-07 | I201: =POISSON(F201,H191,0)*POISSON(I194,H192,0) -> 2.062118474e-07 | J201: =POISSON(F201,H191,0)*POISSON(J194,H192,0) -> 3.054990331e-08 | K201: =POISSON(F201,H191,0)*POISSON(K194,H192,0) -> 3.394433701e-09 | L201: =POISSON(F201,H191,0)*POISSON(L194,H192,0) -> 3.017274401e-10 | M201: =POISSON(F201,H191,0)*POISSON(M194,H192,0) -> 2.235018075e-11 | N201: =POISSON(F201,H191,0)*POISSON(N194,H192,0) -> 1.419059095e-12 | O201: =POISSON(F201,H191,0)*POISSON(O194,H192,0) -> 7.88366164e-14 | P201: =POISSON(F201,H191,0)*POISSON(P194,H192,0) -> 3.893166242e-15
A202: ТБ 0.5 | B202: =SUM(G195:P204)-G195 -> 0.5654017914 | C202: =1/B202 -> 1.768653752 | F202: 7 | G202: =POISSON(F202,H191,0)*POISSON(G194,H192,0) -> 1.159941641e-07 | H202: =POISSON(F202,H191,0)*POISSON(H194,H192,0) -> 5.155296184e-08 | I202: =POISSON(F202,H191,0)*POISSON(I194,H192,0) -> 1.145621374e-08 | J202: =POISSON(F202,H191,0)*POISSON(J194,H192,0) -> 1.697216851e-09 | K202: =POISSON(F202,H191,0)*POISSON(K194,H192,0) -> 1.885796501e-10 | L202: =POISSON(F202,H191,0)*POISSON(L194,H192,0) -> 1.676263556e-11 | M202: =POISSON(F202,H191,0)*POISSON(M194,H192,0) -> 1.241676708e-12 | N202: =POISSON(F202,H191,0)*POISSON(N194,H192,0) -> 7.88366164e-14 | O202: =POISSON(F202,H191,0)*POISSON(O194,H192,0) -> 4.379812022e-15 | P202: =POISSON(F202,H191,0)*POISSON(P194,H192,0) -> 2.162870134e-16
A203: ТБ 1.5 | B203: =SUM(G197:G204,H196:H204,I195:I204,J195:P204) -> 0.2032366177 | C203: 4.920373166 | F203: 8 | G203: =POISSON(F203,H191,0)*POISSON(G194,H192,0) -> 5.638605201e-09 | H203: =POISSON(F203,H191,0)*POISSON(H194,H192,0) -> 2.506046756e-09 | I203: =POISSON(F203,H191,0)*POISSON(I194,H192,0) -> 5.568992791e-10 | J203: =POISSON(F203,H191,0)*POISSON(J194,H192,0) -> 8.250359691e-11 | K203: =POISSON(F203,H191,0)*POISSON(K194,H192,0) -> 9.167066323e-12 | L203: =POISSON(F203,H191,0)*POISSON(L194,H192,0) -> 8.148503398e-13 | M203: =POISSON(F203,H191,0)*POISSON(M194,H192,0) -> 6.035928443e-14 | N203: =POISSON(F203,H191,0)*POISSON(N194,H192,0) -> 3.832335519e-15 | O203: =POISSON(F203,H191,0)*POISSON(O194,H192,0) -> 2.129075289e-16 | P203: =POISSON(F203,H191,0)*POISSON(P194,H192,0) -> 1.051395204e-17
A204: ТБ 2.5 | B204: =SUM(G198:G204,H197:H204,I196:I204,J195:P204) -> 0.05233446193 | C204: 19.10786818 | F204: 9 | G204: =POISSON(F204,H191,0)*POISSON(G194,H192,0) -> 2.436434346e-10 | H204: =POISSON(F204,H191,0)*POISSON(H194,H192,0) -> 1.082859709e-10 | I204: =POISSON(F204,H191,0)*POISSON(I194,H192,0) -> 2.40635491e-11 | J204: =POISSON(F204,H191,0)*POISSON(J194,H192,0) -> 3.564970237e-12 | K204: =POISSON(F204,H191,0)*POISSON(K194,H192,0) -> 3.961078041e-13 | L204: =POISSON(F204,H191,0)*POISSON(L194,H192,0) -> 3.520958258e-14 | M204: =POISSON(F204,H191,0)*POISSON(M194,H192,0) -> 2.608117228e-15 | N204: =POISSON(F204,H191,0)*POISSON(N194,H192,0) -> 1.655947447e-16 | O204: =POISSON(F204,H191,0)*POISSON(O194,H192,0) -> 9.199708037e-18 | P204: =POISSON(F204,H191,0)*POISSON(P194,H192,0) -> 4.543065697e-19
A205: ТБ 3.5 | B205: =SUM(G199:G204,H198:H204,I197:I204,J196:J204,K195:P204) -> 0.01041719645 | C205: 95.99511773
A206: ТБ 4.5 | B206: =SUM(G200:G204,H199:H204,I198:I204,J197:J204,K196:K204,L195:P204) -> 0.001684432812 | C206: 593.671646
A207: ТБ 5.5 | B207: =SUM(G201:G204,H200:H204,I199:I204,J198:J204,K197:K204,L196:L204,M195:P204) -> 0.0002289722049 | C207: 4367.342318
A209: ТМ 0.5 | B209: =1-B202 -> 0.4345982086 | C209: =1/B209 -> 2.300975891 | E209: ОЗ | F209: =SUM(H196:P204) -> 0.115608242 | G209: =1/F209 -> 8.64990231
A210: ТМ 1.5 | B210: 0.7967633823 | C210: 1.255077759 | E210: НЕ ОЗ | F210: =1-F209 -> 0.884391758 | G210: =1/F210 -> 1.130720624
A211: ТМ 2.5 | B211: 0.9476655381 | C211: 1.055224612
A212: ТМ 3.5 | B212: 0.9895828035 | C212: 1.010526857 | E212: P | F212: =SUM(G195,G197,G199,G201,G203,H196,H198,H200,H202,H204,I195,I197,I199,I201,I203,J196,J198,J200,J202,J204,K195,K197,K199,K201,K203,L196,L198,L200,L202,L204)+SUM(M195,M197,M199,M201,M203,N196,N198,N200,N202,N204,O195,O197,O199,O201,O203,P196,P198,P200,P202,P204) -> 0.5944378014 | G212: =1/F212 -> 1.68226179
A213: ТМ 4.5 | B213: 0.9983155672 | C213: 1.001687275 | E213: D | F213: =1-F212 -> 0.4055621986 | G213: =1/F213 -> 2.465713036
A214: ТМ 5.5 | B214: 0.9997710278 | C214: 1.000229025
A216: Защита
C217: Команда | D217: Забито | E217: Пропущенно | F217: Игры | H217: Средний
B218: Дом | C218: =C191 -> Жарково | D218: =D37 -> 0 | E218: =D4 -> 12 | F218: =B4 -> 10 | H218: =(D218+E219)/(F219+F218) -> 0.6111111111
... 69 more rows

Sheet Mill
B2: Тест №1 Анализ 10 последних игр команд дома и в гостях | H2: =IF(ДомаДома!N2="В",1,0) -> 0 | I2: =IF(C7="Победа",1,0) -> 0 | J2: =IF(ГостиГости!N2="В",1,0) -> 0 | K2: =IF(E7="Победа",1,0) -> 0 | M2: =IF(F20>F21,B20,IF(F20<F21,B21,"Ничья")) -> П2 | V2: 2.5
H3: =IF(ДомаДома!N3="В",1,0) -> 0 | I3: =IF(C8="Победа",1,0) -> 0 | J3: =IF(ГостиГости!N3="В",1,0) -> 1 | K3: =IF(E8="Победа",1,0) -> 0 | V3: 2.5
H4: =IF(ДомаДома!N4="В",1,0) -> 0 | I4: 0 | J4: =IF(ГостиГости!N4="В",1,0) -> 1 | K4: 1 | V4: 2.5
B5: Последние 10 игр команды 1 | D5: Последние 10 игр команды 2 | H5: =IF(ДомаДома!N5="В",1,0) -> 0 | I5: 1 | J5: =IF(ГостиГости!N5="В",1,0) -> 0 | K5: 1 | V5: 2.5
B6: № игры | C6: Исход | D6: № игры | E6: Исход | H6: =IF(ДомаДома!N6="В",1,0) -> 1 | I6: 0 | J6: =IF(ГостиГости!N6="В",1,0) -> 0 | K6: 1 | V6: 2.5
B7: 1 | C7: =IF(Дома!N2="В","Победа",IF(Дома!N2="П","Поражение","Ничья")) -> Ничья | D7: 1 | E7: =IF(Гости!N2="В","Победа",IF(Гости!N2="П","Поражение","Ничья")) -> Ничья | H7: =IF(ДомаДома!N7="В",1,0) -> 0 | I7: 1 | J7: =IF(ГостиГости!N7="В",1,0) -> 0 | K7: 1 | V7: 2.5
B8: 2 | C8: =IF(Дома!N3="В","Победа",IF(Дома!N3="П","Поражение","Ничья")) -> Ничья | D8: 2 | E8: =IF(Гости!N3="В","Победа",IF(Гости!N3="П","Поражение","Ничья")) -> Ничья | H8: =IF(ДомаДома!N8="В",1,0) -> 0 | I8: 0 | J8: =IF(ГостиГости!N8="В",1,0) -> 0 | K8: 0 | V8: 2.5
B9: 3 | C9: =IF(Дома!N4="В","Победа",IF(Дома!N4="П","Поражение","Ничья")) -> Ничья | D9: 3 | E9: =IF(Гости!N4="В","Победа",IF(Гости!N4="П","Поражение","Ничья")) -> Победа | H9: =IF(ДомаДома!N9="В",1,0) -> 0 | I9: 0 | J9: =IF(ГостиГости!N9="В",1,0) -> 0 | K9: 1 | V9: 2.5
B10: 4 | C10: =IF(Дома!N5="В","Победа",IF(Дома!N5="П","Поражение","Ничья")) -> Победа | D10: 4 | E10: =IF(Гости!N5="В","Победа",IF(Гости!N5="П","Поражение","Ничья")) -> Победа | H10: =IF(ДомаДома!N10="В",1,0) -> 0 | I10: 1 | J10: =IF(ГостиГости!N10="В",1,0) -> 1 | K10: 0
B11: 5 | C11: =IF(Дома!N6="В","Победа",IF(Дома!N6="П","Поражение","Ничья")) -> Поражение | D11: 5 | E11: =IF(Гости!N6="В","Победа",IF(Гости!N6="П","Поражение","Ничья")) -> Победа | H11: =IF(ДомаДома!N11="В",1,0) -> 1 | I11: 0 | J11: =IF(ГостиГости!N11="В",1,0) -> 1 | K11: 0
B12: 6 | C12: =IF(Дома!N7="В","Победа",IF(Дома!N7="П","Поражение","Ничья")) -> Победа | D12: 6 | E12: =IF(Гости!N7="В","Победа",IF(Гости!N7="П","Поражение","Ничья")) -> Победа | H12: =SUM(H2:H11) -> 2 | I12: =SUM(I2:I11) -> 3 | J12: =SUM(J2:J11) -> 4 | K12: =SUM(K2:K11) -> 5 | P12: =IF(C7="Победа",2,IF(C7="Ничья",1,0)) -> 1 | Q12: =IF(C7="Победа",1,0) -> 0 | R12: =IF(E7="Победа",2,IF(E7="Ничья",1,0)) -> 1 | S12: =IF(E7="Победа",1,0) -> 0
B13: 7 | C13: =IF(Дома!N8="В","Победа",IF(Дома!N8="П","Поражение","Ничья")) -> Поражение | D13: 7 | E13: =IF(Гости!N8="В","Победа",IF(Гости!N8="П","Поражение","Ничья")) -> Поражение | P13: =IF(C8="Победа",2,IF(C8="Ничья",1,0)) -> 1 | Q13: =IF(C8="Победа",1,0) -> 0 | R13: =IF(E8="Победа",2,IF(E8="Ничья",1,0)) -> 1 | S13: =IF(E8="Победа",1,0) -> 0
B14: 8 | C14: =IF(Дома!N9="В","Победа",IF(Дома!N9="П","Поражение","Ничья")) -> Поражение | D14: 8 | E14: =IF(Гости!N9="В","Победа",IF(Гости!N9="П","Поражение","Ничья")) -> Победа | P14: 1 | Q14: 0 | R14: 2 | S14: 1
B15: 9 | C15: =IF(Дома!N10="В","Победа",IF(Дома!N10="П","Поражение","Ничья")) -> Победа | D15: 9 | E15: =IF(Гости!N10="В","Победа",IF(Гости!N10="П","Поражение","Ничья")) -> Ничья | P15: 2 | Q15: 1 | R15: 2 | S15: 1
B16: 10 | C16: =IF(Дома!N11="В","Победа",IF(Дома!N11="П","Поражение","Ничья")) -> Ничья | D16: 10 | E16: =IF(Гости!N11="В","Победа",IF(Гости!N11="П","Поражение","Ничья")) -> Ничья | P16: 0 | Q16: 0 | R16: 2 | S16: 1
P17: 2 | Q17: 1 | R17: 2 | S17: 1
B18: Итог анализа Теста №1 | H18: =SUM(H2:H6) -> 1 | I18: =SUM(I2:I6) -> 1 | J18: =SUM(J2:J6) -> 2 | K18: =SUM(K2:K6) -> 3 | P18: 0 | Q18: 0 | R18: 0 | S18: 0
B19: Команда | C19: Очки | D19: Значение Теста | E19: Число | F19: ИТОГ | P19: 0 | Q19: 0 | R19: 2 | S19: 1
B20: П1 | C20: =P22 -> 10 | D20: =IF(C20>18,4,IF(C20>15,3,IF(C20>10,2,IF(C20>5,1,0)))) -> 1 | E20: =IF(Q22>=9,3,IF(Q22>=6,2,IF(Q22>=4,1,0))) -> 0 | F20: =IF(C20>C21,1,0)+IF(D20>D21,1,0)+E20 -> 0 | P20: 2 | Q20: 1 | R20: 1 | S20: 0
B21: П2 | C21: =R22 -> 14 | D21: =IF(C21>18,4,IF(C21>15,3,IF(C21>10,2,IF(C21>5,1,0)))) -> 2 | E21: =IF(S22>=9,3,IF(S22>=6,2,IF(S22>=4,1,0))) -> 1 | F21: =IF(C21>C20,1,0)+IF(D21>D20,1,0)+E21 -> 3 | P21: =IF(C16="Победа",2,IF(C16="Ничья",1,0)) -> 1 | Q21: 0 | R21: =IF(E16="Победа",2,IF(E16="Ничья",1,0)) -> 1 | S21: =IF(E16="Победа",1,0) -> 0
D22: Последние три игры команд между собой | P22: =SUM(P12:P21) -> 10 | Q22: =SUM(Q12:Q21) -> 3 | R22: =SUM(R12:R21) -> 14 | S22: =SUM(S12:S21) -> 5
C23: КОМАНДА 1 | D23: гости | E23: Очки | H23: хозяева | I23: КОМАНДА 2 | J23: Очки | K23: П1 +
B24: 1 игра | C24: =ДомаДома!L2 -> 2 | D24: =ДомаДома!M2 -> 2 | E24: =IF(C24>D24,2+(C24-D24),IF(C24=D24,1,0)) -> 1 | G24: 1 игра | H24: =ГостиГости!M2 -> 2 | I24: =ГостиГости!L2 -> 2 | J24: =IF(I24>H24,2+(I24-H24),IF(H24=I24,1,0)) -> 1 | K24: П2 + | P24: =Очные!A1 -> Жарково | R24: ввод данных | V24: РАСЧЁТ ДАННЫХ | X24: Очки | Y24: Итоговые очки
B25: 2 игра | C25: =ДомаДома!L3 -> 0 | D25: =ДомаДома!M3 -> 0 | E25: =IF(C25>D25,2+(C25-D25),IF(C25=D25,1,0)) -> 1 | G25: 2 игра | H25: =ГостиГости!M3 -> 1 | I25: =ГостиГости!L3 -> 2 | J25: =IF(I25>H25,2+(I25-H25),IF(H25=I25,1,0)) -> 3 | K25: П1 - | P25: Место в турнирной таблице | R25: =VLOOKUP(P24,P46:Q78,2,FALSE) -> 6 | S25: из | T25: =MAX(Таблица!A:A) -> 16
B26: 3 игра | C26: =ДомаДома!L4 -> 0 | D26: =ДомаДома!M4 -> 3 | E26: =IF(C26>D26,2+(C26-D26),IF(C26=D26,1,0)) -> 0 | G26: 3 игра | H26: =ГостиГости!M4 -> 1 | I26: =ГостиГости!L4 -> 2 | J26: =IF(I26>H26,2+(I26-H26),IF(H26=I26,1,0)) -> 3 | K26: П2 - | V26: Команда1 | X26: =S46+S47+IF(R27>R39,U46,0) -> 13 | Y26: =X26*U47 -> 13.65
D27: Итого: | E27: =SUM(E24,E25,E26) +1 -> 3 | I27: Итого: | J27: =SUM(J24,J25,J26) -> 7 | K27: 1Х | P27: Сколько мячей забито | R27: ='Incognito DATA'!F2 -> 21
B28: какая команда дома | C28: Счёт | D28: Счёт | E28: Очки | F28: Какая команда победила | G28: Какая команда в гостях | K28: Х2 | V28: Команда2 | X28: =T46+T47+IF(R39>R27,U46,0) -> 29 | Y28: =X28*U48 -> 43.5
B29: =IF(Очные!C2=Очные!A1,1,2) -> 1 | C29: =IF(B29=1,Очные!E2,Очные!F2) -> 2 | D29: =IF(B29=2,Очные!E2,Очные!F2) -> 2 | E29: =IF(C29>D29,3+(C29-D29),IF(C29=D29,1,IF(D29>C29,3+(D29-C29),0))) -> 1 | F29: =IF(C29>D29,B29,IF(D29>C29,B29,0)) -> 0 | G29: =IF(B29=2,1,2) -> 2 | J29: =IF(F29=0,1,0) -> 1 | K29: Ф1(+1) | P29: Сколько мячей забито за последние 3 игры дома | R29: =ДомаДома!S4 -> 2
B30: =IF(Очные!C3=Очные!A1,1,2) -> 2 | C30: =IF(B30=1,Очные!E3,Очные!F3) -> 1 | D30: =IF(B30=2,Очные!E3,Очные!F3) -> 0 | E30: =IF(C30>D30,3+(C30-D30),IF(C30=D30,0,IF(D30>C30,3+(D30-C30),0))) -> 4 | F30: =IF(C30>D30,B30,IF(D30>C30,B30,0)) -> 2 | G30: =IF(B30=2,1,2) -> 1 | J30: =IF(B29=2,1,0) -> 0 | K30: Ф2(+1)
B31: =IF(Очные!C4=Очные!A1,1,2) -> 2 | C31: =IF(B31=1,Очные!E4,Очные!F4) -> 0 | D31: =IF(B31=2,Очные!E4,Очные!F4) -> 1 | E31: =IF(C31>D31,3+(C31-D31),IF(C31=D31,0,IF(D31>C31,3+(D31-C31),0))) -> 4 | F31: =IF(C31>D31,B31,IF(D31>C31,B31,0)) -> 2 | G31: =IF(B31=2,1,2) -> 1 | J31: =IF(J30=J29,1,0) -> 0 | K31: Х П1
B32: ИТОГ | K32: Х П2 | P32: Игр сыграно за сезон | R32: ='Incognito DATA'!B2 -> 20
B33: Дополнительная информация, НЕОБЯЗАТЕЛЬНО для заполнения:
B34: Кто выше в турнирной таблице? | D34: =IF(R25<R37,1,2) -> 2 | E34: =IF(C38>D38,1,IF(C38=D38,0,2)) -> 2 | F34: =IF(E34=1,C38-D38,IF(E34=2,D38-C38,0)) -> 12 | G34: =IF(D34=1,1,2)+IF(F34>0,99,0) -> 101 | I34: =IF(G29=1,1,0) -> 0 | J34: =IF(G29=2,1,0) -> 1
C35: 1 | D35: 2 | E35: Для к1 | F35: Для к2 | I35: =IF(G30=1,1,0) -> 1 | J35: =IF(G30=2,1,0) -> 0
B36: Очки | C36: =E27+IF(F29=1,E29,0)+IF(F30=1,E30,0)+IF(F31=1,E31,0) -> 3 | D36: =J27+IF(F29=2,E29,0)+IF(F30=2,E30,0)+IF(F31=2,E31,0) -> 15 | E36: =IF(E34=1,F34,0) -> 0 | F36: =IF(E34=2,F34,0) -> 12 | I36: =IF(G31=1,1,0) -> 1 | J36: =IF(G31=2,1,0) -> 0 | P36: =Очные!B1 -> Нови Белград | R36: ввод данных | V36: Вероятный исход в процентах
B37: Доп. Очки | E37: =IF(E36>12,K23,IF(E36>7,K25,IF(E36>4,K27,IF(E36>0,K29,0)))) -> 0 | F37: =IF(F36>13,K24,IF(F36>7,K26,IF(F36>4,K28,IF(F36>0,K30,0)))) -> П2 - | I37: =SUM(I34:I36) -> 2 | J37: =SUM(J34:J36) -> 1 | P37: Место в турнирной таблице | R37: =VLOOKUP(P36,P46:Q78,2,FALSE) -> 5 | S37: из | T37: =T25 -> 16 | V37: П1 | W37: =(X26/S49) -> 0.2694300518 | X37: П2 | Y37: =(X28/S49) -> 0.6010362694
B38: Итоговые: | C38: =SUM(C36,C37) -> 3 | D38: =SUM(D36,D37) -> 15
B39: ИТОГО: | C39: =IF(E34=1,E37,IF(G34=1,K31,IF(E34=2,F37,K32))) -> П2 - | P39: Сколько мячей забито | R39: ='Incognito DATA'!F8 -> 30 | W39: Ничья | X39: =1-(W37+Y37) -> 0.1295336788
B41: Тест №3 Общая теория | P41: Мячей забито за последние 3 игры в гостях | R41: =ГостиГости!S4 -> 6
V42: ТМ 2,5 | W42: =100-Y42 -> 24.48087432 | X42: ТБ2,5 | Y42: =(S53/T52)*100-10 -> 75.51912568
B43: Расчёт команды 1 | F43: Число | G43: Расчёт команды 2 | K43: Число
B44: Сколько Побед из 5 последних игр дома | F44: =H18 -> 1 | G44: Сколько Побед из 5 последних игр в гостях | K44: =J18 -> 2 | P44: Игр сыграно за сезон | R44: ='Incognito DATA'!B2 -> 20
B45: Сколько Побед из 5 последних игр вообще | F45: =I18 -> 1 | G45: Сколько Побед из 5 последних игр вообще | K45: =K18 -> 3
B46: Сколько Побед из 3 последних игр между командами | F46: =I37 -> 2 | G46: Сколько Побед из 3 последних игр между командами | K46: 0 | P46: =Таблица!B2 -> Инджия | Q46: =Таблица!A2 -> 1 | S46: =T25-R25 -> 10 | T46: =T37-R37 -> 11 | U46: =IF(R27>R39,R27-R39,IF(R39>R27,R39-R27,0)) -> 9
F47: =SUM(F44:F46)/13 -> 0.3076923077 | K47: =SUM(K44:K46)/13 -> 0.3846153846 | P47: =Таблица!B3 -> Младость ГАТ | Q47: =Таблица!A3 -> 2 | S47: =(R29*3)/2 -> 3 | T47: =(R41*3)/2 -> 9 | U47: =R27/R32 -> 1.05
F48: =(1+1-1)/3 -> 0.3333333333 | K48: =(1+1-1)/3 -> 0.3333333333 | P48: =Таблица!B4 -> Железничар Панчево | Q48: =Таблица!A4 -> 3 | U48: =R39/R44 -> 1.5
F49: =F47/F48 -> 0.9230769231 | G49: 1 | H49: =F49+G49+K49 -> 3.076923077 | I49: Итог | J49: =IF(F50>K50,"П1",IF(K50>F50,"П2","Х")) -> П2 | K49: =K47/K48 -> 1.153846154 | P49: =Таблица!B5 -> Явор Иваница | Q49: =Таблица!A5 -> 4 | S49: =T25-1+5+((R32+R44)/2)+(((R27+R44)/2)/2)-2 -> 48.25
F50: =((H49-F49)*F49)/3 -> 0.6627218935 | H50: =(H49-G49)*1/3 -> 0.6923076923 | K50: =((H49-K49)*K49)/3 -> 0.7396449704 | P50: =Таблица!B6 -> Нови Белград | Q50: =Таблица!A6 -> 5
P51: =Таблица!B7 -> Жарково | Q51: =Таблица!A7 -> 6 | S51: =(R27/R32)+R29/3 -> 1.716666667 | T51: =(R32+R44)/2 -> 20
B52: Тест №4 Тоталы | P52: =Таблица!B8 -> Сремска-Митровица | Q52: =Таблица!A8 -> 7 | S52: =R39/R44+R41/3 -> 3.5 | T52: =((T51/4)*3+(T51/2)+(T51)+(T51/5)*4)/T51 -> 3.05
B53: Второй анализ. | C53: Команда 1 | D53: Команда 2 | E53: =C54*C55 -> 0.3888888889 | F53: =D54+D55 -> 3.2 | G53: П1 | P53: =Таблица!B9 -> Лозница | Q53: =Таблица!A9 -> 8 | S53: =(S51+S52)/2 -> 2.608333333
B54: Забьёт в абстрактном матче | C54: =(C24+C25+C26+1+H24+H25+H26)/6 -> 1.166666667 | D54: =(D24+D25+D26+I24+I25+I26+1)/6 -> 2 | E54: =E53/F53 -> 0.1215277778 | F54: =F53/E53 -> 8.228571429 | G54: П2 | P54: =Таблица!B10 -> Мачва | Q54: =Таблица!A10 -> 9
B55: Забьёт/пропустит в конкретном | C55: =(C24+C25+C26)/(D24+D25+D26+1) -> 0.3333333333 | D55: =(I24+I25+I26)/(H24+H25+H26+1) -> 1.2 | G55: Х | H55: Итог | I55: =IF(E56>F56,G53,IF(F56>E56,G54,G55)) -> П2 | P55: =Таблица!B11 -> Будучность Добановичи | Q55: =Таблица!A11 -> 10
B56: Забьёт в этом матче | C56: =E54 -> 0.1215277778 | D56: =F54 -> 8.228571429 | E56: =C54+C55+C56 -> 1.621527778 | F56: =D54+D55+D56 -> 11.42857143 | P56: =Таблица!B12 -> Златибор | Q56: =Таблица!A12 -> 11
P57: =Таблица!B13 -> Графичар Белград | Q57: =Таблица!A13 -> 12
C58: Mill+ Исход | P58: =Таблица!B14 -> Бачка | Q58: =Таблица!A14 -> 13
P59: =Таблица!B15 -> Рад | Q59: =Таблица!A15 -> 14
B60: Первая партия | G60: Первая партия | P60: =Таблица!B16 -> Тимок | Q60: =Таблица!A16 -> 15
B61: Игра | C61: Команда 1 | D61: Гости | E61: Очки | G61: Игра | H61: Домашняя | I61: Команда 2 | J61: Очки | P61: =Таблица!B17 -> Кабель Нови-Сад | Q61: =Таблица!A17 -> 16
B62: 1 игра | C62: =ДомаДома!L2 -> 2 | D62: =ДомаДома!M2 -> 2 | E62: =IF(C62>D62,2+(C62-D62),IF(C62=D62,1,0)) -> 1 | G62: 1 игра | H62: =ГостиГости!M2 -> 2 | I62: =ГостиГости!L2 -> 2 | J62: =IF(I62>H62,2+(I62-H62),IF(H62=I62,1,0)) -> 1 | P62: =Таблица!B18 -> 0 | Q62: =Таблица!A18 -> 0
B63: 2 игра | C63: =ДомаДома!L3 -> 0 | D63: =ДомаДома!M3 -> 0 | E63: =IF(C63>D63,2+(C63-D63),IF(C63=D63,1,0)) -> 1 | G63: 2 игра | H63: =ГостиГости!M3 -> 1 | I63: =ГостиГости!L3 -> 2 | J63: =IF(I63>H63,2+(I63-H63),IF(H63=I63,1,0)) -> 3 | P63: =Таблица!B19 -> 0 | Q63: =Таблица!A19 -> 0
D64: Итог: | E64: =E62+E63 -> 2 | I64: Итог: | J64: =J62+J63 -> 4 | P64: =Таблица!B20 -> 0 | Q64: =Таблица!A20 -> 0
B65: Вторая партия | G65: Вторая партия | P65: =Таблица!B21 -> 0 | Q65: =Таблица!A21 -> 0
B66: Игра | C66: Команда 1 | D66: Гости | E66: Очки | G66: Игра | H66: Домашняя | I66: Команда2 | J66: Очки | P66: =Таблица!B22 -> 0 | Q66: =Таблица!A22 -> 0
B67: 5 игра | C67: =ДомаДома!L6 -> 2 | D67: =ДомаДома!M6 -> 1 | E67: 3 | G67: 5 игра | H67: =ГостиГости!M6 -> 0 | I67: =ГостиГости!L6 -> 0 | J67: =IF(I67>H67,2+(I67-H67),IF(H67=I67,1,0)) -> 1 | P67: =Таблица!B23 -> 0 | Q67: =Таблица!A23 -> 0
B68: 6 игра | C68: =ДомаДома!L7 -> 0 | D68: =ДомаДома!M7 -> 0 | E68: 1 | G68: 6 игра | H68: =ГостиГости!M7 -> 1 | I68: =ГостиГости!L7 -> 1 | J68: =IF(I68>H68,2+(I68-H68),IF(H68=I68,1,0)) -> 1 | P68: =Таблица!B24 -> 0 | Q68: =Таблица!A24 -> 0
D69: Итог: | E69: =SUM(E67:E68) -> 4 | I69: Итог: | J69: =J67+J68 -> 2 | P69: =Таблица!B25 -> 0 | Q69: =Таблица!A25 -> 0
B70: Сколько побед за последни 10 игр: | E70: =H12 -> 2 | G70: Сколько побед за последни 10 игр: | J70: =J12 -> 4 | P70: =Таблица!B26 -> 0 | Q70: =Таблица!A26 -> 0
B71: Итоговые очки: | D71: Очки | E71: Динамика | F71: Итоговые очки | H71: 10BUH1 | I71: 10BUH2 | P71: =Таблица!B27 -> 0 | Q71: =Таблица!A27 -> 0
B72: Команда 1 | D72: =E64+E69+IF(F29=1,E29,0)+IF(F30=1,E30,0)+IF(F31=1,E31,0) -> 6 | E72: =IF(E64>E69,2,IF(E64=E69,1,0)) -> 0 | F72: =IF(E72=2,D72+(D72*0.3),IF(E72=1,D72,IF(E72=0,D72-(D72*0.3),0)))+IF(E64>J64,(D72*0.15),0)+H72 -> 3 | H72: =IF(E70<=4,-(D72*0.2),IF(E70>=6,D72*0.1,IF(E70>=9,D72*0.2,0))) -> -1.2 | I72: =IF(J70<=4,-(D73*0.2),IF(J70>=6,D73*0.1,IF(J70>=9,D73*0.2,0))) -> -2.8 | P72: =Таблица!B28 -> 0 | Q72: =Таблица!A28 -> 0
B73: Команда 2 | D73: =J64+J69+IF(F29=2,E29,0)+IF(F30=2,E30,0)+IF(F31=2,E31,0) -> 14 | E73: =IF(J64>J69,2,IF(J64=J69,1,0)) -> 2 | F73: =IF(E73=2,D73+(D73*0.3),IF(E73=1,D73,IF(E73=0,D73-(D73*0.3),0)))+IF(J64>E64,(D73*0.15),0)+I72 -> 17.5 | H73: КТО ПОБЕДИЛ | I73: Разница | P73: =Таблица!B29 -> 0 | Q73: =Таблица!A29 -> 0
H74: =IF(F72>F73,1,IF(F72=F73,0,2)) -> 2 | I74: =IF(H74=1,F72-F73,IF(H74=2,F73-F72,0)) -> 14.5 | P74: =Таблица!B30 -> 0 | Q74: =Таблица!A30 -> 0
B75: Mill+(Исход): | C75: =IF(H74=1,I76,I77) -> П2 | H75: П1 | I75: ИТОГ | P75: =Таблица!B31 -> 0 | Q75: =Таблица!A31 -> 0
H76: П2 | I76: =IF(I74<6,H79,IF(I74<10,H77,H75)) -> П1 | P76: =Таблица!B32 -> 0 | Q76: =Таблица!A32 -> 0
H77: 1Х | I77: =IF(I74<6,H80,IF(I74<10,H78,H76)) -> П2 | P77: =Таблица!B33 -> 0 | Q77: =Таблица!A33 -> 0
H78: Х2 | P78: =Таблица!B34 -> 0 | Q78: =Таблица!A34 -> 0
H79: Ф1(+1)
H80: Ф2(+1)
D89: Фут17 | G89: ОЗ | H89: Тотал | I89: 1й забьет | J89: =IF(C97>D97,"1 тайм П1",IF(D97>C97,"1 тайм П2","1 тайм Х")) -> 1 тайм Х | K89: =C97& " - " &D97 -> 0 - 0
C90: =IF(C91-TRUNC(C91)>=0.7,TRUNC(C91)+1,TRUNC(C91)) -> 0 | D90: =IF(D91-TRUNC(D91)>=0.7,TRUNC(D91)+1,TRUNC(D91)) -> 1 | G90: =IF(AND(C90>0,D90>0),"ОЗ-да","ОЗ-нет") -> ОЗ-нет | H90: =IF(C90+D90>2,"ТБ2.5","ТМ2.5") -> ТМ2.5 | I90: =IF(C92>D92,P24,P36) -> Нови Белград | J90: =IF(C90>D90,"Матч П1",IF(D90>C90,"Матч П2","Матч X")) -> Матч П2 | K90: =C90& " - " &D90 -> 0 - 1
C91: =SUM(C93:C95) -> 0.6 | D91: =SUM(D93:D95) -> 0.84 | J91: =J89&"/"&J90 -> 1 тайм Х/Матч П2
C92: =C91/2 -> 0.3 | D92: =D91/2 -> 0.42
A93: 0 | B93: =AVERAGE(ДомаДома!L2:L6) -> 0.8 | C93: =B93*0.4 -> 0.32 | D93: =E93*0.4 -> 0.64 | E93: =AVERAGE(ДомаДома!M2:M6) -> 1.6 | F93: 0
A94: 0 | B94: =AVERAGE(ГостиГости!L2:L6) -> 1.4 | C94: =B94*0.2 -> 0.28 | D94: =E94*0.2 -> 0.2 | E94: =AVERAGE(ГостиГости!M2:M6) -> 1 | F94: 0
A95: 0 | B95: =AVERAGE(A93:A97) -> 0 | C95: =B95*0.4 -> 0 | D95: =E95*0.4 -> 0 | E95: =AVERAGE(F93:F97) -> 0 | F95: 0
A96: 0 | F96: 0
A97: 0 | C97: =IF(C92-TRUNC(C92)>=0.7,TRUNC(C92)+1,TRUNC(C92)) -> 0 | D97: =IF(D92-TRUNC(D92)>=0.7,TRUNC(D92)+1,TRUNC(D92)) -> 0 | F97: 0

Sheet Beta8
B2: MyBet_MySkore_v10_11_1 | H2: Wanga-Bet_v1_010_2 | K2: "Динамика" | M2: Altadar
B4: =CONCATENATE(Расчеты!E14," / ",Расчеты!H14) -> 6 / 16 | C4: =Расчеты!F14 -> Жарково | E4: =Расчеты!I14 -> Нови Белград | G4: =CONCATENATE(Расчеты!K14," / ",Расчеты!H14) -> 5 / 16 | H4: =C4 -> Жарково | I4: - | J4: =E4 -> Нови Белград | K4: =Расчеты!Z50 -> Х2 | M4: ИСХОДЫ №1 | P4: ДИ №1 | S4: ТОТАЛЫ №1 | U4: ТС | X4: ИТБ №1
B6: Точный Счет "Програмный" | D6: Точный Счет по Миллеру | F6: Точный Счет на ТМ (2А,ЗА) | H6: Точный Счет Матча | K6: "Теория Лиги" | M6: П1 | N6: Х | O6: П2 | P6: 1Х | Q6: 12 | R6: Х2 | S6: ТБ | T6: ТМ | U6: ТС №1 | V6: =Расчеты!G118 -> 1 | W6: =Расчеты!H118 -> 0 | X6: ИТБ1 | Y6: ИТБ2
M7: =Расчеты!C104 -> 0.09523809524 | N7: =Расчеты!D104 -> 0.5714285714 | O7: =Расчеты!E104 -> 0.3333333333 | P7: =Расчеты!C107 -> 0.3333333333 | Q7: =Расчеты!D107 -> 0.2142857143 | R7: =Расчеты!E107 -> 0.4523809524 | S7: =Расчеты!C110 -> 2.066666667 | T7: =Расчеты!D110 -> 2.166666667 | U7: ТС №2 | V7: =Расчеты!G119 -> 0 | W7: =Расчеты!H119 -> 1 | X7: =Расчеты!C114 -> 1.033333333 | Y7: =Расчеты!D114 -> 1.833333333
B8: =CONCATENATE(Расчеты!F12," - ",Расчеты!F13) -> 1 - 2 | C8: =CONCATENATE(Расчеты!G12," - ",Расчеты!G13) -> 1 - 2 | D8: =CONCATENATE(Расчеты!N18," - ",Расчеты!N20) -> 1 - 0 | E8: =CONCATENATE(Расчеты!O18," - ",Расчеты!O20) -> 1 - 1 | F8: =CONCATENATE(Расчеты!H12," - ",Расчеты!H13) -> 1 - 1 | G8: =CONCATENATE(Расчеты!I12," - ",Расчеты!I13) -> 1 - 2 | H8: =Расчеты!AE57 -> 0 | I8: : | J8: =Расчеты!AG57 -> 1 | K8: П1 | L8: =Расчеты!T67/100 -> 0.2139917695 | M8: ИСХОДЫ №2 | P8: ДИ №2 | S8: =Расчеты!C111 -> 0.5118110236 | T8: =Расчеты!D111 -> 0.4881889764 | U8: ТС №3 | V8: =Расчеты!G120 -> 0 | W8: =Расчеты!H120 -> -1 | X8: =Расчеты!C115 -> 0.6395348837 | Y8: =Расчеты!D115 -> 0.3604651163
S9: ТОТАЛЫ №2 | U9: ТС №4 | V9: =Расчеты!G121 -> 2 | W9: =Расчеты!H121 -> 4 | X9: ИТБ №2
B10: Первый гол забьёт: | E10: Если условие слабое то 1 гол забьет: | H10: Первый Гол Забьёт: | K10: Х | L10: =Расчеты!U67/100 -> 0.3744855967 | M10: П1 | N10: Х | O10: П2 | P10: 1Х | Q10: 12 | R10: Х2 | U10: ТС №5 | V10: =Расчеты!G122 -> 1 | W10: =Расчеты!H122 -> 3
M11: =Расчеты!F103 -> 0.1111111111 | N11: =Расчеты!G103 -> 0.5555555556 | O11: =Расчеты!H103 -> 0.3333333333 | P11: =Расчеты!F107 -> 0.3333333333 | Q11: =Расчеты!G107 -> 0.2222222222 | R11: =Расчеты!H107 -> 0.4444444444 | S11: ТБ | T11: ТМ | U11: ТС №6 | V11: =Расчеты!G123 -> 3 | W11: =Расчеты!H123 -> 5 | X11: ИТБ1 | Y11: ИТБ2
B12: =Расчеты!J12 -> 0.8 | C12: =IF(Расчеты!K12="К1","Команда 1","Команда 2") -> Команда 2 | E12: =IF(Расчеты!K13="К1","Команда 1","Команда 2") -> Команда 1 | H12: =Расчеты!G87 -> 2 команда | K12: П2 | L12: =Расчеты!V67/100 -> 0.4115226337 | M12: ИСХОДЫ №3 | P12: ДИ №3 | S12: =Расчеты!E110 -> 2.2 | T12: =Расчеты!F110 -> 3.2 | X12: =Расчеты!E114 -> 1.1 | Y12: =Расчеты!F114 -> 1.28
B13: =Расчеты!J13 -> 1.461538462 | S13: =Расчеты!E111 -> 0.5925925926 | T13: =Расчеты!F111 -> 0.4074074074 | X13: =Расчеты!E115 -> 0.4621848739 | Y13: =Расчеты!F115 -> 0.5378151261
B14: Обе забьют? | D14: =Расчеты!L14 -> Да | E14: Индикатор ТБ 2,5 | G14: =Расчеты!C28 -> Нет ставки | H14: Вероятность забитого гола: | K14: ТБ 2,5 | L14: =Расчеты!X67/100 -> 0.773015873 | M14: П1 | N14: Х | O14: П2 | P14: 1Х | Q14: 12 | R14: Х2 | S14: ТОТАЛЫ №3 | X14: ИТМ №1
M15: =Расчеты!I104 -> 0.2647058824 | N15: =Расчеты!J104 -> 0.5 | O15: =Расчеты!K104 -> 0.2352941176 | P15: =Расчеты!I107 -> 0.3823529412 | Q15: =Расчеты!J107 -> 0.25 | R15: =Расчеты!K107 -> 0.3676470588
B16: Средние показатели команд за 5 домашних и гостевых матчей | F16: Возможный Тотал матча | G16: =Расчеты!D14 -> 2.5 | H16: Команда 1 | J16: Команда 2 | K16: ТМ 2,5 | L16: =Расчеты!W67/100 -> 0.226984127 | M16: ИСХОДЫ №4 | P16: ДИ №4 | S16: ="Тотал №1 "&Расчеты!G110 -> Тотал №1 ТМ(2,42) | X16: ИТМ1 | Y16: ИТМ2
B17: Команды: | C17: Тотал | D17: Забито | E17: Пропущено | S17: ="Тотал №2 "&Расчеты!H110 -> Тотал №2 ТМ(3,42) | X17: =Расчеты!G114 -> 1.266666667 | Y17: =Расчеты!H114 -> 1.266666667
B18: =C4 -> Жарково | C18: =Расчеты!J25 -> 2.4 | D18: =Расчеты!K25 -> 0.8 | E18: =Расчеты!L25 -> 1.6 | F18: % прохода ТБ 2,5 | G18: =Расчеты!M12 -> 0.7142857143 | H18: =Расчеты!R97 -> НЕТ | J18: =Расчеты!S97 -> ДА | K18: Теория "0 голов" | M18: П1 | N18: П2 | P18: =Расчеты!L107 -> 1Х | S18: ="Тотал №3 "&Расчеты!I110 -> Тотал №3 ТМ(1,42) | X18: =Расчеты!G115 -> 0.5 | Y18: =Расчеты!H115 -> 0.5
B19: =E4 -> Нови Белград | C19: =Расчеты!J26 -> 2.4 | D19: =Расчеты!K26 -> 1.4 | E19: =Расчеты!L26 -> 1 | F19: Ставка на тотал | G19: =Расчеты!M13 -> Нет | M19: =Расчеты!L104 -> 0.5666666667 | N19: =Расчеты!M104 -> 0.4333333333 | S19: ДОП. ИНФО. ПО ГОЛАХ | X19: ИТМ №2
B20: EW-легкая победа, W-победа простая, D-ничья, L-проигрыш, HL-позорный проигрыш | H20: Обе забьют? | I20: =Расчеты!T97 -> НЕТ | K20: =Расчеты!AB82 -> 1 | L20: =Расчеты!AC82 -> 1 | P20: ФОРА (ИСХОД)
B21: =C4 -> Жарково | C21: =Расчеты!Q20 -> D | D21: =Расчеты!R20 -> D | E21: =Расчеты!S20 -> D | F21: =Расчеты!T20 -> EW | G21: =Расчеты!U20 -> HL | K21: =Расчеты!AB83 -> 0.4924642877 | L21: =Расчеты!AC83 -> 0.3675688349 | S21: ="В матче будет забито: "&Расчеты!I117&", "&Расчеты!J117&" гола" -> В матче будет забито: 1, 2 гола | X21: ИТМ1 | Y21: ИТМ2
B22: =E4 -> Нови Белград | C22: =Расчеты!V20 -> D | D22: =Расчеты!W20 -> D | E22: =Расчеты!X20 -> W | F22: =Расчеты!Y20 -> EW | G22: =Расчеты!Z20 -> EW | H22: Теория "Синдиката" | K22: =Расчеты!Z75 -> П2 | P22: =Расчеты!M107 -> Ф1(0) | S22: ="ОЗ: "&Расчеты!I119&"/"&Расчеты!J119 -> ОЗ: НЕТ/НЕТ | X22: =Расчеты!I114 -> 1.14 | Y22: =Расчеты!J114 -> 1.05
B23: ВСЕГО | D23: ДОМА | F23: ВЫЕЗД | X23: =Расчеты!I115 -> 0.3604651163 | Y23: =Расчеты!J115 -> 0.6395348837
B24: W/D/L | C24: Забито/Проп. | D24: W/D/L | E24: Забито/Проп. | F24: W/D/L | G24: Забито/Проп. | H24: Тест № 1 | I24: =Расчеты!D76 -> П2 | K24: Теория "П/Т" | S24: ДИСТАНЦИЯ
B25: =Расчеты!H8 -> 3/4/3 | C25: =Расчеты!I8 -> 8/10 | D25: =Расчеты!O8 -> 1/3/2 | E25: =Расчеты!P8 -> 4/8 | F25: =Расчеты!V8 -> 2/1/1 | G25: =Расчеты!W8 -> 4/2 | H25: Тест № 2 | I25: =Расчеты!D77 -> Ф2 (+1)
B26: =Расчеты!H9 -> 5/4/1 | C26: =Расчеты!I9 -> 19/13 | D26: =Расчеты!O9 -> 3/2/1 | E26: =Расчеты!P9 -> 12/8 | F26: =Расчеты!V9 -> 2/2/0 | G26: =Расчеты!W9 -> 7/5 | H26: Тест № 3 | I26: =Расчеты!D78 -> П2 | K26: Обе забьют? | S26: ="Больше мотивации в "& Расчеты!I123 -> Больше мотивации в Команда 2
B27: Команды: | C27: Сила атаки | D27: Сила обороны | E27: Серии | F27: ТБ 2,5 | G27: Рейтинг | H27: Тест № 4 | I27: =Расчеты!D79 -> П2 | K27: =Расчеты!AM46 -> Нет
B28: =C4 -> Жарково | C28: =Расчеты!Q25 -> 0.5769230769 | D28: =Расчеты!R25 -> 0.6666666667 | E28: =Расчеты!N12 -> НННВП | F28: =Расчеты!O12 -> +---+ | G28: =Расчеты!P12 -> 0.2162698413 | H28: Тотал | I28: =Расчеты!D80 -> ТМ 2,5 | K28: 1 команда | L28: =Расчеты!AF47 -> Нет
B29: =E4 -> Нови Белград | C29: =Расчеты!Q26 -> 1.5 | D29: =Расчеты!R26 -> 1.733333333 | E29: =Расчеты!N13 -> ННВВВ | F29: =Расчеты!O13 -> +++-+ | G29: =Расчеты!P13 -> 0.416005291 | H29: Счет матча | K29: 2 команда | L29: =Расчеты!AG47 -> Нет
B30: Исход матча | C30: ТБ 2,5 | D30: Мощь | F30: Вероятность гола | K30: New Total Bomb 2016 39
B31: =Расчеты!W26 -> П2 | C31: =Расчеты!P14 -> 0.6 | D31: 1 команда | E31: 2 команда | F31: 1 команда | G31: 2 команда | H31: =CONCATENATE(Расчеты!Q66," - ",Расчеты!Q67) -> 1 - 2
D32: =Расчеты!Q12 -> -0.4333333333 | E32: =Расчеты!Q13 -> 0.15 | F32: =Расчеты!R12 -> Да | G32: =Расчеты!R13 -> Да | K32: К1 | L32: Результат 1 | N32: Результат 2 | P32: ПРОГНОЗ | R32: К2
B33: Линия БК bet365 | C33: П1 | D33: Х | E33: П2 | F33: ТБ 2,5 | G33: ТМ 2,5 | H33: ОЗ "Да" | I33: ОЗ "Нет" | J33: Маржа (%) ТБ: | L33: =Расчеты!V112 -> 1 | M33: =Расчеты!W112 -> 1 | N33: =Расчеты!X112 -> 2 | O33: =Расчеты!Y112 -> 2 | P33: =Расчеты!Z112 -> X2
B34: Коэффициенты: | C34: =Расчеты!E33 -> 2.8 | D34: =Расчеты!F33 -> 2.95 | E34: =Расчеты!G33 -> 2.6 | F34: =Расчеты!J33 -> 2.3 | G34: =Расчеты!K33 -> 1.55 | H34: =Расчеты!N33 -> 2 | I34: =Расчеты!O33 -> 1.71 | J34: =Расчеты!K31 -> 0.07994389902 | K34: =Расчеты!V120 -> 1.27760761 | R34: =Расчеты!W120 -> 1.464598456
B35: Вероятность %: | C35: =Расчеты!E34 -> 0.3304610082 | D35: =Расчеты!F34 -> 0.3136579061 | E35: =Расчеты!G34 -> 0.3558810857 | F35: =Расчеты!J34 -> 0.4025974026 | G35: =Расчеты!K34 -> 0.5974025974 | H35: =Расчеты!N34 -> 0.460916442 | I35: =Расчеты!O34 -> 0.539083558 | J35: Маржа (%) ОЗ: | M35: 1 | N35: X | O35: 2 | P35: ТБ2,5 | Q35: ТМ2,5
B36: Валуйность %: | C36: =C35-C39 -> 0.1712017811 | D36: =D35-D39 -> 0.0816496013 | E36: =E35-E39 -> -0.2523961324 | F36: =F35-I42 -> -0.05358948152 | G36: =G35-I39 -> 0.05358948152 | H36: =H35-D42 -> 0.02229322057 | I36: =I35-E42 -> -0.02229322057 | J36: =Расчеты!O31 -> 0.08479532164 | K36: % | M36: =Расчеты!X116 -> 32.99152764 | N36: =Расчеты!Y116 -> 25.45851762 | O36: =Расчеты!Z116 -> 41.5298048 | P36: =Расчеты!AB116 -> 51.66572905 | Q36: =Расчеты!AA116 -> 48.33427095
B37: Маржа (%) 1х2: | C37: =Расчеты!G31 -> 0.08074129261 | D37: Вероятность событий и распределение коэффициентов в соответсвии с распределением Пуассона | K37: Кф | M37: =Расчеты!X117 -> 3.031081224 | N37: =Расчеты!Y117 -> 3.927958473 | O37: =Расчеты!Z117 -> 2.407909223 | P37: =Расчеты!AB117 -> 1.935518996 | Q37: =Расчеты!AA117 -> 2.068925382
B38: Исход | C38: П1 | D38: Х | E38: П2 | F38: 1К забьет "Да" | G38: 2К забьет "Да" | H38: ТМ 1,5 | I38: ТМ 2,5 | J38: ТМ 3,5
B39: Вероятность в %: | C39: =Расчеты!AD17/100 -> 0.1592592271 | D39: =Расчеты!AD18/100 -> 0.2320083048 | E39: =Расчеты!AD19/100 -> 0.6082772181 | F39: =Расчеты!AD26/100 -> 0.5317660902 | G39: =Расчеты!AD28/100 -> 0.8247721327 | H39: =Расчеты!AD21/100 -> 0.2872974952 | I39: =Расчеты!AD23/100 -> 0.5438131159 | J39: =Расчеты!AD25/100 -> 0.7575761331
B40: Коэффициенты: | C40: =Расчеты!AE17 -> 6.279071037 | D40: =Расчеты!AE18 -> 4.310190538 | E40: =Расчеты!AE19 -> 1.643987265 | F40: =Расчеты!AE26 -> 1.880526078 | G40: =Расчеты!AE28 -> 1.212456096 | H40: =Расчеты!AE21 -> 3.48071256 | I40: =Расчеты!AE23 -> 1.838867013 | J40: =Расчеты!AE25 -> 1.319999346 | K40: МОЖНО СТАВИТЬ | N40: =Расчеты!Y118 -> OK | O40: =Расчеты!Z118 -> OK | P40: =Расчеты!AA118 -> OK | Q40: =Расчеты!AB118 -> NO | R40: =Расчеты!AC118 -> NO
B41: Вероятный счет | D41: Обе забьют "Да" | E41: Обе забьют "Нет" | F41: 1К забьет "Нет" | G41: 2К забьет "Нет" | H41: ТБ 1,5 | I41: ТБ 2,5 | J41: ТБ 3,5 | K41: % | N41: =Расчеты!Y119 -> 93.55719425 | O41: =Расчеты!Z119 -> 75.88969326 | P41: =Расчеты!AA119 -> 51.66572905 | Q41: =Расчеты!AB119 -> 29.52336186 | R41: =Расчеты!AC119 -> 16.29407396
B42: =Расчеты!S12 -> 0 | C42: =Расчеты!S13 -> 1 | D42: =Расчеты!AD30/100 -> 0.4386232215 | E42: =Расчеты!AD31/100 -> 0.5613767785 | F42: =Расчеты!AD27/100 -> 0.4682339098 | G42: =Расчеты!AD29/100 -> 0.1752278673 | H42: =Расчеты!AD20/100 -> 0.7127025048 | I42: =Расчеты!AD22/100 -> 0.4561868841 | J42: =Расчеты!AD24/100 -> 0.2424238669 | K42: БОЛЬШЕ | N42: 0.5 | O42: 1.5 | P42: 2.5 | Q42: 3.5 | R42: 4.5
D43: =Расчеты!AE30 -> 2.279861054 | E43: =Расчеты!AE31 -> 1.781334815 | F43: =Расчеты!AE27 -> 2.135684706 | G43: =Расчеты!AE29 -> 5.706854824 | H43: =Расчеты!AE20 -> 1.403109984 | I43: =Расчеты!AE22 -> 2.192084066 | J43: =Расчеты!AE24 -> 4.12500639 | K43: Кф | N43: =Расчеты!Y121 -> 1.068864888 | O43: =Расчеты!Z121 -> 1.317701992 | P43: =Расчеты!AA121 -> 1.935518996 | Q43: =Расчеты!AB121 -> 3.387148133 | R43: =Расчеты!AC121 -> 6.137200571
B44: Tyresyas 39 | C44: Показатели | G44: Прогноз
C45: Дома | D45: Гости | E45: Тотал | F45: Дельта | G45: К1 Заб | H45: 2К Заб | I45: ОЗ | J45: Тотал1 | K45: Тотал2 | L45: 1X2 | M45: ОНЗ | N45: Чет/нечет
B46: Вариант1 | C46: =Расчеты!AK66 -> 1.55 | D46: =Расчеты!AL66 -> 1.5 | E46: =Расчеты!AM66 -> 3.05 | F46: =Расчеты!AN66 -> 0.05 | G46: =Расчеты!AO66 -> Да | H46: =Расчеты!AP66 -> - | I46: =Расчеты!AQ66 -> - | J46: =Расчеты!AR66 -> ТБ1.5 | K46: =Расчеты!AS66 -> - | L46: =Расчеты!AT66 -> - | M46: =Расчеты!AU66 -> - | N46: =Расчеты!AV66 -> Чет
B47: Вариант2 | C47: =Расчеты!AK67 -> 1.06969697 | D47: =Расчеты!AL67 -> 1.154545455 | E47: =Расчеты!AM67 -> 2.224242424 | F47: =Расчеты!AN67 -> -0.08484848485 | G47: =Расчеты!AO67 -> - | H47: =Расчеты!AP67 -> - | I47: =Расчеты!AQ67 -> - | J47: =Расчеты!AR67 -> ТМ2 | K47: =Расчеты!AS67 -> - | L47: =Расчеты!AT67 -> - | M47: =Расчеты!AU67 -> - | N47: =Расчеты!AV67 -> Чет
B48: Вариант3 | C48: =Расчеты!AK68 -> 1.266666667 | D48: =Расчеты!AL68 -> 1.2 | E48: =Расчеты!AM68 -> 2.466666667 | F48: =Расчеты!AN68 -> 0.06666666667 | G48: =Расчеты!AO68 -> - | H48: =Расчеты!AP68 -> - | I48: =Расчеты!AQ68 -> - | J48: =Расчеты!AR68 -> - | K48: =Расчеты!AS68 -> - | L48: =Расчеты!AT68 -> - | M48: =Расчеты!AU68 -> - | N48: =Расчеты!AV68 -> Чет
B49: Вариант4 | C49: =Расчеты!AK69 -> 0.95 | D49: =Расчеты!AL69 -> 0.2 | E49: =Расчеты!AM69 -> 1.15 | F49: =Расчеты!AN69 -> 0.75 | G49: =Расчеты!AO69 -> - | H49: =Расчеты!AP69 -> - | I49: =Расчеты!AQ69 -> - | J49: =Расчеты!AR69 -> ТМ3.5 | K49: =Расчеты!AS69 -> - | L49: =Расчеты!AT69 -> - | M49: =Расчеты!AU69 -> - | N49: =Расчеты!AV69 -> Нечет
B50: Вариант5 | C50: =Расчеты!AK70 -> 0.9939393939 | D50: =Расчеты!AL70 -> 1.327272727 | E50: =Расчеты!AM70 -> 2.321212121 | F50: =Расчеты!AN70 -> -0.3333333333 | G50: =Расчеты!AO70 -> - | H50: =Расчеты!AP70 -> - | I50: =Расчеты!AQ70 -> - | J50: =Расчеты!AR70 -> ТМ2 | K50: =Расчеты!AS70 -> - | L50: =Расчеты!AT70 -> - | M50: =Расчеты!AU70 -> - | N50: =Расчеты!AV70 -> Нечет
B51: Вариант6 | C51: =Расчеты!AK71 -> 0.9333333333 | D51: =Расчеты!AL71 -> 1.6 | E51: =Расчеты!AM71 -> 2.533333333 | F51: =Расчеты!AN71 -> -0.6666666667 | G51: =Расчеты!AO71 -> - | H51: =Расчеты!AP71 -> Да | I51: =Расчеты!AQ71 -> - | J51: =Расчеты!AR71 -> ТБ1.5 | K51: =Расчеты!AS71 -> - | L51: =Расчеты!AT71 -> - | M51: =Расчеты!AU71 -> - | N51: =Расчеты!AV71 -> Нечет
B52: Вариант7 | C52: =Расчеты!AK89 -> 0.1 | D52: =Расчеты!AL89 -> 0.8 | E52: =Расчеты!AM89 -> 0.9 | F52: =Расчеты!AN89 -> -0.7 | G52: =Расчеты!AO89 -> - | H52: =Расчеты!AP89 -> - | I52: =Расчеты!AQ89 -> - | J52: =Расчеты!AR89 -> ТМ3.5 | K52: =Расчеты!AS89 -> ТМ3.5 | L52: =Расчеты!AT89 -> - | M52: =Расчеты!AU89 -> - | N52: =Расчеты!AV89 -> Нечет
B53: Вариант8 | C53: =Расчеты!AK90 -> 1.03030303 | D53: =Расчеты!AL90 -> 1.145454545 | E53: =Расчеты!AM90 -> 2.175757576 | F53: =Расчеты!AN90 -> -0.1151515152 | G53: =Расчеты!AO90 -> - | H53: =Расчеты!AP90 -> - | I53: =Расчеты!AQ90 -> - | J53: =Расчеты!AR90 -> ТМ2 | K53: =Расчеты!AS90 -> - | L53: =Расчеты!AT90 -> - | M53: =Расчеты!AU90 -> - | N53: =Расчеты!AV90 -> Нечет
B54: Вариант9 | C54: =Расчеты!AK91 -> 0.8333333333 | D54: =Расчеты!AL91 -> 1.1 | E54: =Расчеты!AM91 -> 1.933333333 | F54: =Расчеты!AN91 -> -0.2666666667 | G54: =Расчеты!AO91 -> - | H54: =Расчеты!AP91 -> - | I54: =Расчеты!AQ91 -> - | J54: =Расчеты!AR91 -> ТМ3.5 | K54: =Расчеты!AS91 -> - | L54: =Расчеты!AT91 -> - | M54: =Расчеты!AU91 -> - | N54: =Расчеты!AV91 -> Нечет
B55: Вариант10 | C55: =Расчеты!AK92 -> 0.3 | D55: =Расчеты!AL92 -> 0.75 | E55: =Расчеты!AM92 -> 1.05 | F55: =Расчеты!AN92 -> -0.45 | G55: =Расчеты!AO92 -> - | H55: =Расчеты!AP92 -> - | I55: =Расчеты!AQ92 -> - | J55: =Расчеты!AR92 -> ТМ3.5 | K55: =Расчеты!AS92 -> - | L55: =Расчеты!AT92 -> - | M55: =Расчеты!AU92 -> - | N55: =Расчеты!AV92 -> Чет
B56: Вариант11 | C56: =Расчеты!AK93 -> 1.006060606 | D56: =Расчеты!AL93 -> 1.272727273 | E56: =Расчеты!AM93 -> 2.278787879 | F56: =Расчеты!AN93 -> -0.2666666667 | G56: =Расчеты!AO93 -> - | H56: =Расчеты!AP93 -> - | I56: =Расчеты!AQ93 -> - | J56: =Расчеты!AR93 -> ТМ2 | K56: =Расчеты!AS93 -> - | L56: =Расчеты!AT93 -> - | M56: =Расчеты!AU93 -> - | N56: =Расчеты!AV93 -> Чет
B57: Вариант12 | C57: =Расчеты!AK94 -> 1.066666667 | D57: =Расчеты!AL94 -> 1 | E57: =Расчеты!AM94 -> 2.066666667 | F57: =Расчеты!AN94 -> 0.06666666667 | G57: =Расчеты!AO94 -> - | H57: =Расчеты!AP94 -> - | I57: =Расчеты!AQ94 -> - | J57: =Расчеты!AR94 -> - | K57: =Расчеты!AS94 -> - | L57: =Расчеты!AT94 -> - | M57: =Расчеты!AU94 -> - | N57: =Расчеты!AV94 -> Чет

Sheet Valui
D4: ='Incognito DATA'!A1 -> Жарково | J4: ='Incognito DATA'!A7 -> Нови Белград | P4: SVIZZERA B
P5: 01.09.2014 ore 19.45
D9: BOOK | G9: Quota 1 | I9: Quota X | K9: Quota 2
D10: WILLIAM HILL
G11: =Коэффициенты!C2 -> 2.54 | I11: =Коэффициенты!C3 -> 2.88 | K11: =Коэффициенты!C4 -> 2.95
D13: probabilità percentuale quote | G13: =100/G11 -> 39.37007874 | I13: =100/I11 -> 34.72222222 | K13: =100/K11 -> 33.89830508 | M13: =SUM(G13+I13+K13) -> 107.990606 | O13: AGGIO DEL BOOK | Q13: =M13-100 -> 7.990606047
G16: =(M29+M40)/2 -> 16.11111111 | I16: =(N29+N40)/2 -> 44.44444444 | K16: =(O29+O40)/2 -> 39.44444444 | M16: Picchetto tecnico
M17: Esso è ricavato dalla media del picchetto casa/fuori e del picchetto forma
G18: =100/G16 -> 6.206896552 | I18: =100/I16 -> 2.25 | K18: =100/K16 -> 2.535211268 | M18: costituito dalle ultime 5 giornate totali
M20: Vinte casa | N20: Nulle casa | O20: Perse casa
E21: SEGNO 1 | G21: =G16-G13 -> -23.25896763 | I21: =IF(G21>9.99,"value 1","-") -> - | M21: ='Incognito DATA'!C3 -> 2 | N21: ='Incognito DATA'!D3 -> 3 | O21: ='Incognito DATA'!E3 -> 5 | Q21: =D4 -> Жарково
M22: Vinte fuori | N22: Nulle fuori | O22: Perse fuori
E23: SEGNO X | G23: =I16-I13 -> 9.722222222 | I23: =IF(G23>9.99,"value Х","-") -> - | M23: ='Incognito DATA'!C10 -> 2 | N23: ='Incognito DATA'!D10 -> 4 | O23: ='Incognito DATA'!E10 -> 2 | Q23: =J4 -> Нови Белград
E25: SEGNO 2 | G25: =K16-K13 -> 5.54613936 | I25: =IF(G25>9.99,"value 2","-") -> - | M25: Segno 1 | N25: Segno X | O25: Segno 2
M26: =M21+O23 -> 4 | N26: =N21+N23 -> 7 | O26: =O21+M23 -> 7
M28: % SEGNO 1 | N28: % SEGNO X | O28: % SEGNO 2
M29: =M26*100/(M26+N26+O26) -> 22.22222222 | N29: =N26*100/(M26+N26+O26) -> 38.88888889 | O29: =O26*100/(M26+N26+O26) -> 38.88888889
M31: Vinte u5 | N31: Nulle u5 | O31: Perse u5
M32: ='Incognito DATA'!C5 -> 1 | N32: ='Incognito DATA'!D5 -> 3 | O32: ='Incognito DATA'!E5 -> 1 | Q32: =D4 -> Жарково
M33: Vinte u5 | N33: Nulle u5 | O33: Perse u5
M34: ='Incognito DATA'!C11 -> 3 | N34: ='Incognito DATA'!D11 -> 2 | O34: ='Incognito DATA'!E11 -> 0 | Q34: =J4 -> Нови Белград
M36: Segno 1 | N36: Segno X | O36: Segno 2
M37: =M32+O34 -> 1 | N37: =N32+N34 -> 5 | O37: =M34+O32 -> 4
M39: % SEGNO 1 | N39: % SEGNO X | O39: % SEGNO 2
M40: =M37*100/(M37+N37+O37) -> 10 | N40: =N37*100/(M37+N37+O37) -> 50 | O40: =O37*100/(M37+N37+O37) -> 40
M41: =M40/100 -> 0.1 | N41: =N40/100 -> 0.5 | O41: 0.4

Sheet Poisson
D6: Команда | E6: Забито | F6: Пропущено | G6: Игры | I6: Средний
C7: Дом | D7: ='Incognito DATA'!A1 -> Жарково | E7: ='Incognito DATA'!F5 -> 4 | F7: ='Incognito DATA'!G5 -> 5 | G7: ='Incognito DATA'!B5 -> 5 | I7: =(E7+F8)/(G8+G7) -> 1
C8: Гости | D8: ='Incognito DATA'!A7 -> Нови Белград | E8: ='Incognito DATA'!F11 -> 12 | F8: ='Incognito DATA'!G11 -> 6 | G8: ='Incognito DATA'!B11 -> 5 | I8: =(E8+F7)/(G7+G8) -> 1.7
H10: 0 | I10: 1 | J10: 2 | K10: 3 | L10: 4 | M10: 5 | N10: 6 | O10: 7 | P10: 8 | Q10: 9
G11: 0 | H11: =POISSON(G11,I7,0)*POISSON(H10,I8,0) -> 0.06720551274 | I11: =POISSON(G11,I7,0)*POISSON(I10,I8,0) -> 0.1142493717 | J11: =POISSON(G11,I7,0)*POISSON(J10,I8,0) -> 0.09711196591 | K11: =POISSON(G11,I7,0)*POISSON(K10,I8,0) -> 0.05503011402 | L11: =POISSON(G11,I7,0)*POISSON(L10,I8,0) -> 0.02338779846 | M11: =POISSON(G11,I7,0)*POISSON(M10,I8,0) -> 0.007951851475 | N11: =POISSON(G11,I7,0)*POISSON(N10,I8,0) -> 0.002253024585 | O11: =POISSON(G11,I7,0)*POISSON(O10,I8,0) -> 0.0005471631134 | P11: =POISSON(G11,I7,0)*POISSON(P10,I8,0) -> 0.0001162721616 | Q11: =POISSON(G11,I7,0)*POISSON(Q10,I8,0) -> 2.196251941e-05
B12: ="1" -> 1 | C12: ="X" -> X | D12: ="2" -> 2 | G12: 1 | H12: =POISSON(G12,I7,0)*POISSON(H10,I8,0) -> 0.06720551274 | I12: =POISSON(G12,I7,0)*POISSON(I10,I8,0) -> 0.1142493717 | J12: =POISSON(G12,I7,0)*POISSON(J10,I8,0) -> 0.09711196591 | K12: =POISSON(G12,I7,0)*POISSON(K10,I8,0) -> 0.05503011402 | L12: =POISSON(G12,I7,0)*POISSON(L10,I8,0) -> 0.02338779846 | M12: =POISSON(G12,I7,0)*POISSON(M10,I8,0) -> 0.007951851475 | N12: =POISSON(G12,I7,0)*POISSON(N10,I8,0) -> 0.002253024585 | O12: =POISSON(G12,I7,0)*POISSON(O10,I8,0) -> 0.0005471631134 | P12: =POISSON(G12,I7,0)*POISSON(P10,I8,0) -> 0.0001162721616 | Q12: =POISSON(G12,I7,0)*POISSON(Q10,I8,0) -> 2.196251941e-05
B13: =VALUE(TEXT(SUM(H12:H20,I13:I20,J14:J20,K15:K20,L16:L20,M17:M20,N18:N20,O19:O20,P20),"0,000")) -> 0.222 | C13: =VALUE(TEXT(SUM(H11,I12,J13,K14,L15,M16,N17,O18,P19,Q20),"0,000")) -> 0.24 | D13: =VALUE(TEXT(1-C13-B13,"0,000")) -> 0.538 | G13: 2 | H13: =POISSON(G13,I7,0)*POISSON(H10,I8,0) -> 0.03360275637 | I13: =POISSON(G13,I7,0)*POISSON(I10,I8,0) -> 0.05712468583 | J13: =POISSON(G13,I7,0)*POISSON(J10,I8,0) -> 0.04855598295 | K13: =POISSON(G13,I7,0)*POISSON(K10,I8,0) -> 0.02751505701 | L13: =POISSON(G13,I7,0)*POISSON(L10,I8,0) -> 0.01169389923 | M13: =POISSON(G13,I7,0)*POISSON(M10,I8,0) -> 0.003975925738 | N13: =POISSON(G13,I7,0)*POISSON(N10,I8,0) -> 0.001126512292 | O13: =POISSON(G13,I7,0)*POISSON(O10,I8,0) -> 0.0002735815567 | P13: =POISSON(G13,I7,0)*POISSON(P10,I8,0) -> 5.81360808e-05 | Q13: =POISSON(G13,I7,0)*POISSON(Q10,I8,0) -> 1.098125971e-05
B14: =1/B13 -> 4.504504505 | C14: =1/C13 -> 4.166666667 | D14: =1/D13 -> 1.858736059 | G14: 3 | H14: =POISSON(G14,I7,0)*POISSON(H10,I8,0) -> 0.01120091879 | I14: =POISSON(G14,I7,0)*POISSON(I10,I8,0) -> 0.01904156194 | J14: =POISSON(G14,I7,0)*POISSON(J10,I8,0) -> 0.01618532765 | K14: =POISSON(G14,I7,0)*POISSON(K10,I8,0) -> 0.009171685669 | L14: =POISSON(G14,I7,0)*POISSON(L10,I8,0) -> 0.003897966409 | M14: =POISSON(G14,I7,0)*POISSON(M10,I8,0) -> 0.001325308579 | N14: =POISSON(G14,I7,0)*POISSON(N10,I8,0) -> 0.0003755040974 | O14: =POISSON(G14,I7,0)*POISSON(O10,I8,0) -> 9.119385224e-05 | P14: =POISSON(G14,I7,0)*POISSON(P10,I8,0) -> 1.93786936e-05 | Q14: =POISSON(G14,I7,0)*POISSON(Q10,I8,0) -> 3.660419902e-06
G15: 4 | H15: =POISSON(G15,I7,0)*POISSON(H10,I8,0) -> 0.002800229697 | I15: =POISSON(G15,I7,0)*POISSON(I10,I8,0) -> 0.004760390486 | J15: =POISSON(G15,I7,0)*POISSON(J10,I8,0) -> 0.004046331913 | K15: =POISSON(G15,I7,0)*POISSON(K10,I8,0) -> 0.002292921417 | L15: =POISSON(G15,I7,0)*POISSON(L10,I8,0) -> 0.0009744916024 | M15: =POISSON(G15,I7,0)*POISSON(M10,I8,0) -> 0.0003313271448 | N15: =POISSON(G15,I7,0)*POISSON(N10,I8,0) -> 9.387602436e-05 | O15: =POISSON(G15,I7,0)*POISSON(O10,I8,0) -> 2.279846306e-05 | P15: =POISSON(G15,I7,0)*POISSON(P10,I8,0) -> 4.8446734e-06 | Q15: =POISSON(G15,I7,0)*POISSON(Q10,I8,0) -> 9.151049756e-07
G16: 5 | H16: =POISSON(G16,I7,0)*POISSON(H10,I8,0) -> 0.0005600459395 | I16: =POISSON(G16,I7,0)*POISSON(I10,I8,0) -> 0.0009520780971 | J16: =POISSON(G16,I7,0)*POISSON(J10,I8,0) -> 0.0008092663826 | K16: =POISSON(G16,I7,0)*POISSON(K10,I8,0) -> 0.0004585842835 | L16: =POISSON(G16,I7,0)*POISSON(L10,I8,0) -> 0.0001948983205 | M16: =POISSON(G16,I7,0)*POISSON(M10,I8,0) -> 6.626542896e-05 | N16: =POISSON(G16,I7,0)*POISSON(N10,I8,0) -> 1.877520487e-05 | O16: =POISSON(G16,I7,0)*POISSON(O10,I8,0) -> 4.559692612e-06 | P16: =POISSON(G16,I7,0)*POISSON(P10,I8,0) -> 9.6893468e-07 | Q16: =POISSON(G16,I7,0)*POISSON(Q10,I8,0) -> 1.830209951e-07
G17: 6 | H17: =POISSON(G17,I7,0)*POISSON(H10,I8,0) -> 9.334098992e-05 | I17: =POISSON(G17,I7,0)*POISSON(I10,I8,0) -> 0.0001586796829 | J17: =POISSON(G17,I7,0)*POISSON(J10,I8,0) -> 0.0001348777304 | K17: =POISSON(G17,I7,0)*POISSON(K10,I8,0) -> 7.643071391e-05 | L17: =POISSON(G17,I7,0)*POISSON(L10,I8,0) -> 3.248305341e-05 | M17: =POISSON(G17,I7,0)*POISSON(M10,I8,0) -> 1.104423816e-05 | N17: =POISSON(G17,I7,0)*POISSON(N10,I8,0) -> 3.129200812e-06 | O17: =POISSON(G17,I7,0)*POISSON(O10,I8,0) -> 7.599487686e-07 | P17: =POISSON(G17,I7,0)*POISSON(P10,I8,0) -> 1.614891133e-07 | Q17: =POISSON(G17,I7,0)*POISSON(Q10,I8,0) -> 3.050349919e-08
B18: ТБ 0.5 | C18: =VALUE(TEXT(SUM(H11:Q20)-H11,"0,000")) -> 0.933 | D18: =1/C18 -> 1.071811361 | G18: 7 | H18: =POISSON(G18,I7,0)*POISSON(H10,I8,0) -> 1.333442713e-05 | I18: =POISSON(G18,I7,0)*POISSON(I10,I8,0) -> 2.266852612e-05 | J18: =POISSON(G18,I7,0)*POISSON(J10,I8,0) -> 1.92682472e-05 | K18: =POISSON(G18,I7,0)*POISSON(K10,I8,0) -> 1.091867342e-05 | L18: =POISSON(G18,I7,0)*POISSON(L10,I8,0) -> 4.640436202e-06 | M18: =POISSON(G18,I7,0)*POISSON(M10,I8,0) -> 1.577748309e-06 | N18: =POISSON(G18,I7,0)*POISSON(N10,I8,0) -> 4.470286874e-07 | O18: =POISSON(G18,I7,0)*POISSON(O10,I8,0) -> 1.085641098e-07 | P18: =POISSON(G18,I7,0)*POISSON(P10,I8,0) -> 2.306987333e-08 | Q18: =POISSON(G18,I7,0)*POISSON(Q10,I8,0) -> 4.357642741e-09
B19: ТБ 1.5 | C19: =VALUE(TEXT(SUM(H13:H20,I12:I20,J11:J20,K11:Q20),"0,000")) -> 0.751 | D19: =1/C19 -> 1.331557923 | G19: 8 | H19: =POISSON(G19,I7,0)*POISSON(H10,I8,0) -> 1.666803391e-06 | I19: =POISSON(G19,I7,0)*POISSON(I10,I8,0) -> 2.833565765e-06 | J19: =POISSON(G19,I7,0)*POISSON(J10,I8,0) -> 2.408530901e-06 | K19: =POISSON(G19,I7,0)*POISSON(K10,I8,0) -> 1.364834177e-06 | L19: =POISSON(G19,I7,0)*POISSON(L10,I8,0) -> 5.800545252e-07 | M19: =POISSON(G19,I7,0)*POISSON(M10,I8,0) -> 1.972185386e-07 | N19: =POISSON(G19,I7,0)*POISSON(N10,I8,0) -> 5.587858593e-08 | O19: =POISSON(G19,I7,0)*POISSON(O10,I8,0) -> 1.357051373e-08 | P19: =POISSON(G19,I7,0)*POISSON(P10,I8,0) -> 2.883734167e-09 | Q19: =POISSON(G19,I7,0)*POISSON(Q10,I8,0) -> 5.447053426e-10
B20: ТБ 2.5 | C20: =VALUE(TEXT(SUM(H14:H20,I13:I20,J12:J20,K11:Q20),"0,000")) -> 0.506 | D20: =1/C20 -> 1.976284585 | G20: 9 | H20: =POISSON(G20,I7,0)*POISSON(H10,I8,0) -> 1.852003768e-07 | I20: =POISSON(G20,I7,0)*POISSON(I10,I8,0) -> 3.148406406e-07 | J20: =POISSON(G20,I7,0)*POISSON(J10,I8,0) -> 2.676145445e-07 | K20: =POISSON(G20,I7,0)*POISSON(K10,I8,0) -> 1.516482419e-07 | L20: =POISSON(G20,I7,0)*POISSON(L10,I8,0) -> 6.44505028e-08 | M20: =POISSON(G20,I7,0)*POISSON(M10,I8,0) -> 2.191317095e-08 | N20: =POISSON(G20,I7,0)*POISSON(N10,I8,0) -> 6.20873177e-09 | O20: =POISSON(G20,I7,0)*POISSON(O10,I8,0) -> 1.507834858e-09 | P20: =POISSON(G20,I7,0)*POISSON(P10,I8,0) -> 3.204149074e-10 | Q20: =POISSON(G20,I7,0)*POISSON(Q10,I8,0) -> 6.052281584e-11
B21: ТБ 3.5 | C21: =VALUE(TEXT(SUM(H15:H20,I14:I20,J13:J20,K12:K20,L11:Q20),"0,000")) -> 0.286 | D21: =1/C21 -> 3.496503497
B22: ТБ 4.5 | C22: =VALUE(TEXT(SUM(H16:H20,I15:I20,J14:J20,K13:K20,L12:L20,M11:Q20),"0,000")) -> 0.137 | D22: 7.299270073
B23: ТБ 5.5 | C23: =VALUE(TEXT(SUM(H17:H20,I16:I20,J15:J20,K14:K20,L13:L20,M12:M20,N11:Q20),"0,000")) -> 0.057 | D23: 17.54385965
B25: ТМ 0.5 | C25: =1-C18 -> 0.067 | D25: 14.92537313 | F25: ОЗ | G25: =VALUE(TEXT(SUM(I12:Q20),"0,000")) -> 0.517 | H25: =1/G25 -> 1.934235977
B26: ТМ 1.5 | C26: 0.249 | D26: 4.016064257 | F26: НЕ ОЗ | G26: =1-G25 -> 0.483 | H26: =1/G26 -> 2.070393375
B27: ТМ 2.5 | C27: 0.494 | D27: 2.024291498
B28: ТМ 3.5 | C28: 0.714 | D28: 1.400560224 | F28: P | G28: =VALUE(TEXT(SUM(H11,H13,H15,H17,H19,I12,I14,I16,I18,I20,J11,J13,J15,J17,J19,K12,K14,K16,K18,K20,L11,L13,L15,L17,L19,M12,M14,M16,M18,M20)+SUM(N11,N13,N15,N17,N19,O12,O14,O16,O18,O20,P11,P13,P15,P17,P19,Q12,Q14,Q16,Q18,Q20),"0,000")) -> 0.502 | H28: =1/G28 -> 1.992031873
B29: ТМ 4.5 | C29: 0.863 | D29: 1.158748552 | F29: D | G29: =1-G28 -> 0.498 | H29: =1/G29 -> 2.008032129
B30: ТМ 5.5 | C30: 0.943 | D30: 1.060445387

Sheet Графики
A1: ='Incognito DATA'!A1 -> Жарково | B1: =TREND(F2:F8,E2:E8,E9) -> 0.8571428571 | N1: И | O1: В | P1: Н | Q1: П | R1: З | S1: П | U1: В | V1: Н | W1: П | X1: З | Y1: П
A2: дома | B2: =ДомаДома!L2 -> 2 | C2: =ДомаДома!M2 -> 2 | D2: =ДомаДома!N2 -> Н | E2: 1 | F2: =B8 -> 1 | G2: =B2-C2 -> 0 | H2: =G2+H3 -> -5 | I2: 5 | J2: =Дома!L2 -> 2 | K2: =Дома!M2 -> 2 | L2: =Дома!N2 -> Н | M2: =Дома!I2 -> Дома | N2: =IF(OR(M2="Гости",M2="Дома"),1,0) -> 1 | O2: =IF(M2="Дома",IF(L2="В",1,0),0) -> 0 | P2: =IF(M2="Дома",IF(L2="Н",1,0),0) -> 1 | Q2: =IF(M2="Дома",IF(L2="П",1,0),0) -> 0 | R2: =IF(M2="Дома",J2,0) -> 2 | S2: =IF(M2="Дома",K2,0) -> 2 | U2: =IF(M2="Гости",IF(L2="В",1,0),0) -> 0 | V2: =IF(M2="Гости",IF(L2="Н",1,0),0) -> 0 | W2: =IF(M2="Гости",IF(L2="П",1,0),0) -> 0 | X2: =IF(M2="Гости",J2,0) -> 0 | Y2: =IF(M2="Гости",K2,0) -> 0
B3: =ДомаДома!L3 -> 0 | C3: =ДомаДома!M3 -> 0 | D3: =ДомаДома!N3 -> Н | E3: 2 | F3: =B7 -> 0 | G3: =B3-C3 -> 0 | H3: =H4+G3 -> -5 | I3: m | J3: =Дома!L3 -> 0 | K3: =Дома!M3 -> 0 | L3: =Дома!N3 -> Н | M3: =Дома!I3 -> Гости | N3: =IF(OR(M3="Гости",M3="Дома"),N2+1,N2) -> 2 | O3: =IF(M3="Дома",IF(L3="В",O2+1,O2+0),O2+0) -> 0 | P3: =IF(M3="Дома",IF(L3="Н",P2+1,P2+0),P2+0) -> 1 | Q3: =IF(M3="Дома",IF(L3="П",Q2+1,Q2+0),Q2+0) -> 0 | R3: =IF(M3="Дома",R2+J3,R2+0) -> 2 | S3: =IF(M3="Дома",S2+K3,S2+0) -> 2 | U3: =IF(M3="Гости",IF(L3="В",U2+1,U2+0),U2+0) -> 0 | V3: =IF(M3="Гости",IF(L3="Н",V2+1,V2+0),V2+0) -> 1 | W3: =IF(M3="Гости",IF(L3="П",W2+1,W2+0),W2+0) -> 0 | X3: =IF(M3="Гости",X2+J3,X2+0) -> 0 | Y3: =IF(M3="Гости",Y2+K3,Y2+0) -> 0
B4: =ДомаДома!L4 -> 0 | C4: =ДомаДома!M4 -> 3 | D4: =ДомаДома!N4 -> П | E4: 3 | F4: =B6 -> 2 | G4: -3 | H4: -5 | I4: a | J4: =Дома!L4 -> 0 | K4: =Дома!M4 -> 0 | L4: =Дома!N4 -> Н | M4: =Дома!I4 -> Дома | N4: =IF(OR(M4="Гости",M4="Дома"),N3+1,N3) -> 3 | O4: =IF(M4="Дома",IF(L4="В",O3+1,O3+0),O3+0) -> 0 | P4: =IF(M4="Дома",IF(L4="Н",P3+1,P3+0),P3+0) -> 2 | Q4: =IF(M4="Дома",IF(L4="П",Q3+1,Q3+0),Q3+0) -> 0 | R4: =IF(M4="Дома",R3+J4,R3+0) -> 2 | S4: =IF(M4="Дома",S3+K4,S3+0) -> 2 | U4: =IF(M4="Гости",IF(L4="В",U3+1,U3+0),U3+0) -> 0 | V4: =IF(M4="Гости",IF(L4="Н",V3+1,V3+0),V3+0) -> 1 | W4: =IF(M4="Гости",IF(L4="П",W3+1,W3+0),W3+0) -> 0 | X4: =IF(M4="Гости",X3+J4,X3+0) -> 0 | Y4: =IF(M4="Гости",Y3+K4,Y3+0) -> 0
B5: =ДомаДома!L5 -> 0 | C5: =ДомаДома!M5 -> 2 | D5: =ДомаДома!N5 -> П | E5: 4 | F5: =B5 -> 0 | G5: -2 | H5: -2 | I5: t | J5: =Дома!L5 -> 2 | K5: =Дома!M5 -> 0 | L5: =Дома!N5 -> В | M5: =Дома!I5 -> Гости | N5: 4 | O5: 0 | P5: 2 | Q5: 0 | R5: 2 | S5: 2 | U5: 1 | V5: 1 | W5: 0 | X5: 2 | Y5: 0
B6: =ДомаДома!L6 -> 2 | C6: =ДомаДома!M6 -> 1 | D6: =ДомаДома!N6 -> В | E6: 5 | F6: =B4 -> 0 | G6: 1 | H6: =H7+G6 -> 0 | I6: h | J6: =Дома!L6 -> 0 | K6: =Дома!M6 -> 3 | L6: =Дома!N6 -> П | M6: =Дома!I6 -> Дома | N6: 5 | O6: 0 | P6: 2 | Q6: 1 | R6: 2 | S6: 5 | U6: 1 | V6: 1 | W6: 0 | X6: 2 | Y6: 0
B7: =ДомаДома!L7 -> 0 | C7: =ДомаДома!M7 -> 0 | D7: =ДомаДома!N7 -> Н | E7: 6 | F7: =B3 -> 0 | G7: 0 | H7: =H8+G7 -> -1 | J7: =Очные!AG2 -> 2 | K7: =Очные!AH2 -> 2 | L7: =Очные!G2 -> Н | M7: =Очные!S2 -> Дома | N7: 6 | O7: 0 | P7: 3 | Q7: 1 | R7: 4 | S7: 7 | U7: 1 | V7: 1 | W7: 0 | X7: 2 | Y7: 0
B8: =ДомаДома!L8 -> 1 | C8: =ДомаДома!M8 -> 2 | D8: =ДомаДома!N8 -> П | E8: 7 | F8: =B2 -> 2 | G8: -1 | H8: =H9+G8 -> -1 | J8: =Очные!AG3 -> 1 | K8: =Очные!AH3 -> 0 | L8: =Очные!G3 -> В | M8: =Очные!S3 -> Гости | N8: 7 | O8: 0 | P8: 3 | Q8: 1 | R8: 4 | S8: 7 | U8: 2 | V8: 1 | W8: 0 | X8: 3 | Y8: 0
B9: =ДомаДома!L9 -> 0 | C9: =ДомаДома!M9 -> 1 | D9: =ДомаДома!N9 -> П | E9: 8 | G9: -1 | H9: =H10+G9 -> 0 | J9: =Очные!AG4 -> 0 | K9: =Очные!AH4 -> 1 | L9: =Очные!G4 -> П | M9: =Очные!S4 -> Гости | N9: 8 | O9: 0 | P9: 3 | Q9: 1 | R9: 4 | S9: 7 | U9: 2 | V9: 1 | W9: 1 | X9: 3 | Y9: 1
B10: =ДомаДома!L10 -> 0 | C10: =ДомаДома!M10 -> 1 | D10: =ДомаДома!N10 -> П | G10: -1 | H10: =H11+G10 -> 1 | J10: =Очные!AG5 -> 1 | K10: =Очные!AH5 -> 3 | L10: =Очные!G5 -> П | M10: =Очные!S5 -> Дома | N10: 9 | O10: 0 | P10: 3 | Q10: 2 | R10: 5 | S10: 10 | U10: 2 | V10: 1 | W10: 1 | X10: 3 | Y10: 1
B11: =ДомаДома!L11 -> 2 | C11: =ДомаДома!M11 -> 0 | D11: =ДомаДома!N11 -> В | G11: 2 | H11: =G11 -> 2 | J11: =Очные!AG6 ->  | K11: =Очные!AH6 ->  | L11: =Очные!G6 ->  | M11: =Очные!S6 ->  | N11: 9 | O11: 0 | P11: 3 | Q11: 2 | R11: 5 | S11: 10 | U11: 2 | V11: 1 | W11: 1 | X11: 3 | Y11: 1
A13: ='Incognito DATA'!A7 -> Нови Белград | B13: =TREND(F14:F20,E2:E8,E9) -> 2.571428571 | N13: И
A14: гости | B14: =ГостиГости!L2 -> 2 | C14: =ГостиГости!M2 -> 2 | D14: =ГостиГости!N2 -> Н | F14: =B20 -> 0 | G14: =B14-C14 -> 0 | H14: =H15+G14 -> 1 | J14: =Гости!L2 -> 2 | K14: =Гости!M2 -> 2 | L14: =Гости!N2 -> Н | M14: =Гости!I2 -> Гости | O14: =IF(M14="Дома",IF(L14="В",1,0),0) -> 0 | P14: =IF(M14="Дома",IF(L14="Н",1,0),0) -> 0 | Q14: =IF(M14="Дома",IF(L14="П",1,0),0) -> 0 | R14: =IF(M14="Дома",J14,0) -> 0 | S14: =IF(M14="Дома",K14,0) -> 0 | U14: =IF(M14="Гости",IF(L14="В",1,0),0) -> 0 | V14: =IF(M14="Гости",IF(L14="Н",1,0),0) -> 1 | W14: =IF(M14="Гости",IF(L14="П",1,0),0) -> 0 | X14: =IF(M14="Гости",J14,0) -> 2 | Y14: =IF(M14="Гости",K14,0) -> 2
B15: =ГостиГости!L3 -> 2 | C15: =ГостиГости!M3 -> 1 | D15: =ГостиГости!N3 -> В | F15: =B19 -> 1 | G15: =B15-C15 -> 1 | H15: =H16+G15 -> 1 | J15: =Гости!L3 -> 2 | K15: =Гости!M3 -> 2 | L15: =Гости!N3 -> Н | M15: =Гости!I3 -> Дома | O15: =IF(M15="Дома",IF(L15="В",O14+1,O14+0),O14+0) -> 0 | P15: =IF(M15="Дома",IF(L15="Н",P14+1,P14+0),P14+0) -> 1 | Q15: =IF(M15="Дома",IF(L15="П",Q14+1,Q14+0),Q14+0) -> 0 | R15: =IF(M15="Дома",R14+J15,R14+0) -> 2 | S15: =IF(M15="Дома",S14+K15,S14+0) -> 2 | U15: =IF(M15="Гости",IF(L15="В",U14+1,U14+0),U14+0) -> 0 | V15: =IF(M15="Гости",IF(L15="Н",V14+1,V14+0),V14+0) -> 1 | W15: =IF(M15="Гости",IF(L15="П",W14+1,W14+0),W14+0) -> 0 | X15: =IF(M15="Гости",X14+J15,X14+0) -> 2 | Y15: =IF(M15="Гости",Y14+K15,Y14+0) -> 2
B16: =ГостиГости!L4 -> 2 | C16: =ГостиГости!M4 -> 1 | D16: =ГостиГости!N4 -> В | F16: =B18 -> 0 | G16: 1 | H16: 0 | J16: =Гости!L4 -> 2 | K16: =Гости!M4 -> 1 | L16: =Гости!N4 -> В | M16: =Гости!I4 -> Гости | O16: =IF(M16="Дома",IF(L16="В",O15+1,O15+0),O15+0) -> 0 | P16: =IF(M16="Дома",IF(L16="Н",P15+1,P15+0),P15+0) -> 1 | Q16: =IF(M16="Дома",IF(L16="П",Q15+1,Q15+0),Q15+0) -> 0 | R16: =IF(M16="Дома",R15+J16,R15+0) -> 2 | S16: =IF(M16="Дома",S15+K16,S15+0) -> 2 | U16: =IF(M16="Гости",IF(L16="В",U15+1,U15+0),U15+0) -> 1 | V16: =IF(M16="Гости",IF(L16="Н",V15+1,V15+0),V15+0) -> 1 | W16: =IF(M16="Гости",IF(L16="П",W15+1,W15+0),W15+0) -> 0 | X16: =IF(M16="Гости",X15+J16,X15+0) -> 4 | Y16: =IF(M16="Гости",Y15+K16,Y15+0) -> 3
B17: =ГостиГости!L5 -> 1 | C17: =ГостиГости!M5 -> 1 | D17: =ГостиГости!N5 -> Н | F17: =B17 -> 1 | G17: 0 | H17: -1 | J17: =Гости!L5 -> 2 | K17: =Гости!M5 -> 0 | L17: =Гости!N5 -> В | M17: =Гости!I5 -> Дома | O17: 1 | P17: 1 | Q17: 0 | R17: 4 | S17: 2 | U17: 1 | V17: 1 | W17: 0 | X17: 4 | Y17: 3
B18: =ГостиГости!L6 -> 0 | C18: =ГостиГости!M6 -> 0 | D18: =ГостиГости!N6 -> Н | F18: =B16 -> 2 | G18: 0 | H18: -1 | J18: =Гости!L6 -> 4 | K18: =Гости!M6 -> 1 | L18: =Гости!N6 -> В | M18: =Гости!I6 -> Дома | O18: 2 | P18: 1 | Q18: 0 | R18: 8 | S18: 3 | U18: 1 | V18: 1 | W18: 0 | X18: 4 | Y18: 3
B19: =ГостиГости!L7 -> 1 | C19: =ГостиГости!M7 -> 1 | D19: =ГостиГости!N7 -> Н | F19: =B15 -> 2 | G19: 0 | H19: -1 | J19: =Очные!AH2 -> 2 | K19: =Очные!AG2 -> 2 | L19: =Очные!M2 -> Н | M19: =Очные!Z2 -> Гости | O19: 2 | P19: 1 | Q19: 0 | R19: 8 | S19: 3 | U19: 1 | V19: 2 | W19: 0 | X19: 6 | Y19: 5
B20: =ГостиГости!L8 -> 0 | C20: =ГостиГости!M8 -> 4 | D20: =ГостиГости!N8 -> П | F20: =B14 -> 2 | G20: -4 | H20: -1 | J20: =Очные!AH3 -> 0 | K20: =Очные!AG3 -> 1 | L20: =Очные!M3 -> П | M20: =Очные!Z3 -> Дома | O20: 2 | P20: 1 | Q20: 1 | R20: 8 | S20: 4 | U20: 1 | V20: 2 | W20: 0 | X20: 6 | Y20: 5
B21: =ГостиГости!L9 -> 0 | C21: =ГостиГости!M9 -> 1 | D21: =ГостиГости!N9 -> П | G21: -1 | H21: 3 | J21: =Очные!AH4 -> 1 | K21: =Очные!AG4 -> 0 | L21: =Очные!M4 -> В | M21: =Очные!Z4 -> Дома | O21: 3 | P21: 1 | Q21: 1 | R21: 9 | S21: 4 | U21: 1 | V21: 2 | W21: 0 | X21: 6 | Y21: 5
B22: =ГостиГости!L10 -> 3 | C22: =ГостиГости!M10 -> 0 | D22: =ГостиГости!N10 -> В | G22: 3 | H22: =H23+G22 -> 4 | J22: =Очные!AH5 -> 3 | K22: =Очные!AG5 -> 1 | L22: =Очные!M5 -> В | M22: =Очные!Z5 -> Гости | O22: 3 | P22: 1 | Q22: 1 | R22: 9 | S22: 4 | U22: 2 | V22: 2 | W22: 0 | X22: 9 | Y22: 6
B23: =ГостиГости!L11 -> 3 | C23: =ГостиГости!M11 -> 2 | D23: =ГостиГости!N11 -> В | G23: 1 | H23: =G23 -> 1 | J23: =Очные!AH6 ->  | K23: =Очные!AG6 ->  | L23: =Очные!M6 ->  | M23: =Очные!Z6 ->  | O23: 3 | P23: 1 | Q23: 1 | R23: 9 | S23: 4 | U23: 2 | V23: 2 | W23: 0 | X23: 9 | Y23: 6
A25: total | D25: =TREND(F26:F32,E2:E8,E9) -> 2.928571429 | N25: В | O25: Н | P25: П | Q25: З | R25: П | S25: О | U25: И | V25: В | W25: Н | X25: П | Y25: З | Z25: П | AA25: О | AC25: И | AD25: В | AE25: Н | AF25: П | AG25: З | AH25: П | AI25: О | AJ25: рейтинг | AM25: ср заб
B26: =AVERAGE(B2:C2) -> 2 | C26: =AVERAGE(B14:C14) -> 2 | D26: =SUM(B26:C26) -> 4 | F26: =D32 -> 3.5 | J26: =A1 -> Жарково | M26: =SUM(AO42:AO69)/100 -> 0.1588366318 | N26: =COUNTIF(L2:L11,"В") -> 2 | O26: =COUNTIF(L2:L11,"Н") -> 4 | P26: =COUNTIF(L2:L11,"П") -> 3 | Q26: =SUM(J2:J11) -> 8 | R26: =SUM(K2:K11) -> 11 | S26: =N26*3+O26 -> 10 | U26: =COUNTIF(M2:M11,"Дома") -> 5 | V26: =MAX(O2:O11) -> 0 | W26: =MAX(P2:P11) -> 3 | X26: 2 | Y26: 5 | Z26: 10 | AA26: =V26*3+W26 -> 3 | AC26: =COUNTIF(M2:M11,"Гости") -> 4 | AD26: =MAX(U2:U11) -> 2 | AE26: =MAX(V2:V11) -> 1 | AF26: 1 | AG26: 3 | AH26: 1 | AI26: =AD26*3+AE26 -> 7 | AJ26: =(((AA26+AI26)*1.5+(Y26*1.5)+(Z26*1.5))-(AG26*1.5)-(AH26*1.5))/15 -> 2.1 | AK26: =Q26/10 -> 0.8 | AL26: =Y26/U26 -> 1 | AM26: =AVERAGE(AK26:AL26) -> 0.9
B27: 0 | C27: =AVERAGE(B15:C15) -> 1.5 | D27: =SUM(B27:C27) -> 1.5 | F27: =D31 -> 1 | J27: =A13 -> Нови Белград | M27: =SUM(AO73:AO100)/100 -> 0.6338121728 | N27: =COUNTIF(L14:L23,"В") -> 5 | O27: =COUNTIF(L14:L23,"Н") -> 3 | P27: =COUNTIF(L14:L23,"П") -> 1 | Q27: =SUM(J14:J23) -> 18 | R27: =SUM(K14:K23) -> 10 | S27: =N27*3+O27 -> 18 | U27: =COUNTIF(M14:M23,"Дома") -> 5 | V27: =MAX(O14:O23) -> 3 | W27: =MAX(P14:P23) -> 1 | X27: 1 | Y27: 9 | Z27: 4 | AA27: =V27*3+W27 -> 10 | AC27: =COUNTIF(M14:M23,"Гости") -> 4 | AD27: =MAX(U14:U23) -> 2 | AE27: =MAX(V14:V23) -> 2 | AF27: 0 | AG27: 9 | AH27: 6 | AI27: =AD27*3+AE27 -> 8 | AJ27: =(((AA27+AI27)*1.5+(Y27*1.5)+(Z27*1.5))-(AG27*1.5)-(AH27*1.5))/15 -> 1.6 | AK27: =Q27/10 -> 1.8 | AL27: =AG27/AC27 -> 2.25 | AM27: =AVERAGE(AK27:AL27) -> 2.025
B28: 1.5 | C28: 1.5 | D28: 3 | F28: =D30 -> 1.5 | K28: =MAX(N2:N11) -> 9 | L28: DR | M28: =SUM(AO104:AO110)/100 -> 0.2061608709
B29: 1 | C29: 1 | D29: 2 | F29: =D29 -> 2 | AL29: хоз | AM29: гости
B30: 1.5 | C30: 0 | D30: 1.5 | F30: =D28 -> 3 | M30: =AVERAGE(N30:O30) -> 0.07142857143 | N30: =V26/U26/(V26/U26+W26/U26+AD27/AC27+AE27/AC27) -> 0 | O30: =N26/K28/(N26/K28+O26/K28+N27/K28+O27/K28) -> 0.1428571429 | AK30: 0 | AL30: =POISSON(AK30,$AM$26,FALSE)*100 -> 40.65696597 | AM30: =POISSON(AK30,$AM$27,FALSE)*100 -> 13.19938432 | AN30: 0
B31: 0 | C31: 1 | D31: 1 | F31: =D27 -> 1.5 | M31: =AVERAGE(N31:O31) -> 0.59375 | N31: =(W26/U26+AE27/AC27)/(V26/U26+W26/U26+AD27/AC27+AE27/AC27) -> 0.6875 | O31: =(O26/K28+O27/K28)/(N26/K28+O26/K28+N27/K28+O27/K28) -> 0.5 | AK31: 1 | AL31: =POISSON(AK31,$AM$26,FALSE)*100 -> 36.59126938 | AM31: =POISSON(AK31,$AM$27,FALSE)*100 -> 26.72875325 | AN31: 1
B32: 1.5 | C32: 2 | D32: 3.5 | F32: =D26 -> 4 | M32: 0.3348214286 | N32: =AD27/AC27/(V26/U26+W26/U26+AD27/AC27+AE27/AC27) -> 0.3125 | O32: =N27/K28/(N26/K28+O26/K28+N27/K28+O27/K28) -> 0.3571428571 | AK32: 2 | AL32: 16.46607122 | AM32: 27.06286266 | AN32: 2
B33: 0.5 | C33: 0.5 | D33: 1 | AK33: 3 | AL33: 4.939821366 | AM33: 18.2674323 | AN33: 3
B34: 0.5 | C34: 1.5 | D34: 2 | AK34: 4 | AL34: 1.111459807 | AM34: 9.2478876 | AN34: 4
B35: 1 | C35: 2.5 | D35: 3.5 | AK35: 5 | AL35: 0.2000627653 | AM35: 3.745394478 | AN35: 5
AK36: 6 | AL36: 0.0300094148 | AM36: 1.264070636 | AN36: 6
AK37: 7 | AL37: 0.003858353331 | AM37: 0.3656775769 | AN37: 7
AK38: =MATCH(AL38,AL30:AL37,0) -> 1 | AL38: =MAX(AL30:AL37) -> 40.65696597 | AM38: =MAX(AM30:AM37) -> 27.06286266 | AN38: =MATCH(AM38,AM30:AM37,0) -> 3
AK40: хоз
AM41: H | AN41: A | AO41: EXP
AK42: 7 | AL42: 0 | AM42: =VLOOKUP(AK42,$AK$30:$AM$37,2) -> 0.003858353331 | AN42: =VLOOKUP(AL42,$AK$30:$AM$37,3) -> 13.19938432 | AO42: =(AM42*AN42)/100 -> 0.0005092788845
AK43: 7 | AL43: 1 | AM43: =VLOOKUP(AK43,$AK$30:$AM$37,2) -> 0.003858353331 | AN43: =VLOOKUP(AL43,$AK$30:$AM$37,3) -> 26.72875325 | AO43: 0.001031289741
AK44: 7 | AL44: 2 | AM44: 0.003858353331 | AN44: 27.06286266 | AO44: 0.001044180863
AK45: 7 | AL45: 3 | AM45: 0.003858353331 | AN45: 18.2674323 | AO45: 0.0007048220825
AK46: 7 | AL46: 4 | AM46: 0.003858353331 | AN46: 9.2478876 | AO46: 0.0003568161793
AK47: 7 | AL47: 5 | AM47: 0.003858353331 | AN47: 3.745394478 | AO47: 0.0001445105526
AK48: 7 | AL48: 6 | AM48: 0.003858353331 | AN48: 1.264070636 | AO48: 4.87723115e-05
AK49: 6 | AL49: 0 | AM49: 0.0300094148 | AN49: 13.19938432 | AO49: 0.003961057991
AK50: 6 | AL50: 1 | AM50: 0.0300094148 | AN50: 26.72875325 | AO50: 0.008021142432
AK51: 6 | AL51: 2 | AM51: 0.0300094148 | AN51: 27.06286266 | AO51: 0.008121406712
AK52: 6 | AL52: 3 | AM52: 0.0300094148 | AN52: 18.2674323 | AO52: 0.005481949531
AK53: 6 | AL53: 4 | AM53: 0.0300094148 | AN53: 9.2478876 | AO53: 0.00277523695
AK54: 6 | AL54: 5 | AM54: 0.0300094148 | AN54: 3.745394478 | AO54: 0.001123970965
AK55: 5 | AL55: 0 | AM55: 0.2000627653 | AN55: 13.19938432 | AO55: 0.02640705327
AK56: 5 | AL56: 1 | AM56: 0.2000627653 | AN56: 26.72875325 | AO56: 0.05347428288
AK57: 5 | AL57: 2 | AM57: 0.2000627653 | AN57: 27.06286266 | AO57: 0.05414271141
AK58: 5 | AL58: 3 | AM58: 0.2000627653 | AN58: 18.2674323 | AO58: 0.0365463302
AK59: 5 | AL59: 4 | AM59: 0.2000627653 | AN59: 9.2478876 | AO59: 0.01850157967
AK60: 4 | AL60: 0 | AM60: 1.111459807 | AN60: 13.19938432 | AO60: 0.1467058515
AK61: 4 | AL61: 1 | AM61: 1.111459807 | AN61: 26.72875325 | AO61: 0.2970793493
AK62: 4 | AL62: 2 | AM62: 1.111459807 | AN62: 27.06286266 | AO62: 0.3007928412
AK63: 4 | AL63: 3 | AM63: 1.111459807 | AN63: 18.2674323 | AO63: 0.2030351678
AK64: 3 | AL64: 0 | AM64: 4.939821366 | AN64: 13.19938432 | AO64: 0.6520260067
AK65: 3 | AL65: 1 | AM65: 4.939821366 | AN65: 26.72875325 | AO65: 1.320352664
AK66: 3 | AL66: 2 | AM66: 4.939821366 | AN66: 27.06286266 | AO66: 1.336857072
AK67: 2 | AL67: 0 | AM67: 16.46607122 | AN67: 13.19938432 | AO67: 2.173420022
AK68: 2 | AL68: 1 | AM68: 16.46607122 | AN68: 26.72875325 | AO68: 4.401175545
AK69: 1 | AL69: 0 | AM69: 36.59126938 | AN69: 13.19938432 | AO69: 4.829822272
AK71: гости
AK73: 0 | AL73: 7 | AM73: =VLOOKUP(AK73,$AK$30:$AM$37,2) -> 40.65696597 | AN73: =VLOOKUP(AL73,$AK$30:$AM$37,3) -> 0.3656775769 | AO73: =(AM73*AN73)/100 -> 0.148673408
AK74: 1 | AL74: 7 | AM74: =VLOOKUP(AK74,$AK$30:$AM$37,2) -> 36.59126938 | AN74: =VLOOKUP(AL74,$AK$30:$AM$37,3) -> 0.3656775769 | AO74: 0.1338060672
AK75: 2 | AL75: 7 | AM75: 16.46607122 | AN75: 0.3656775769 | AO75: 0.06021273025
AK76: 3 | AL76: 7 | AM76: 4.939821366 | AN76: 0.3656775769 | AO76: 0.01806381908
AK77: 4 | AL77: 7 | AM77: 1.111459807 | AN77: 0.3656775769 | AO77: 0.004064359292
AK78: 5 | AL78: 7 | AM78: 0.2000627653 | AN78: 0.3656775769 | AO78: 0.0007315846726
AK79: 6 | AL79: 7 | AM79: 0.0300094148 | AN79: 0.3656775769 | AO79: 0.0001097377009
AK80: 0 | AL80: 6 | AM80: 40.65696597 | AN80: 1.264070636 | AO80: 0.5139327685
AK81: 1 | AL81: 6 | AM81: 36.59126938 | AN81: 1.264070636 | AO81: 0.4625394916
AK82: 2 | AL82: 6 | AM82: 16.46607122 | AN82: 1.264070636 | AO82: 0.2081427712
AK83: 3 | AL83: 6 | AM83: 4.939821366 | AN83: 1.264070636 | AO83: 0.06244283137
AK84: 4 | AL84: 6 | AM84: 1.111459807 | AN84: 1.264070636 | AO84: 0.01404963706
AK85: 5 | AL85: 6 | AM85: 0.2000627653 | AN85: 1.264070636 | AO85: 0.002528934671
AK86: 0 | AL86: 5 | AM86: 40.65696597 | AN86: 3.745394478 | AO86: 1.522763759
AK87: 1 | AL87: 5 | AM87: 36.59126938 | AN87: 3.745394478 | AO87: 1.370487383
AK88: 2 | AL88: 5 | AM88: 16.46607122 | AN88: 3.745394478 | AO88: 0.6167193222
AK89: 3 | AL89: 5 | AM89: 4.939821366 | AN89: 3.745394478 | AO89: 0.1850157967
AK90: 4 | AL90: 5 | AM90: 1.111459807 | AN90: 3.745394478 | AO90: 0.04162855425
AK91: 0 | AL91: 4 | AM91: 40.65696597 | AN91: 9.2478876 | AO91: 3.759910515
AK92: 1 | AL92: 4 | AM92: 36.59126938 | AN92: 9.2478876 | AO92: 3.383919463
AK93: 2 | AL93: 4 | AM93: 16.46607122 | AN93: 9.2478876 | AO93: 1.522763759
AK94: 3 | AL94: 4 | AM94: 4.939821366 | AN94: 9.2478876 | AO94: 0.4568291276
AK95: 0 | AL95: 3 | AM95: 40.65696597 | AN95: 18.2674323 | AO95: 7.426983733
AK96: 1 | AL96: 3 | AM96: 36.59126938 | AN96: 18.2674323 | AO96: 6.68428536
AK97: 2 | AL97: 3 | AM97: 16.46607122 | AN97: 18.2674323 | AO97: 3.007928412
AK98: 0 | AL98: 2 | AM98: 40.65696597 | AN98: 27.06286266 | AO98: 11.00293886
AK99: 1 | AL99: 2 | AM99: 36.59126938 | AN99: 27.06286266 | AO99: 9.902644977
AK100: 0 | AL100: 1 | AM100: 40.65696597 | AN100: 26.72875325 | AO100: 10.86710011
AK102: ничья
AK104: 0 | AL104: 0 | AM104: =VLOOKUP(AK104,$AK$30:$AM$37,2) -> 40.65696597 | AN104: =VLOOKUP(AL104,$AK$30:$AM$37,3) -> 13.19938432 | AO104: =(AM104*AN104)/100 -> 5.366469191
AK105: 1 | AL105: 1 | AM105: =VLOOKUP(AK105,$AK$30:$AM$37,2) -> 36.59126938 | AN105: =VLOOKUP(AL105,$AK$30:$AM$37,3) -> 26.72875325 | AO105: 9.780390101
AK106: 2 | AL106: 2 | AM106: 16.46607122 | AN106: 27.06286266 | AO106: 4.45619024
AK107: 3 | AL107: 3 | AM107: 4.939821366 | AN107: 18.2674323 | AO107: 0.9023785236
AK108: 4 | AL108: 4 | AM108: 1.111459807 | AN108: 9.2478876 | AO108: 0.1027865537
AK109: 5 | AL109: 5 | AM109: 0.2000627653 | AN109: 3.745394478 | AO109: 0.007493139765
AK110: 6 | AL110: 6 | AM110: 0.0300094148 | AN110: 1.264070636 | AO110: 0.0003793402006

Sheet Расчеты (hidden)
A1: rP5ibdZs
D3: Всего | K3: Дома | R3: На выезде | AC3: Пуассон | AG3: Дома | AM3: Гости | AS3: Ничья | AZ3: Пуассон | BD3: Дома | BJ3: Гости | BP3: Ничья
D4: Игр | E4: В | F4: Н | G4: П | H4: Забито | I4: Проп | J4: Очки | K4: Игр | L4: В | M4: Н | N4: П | O4: Забито | P4: Проп | Q4: Очки | R4: Игр | S4: В | T4: Н | U4: П | V4: Забито | W4: Проп | X4: Очки | AC4: =D12 -> 0.7583333333 | AD4: HG | AE4: AG | AF4: =D13 -> 1.741666667 | AG4: Г1 | AH4: Г2 | AI4: Д | AJ4: Г | AK4: % | AL4: КФ | AM4: К1 | AN4: К2 | AO4: Д | AP4: Г | AQ4: % | AR4: КФ | AS4: К1 | AT4: К2 | AU4: Д | AV4: Гости | AW4: % | AX4: КФ | AZ4: =U112 -> 1.27760761 | BA4: HG | BB4: AG | BC4: =U114 -> 1.464598456 | BD4: Г1 | BE4: Г2 | BF4: Д | BG4: Г | BH4: % | BI4: КФ | BJ4: К1 | BK4: К2 | BL4: Д | BM4: Г | BN4: % | BO4: КФ | BP4: К1 | BQ4: К2 | BR4: Д | BS4: Гости | BT4: % | BU4: КФ
C5: Хозяева | D5: =Дома!O11 -> 10 | E5: =Дома!P11 -> 3 | F5: =Дома!Q11 -> 4 | G5: =Дома!R11 -> 3 | H5: =Дома!S11 -> 8 | I5: =Дома!T11 -> 10 | J5: =Дома!U11 -> 13 | K5: =Дома!V11 -> 6 | L5: =Дома!W11 -> 1 | M5: =Дома!X11 -> 3 | N5: =Дома!Y11 -> 2 | O5: =Дома!Z11 -> 4 | P5: =Дома!AA11 -> 8 | Q5: =Дома!AB11 -> 6 | R5: =Дома!AC11 -> 4 | S5: =Дома!AD11 -> 2 | T5: =Дома!AE11 -> 1 | U5: =Дома!AF11 -> 1 | V5: =Дома!AG11 -> 4 | W5: =Дома!AH11 -> 2 | X5: =Дома!AI11 -> 7 | AC5: 0 | AD5: =POISSON(AC5,AC4,FALSE)*100 -> 46.8446521 | AE5: =POISSON(AC5,AF4,FALSE)*100 -> 17.52281103 | AF5: 0 | AG5: 7 | AH5: 0 | AI5: =VLOOKUP(AG5,AC5:AE12,2) -> 0.001340449649 | AJ5: =VLOOKUP(AH5,AC5:AE12,3) -> 17.52281103 | AK5: =(AI5*AJ5)/100 -> 0.0002348844589 | AL5: =100/AK5 -> 425741.2366 | AM5: 0 | AN5: 7 | AO5: =VLOOKUP(AM5,AC5:AE12,2) -> 46.8446521 | AP5: =VLOOKUP(AN5,AC5:AE12,3) -> 0.1690162732 | AQ5: =(AO5*AP5)/100 -> 0.07917508517 | AR5: =100/AQ5 -> 1263.023586 | AS5: 0 | AT5: 0 | AU5: =VLOOKUP(AS5,AC5:AE12,2) -> 46.8446521 | AV5: =VLOOKUP(AT5,AC5:AE12,3) -> 17.52281103 | AW5: =(AU5*AV5)/100 -> 8.208499862 | AX5: =100/AW5 -> 12.18249396 | AZ5: 0 | BA5: =POISSON(AZ5,AZ4,FALSE)*100 -> 27.87032704 | BB5: =POISSON(AZ5,BC4,FALSE)*100 -> 23.11707981 | BC5: 0 | BD5: 7 | BE5: 0 | BF5: =VLOOKUP(BD5,AZ5:BB12,2) -> 0.03072514625 | BG5: =VLOOKUP(BE5,AZ5:BB12,3) -> 23.11707981 | BH5: =(BF5*BG5)/100 -> 0.007102756581 | BI5: =100/BH5 -> 14079.04084 | BJ5: 0 | BK5: 7 | BL5: =VLOOKUP(BJ5,AZ5:BB12,2) -> 27.87032704 | BM5: =VLOOKUP(BK5,AZ5:BB12,3) -> 0.06630288702 | BN5: =(BL5*BM5)/100 -> 0.01847883145 | BO5: =100/BN5 -> 5411.597604 | BP5: 0 | BQ5: 0 | BR5: =VLOOKUP(BP5,AZ5:BB12,2) -> 27.87032704 | BS5: =VLOOKUP(BQ5,AZ5:BB12,3) -> 23.11707981 | BT5: =(BR5*BS5)/100 -> 6.442805746 | BU5: =100/BT5 -> 15.52118812
C6: Гости | D6: =Гости!O11 -> 10 | E6: =Гости!P11 -> 5 | F6: =Гости!Q11 -> 4 | G6: =Гости!R11 -> 1 | H6: =Гости!S11 -> 19 | I6: =Гости!T11 -> 13 | J6: =Гости!U11 -> 19 | K6: =Гости!V11 -> 6 | L6: =Гости!W11 -> 3 | M6: =Гости!X11 -> 2 | N6: =Гости!Y11 -> 1 | O6: =Гости!Z11 -> 12 | P6: =Гости!AA11 -> 8 | Q6: =Гости!AB11 -> 11 | R6: =Гости!AC11 -> 4 | S6: =Гости!AD11 -> 2 | T6: =Гости!AE11 -> 2 | U6: =Гости!AF11 -> 0 | V6: =Гости!AG11 -> 7 | W6: =Гости!AH11 -> 5 | X6: =Гости!AI11 -> 8 | AC6: 1 | AD6: =POISSON(AC6,AC4,FALSE)*100 -> 35.52386117 | AE6: =POISSON(AC6,AF4,FALSE)*100 -> 30.51889587 | AF6: 1 | AG6: 7 | AH6: 1 | AI6: =VLOOKUP(AG6,AC5:AE12,2) -> 0.001340449649 | AJ6: =VLOOKUP(AH6,AC5:AE12,3) -> 30.51889587 | AK6: 0.0004090904326 | AL6: 244444.7292 | AM6: 1 | AN6: 7 | AO6: =VLOOKUP(AM6,AC5:AE12,2) -> 35.52386117 | AP6: =VLOOKUP(AN6,AC5:AE12,3) -> 0.1690162732 | AQ6: 0.06004110626 | AR6: 1665.525608 | AS6: 1 | AT6: 1 | AU6: =VLOOKUP(AS6,AC5:AE12,2) -> 35.52386117 | AV6: =VLOOKUP(AT6,AC5:AE12,3) -> 30.51889587 | AW6: 10.8414902 | AX6: 9.22382423 | AZ6: 1 | BA6: =POISSON(AZ6,AZ4,FALSE)*100 -> 35.60734192 | BB6: =POISSON(AZ6,BC4,FALSE)*100 -> 33.8572394 | BC6: 1 | BD6: 7 | BE6: 1 | BF6: =VLOOKUP(BD6,AZ5:BB12,2) -> 0.03072514625 | BG6: =VLOOKUP(BE6,AZ5:BB12,3) -> 33.8572394 | BH6: 0.01040268632 | BI6: 9612.901603 | BJ6: 1 | BK6: 7 | BL6: =VLOOKUP(BJ6,AZ5:BB12,2) -> 35.60734192 | BM6: =VLOOKUP(BK6,AZ5:BB12,3) -> 0.06630288702 | BN6: 0.02360869569 | BO6: 4235.727434 | BP6: 1 | BQ6: 1 | BR6: =VLOOKUP(BP6,AZ5:BB12,2) -> 35.60734192 | BS6: =VLOOKUP(BQ6,AZ5:BB12,3) -> 33.8572394 | BT6: 12.055663 | BU6: 8.29485695
D7: Забивают | F7: Пропускают | H7: В/Н/П | I7: З/П | K7: Забивают | M7: Пропускают | O7: В/Н/П | P7: З/П | R7: Забивают | T7: Пропускают | V7: В/Н/П | W7: З/П | AC7: 2 | AD7: =POISSON(AC7,AC4,FALSE)*100 -> 13.46946403 | AE7: =POISSON(AC7,AF4,FALSE)*100 -> 26.57687182 | AF7: 2 | AG7: 7 | AH7: 2 | AI7: =VLOOKUP(AG7,AC5:AE12,2) -> 0.001340449649 | AJ7: =VLOOKUP(AH7,AC5:AE12,3) -> 26.57687182 | AK7: 0.0003562495851 | AL7: 280702.0813 | AM7: 2 | AN7: 7 | AO7: =VLOOKUP(AM7,AC5:AE12,2) -> 13.46946403 | AP7: =VLOOKUP(AN7,AC5:AE12,3) -> 0.1690162732 | AQ7: 0.02276558612 | AR7: 4392.59501 | AS7: 2 | AT7: 2 | AU7: =VLOOKUP(AS7,AC5:AE12,2) -> 13.46946403 | AV7: =VLOOKUP(AT7,AC5:AE12,3) -> 26.57687182 | AW7: 3.57976219 | AX7: 27.93481653 | AZ7: 2 | BA7: =POISSON(AZ7,AZ4,FALSE)*100 -> 22.74610551 | BB7: =POISSON(AZ7,BC4,FALSE)*100 -> 24.79363027 | BC7: 2 | BD7: 7 | BE7: 2 | BF7: =VLOOKUP(BD7,AZ5:BB12,2) -> 0.03072514625 | BG7: =VLOOKUP(BE7,AZ5:BB12,3) -> 24.79363027 | BH7: 0.00761787916 | BI7: 13127.01316 | BJ7: 2 | BK7: 7 | BL7: =VLOOKUP(BJ7,AZ5:BB12,2) -> 22.74610551 | BM7: =VLOOKUP(BK7,AZ5:BB12,3) -> 0.06630288702 | BN7: 0.01508132464 | BO7: 6630.717288 | BP7: 2 | BQ7: 2 | BR7: =VLOOKUP(BP7,AZ5:BB12,2) -> 22.74610551 | BS7: =VLOOKUP(BQ7,AZ5:BB12,3) -> 24.79363027 | BT7: 5.6395853 | BU7: 17.73180024
C8: Хозяева | D8: =H5/D5 -> 0.8 | F8: =I5/D5 -> 1 | H8: =CONCATENATE(E5,"/",F5,"/",G5) -> 3/4/3 | I8: =CONCATENATE(H5,"/",I5) -> 8/10 | K8: =O5/K5 -> 0.6666666667 | M8: =P5/K5 -> 1.333333333 | O8: =CONCATENATE(L5,"/",M5,"/",N5) -> 1/3/2 | P8: =CONCATENATE(O5,"/",P5) -> 4/8 | R8: =V5/R5 -> 1 | T8: =W5/R5 -> 0.5 | V8: =CONCATENATE(S5,"/",T5,"/",U5) -> 2/1/1 | W8: =CONCATENATE(V5,"/",W5) -> 4/2 | AC8: 3 | AD8: =POISSON(AC8,AC4,FALSE)*100 -> 3.404781185 | AE8: =POISSON(AC8,AF4,FALSE)*100 -> 15.42935058 | AF8: 3 | AG8: 7 | AH8: 3 | AI8: =VLOOKUP(AG8,AC5:AE12,2) -> 0.001340449649 | AJ8: =VLOOKUP(AH8,AC5:AE12,3) -> 15.42935058 | AK8: 0.0002068226758 | AL8: 483505.9774 | AM8: 3 | AN8: 7 | AO8: =VLOOKUP(AM8,AC5:AE12,2) -> 3.404781185 | AP8: =VLOOKUP(AN8,AC5:AE12,3) -> 0.1690162732 | AQ8: 0.00575463427 | AR8: 17377.29894 | AS8: 3 | AT8: 3 | AU8: =VLOOKUP(AS8,AC5:AE12,2) -> 3.404781185 | AV8: =VLOOKUP(AT8,AC5:AE12,3) -> 15.42935058 | AW8: 0.5253356256 | AX8: 190.3544993 | AZ8: 3 | BA8: =POISSON(AZ8,AZ4,FALSE)*100 -> 9.686865833 | BB8: =POISSON(AZ8,BC4,FALSE)*100 -> 12.10423754 | BC8: 3 | BD8: 7 | BE8: 3 | BF8: =VLOOKUP(BD8,AZ5:BB12,2) -> 0.03072514625 | BG8: =VLOOKUP(BE8,AZ5:BB12,3) -> 12.10423754 | BH8: 0.003719044685 | BI8: 26888.62557 | BJ8: 3 | BK8: 7 | BL8: =VLOOKUP(BJ8,AZ5:BB12,2) -> 9.686865833 | BM8: =VLOOKUP(BK8,AZ5:BB12,3) -> 0.06630288702 | BN8: 0.006422671709 | BO8: 15569.84453 | BP8: 3 | BQ8: 3 | BR8: =VLOOKUP(BP8,AZ5:BB12,2) -> 9.686865833 | BS8: =VLOOKUP(BQ8,AZ5:BB12,3) -> 12.10423754 | BT8: 1.17252125 | BU8: 85.28630077
C9: Гости | D9: =H6/D6 -> 1.9 | F9: =I6/D6 -> 1.3 | H9: =CONCATENATE(E6,"/",F6,"/",G6) -> 5/4/1 | I9: =CONCATENATE(H6,"/",I6) -> 19/13 | K9: =O6/K6 -> 2 | M9: =P6/K6 -> 1.333333333 | O9: =CONCATENATE(L6,"/",M6,"/",N6) -> 3/2/1 | P9: =CONCATENATE(O6,"/",P6) -> 12/8 | R9: =V6/R6 -> 1.75 | T9: =W6/R6 -> 1.25 | V9: =CONCATENATE(S6,"/",T6,"/",U6) -> 2/2/0 | W9: =CONCATENATE(V6,"/",W6) -> 7/5 | AC9: 4 | AD9: =POISSON(AC9,AC4,FALSE)*100 -> 0.6454897663 | AE9: =POISSON(AC9,AF4,FALSE)*100 -> 6.7181964 | AF9: 4 | AG9: 7 | AH9: 4 | AI9: =VLOOKUP(AG9,AC5:AE12,2) -> 0.001340449649 | AJ9: =VLOOKUP(AH9,AC5:AE12,3) -> 6.7181964 | AK9: 9.005404008e-05 | AL9: 1110444.35 | AM9: 4 | AN9: 7 | AO9: =VLOOKUP(AM9,AC5:AE12,2) -> 0.6454897663 | AP9: =VLOOKUP(AN9,AC5:AE12,3) -> 0.1690162732 | AQ9: 0.001090982747 | AR9: 91660.47793 | AS9: 4 | AT9: 4 | AU9: =VLOOKUP(AS9,AC5:AE12,2) -> 0.6454897663 | AV9: =VLOOKUP(AT9,AC5:AE12,3) -> 6.7181964 | AW9: 0.04336527024 | AX9: 2305.992778 | AZ9: 4 | BA9: =POISSON(AZ9,AZ4,FALSE)*100 -> 3.094003377 | BB9: =POISSON(AZ9,BC4,FALSE)*100 -> 4.431961901 | BC9: 4 | BD9: 7 | BE9: 4 | BF9: =VLOOKUP(BD9,AZ5:BB12,2) -> 0.03072514625 | BG9: =VLOOKUP(BE9,AZ5:BB12,3) -> 4.431961901 | BH9: 0.001361726776 | BI9: 73436.17075 | BJ9: 4 | BK9: 7 | BL9: =VLOOKUP(BJ9,AZ5:BB12,2) -> 3.094003377 | BM9: =VLOOKUP(BK9,AZ5:BB12,3) -> 0.06630288702 | BN9: 0.002051413563 | BO9: 48746.87474 | BP9: 4 | BQ9: 4 | BR9: =VLOOKUP(BP9,AZ5:BB12,2) -> 3.094003377 | BS9: =VLOOKUP(BQ9,AZ5:BB12,3) -> 4.431961901 | BT9: 0.1371250509 | BU9: 729.2613521
AC10: 5 | AD10: =POISSON(AC10,AC4,FALSE)*100 -> 0.09789928122 | AE10: =POISSON(AC10,AF4,FALSE)*100 -> 2.340171746 | AF10: 5 | AG10: 7 | AH10: 5 | AI10: =VLOOKUP(AG10,AC5:AE12,2) -> 0.001340449649 | AJ10: =VLOOKUP(AH10,AC5:AE12,3) -> 2.340171746 | AK10: 3.136882396e-05 | AL10: 3187878.517 | AM10: 5 | AN10: 7 | AO10: =VLOOKUP(AM10,AC5:AE12,2) -> 0.09789928122 | AP10: =VLOOKUP(AN10,AC5:AE12,3) -> 0.1690162732 | AQ10: 0.0001654657166 | AR10: 604354.7995 | AS10: 5 | AT10: 5 | AU10: =VLOOKUP(AS10,AC5:AE12,2) -> 0.09789928122 | AV10: =VLOOKUP(AT10,AC5:AE12,3) -> 2.340171746 | AW10: 0.002291011319 | AX10: 43648.8459 | AZ10: 5 | BA10: =POISSON(AZ10,AZ4,FALSE)*100 -> 0.790584452 | BB10: =POISSON(AZ10,BC4,FALSE)*100 -> 1.298208911 | BC10: 5 | BD10: 7 | BE10: 5 | BF10: =VLOOKUP(BD10,AZ5:BB12,2) -> 0.03072514625 | BG10: =VLOOKUP(BE10,AZ5:BB12,3) -> 1.298208911 | BH10: 0.0003988765865 | BI10: 250704.1109 | BJ10: 5 | BK10: 7 | BL10: =VLOOKUP(BJ10,AZ5:BB12,2) -> 0.790584452 | BM10: =VLOOKUP(BK10,AZ5:BB12,3) -> 0.06630288702 | BN10: 0.000524180316 | BO10: 190774.0465 | BP10: 5 | BQ10: 5 | BR10: =VLOOKUP(BP10,AZ5:BB12,2) -> 0.790584452 | BS10: =VLOOKUP(BQ10,AZ5:BB12,3) -> 1.298208911 | BT10: 0.01026343781 | BU10: 9743.32401
C11: =AVERAGE(Дома!L2:M11,Гости!L2:M11) -> 1.25 | D11: Ср.Тот | E11: Заб | F11: Счет1 | G11: Счет2 | H11: Счет5 | I11: Счет6 | J11: Итог | K11: 1й Гол | L11: ОЗ | M11: Тотал1 | N11: Серия | O11: ТБ2.5 | P11: Рейтинг | Q11: Мощь | R11: Голы | S11: Счет7 | AC11: 6 | AD11: =POISSON(AC11,AC4,FALSE)*100 -> 0.01237338138 | AE11: =POISSON(AC11,AF4,FALSE)*100 -> 0.6792998541 | AF11: 6 | AG11: 7 | AH11: 6 | AI11: =VLOOKUP(AG11,AC5:AE12,2) -> 0.001340449649 | AJ11: =VLOOKUP(AH11,AC5:AE12,3) -> 0.6792998541 | AK11: 9.10567251e-06 | AL11: 10982165.23 | AM11: 6 | AN11: 7 | AO11: =VLOOKUP(AM11,AC5:AE12,2) -> 0.01237338138 | AP11: =VLOOKUP(AN11,AC5:AE12,3) -> 0.1690162732 | AQ11: 2.091302807e-05 | AR11: 4781708.304 | AS11: 6 | AT11: 6 | AU11: =VLOOKUP(AS11,AC5:AE12,2) -> 0.01237338138 | AV11: =VLOOKUP(AT11,AC5:AE12,3) -> 0.6792998541 | AW11: 8.405236164e-05 | AX11: 1189734.566 | AZ11: 6 | BA11: =POISSON(AZ11,AZ4,FALSE)*100 -> 0.1683427854 | BB11: =POISSON(AZ11,BC4,FALSE)*100 -> 0.3168924611 | BC11: 6 | BD11: 7 | BE11: 6 | BF11: =VLOOKUP(BD11,AZ5:BB12,2) -> 0.03072514625 | BG11: =VLOOKUP(BE11,AZ5:BB12,3) -> 0.3168924611 | BH11: 9.736567211e-05 | BI11: 1027056.023 | BJ11: 6 | BK11: 7 | BL11: =VLOOKUP(BJ11,AZ5:BB12,2) -> 0.1683427854 | BM11: =VLOOKUP(BK11,AZ5:BB12,3) -> 0.06630288702 | BN11: 0.0001116161268 | BO11: 895927.8812 | BP11: 6 | BQ11: 6 | BR11: =VLOOKUP(BP11,AZ5:BB12,2) -> 0.1683427854 | BS11: =VLOOKUP(BQ11,AZ5:BB12,3) -> 0.3168924611 | BT11: 0.0005334655957 | BU11: 187453.5131
C12: Хозяева | D12: =AVERAGE(K8,D8)+AVERAGE(T9,F9)-AVERAGE(1.25,C11) -> 0.7583333333 | E12: =AVERAGE(K8,D8) -> 0.7333333333 | F12: =ROUND(AVERAGE(D12,E12),0) -> 1 | G12: =ROUND(D12,0) -> 1 | H12: =ROUND(SUM(Дома!L2:L8)/7,0) -> 1 | I12: =ROUND(SUM(Дома!L2:L8)/7,0) -> 1 | J12: =Дома!S11/Дома!T11 -> 0.8 | K12: =IF(J12>J13,"К1","К2") -> К2 | L12: =IF(M18>0.6,"1","0") -> 1 | M12: =((100/3.5)*D14)/100 -> 0.7142857143 | N12: =CONCATENATE(Дома!N2,Дома!N3,Дома!N4,Дома!N5,Дома!N6) -> НННВП | O12: =CONCATENATE(Q21,R21,S21,T21,U21) -> +---+ | P12: =(Q5/K5+X5/R5*1.1+K8-M8*1.1+R8*1.1-T8)/12.6 -> 0.2162698413 | Q12: =(K8-M8+D8-F8)/2 -> -0.4333333333 | R12: =IF(E12>0.6,"Да","Нет") -> Да | S12: =AC13-1 -> 0 | AC12: 7 | AD12: =POISSON(AC12,AC4,FALSE)*100 -> 0.001340449649 | AE12: =POISSON(AC12,AF4,FALSE)*100 -> 0.1690162732 | AF12: 7 | AG12: 6 | AH12: 0 | AI12: =VLOOKUP(AG12,AC5:AE12,2) -> 0.01237338138 | AJ12: =VLOOKUP(AH12,AC5:AE12,3) -> 17.52281103 | AK12: 0.002168164236 | AL12: 46121.9673 | AM12: 0 | AN12: 6 | AO12: =VLOOKUP(AM12,AC5:AE12,2) -> 46.8446521 | AP12: =VLOOKUP(AN12,AC5:AE12,3) -> 0.6792998541 | AQ12: 0.3182156533 | AR12: 314.252297 | AS12: 7 | AT12: 7 | AU12: =VLOOKUP(AS12,AC5:AE12,2) -> 0.001340449649 | AV12: =VLOOKUP(AT12,AC5:AE12,3) -> 0.1690162732 | AW12: =(AU12*AV12)/100 -> 2.265578041e-06 | AX12: =100/AW12 -> 44138845.88 | AZ12: 7 | BA12: =POISSON(AZ12,AZ4,FALSE)*100 -> 0.03072514625 | BB12: =POISSON(AZ12,BC4,FALSE)*100 -> 0.06630288702 | BC12: 7 | BD12: 6 | BE12: 0 | BF12: =VLOOKUP(BD12,AZ5:BB12,2) -> 0.1683427854 | BG12: =VLOOKUP(BE12,AZ5:BB12,3) -> 23.11707981 | BH12: 0.03891593606 | BI12: 2569.641389 | BJ12: 0 | BK12: 6 | BL12: =VLOOKUP(BJ12,AZ5:BB12,2) -> 27.87032704 | BM12: =VLOOKUP(BK12,AZ5:BB12,3) -> 0.3168924611 | BN12: 0.08831896526 | BO12: 1132.259642 | BP12: 7 | BQ12: 7 | BR12: =VLOOKUP(BP12,AZ5:BB12,2) -> 0.03072514625 | BS12: =VLOOKUP(BQ12,AZ5:BB12,3) -> 0.06630288702 | BT12: 2.0371659e-05 | BU12: 4908780.379
C13: Гости | D13: =AVERAGE(R9,D9)+AVERAGE(M8,F8)-AVERAGE(1.25,C11) -> 1.741666667 | E13: =AVERAGE(R9,D9) -> 1.825 | F13: =ROUND(AVERAGE(D13,E13),0) -> 2 | G13: =ROUND(D13,0) -> 2 | H13: =ROUND(SUM(Гости!L2:L8)/7-1,0) -> 1 | I13: =ROUND(SUM(Гости!L2:L8)/7,0) -> 2 | J13: =Гости!S11/Гости!T11 -> 1.461538462 | K13: =IF(M18>M20,"К1","К2") -> К1 | L13: =IF(ROUND((V6/R6+P5/K5)/2,0)+M20>0.6,"1","0") -> 1 | M13: =IF(D14>2.85,IF(F12+F13>2,"ТБ 2","Нет"),IF(D14<2.2,IF(F12+F13<3,"ТМ 3","Нет"),"Нет")) -> Нет | N13: =CONCATENATE(Гости!N2,Гости!N3,Гости!N4,Гости!N5,Гости!N6) -> ННВВВ | O13: =CONCATENATE(V21,W21,X21,Y21,Z21) -> +++-+ | P13: =(Q6/K6+X6/R6*1.1+K9-M9*1.1+R9*1.1-T9)/12.6 -> 0.416005291 | Q13: =(R9-T9+D8-F8)/2 -> 0.15 | R13: =IF(E13>0.6,"Да","Нет") -> Да | S13: =AF13-1 -> 1 | AC13: =MATCH(AD13,AD5:AD12,0) -> 1 | AD13: =MAX(AD5:AD12) -> 46.8446521 | AE13: =MAX(AE5:AE12) -> 30.51889587 | AF13: =MATCH(AE13,AE5:AE12,0) -> 2 | AG13: 6 | AH13: 1 | AI13: =VLOOKUP(AG13,AC5:AE12,2) -> 0.01237338138 | AJ13: =VLOOKUP(AH13,AC5:AE12,3) -> 30.51889587 | AK13: 0.003776219378 | AL13: 26481.51233 | AM13: 1 | AN13: 6 | AO13: =VLOOKUP(AM13,AC5:AE12,2) -> 35.52386117 | AP13: =VLOOKUP(AN13,AC5:AE12,3) -> 0.6792998541 | AQ13: 0.2413135371 | AR13: 414.3986334 | AZ13: =MATCH(BA13,BA5:BA12,0) -> 2 | BA13: =MAX(BA5:BA12) -> 35.60734192 | BB13: =MAX(BB5:BB12) -> 33.8572394 | BC13: =MATCH(BB13,BB5:BB12,0) -> 2 | BD13: 6 | BE13: 1 | BF13: =VLOOKUP(BD13,AZ5:BB12,2) -> 0.1683427854 | BG13: =VLOOKUP(BE13,AZ5:BB12,3) -> 33.8572394 | BH13: 0.05699621986 | BI13: 1754.502321 | BJ13: 1 | BK13: 6 | BL13: =VLOOKUP(BJ13,AZ5:BB12,2) -> 35.60734192 | BM13: =VLOOKUP(BK13,AZ5:BB12,3) -> 0.3168924611 | BN13: 0.1128369821 | BO13: 886.2342656
D14: =D12+D13 -> 2.5 | E14: =MATCH(F14,Таблица!B2:B100,0) -> 6 | F14: =Очные!A1 -> Жарково | H14: =COUNT(Таблица!A2:A100) -> 16 | I14: =Очные!B1 -> Нови Белград | K14: =MATCH(I14,Таблица!B2:B100,0) -> 5 | L14: =IF(L12+L13=2,"Да","Нет") -> Да | P14: =(COUNTIF(Гости!AJ2:AJ11,">2,5")+COUNTIF(Дома!AJ2:AJ11,">2,5"))/COUNT(Дома!AJ2:AJ11,Гости!AJ2:AJ11) -> 0.6 | AG14: 6 | AH14: 2 | AI14: =VLOOKUP(AG14,AC5:AE12,2) -> 0.01237338138 | AJ14: =VLOOKUP(AH14,AC5:AE12,3) -> 26.57687182 | AK14: 0.003288457708 | AL14: 30409.39214 | AM14: 2 | AN14: 6 | AO14: =VLOOKUP(AM14,AC5:AE12,2) -> 13.46946403 | AP14: =VLOOKUP(AN14,AC5:AE12,3) -> 0.6792998541 | AQ14: 0.09149804949 | AR14: 1092.919473 | BD14: 6 | BE14: 2 | BF14: =VLOOKUP(BD14,AZ5:BB12,2) -> 0.1683427854 | BG14: =VLOOKUP(BE14,AZ5:BB12,3) -> 24.79363027 | BH14: 0.04173828779 | BI14: 2395.881702 | BJ14: 2 | BK14: 6 | BL14: =VLOOKUP(BJ14,AZ5:BB12,2) -> 22.74610551 | BM14: =VLOOKUP(BK14,AZ5:BB12,3) -> 0.3168924611 | BN14: 0.07208069355 | BO14: 1387.334043
AC15: Пуассон | AG15: 6 | AH15: 3 | AI15: =VLOOKUP(AG15,AC5:AE12,2) -> 0.01237338138 | AJ15: =VLOOKUP(AH15,AC5:AE12,3) -> 15.42935058 | AK15: 0.001909132392 | AL15: 52379.81422 | AM15: 3 | AN15: 6 | AO15: =VLOOKUP(AM15,AC5:AE12,2) -> 3.404781185 | AP15: =VLOOKUP(AN15,AC5:AE12,3) -> 0.6792998541 | AQ15: 0.02312867362 | AR15: 4323.637475 | AZ15: Пуассон | BD15: 6 | BE15: 3 | BF15: =VLOOKUP(BD15,AZ5:BB12,2) -> 0.1683427854 | BG15: =VLOOKUP(BE15,AZ5:BB12,3) -> 12.10423754 | BH15: 0.02037661062 | BI15: 4907.587522 | BJ15: 3 | BK15: 6 | BL15: =VLOOKUP(BJ15,AZ5:BB12,2) -> 9.686865833 | BM15: =VLOOKUP(BK15,AZ5:BB12,3) -> 0.3168924611 | BN15: 0.03069694754 | BO15: 3257.652894
E16: Миллер | Q16: EW-легкая победа, W-победа простая, D-ничья, L-проигрыш, HL-позорный проигрыш | AC16: ИД | AD16: % | AE16: КФ | AG16: 6 | AH16: 4 | AI16: =VLOOKUP(AG16,AC5:AE12,2) -> 0.01237338138 | AJ16: =VLOOKUP(AH16,AC5:AE12,3) -> 6.7181964 | AK16: 0.0008312680622 | AL16: 120298.1379 | AM16: 4 | AN16: 6 | AO16: =VLOOKUP(AM16,AC5:AE12,2) -> 0.6454897663 | AP16: =VLOOKUP(AN16,AC5:AE12,3) -> 0.6792998541 | AQ16: 0.00438481104 | AR16: 22805.99987 | AZ16: ИД | BA16: % | BB16: КФ | BD16: 6 | BE16: 4 | BF16: =VLOOKUP(BD16,AZ5:BB12,2) -> 0.1683427854 | BG16: =VLOOKUP(BE16,AZ5:BB12,3) -> 4.431961901 | BH16: 0.007460888111 | BI16: 13403.23009 | BJ16: 4 | BK16: 6 | BL16: =VLOOKUP(BJ16,AZ5:BB12,2) -> 3.094003377 | BM16: =VLOOKUP(BK16,AZ5:BB12,3) -> 0.3168924611 | BN16: 0.009804663446 | BO16: 10199.22821
E17: 1 | F17: 2 | G17: 3 | H17: 4 | I17: Max | J17: Min | K17: Расчет | N17: Счет3 | O17: Счет4 | Q17: 1 | R17: 2 | S17: 3 | T17: 4 | U17: 5 | V17: 1 | W17: 2 | X17: 3 | Y17: 4 | Z17: 5 | AC17: 1 | AD17: =SUM(AK5:AK32) -> 15.92592271 | AE17: =100/AD17 -> 6.279071037 | AG17: 6 | AH17: 5 | AI17: =VLOOKUP(AG17,AC5:AE12,2) -> 0.01237338138 | AJ17: =VLOOKUP(AH17,AC5:AE12,3) -> 2.340171746 | AK17: 0.000289558375 | AL17: 345353.506 | AM17: 5 | AN17: 6 | AO17: =VLOOKUP(AM17,AC5:AE12,2) -> 0.09789928122 | AP17: =VLOOKUP(AN17,AC5:AE12,3) -> 0.6792998541 | AQ17: 0.0006650296745 | AR17: 150369.2299 | AZ17: 1 | BA17: =SUM(BH5:BH32) -> 32.99152764 | BB17: =100/BA17 -> 3.031081224 | BD17: 6 | BE17: 5 | BF17: =VLOOKUP(BD17,AZ5:BB12,2) -> 0.1683427854 | BG17: =VLOOKUP(BE17,AZ5:BB12,3) -> 1.298208911 | BH17: 0.002185441041 | BI17: 45757.35429 | BJ17: 5 | BK17: 6 | BL17: =VLOOKUP(BJ17,AZ5:BB12,2) -> 0.790584452 | BM17: =VLOOKUP(BK17,AZ5:BB12,3) -> 0.3168924611 | BN17: 0.002505302527 | BO17: 39915.33914
C18: Сила Атаки1 | E18: =Дома!L2 -> 2 | F18: =Дома!L3 -> 0 | G18: =Дома!L4 -> 0 | H18: =Дома!L5 -> 2 | I18: =MAX(E18:H18) -> 2 | J18: =MIN(E18:H18) -> 0 | K18: =E18+F18+G18+H18-I18-J18 -> 2 | L18: =K18/2 -> 1 | M18: =L18+L21-1.5 -> 1 | N18: =ROUNDDOWN(M18,0) -> 1 | O18: =ROUNDUP(M18,0) -> 1 | Q18: =IF(Дома!N2="В",IF(Дома!L2-Дома!M2>1,"EW","W"),"") ->  | R18: =IF(Дома!N3="В",IF(Дома!L3-Дома!M3>1,"EW","W"),"") ->  | S18: =IF(Дома!N4="В",IF(Дома!L4-Дома!M4>1,"EW","W"),"") ->  | T18: =IF(Дома!N5="В",IF(Дома!L5-Дома!M5>1,"EW","W"),"") -> EW | U18: =IF(Дома!N6="В",IF(Дома!L6-Дома!M6>1,"EW","W"),"") ->  | V18: =IF(Гости!N2="В",IF(Гости!L2-Гости!M2>1,"EW","W"),"") ->  | W18: =IF(Гости!N3="В",IF(Гости!L3-Гости!M3>1,"EW","W"),"") ->  | X18: =IF(Гости!N4="В",IF(Гости!L4-Гости!M4>1,"EW","W"),"") -> W | Y18: =IF(Гости!N5="В",IF(Гости!L5-Гости!M5>1,"EW","W"),"") -> EW | Z18: =IF(Гости!N6="В",IF(Гости!L6-Гости!M6>1,"EW","W"),"") -> EW | AC18: Х | AD18: =SUM(AW5:AW12) -> 23.20083048 | AE18: 4.310190538 | AG18: 5 | AH18: 0 | AI18: =VLOOKUP(AG18,AC5:AE12,2) -> 0.09789928122 | AJ18: =VLOOKUP(AH18,AC5:AE12,3) -> 17.52281103 | AK18: 0.01715470604 | AL18: 5829.3042 | AM18: 0 | AN18: 5 | AO18: =VLOOKUP(AM18,AC5:AE12,2) -> 46.8446521 | AP18: =VLOOKUP(AN18,AC5:AE12,3) -> 2.340171746 | AQ18: 1.096245313 | AR18: 91.22045843 | AZ18: Х | BA18: =SUM(BT5:BT12) -> 25.45851762 | BB18: 3.927958473 | BD18: 5 | BE18: 0 | BF18: =VLOOKUP(BD18,AZ5:BB12,2) -> 0.790584452 | BG18: =VLOOKUP(BE18,AZ5:BB12,3) -> 23.11707981 | BH18: 0.1827600388 | BI18: 547.1655657 | BJ18: 0 | BK18: 5 | BL18: =VLOOKUP(BJ18,AZ5:BB12,2) -> 27.87032704 | BM18: =VLOOKUP(BK18,AZ5:BB12,3) -> 1.298208911 | BN18: 0.3618150692 | BO18: 276.3842872
C19: Сила Обороны1 | E19: =Дома!M2 -> 2 | F19: =Дома!M3 -> 0 | G19: =Дома!M4 -> 0 | H19: =Дома!M5 -> 0 | I19: =MAX(E19:H19) -> 2 | J19: =MIN(E19:H19) -> 0 | K19: =E19+F19+G19+H19-I19-J19 -> 0 | L19: =K19/2 -> 0 | Q19: =IF(Дома!N2="П",IF(Дома!L2-Дома!M2<1,"HL","L"),"D") -> D | R19: =IF(Дома!N3="П",IF(Дома!L3-Дома!M3<1,"HL","L"),"D") -> D | S19: =IF(Дома!N4="П",IF(Дома!L4-Дома!M4<1,"HL","L"),"D") -> D | T19: =IF(Дома!N5="П",IF(Дома!L5-Дома!M5<1,"HL","L"),"D") -> D | U19: =IF(Дома!N6="П",IF(Дома!L6-Дома!M6<1,"HL","L"),"D") -> HL | V19: =IF(Гости!N2="П",IF(Гости!L2-Гости!M2<1,"HL","L"),"D") -> D | W19: =IF(Гости!N3="П",IF(Гости!L3-Гости!M3<1,"HL","L"),"D") -> D | X19: =IF(Гости!N4="П",IF(Гости!L4-Гости!M4<1,"HL","L"),"D") -> D | Y19: =IF(Гости!N5="П",IF(Гости!L5-Гости!M5<1,"HL","L"),"D") -> D | Z19: =IF(Гости!N6="П",IF(Гости!L6-Гости!M6<1,"HL","L"),"D") -> D | AC19: 2 | AD19: =SUM(AQ5:AQ32) -> 60.82772181 | AE19: 1.643987265 | AG19: 5 | AH19: 1 | AI19: =VLOOKUP(AG19,AC5:AE12,2) -> 0.09789928122 | AJ19: =VLOOKUP(AH19,AC5:AE12,3) -> 30.51889587 | AK19: 0.02987777969 | AL19: 3346.968919 | AM19: 1 | AN19: 5 | AO19: =VLOOKUP(AM19,AC5:AE12,2) -> 35.52386117 | AP19: =VLOOKUP(AN19,AC5:AE12,3) -> 2.340171746 | AQ19: 0.8313193623 | AR19: 120.2907144 | AZ19: 2 | BA19: =SUM(BN5:BN32) -> 41.5298048 | BB19: 2.407909223 | BD19: 5 | BE19: 1 | BF19: =VLOOKUP(BD19,AZ5:BB12,2) -> 0.790584452 | BG19: =VLOOKUP(BE19,AZ5:BB12,3) -> 33.8572394 | BH19: 0.2676700705 | BI19: 373.5942528 | BJ19: 1 | BK19: 5 | BL19: =VLOOKUP(BJ19,AZ5:BB12,2) -> 35.60734192 | BM19: =VLOOKUP(BK19,AZ5:BB12,3) -> 1.298208911 | BN19: 0.4622576858 | BO19: 216.3295561
C20: Сила Атаки2 | E20: =Гости!L2 -> 2 | F20: =Гости!L3 -> 2 | G20: =Гости!L4 -> 2 | H20: =Гости!L5 -> 2 | I20: =MAX(E20:H20) -> 2 | J20: =MIN(E20:H20) -> 2 | K20: =E20+F20+G20+H20-I20-J20 -> 4 | L20: =K20/2 -> 2 | M20: =L20+L19-1.5 -> 0.5 | N20: =ROUNDDOWN(M20,0) -> 0 | O20: =ROUNDUP(M20,0) -> 1 | Q20: =IF(Q18="",Q19,Q18) -> D | R20: D | S20: D | T20: EW | U20: HL | V20: D | W20: D | X20: W | Y20: EW | Z20: EW | AC20: ТБ1.5 | AD20: =100-AD21 -> 71.27025048 | AE20: 1.403109984 | AG20: 5 | AH20: 2 | AI20: =VLOOKUP(AG20,AC5:AE12,2) -> 0.09789928122 | AJ20: =VLOOKUP(AH20,AC5:AE12,3) -> 26.57687182 | AK20: 0.02601856648 | AL20: 3843.409285 | AM20: 2 | AN20: 5 | AO20: =VLOOKUP(AM20,AC5:AE12,2) -> 13.46946403 | AP20: =VLOOKUP(AN20,AC5:AE12,3) -> 2.340171746 | AQ20: 0.3152085915 | AR20: 317.2502358 | AZ20: ТБ1.5 | BA20: =100-BA21 -> 75.88969326 | BB20: 1.317701992 | BD20: 5 | BE20: 2 | BF20: =VLOOKUP(BD20,AZ5:BB12,2) -> 0.790584452 | BG20: =VLOOKUP(BE20,AZ5:BB12,3) -> 24.79363027 | BH20: 0.196014586 | BI20: 510.1661159 | BJ20: 2 | BK20: 5 | BL20: =VLOOKUP(BJ20,AZ5:BB12,2) -> 22.74610551 | BM20: =VLOOKUP(BK20,AZ5:BB12,3) -> 1.298208911 | BN20: 0.2952919686 | BO20: 338.6478828
C21: Сила Обороны2 | E21: =Гости!M2 -> 2 | F21: =Гости!M3 -> 2 | G21: =Гости!M4 -> 1 | H21: =Гости!M5 -> 0 | I21: =MAX(E21:H21) -> 2 | J21: =MIN(E21:H21) -> 0 | K21: =E21+F21+G21+H21-I21-J21 -> 3 | L21: =K21/2 -> 1.5 | Q21: =IF(Дома!L2+Дома!M2>2,"+","-") -> + | R21: =IF(Дома!L3+Дома!M3>2,"+","-") -> - | S21: =IF(Дома!L4+Дома!M4>2,"+","-") -> - | T21: =IF(Дома!L5+Дома!M5>2,"+","-") -> - | U21: =IF(Дома!L6+Дома!M6>2,"+","-") -> + | V21: =IF(Гости!L2+Гости!M2>2,"+","-") -> + | W21: =IF(Гости!L3+Гости!M3>2,"+","-") -> + | X21: =IF(Гости!L4+Гости!M4>2,"+","-") -> + | Y21: =IF(Гости!L5+Гости!M5>2,"+","-") -> - | Z21: =IF(Гости!L6+Гости!M6>2,"+","-") -> + | AC21: ТМ1.5 | AD21: =SUM(AK32+AQ32+AW5) -> 28.72974952 | AE21: 3.48071256 | AG21: 5 | AH21: 3 | AI21: =VLOOKUP(AG21,AC5:AE12,2) -> 0.09789928122 | AJ21: =VLOOKUP(AH21,AC5:AE12,3) -> 15.42935058 | AK21: 0.01510522332 | AL21: 6620.226519 | AM21: 3 | AN21: 5 | AO21: =VLOOKUP(AM21,AC5:AE12,2) -> 3.404781185 | AP21: =VLOOKUP(AN21,AC5:AE12,3) -> 2.340171746 | AQ21: 0.0796777273 | AR21: 1255.055878 | AZ21: ТМ1.5 | BA21: =SUM(BH32+BN32+BT5) -> 24.11030674 | BB21: 4.147603805 | BD21: 5 | BE21: 3 | BF21: =VLOOKUP(BD21,AZ5:BB12,2) -> 0.790584452 | BG21: =VLOOKUP(BE21,AZ5:BB12,3) -> 12.10423754 | BH21: 0.09569421998 | BI21: 1044.995194 | BJ21: 3 | BK21: 5 | BL21: =VLOOKUP(BJ21,AZ5:BB12,2) -> 9.686865833 | BM21: =VLOOKUP(BK21,AZ5:BB12,3) -> 1.298208911 | BN21: 0.1257557555 | BO21: 795.1922331
AC22: ТБ2.5 | AD22: =100-AD23 -> 45.61868841 | AE22: 2.192084066 | AG22: 5 | AH22: 4 | AI22: =VLOOKUP(AG22,AC5:AE12,2) -> 0.09789928122 | AJ22: =VLOOKUP(AH22,AC5:AE12,3) -> 6.7181964 | AK22: 0.006577065987 | AL22: 15204.34799 | AM22: 4 | AN22: 5 | AO22: =VLOOKUP(AM22,AC5:AE12,2) -> 0.6454897663 | AP22: =VLOOKUP(AN22,AC5:AE12,3) -> 2.340171746 | AQ22: 0.01510556913 | AR22: 6620.074961 | AZ22: ТБ2.5 | BA22: =100-BA23 -> 51.66572905 | BB22: 1.935518996 | BD22: 5 | BE22: 4 | BF22: =VLOOKUP(BD22,AZ5:BB12,2) -> 0.790584452 | BG22: =VLOOKUP(BE22,AZ5:BB12,3) -> 4.431961901 | BH22: 0.0350384017 | BI22: 2854.01146 | BJ22: 4 | BK22: 5 | BL22: =VLOOKUP(BJ22,AZ5:BB12,2) -> 3.094003377 | BM22: =VLOOKUP(BK22,AZ5:BB12,3) -> 1.298208911 | BN22: 0.04016662755 | BO22: 2489.628981
D23: Индикатор ТБ2.5 | J23: Среднее за 5 матчей Д/Г | M23: Расчет силы атаки/обороны 10 матчей | T23: 1 | U23: =L5/K5/(L5/K5+M5/K5+S6/R6+T6/R6) -> 0.1 | V23: =E5/D5/(E5/D5+F5/D5+E6/D6+F6/D6) -> 0.1875 | W23: =AVERAGE(U23,V23) -> 0.14375 | AC23: ТМ2.5 | AD23: =SUM(AK32+AK30+AQ30+AQ32+AW5+AW6) -> 54.38131159 | AE23: 1.838867013 | AG23: 4 | AH23: 0 | AI23: =VLOOKUP(AG23,AC5:AE12,2) -> 0.6454897663 | AJ23: =VLOOKUP(AH23,AC5:AE12,3) -> 17.52281103 | AK23: 0.1131079519 | AL23: 884.1111371 | AM23: 0 | AN23: 4 | AO23: =VLOOKUP(AM23,AC5:AE12,2) -> 46.8446521 | AP23: =VLOOKUP(AN23,AC5:AE12,3) -> 6.7181964 | AQ23: 3.147115731 | AR23: 31.77512635 | AZ23: ТМ2.5 | BA23: =SUM(BH32+BH30+BN30+BN32+BT5+BT6) -> 48.33427095 | BB23: 2.068925382 | BD23: 4 | BE23: 0 | BF23: =VLOOKUP(BD23,AZ5:BB12,2) -> 3.094003377 | BG23: =VLOOKUP(BE23,AZ5:BB12,3) -> 23.11707981 | BH23: 0.71524323 | BI23: 139.8125782 | BJ23: 0 | BK23: 4 | BL23: =VLOOKUP(BJ23,AZ5:BB12,2) -> 27.87032704 | BM23: =VLOOKUP(BK23,AZ5:BB12,3) -> 4.431961901 | BN23: 1.235202276 | BO23: 80.95840005
D24: Заб | E24: Проп | F24: Набр | G24: Потер | J24: Тотал | K24: Заб | L24: Проп | M24: ЗабО | N24: ЗабДГ | O24: ПропО | P24: ПропДГ | Q24: Атака | R24: Оборона | T24: X | U24: =(M5/K5+T6/R6)/(L5/K5+M5/K5+S6/R6+T6/R6) -> 0.6 | V24: =(F5/D5+F6/D6)/(E5/D5+F5/D5+E6/D6+F6/D6) -> 0.5 | W24: =AVERAGE(U24,V24) -> 0.55 | AC24: ТБ3.5 | AD24: =100-AD25 -> 24.24238669 | AE24: 4.12500639 | AG24: 4 | AH24: 1 | AI24: =VLOOKUP(AG24,AC5:AE12,2) -> 0.6454897663 | AJ24: =VLOOKUP(AH24,AC5:AE12,3) -> 30.51889587 | AK24: 0.1969963496 | AL24: 507.6236194 | AM24: 1 | AN24: 4 | AO24: =VLOOKUP(AM24,AC5:AE12,2) -> 35.52386117 | AP24: =VLOOKUP(AN24,AC5:AE12,3) -> 6.7181964 | AQ24: 2.386562763 | AR24: 41.90126552 | AZ24: ТБ3.5 | BA24: =100-BA25 -> 29.52336186 | BB24: 3.387148133 | BD24: 4 | BE24: 1 | BF24: =VLOOKUP(BD24,AZ5:BB12,2) -> 3.094003377 | BG24: =VLOOKUP(BE24,AZ5:BB12,3) -> 33.8572394 | BH24: 1.04754413 | BI24: 95.4613721 | BJ24: 1 | BK24: 4 | BL24: =VLOOKUP(BJ24,AZ5:BB12,2) -> 35.60734192 | BM24: =VLOOKUP(BK24,AZ5:BB12,3) -> 4.431961901 | BN24: 1.578103828 | BO24: 63.36718677
C25: Хозяева | D25: =Дома!Z6*1.5+Дома!AG6*2 -> 7 | E25: =Дома!AA6*1.5+Дома!AH6 -> 7.5 | F25: =D25/5 -> 1.4 | G25: =E25/5 -> 1.5 | I25: Хозяева | J25: =SUM(ДомаДома!L2:M6)/5 -> 2.4 | K25: =SUM(ДомаДома!L2:L6)/5 -> 0.8 | L25: =SUM(ДомаДома!M2:M6)/5 -> 1.6 | M25: =(SUM(Дома!L2:L11)/10) -> 0.8 | N25: =(SUM(ДомаДома!L2:L11)/10) -> 0.7 | O25: =(SUM(Дома!M2:M11)/10) -> 1 | P25: =(SUM(ДомаДома!M2:M11)/10) -> 1.2 | Q25: =((M25+N25)/2)/((O26+P26)/2) -> 0.5769230769 | R25: =((O25+P25)/2)/((M26+N26)/2) -> 0.6666666667 | T25: 2 | U25: =S6/R6/(L5/K5+M5/K5+S6/R6+T6/R6) -> 0.3 | V25: =E6/D6/(E5/D5+F5/D5+E6/D6+F6/D6) -> 0.3125 | W25: =AVERAGE(U25,V25) -> 0.30625 | AC25: ТМ3.5 | AD25: =SUM(AK32+AK31+AK30+AK27+AQ32+AQ31+AQ30+AQ27+AW5+AW6) -> 75.75761331 | AE25: 1.319999346 | AG25: 4 | AH25: 2 | AI25: =VLOOKUP(AG25,AC5:AE12,2) -> 0.6454897663 | AJ25: =VLOOKUP(AH25,AC5:AE12,3) -> 26.57687182 | AK25: 0.1715509878 | AL25: 582.9170749 | AM25: 2 | AN25: 4 | AO25: =VLOOKUP(AM25,AC5:AE12,2) -> 13.46946403 | AP25: =VLOOKUP(AN25,AC5:AE12,3) -> 6.7181964 | AQ25: 0.9049050475 | AR25: 110.5088321 | AZ25: ТМ3.5 | BA25: =SUM(BH32+BH31+BH30+BH27+BN32+BN31+BN30+BN27+BT5+BT6) -> 70.47663814 | BB25: 1.418909906 | BD25: 4 | BE25: 2 | BF25: =VLOOKUP(BD25,AZ5:BB12,2) -> 3.094003377 | BG25: =VLOOKUP(BE25,AZ5:BB12,3) -> 24.79363027 | BH25: 0.7671157577 | BI25: 130.3584224 | BJ25: 2 | BK25: 4 | BL25: =VLOOKUP(BJ25,AZ5:BB12,2) -> 22.74610551 | BM25: =VLOOKUP(BK25,AZ5:BB12,3) -> 4.431961901 | BN25: 1.00809873 | BO25: 99.19663325
C26: Гости | D26: =Гости!Z6*1.5+Гости!AG6*2 -> 20 | E26: =Гости!AA6*1.5+Гости!AH6 -> 7.5 | F26: =D26/5 -> 4 | G26: =E26/5 -> 1.5 | I26: Гости | J26: =SUM(ГостиГости!L2:M6)/5 -> 2.4 | K26: =SUM(ГостиГости!L2:L6)/5 -> 1.4 | L26: =SUM(ГостиГости!M2:M6)/5 -> 1 | M26: =(SUM(Гости!L2:L11)/10) -> 1.9 | N26: =(SUM(ГостиГости!L2:L11)/10) -> 1.4 | O26: =(SUM(Гости!M2:M11)/10) -> 1.3 | P26: =(SUM(ГостиГости!M2:M11)/10) -> 1.3 | Q26: =((M26+N26)/2)/((O25+P25)/2) -> 1.5 | R26: =((O26+P26)/2)/((M25+N25)/2) -> 1.733333333 | W26: =IF(AND(W23-W25>0.27,F12>F13),"П1",IF(AND(W23>W25,F12>=F13),"1Х",IF(AND(W25-W23>0.12,F13>0),"П2",IF(AND(W25>W23,F13>=F12),"Х2","")))) -> П2 | AC26: К1 Заб | AD26: =100-AD27 -> 53.17660902 | AE26: 1.880526078 | AG26: 4 | AH26: 3 | AI26: =VLOOKUP(AG26,AC5:AE12,2) -> 0.6454897663 | AJ26: =VLOOKUP(AH26,AC5:AE12,3) -> 15.42935058 | AK26: 0.09959487903 | AL26: 1004.067689 | AM26: 3 | AN26: 4 | AO26: =VLOOKUP(AM26,AC5:AE12,2) -> 3.404781185 | AP26: =VLOOKUP(AN26,AC5:AE12,3) -> 6.7181964 | AQ26: 0.228739887 | AR26: 437.1777975 | AZ26: К1 Заб | BA26: =100-BA27 -> 72.13369934 | BB26: 1.386314592 | BD26: 4 | BE26: 3 | BF26: =VLOOKUP(BD26,AZ5:BB12,2) -> 3.094003377 | BG26: =VLOOKUP(BE26,AZ5:BB12,3) -> 12.10423754 | BH26: 0.3745055181 | BI26: 267.0187626 | BJ26: 3 | BK26: 4 | BL26: =VLOOKUP(BJ26,AZ5:BB12,2) -> 9.686865833 | BM26: =VLOOKUP(BK26,AZ5:BB12,3) -> 4.431961901 | BN26: 0.4293182031 | BO26: 232.9274633
C27: =((F25+G26)/2+(F26+G25)/2)/2 -> 2.1 | AC27: К1 НЗ | AD27: =SUM(AQ32+AQ30+AQ27+AQ23+AQ18+AQ12+AQ5+AW5) -> 46.82339098 | AE27: 2.135684706 | AG27: 3 | AH27: 0 | AI27: =VLOOKUP(AG27,AC5:AE12,2) -> 3.404781185 | AJ27: =VLOOKUP(AH27,AC5:AE12,3) -> 17.52281103 | AK27: 0.5966133729 | AL27: 167.6127364 | AM27: 0 | AN27: 3 | AO27: =VLOOKUP(AM27,AC5:AE12,2) -> 46.8446521 | AP27: =VLOOKUP(AN27,AC5:AE12,3) -> 15.42935058 | AQ27: 7.227825602 | AR27: 13.8354196 | AZ27: К1 НЗ | BA27: =SUM(BN32+BN30+BN27+BN23+BN18+BN12+BN5+BT5) -> 27.86630066 | BB27: 3.588563879 | BD27: 3 | BE27: 0 | BF27: =VLOOKUP(BD27,AZ5:BB12,2) -> 9.686865833 | BG27: =VLOOKUP(BE27,AZ5:BB12,3) -> 23.11707981 | BH27: 2.239320506 | BI27: 44.65640346 | BJ27: 0 | BK27: 3 | BL27: =VLOOKUP(BJ27,AZ5:BB12,2) -> 27.87032704 | BM27: =VLOOKUP(BK27,AZ5:BB12,3) -> 12.10423754 | BN27: 3.373490587 | BO27: 29.64288693
C28: =IF(C27>2.25,"ТБ 2,5","Нет ставки") -> Нет ставки | AC28: К2 Заб | AD28: =100-AD29 -> 82.47721327 | AE28: 1.212456096 | AG28: 3 | AH28: 1 | AI28: =VLOOKUP(AG28,AC5:AE12,2) -> 3.404781185 | AJ28: =VLOOKUP(AH28,AC5:AE12,3) -> 30.51889587 | AK28: 1.039101624 | AL28: 96.23697784 | AM28: 1 | AN28: 3 | AO28: =VLOOKUP(AM28,AC5:AE12,2) -> 35.52386117 | AP28: =VLOOKUP(AN28,AC5:AE12,3) -> 15.42935058 | AQ28: 5.481101081 | AR28: 18.24450936 | AZ28: К2 Заб | BA28: =100-BA29 -> 76.88423877 | BB28: 1.300656696 | BD28: 3 | BE28: 1 | BF28: =VLOOKUP(BD28,AZ5:BB12,2) -> 9.686865833 | BG28: =VLOOKUP(BE28,AZ5:BB12,3) -> 33.8572394 | BH28: 3.279705355 | BI28: 30.49054387 | BJ28: 1 | BK28: 3 | BL28: =VLOOKUP(BJ28,AZ5:BB12,2) -> 35.60734192 | BM28: =VLOOKUP(BK28,AZ5:BB12,3) -> 12.10423754 | BN28: 4.309997246 | BO28: 23.20187097
AC29: К2 НЗ | AD29: =SUM(AK32+AK30+AK27+AK23+AK18+AK12+AK5+AW5) -> 17.52278673 | AE29: 5.706854824 | AG29: 3 | AH29: 2 | AI29: =VLOOKUP(AG29,AC5:AE12,2) -> 3.404781185 | AJ29: =VLOOKUP(AH29,AC5:AE12,3) -> 26.57687182 | AK29: 0.9048843312 | AL29: 110.5113621 | AM29: 2 | AN29: 3 | AO29: =VLOOKUP(AM29,AC5:AE12,2) -> 13.46946403 | AP29: =VLOOKUP(AN29,AC5:AE12,3) -> 15.42935058 | AQ29: 2.078250827 | AR29: 48.11738733 | AZ29: К2 НЗ | BA29: =SUM(BH32+BH30+BH27+BH23+BH18+BH12+BH5+BT5) -> 23.11576123 | BB29: 4.326052645 | BD29: 3 | BE29: 2 | BF29: =VLOOKUP(BD29,AZ5:BB12,2) -> 9.686865833 | BG29: =VLOOKUP(BE29,AZ5:BB12,3) -> 24.79363027 | BH29: 2.401725699 | BI29: 41.63672814 | BJ29: 2 | BK29: 3 | BL29: =VLOOKUP(BJ29,AZ5:BB12,2) -> 22.74610551 | BM29: =VLOOKUP(BK29,AZ5:BB12,3) -> 12.10423754 | BN29: 2.753242641 | BO29: 36.32080897
C30: 1Х2 | G30: =IF(E34=G34,"Х",IF(E34>G34,LOOKUP(MAX(E34:G34)-MIN(E34:G34),{0;0.2;0.4},{"1Х";"П1";"П1"}),LOOKUP(MAX(E34:G34)-MIN(E34:G35),{0;0.2;0.4},{"Х2";"П2";"П2"}))) -> Х2 | H30: Тотал | L30: Обе забьют | Q30: Очные всречи (5 матчей) | AC30: ОЗ | AD30: =100-AD31 -> 43.86232215 | AE30: 2.279861054 | AG30: 2 | AH30: 0 | AI30: =VLOOKUP(AG30,AC5:AE12,2) -> 13.46946403 | AJ30: =VLOOKUP(AH30,AC5:AE12,3) -> 17.52281103 | AK30: 2.360228728 | AL30: 42.36877504 | AM30: 0 | AN30: 2 | AO30: =VLOOKUP(AM30,AC5:AE12,2) -> 46.8446521 | AP30: =VLOOKUP(AN30,AC5:AE12,3) -> 26.57687182 | AQ30: 12.44984314 | AR30: 8.032229712 | AZ30: ОЗ | BA30: =100-BA31 -> 55.46074385 | BB30: 1.803077151 | BD30: 2 | BE30: 0 | BF30: =VLOOKUP(BD30,AZ5:BB12,2) -> 22.74610551 | BG30: =VLOOKUP(BE30,AZ5:BB12,3) -> 23.11707981 | BH30: 5.258235365 | BI30: 19.01778697 | BJ30: 0 | BK30: 2 | BL30: =VLOOKUP(BJ30,AZ5:BB12,2) -> 27.87032704 | BM30: =VLOOKUP(BK30,AZ5:BB12,3) -> 24.79363027 | BN30: 6.910065841 | BO30: 14.47164214
E31: маржа(%): | G31: =(E35+F35+G35)-1 -> 0.08074129261 | H31: маржа(%): | K31: =(J35+K35)-1 -> 0.07994389902 | L31: маржа(%): | O31: =(N35+O35)-1 -> 0.08479532164 | Q31: команды | R31: В | S31: Н | T31: П | U31: Забито | V31: Пропущено | W31: итог | X31: очки | AC31: ОНЗ | AD31: =SUM(AK32+AK30+AK27+AK23+AK18+AK12+AK5+AQ5+AQ12+AQ18+AQ23+AQ27+AQ30+AQ32+AW5) -> 56.13767785 | AE31: 1.781334815 | AG31: 2 | AH31: 1 | AI31: =VLOOKUP(AG31,AC5:AE12,2) -> 13.46946403 | AJ31: =VLOOKUP(AH31,AC5:AE12,3) -> 30.51889587 | AK31: 4.110731701 | AL31: 24.3265694 | AM31: 1 | AN31: 2 | AO31: =VLOOKUP(AM31,AC5:AE12,2) -> 35.52386117 | AP31: =VLOOKUP(AN31,AC5:AE13,3) -> 26.57687182 | AQ31: 9.441131049 | AR31: 10.59195127 | AZ31: ОНЗ | BA31: =SUM(BH32+BH30+BH27+BH23+BH18+BH12+BH5+BN5+BN12+BN18+BN23+BN27+BN30+BN32+BT5) -> 44.53925615 | BB31: 2.245210375 | BD31: 2 | BE31: 1 | BF31: =VLOOKUP(BD31,AZ5:BB12,2) -> 22.74610551 | BG31: =VLOOKUP(BE31,AZ5:BB12,3) -> 33.8572394 | BH31: 7.701203396 | BI31: 12.98498363 | BJ31: 1 | BK31: 2 | BL31: =VLOOKUP(BJ31,AZ5:BB12,2) -> 35.60734192 | BM31: =VLOOKUP(BK31,AZ5:BB13,3) -> 24.79363027 | BN31: 8.828352705 | BO31: 11.32714147
C32: Линия: | E32: П1 | F32: Х | G32: П2 | H32: Линия: | J32: ТБ 2,5 | K32: ТМ 2,5 | L32: Линия: | N32: ОЗ-да | O32: ОЗ-нет | Q32: 1К | R32: =Очные!J6 ->  | S32: =Очные!K6 ->  | T32: =Очные!L6 ->  | U32: =Очные!H6 ->  | V32: =Очные!I6 ->  | W32: =U32/V32 ->  | X32: =R32*3+S32 ->  | AG32: 1 | AH32: 0 | AI32: =VLOOKUP(AG32,AC5:AE12,2) -> 35.52386117 | AJ32: =VLOOKUP(AH32,AC5:AE12,3) -> 17.52281103 | AK32: 6.224779062 | AL32: 16.0648272 | AM32: 0 | AN32: 1 | AO32: =VLOOKUP(AM32,AC5:AE12,2) -> 46.8446521 | AP32: =VLOOKUP(AN32,AC5:AE12,3) -> 30.51889587 | AQ32: 14.29647059 | AR32: 6.994733375 | AZ32: ТБ0.5 | BA32: =100-BA33 -> 93.55719425 | BB32: =100/BA32 -> 1.068864888 | BD32: 1 | BE32: 0 | BF32: =VLOOKUP(BD32,AZ5:BB12,2) -> 35.60734192 | BG32: =VLOOKUP(BE32,AZ5:BB12,3) -> 23.11707981 | BH32: 8.231377652 | BI32: 12.14863468 | BJ32: 0 | BK32: 1 | BL32: =VLOOKUP(BJ32,AZ5:BB12,2) -> 27.87032704 | BM32: =VLOOKUP(BK32,AZ5:BB12,3) -> 33.8572394 | BN32: 9.436123346 | BO32: 10.59757236
C33: Коэф-ы бук-ов: | E33: =Коэффициенты!B2 -> 2.8 | F33: =Коэффициенты!B3 -> 2.95 | G33: =Коэффициенты!B4 -> 2.6 | H33: Коэф-ы бук-ов: | J33: =Коэффициенты!B5 -> 2.3 | K33: =Коэффициенты!B6 -> 1.55 | L33: Коэф-ы бук-ов: | N33: =Коэффициенты!B7 -> 2 | O33: =Коэффициенты!B8 -> 1.71 | Q33: 2К | R33: =Очные!P6 ->  | S33: =Очные!Q6 ->  | T33: =Очные!R6 ->  | U33: =Очные!N6 ->  | V33: =Очные!O6 ->  | W33: =U33/V33 ->  | X33: =R33*3+S33 ->  | AZ33: ТМ0.5 | BA33: =SUM(BT5) -> 6.442805746 | BB33: 15.52118812
C34: Вероятность (%): | E34: =E35/(1+G31) -> 0.3304610082 | F34: =F35/(1+G31) -> 0.3136579061 | G34: =G35/(1+G31) -> 0.3558810857 | H34: Вероятность (%): | J34: =J35/(1+K31) -> 0.4025974026 | K34: =K35/(1+K31) -> 0.5974025974 | L34: Вероятность (%): | N34: =N35/(1+O31) -> 0.460916442 | O34: =O35/(1+O31) -> 0.539083558 | AZ34: ТБ4.5 | BA34: =100-BA35 -> 16.29407396 | BB34: 6.137200571
C35: Вер. с маржой (%): | E35: =1/E33 -> 0.3571428571 | F35: =1/F33 -> 0.3389830508 | G35: =1/G33 -> 0.3846153846 | H35: Вер. с маржой (%): | J35: =1/J33 -> 0.4347826087 | K35: =1/K33 -> 0.6451612903 | L35: Вер. с маржой (%): | N35: =1/N33 -> 0.5 | O35: =1/O33 -> 0.5847953216 | AZ35: ТМ4.5 | BA35: =SUM(BH32+BH31+BH30+BH28+BH27+BN32+BN31+BN30+BN28+BN27+BT5+BT6+BT7) -> 83.70592604 | BB35: 1.194658547
C38: Тест №1 Анализ 10 игр команд дома и в гостях | K38: Последние три игры команд между собой | T38: Первая | X38: Вторая | AD38: =AVERAGE(W32,AN41) ->  | AE38: Вероятность голов | AK38: =AVERAGE(W33,AN42) ->  | AL38: Расчет ТС и Тотал от #YMA
C39: К1 | D39: К2 | E39: К1 | F39: К2 | G39: К1 | H39: К2 | K39: Команда дома | L39: Счёт | M39: Счёт | N39: Очки | O39: Команда победитель | P39: Команда в гостях | T39: Игра | U39: Дома | V39: Гости | W39: Очки | X39: Игра | Y39: Дома | Z39: Гости | AA39: Очки | AD39: Забьют хозяева | AE39: 1 | AF39: Вероятность | AG39: =_xlfn.POISSON.DIST(AE39,AD38,FALSE) ->  | AH39: Забьют гости | AI39: 1 | AJ39: Вероятность | AK39: =_xlfn.POISSON.DIST(AI39,AK38,FALSE) ->  | AL39: =O5 -> 4 | AM39: =P5 -> 8 | AN39: =K5 -> 6
C40: =IF(Дома!N2="П","Поражение",IF(Дома!N2="Н","Ничья","Победа")) -> Ничья | D40: =IF(Гости!N2="П","Поражение",IF(Гости!N2="Н","Ничья","Победа")) -> Ничья | E40: =IF(C40="Победа",2,IF(C40="Ничья",1,0)) -> 1 | F40: =IF(D40="Победа",2,IF(D40="Ничья",1,0)) -> 1 | G40: =IF(C40="Победа",1,0) -> 0 | H40: =IF(D40="Победа",1,0) -> 0 | K40: =IF(Очные!A1=Очные!C2,1,2) -> 1 | L40: =Очные!E2 -> 2 | M40: =Очные!F2 -> 2 | N40: =IF(L40>M40,3+(L40-M40),IF(L40=M40,1,IF(M40>L40,3+(M40-L40),0))) -> 1 | O40: =IF(L40>M40,K40,IF(M40>L40,P40,0)) -> 0 | P40: =IF(K40=2,1,2) -> 2 | T40: 1 игра | U40: =ДомаДома!L2 -> 2 | V40: =ДомаДома!M2 -> 2 | W40: =IF(U40>V40,2+(U40-V40),IF(U40=V40,1,0)) -> 1 | X40: 1 игра | Y40: =ГостиГости!M2 -> 2 | Z40: =ГостиГости!L2 -> 2 | AA40: =IF(Z40>Y40,2+(Z40-Y40),IF(Y40=Z40,1,0)) -> 1 | AE40: 2 | AG40: =_xlfn.POISSON.DIST(AE40,AD38,FALSE) ->  | AI40: 2 | AK40: =_xlfn.POISSON.DIST(AI40,AK38,FALSE) ->  | AL40: =V6 -> 7 | AM40: =W6 -> 5 | AN40: =R6 -> 4
C41: =IF(Дома!N3="П","Поражение",IF(Дома!N3="Н","Ничья","Победа")) -> Ничья | D41: =IF(Гости!N3="П","Поражение",IF(Гости!N3="Н","Ничья","Победа")) -> Ничья | E41: 1 | F41: 1 | G41: 0 | H41: 0 | K41: =IF(Очные!A1=Очные!C3,1,2) -> 2 | L41: =Очные!E3 -> 0 | M41: =Очные!F3 -> 1 | N41: =IF(L41>M41,3+(L41-M41),IF(L41=M41,0,IF(M41>L41,3+(M41-L41),0))) -> 4 | O41: =IF(L41>M41,K41,IF(M41>L41,P41,0)) -> 1 | P41: =IF(K41=2,1,2) -> 1 | T41: 2 игра | U41: =ДомаДома!L3 -> 0 | V41: =ДомаДома!M3 -> 0 | W41: =IF(U41>V41,2+(U41-V41),IF(U41=V41,1,0)) -> 1 | X41: 2 игра | Y41: =ГостиГости!M3 -> 1 | Z41: =ГостиГости!L3 -> 2 | AA41: =IF(Z41>Y41,2+(Z41-Y41),IF(Y41=Z41,1,0)) -> 3 | AE41: 3 | AG41: =_xlfn.POISSON.DIST(AE41,AD38,FALSE) ->  | AI41: 3 | AK41: =_xlfn.POISSON.DIST(AI41,AK38,FALSE) ->  | AL41: =AL39/AN39 -> 0.6666666667 | AM41: =AM39/AN39 -> 1.333333333 | AN41: =AVERAGE(AL41,AM42) -> 0.9583333333
C42: =IF(Дома!N4="П","Поражение",IF(Дома!N4="Н","Ничья","Победа")) -> Ничья | D42: =IF(Гости!N4="П","Поражение",IF(Гости!N4="Н","Ничья","Победа")) -> Победа | E42: 1 | F42: 2 | G42: 0 | H42: 1 | K42: =IF(Очные!A1=Очные!C4,1,2) -> 2 | L42: =Очные!E4 -> 1 | M42: =Очные!F4 -> 0 | N42: =IF(L42>M42,3+(L42-M42),IF(L42=M42,0,IF(M42>L42,3+(M42-L42),0))) -> 4 | O42: =IF(L42>M42,K42,IF(M42>L42,P42,0)) -> 2 | P42: =IF(K42=2,1,2) -> 1 | V42: Итог: | W42: =W40+W41 -> 2 | Z42: Итог: | AA42: =AA40+AA41 -> 4 | AE42: 4 | AG42: =_xlfn.POISSON.DIST(AE42,AD38,FALSE) ->  | AI42: 4 | AK42: =_xlfn.POISSON.DIST(AI42,AK38,FALSE) ->  | AL42: =AL40/AN40 -> 1.75 | AM42: =AM40/AN40 -> 1.25 | AN42: =AVERAGE(AL42,AM41) -> 1.541666667
C43: =IF(Дома!N5="П","Поражение",IF(Дома!N5="Н","Ничья","Победа")) -> Победа | D43: =IF(Гости!N5="П","Поражение",IF(Гости!N5="Н","Ничья","Победа")) -> Победа | E43: 2 | F43: 2 | G43: 1 | H43: 1 | L43: П1 | M43: Команды | N43: 1 | O43: 2 | P43: =IF(N46>O46,1,IF(N46=O46,0,2)) -> 2 | T43: 5 игра | U43: =ДомаДома!L6 -> 2 | V43: =ДомаДома!M6 -> 1 | W43: =IF(U43>V43,2+(U43-V43),IF(U43=V43,1,0)) -> 3 | X43: 5 игра | Y43: =ГостиГости!M6 -> 0 | Z43: =ГостиГости!L6 -> 0 | AA43: =IF(Z43>Y43,2+(Z43-Y43),IF(Y43=Z43,1,0)) -> 1 | AE43: 5 | AG43: =_xlfn.POISSON.DIST(AE43,AD38,FALSE) ->  | AI43: 5 | AK43: =_xlfn.POISSON.DIST(AI43,AK38,FALSE) ->  | AL43: =ROUND(AN41,0) -> 1 | AM43: =ROUND(AN42,0) -> 2 | AN43: =AN41+AN42 -> 2.5
C44: =IF(Дома!N6="П","Поражение",IF(Дома!N6="Н","Ничья","Победа")) -> Поражение | D44: =IF(Гости!N6="П","Поражение",IF(Гости!N6="Н","Ничья","Победа")) -> Победа | E44: 0 | F44: 2 | G44: 0 | H44: 1 | L44: П2 | M44: Очки | N44: =G61+IF(O40=1,N40,0)+IF(O41=1,N41,0)+IF(O42=1,N42,0) -> 7 | O44: =K61+IF(O40=2,N40,0)+IF(O41=2,N41,0)+IF(O42=2,N42,0) -> 11 | P44: =IF(P46=1,1,2)+IF(P47>0,99,0) -> 101 | T44: 6 игра | U44: =ДомаДома!L7 -> 0 | V44: =ДомаДома!M7 -> 0 | W44: =IF(U44>V44,2+(U44-V44),IF(U44=V44,1,0)) -> 1 | X44: 6 игра | Y44: =ГостиГости!M7 -> 1 | Z44: =ГостиГости!L7 -> 1 | AA44: =IF(Z44>Y44,2+(Z44-Y44),IF(Y44=Z44,1,0)) -> 1 | AE44: 0 | AG44: =_xlfn.POISSON.DIST(AE44,AD38,FALSE) ->  | AI44: 0 | AK44: =_xlfn.POISSON.DIST(AI44,AK38,FALSE) ->  | AL44: Ставка тотал | AN44: =IF(AN43>3,"ТБ 2,5",IF(AN43>2,"ТБ 1,5","ТМ 2,5")) -> ТБ 1,5
C45: =IF(Дома!N7="П","Поражение",IF(Дома!N7="Н","Ничья","Победа")) -> Победа | D45: =IF(Гости!N7="П","Поражение",IF(Гости!N7="Н","Ничья","Победа")) -> Победа | E45: 2 | F45: 2 | G45: 1 | H45: 1 | L45: П1 | M45: Доп. Очки | N45: =IF(P50=1,1,0) -> 0 | V45: Итог: | W45: =SUM(W43:W44) -> 4 | Z45: Итог: | AA45: =AA43+AA44 -> 2 | AD45: 0.25 | AF45: Прогноз на матч | AK45: 0.35
C46: =IF(Дома!N8="П","Поражение",IF(Дома!N8="Н","Ничья","Победа")) -> Поражение | D46: =IF(Гости!N8="П","Поражение",IF(Гости!N8="Н","Ничья","Победа")) -> Поражение | E46: 0 | F46: 0 | G46: 0 | H46: 0 | L46: П2 | M46: Итоговые: | N46: =SUM(N44,N45) -> 7 | O46: =SUM(O44,O45) -> 11 | T46: Сколько побед 10 игр: | W46: =E5 -> 3 | X46: Сколько побед за 10 игр: | AA46: =E6 -> 5 | AE46: =IF(AF46>0,1,0) -> 0 | AF46: =SUMIFS(AE39:AE44,AG39:AG44,">25%") -> 0 | AG46: =SUMIFS(AI39:AI44,AK39:AK44,">35%") -> 0 | AH46: =IF(AG46>0,1,0) -> 0 | AJ46: Обе забьют? | AM46: =IF(AE46+AH46=2,"Да","Нет") -> Нет
C47: =IF(Дома!N9="П","Поражение",IF(Дома!N9="Н","Ничья","Победа")) -> Поражение | D47: =IF(Гости!N9="П","Поражение",IF(Гости!N9="Н","Ничья","Победа")) -> Победа | E47: 0 | F47: 2 | G47: 0 | H47: 1 | L47: 1Х | M47: ИТОГОВЫЙ ВЫВОД: | O47: =IF(P43=1,M51,IF(P44=1,"X1",IF(P44=2,"2X",O51))) -> Ф2 (+1) | P47: =IF(P43=1,N46-O46,IF(P43=2,O46-N46,0)) -> 4 | T47: СОПЕРНИЧЕСТВО КОМАНД МЕЖДУ СОБОЙ | Z47: ИСХОД: | AF47: =IF(AF46>0,"Гол!","Нет") -> Нет | AG47: =IF(AG46>0,"Гол!","Нет") -> Нет
C48: =IF(Дома!N10="П","Поражение",IF(Дома!N10="Н","Ничья","Победа")) -> Победа | D48: =IF(Гости!N10="П","Поражение",IF(Гости!N10="Н","Ничья","Победа")) -> Ничья | E48: 2 | F48: 1 | G48: 1 | H48: 0 | L48: Х2 | T48: Дома | U48: Счёт | V48: Счёт | W48: Очки | X48: Победа | Y48: Гости
C49: =IF(Дома!N11="П","Поражение",IF(Дома!N11="Н","Ничья","Победа")) -> Ничья | D49: =IF(Гости!N11="П","Поражение",IF(Гости!N11="Н","Ничья","Победа")) -> Ничья | E49: 1 | F49: 1 | G49: 0 | H49: 0 | L49: Х1 | M49: Для команды 1 | O49: Для команды 2 | T49: =K40 -> 1 | U49: 2 | V49: 2 | W49: =IF(U49>V49,3+(U49-V49),IF(U49=V49,1,IF(V49>U49,3+(V49-U49),0))) -> 1 | X49: =IF(U49>V49,T49,IF(V49>U49,Y49,0)) -> 0 | Y49: =IF(T49=2,1,2) -> 2
C50: Среднее | E50: =SUM(E40:E49) -> 10 | F50: =SUM(F40:F49) -> 14 | G50: =SUM(G40:G49) -> 3 | H50: =SUM(H40:H49) -> 5 | L50: 2Х | M50: =IF(P43=1,P47,P49) -> 0 | O50: =IF(P43=2,P47,P48) -> 4 | P50: =IF(P52=P51,1,0) -> 0 | T50: 2 | U50: 0 | V50: 1 | W50: =IF(U50>V50,3+(U50-V50),IF(U50=V50,0,IF(V50>U50,3+(V50-U50),0))) -> 4 | X50: =IF(U50>V50,T50,IF(V50>U50,Y50,0)) -> 1 | Y50: =IF(T50=2,1,2) -> 1 | Z50: =IF(X57=1,AA56,AA55) -> Х2 | AD50: ЗабитоДома | AE50: =Дома!Z16 -> 5 | AF50: ЗабитоГости | AG50: =Гости!AG16 -> 8 | AJ50: Оригинал | AK50: Дома Все игры | AN50: Гости все игры | AQ50: ДомаДома | AT50: ГостиГости
C51: Команда | D51: Очки | E51: Значение | F51: Число | G51: ИТОГ | H51: =IF(G52>G53,C52,IF(G52<G53,C53,"Х")) -> П2 | L51: Ф1 (+1) | M51: =IF(M50>12,"П1",IF(M50>7,"П1",IF(M50>4,"1X",IF(M50>0,"Ф1 (+1)",P45)))) -> 0 | O51: =IF(O50>13,"П2",IF(O50>7,"П2",IF(O50>4,"X2",IF(O50>0,"Ф2 (+1)","")))) -> Ф2 (+1) | P51: =IF(O40=0,1,0) -> 1 | T51: 2 | U51: 1 | V51: 0 | W51: =IF(U51>V51,3+(U51-V51),IF(U51=V51,0,IF(V51>U51,3+(V51-U51),0))) -> 4 | X51: =IF(U51>V51,T51,IF(V51>U51,Y51,0)) -> 2 | Y51: =IF(T51=2,1,2) -> 1 | AD51: ПропДома | AE51: =Дома!AA16 -> 11 | AF51: ПропГости | AG51: =Гости!AH16 -> 6 | AK51: Игр | AL51: Заб | AM51: Проп | AN51: Игр | AO51: Заб | AP51: Проп | AQ51: Игр | AR51: Заб | AS51: Проп | AT51: Игр | AU51: Заб | AV51: Проп
C52: П1 | D52: =E50 -> 10 | E52: =IF(D52>18,4,IF(D52>15,3,IF(D52>10,2,IF(D52>5,1,0)))) -> 1 | F52: =IF(G50>=9,3,IF(G50>=6,2,IF(G50>=4,1,0))) -> 0 | G52: =IF(D52>D53,1,0)+IF(E52>E53,1,0)+F52 -> 0 | L52: Ф2 (+1) | M52: 1 | N52: =IF(P47=0,P46,8) -> 8 | O52: 2 | P52: =IF(K40=O52,1,0) -> 0 | T52: Итоговые очки: | V52: Очки | W52: Динамика | X52: Итоговые очки | AD52: Всего игр | AE52: =Дома!O16 -> 15 | AF52: Всего игр | AG52: =Гости!O16 -> 15 | AK52: 0 | AL52: =Дома!L11 -> 0 | AM52: =Дома!M11 -> 0 | AN52: 0 | AO52: =Гости!L11 -> 1 | AP52: =Гости!M11 -> 1 | AQ52: 0 | AR52: =ДомаДома!L11 -> 2 | AS52: =ДомаДома!M11 -> 0 | AT52: 0 | AU52: =ГостиГости!L11 -> 3 | AV52: =ГостиГости!M11 -> 2
C53: П2 | D53: =F50 -> 14 | E53: =IF(D53>18,4,IF(D53>15,3,IF(D53>10,2,IF(D53>5,1,0)))) -> 2 | F53: =IF(H50>=9,3,IF(H50>=6,2,IF(H50>=4,1,0))) -> 1 | G53: =IF(D53>D52,1,0)+IF(E53>E52,1,0)+F53 -> 3 | T53: Команда 1 | V53: =W42+W45+IF(X49=1,W49,0)+IF(X50=1,W50,0)+IF(X51=1,W51,0) -> 10 | W53: =IF(W42>W45,2,IF(W42=W45,1,0)) -> 0 | X53: =IF(W53=2,V53+(V53*0.3),IF(W53=1,V53,IF(W53=0,V53-(V53*0.3),0)))+IF(W42>AA42,(V53*0.15),0)+V57 -> 5 | AD53: АЗД | AE53: =AE50/AE52 -> 0.3333333333 | AF53: БЗВ | AG53: =AG50/AG52 -> 0.5333333333 | AK53: 1 | AL53: =Дома!L10 -> 2 | AM53: =Дома!M10 -> 1 | AN53: 1 | AO53: =Гости!L10 -> 1 | AP53: =Гости!M10 -> 1 | AQ53: 1 | AR53: =ДомаДома!L10 -> 0 | AS53: =ДомаДома!M10 -> 1 | AT53: 1 | AU53: =ГостиГости!L10 -> 3 | AV53: =ГостиГости!M10 -> 0
T54: Команда 2 | V54: =AA42+AA45+IF(X49=2,W49,0)+IF(X50=2,W50,0)+IF(X51=2,W51,0) -> 10 | W54: =IF(AA42>AA45,2,IF(AA42=AA45,1,0)) -> 2 | X54: =IF(W54=2,V54+(V54*0.3),IF(W54=1,V54,IF(W54=0,V54-(V54*0.3),0)))+IF(AA42>W42,(V54*0.15),0)+W57 -> 14.5 | Z54: 1Х | AA54: ИТОГ | AD54: БПВ | AE54: =AG51/AG52 -> 0.4 | AF54: АПД | AG54: =AE51/AE52 -> 0.7333333333 | AK54: 2 | AL54: =Дома!L9 -> 0 | AM54: =Дома!M9 -> 2 | AN54: 2 | AO54: =Гости!L9 -> 3 | AP54: =Гости!M9 -> 2 | AQ54: 2 | AR54: =ДомаДома!L9 -> 0 | AS54: =ДомаДома!M9 -> 1 | AT54: 2 | AU54: =ГостиГости!L9 -> 0 | AV54: =ГостиГости!M9 -> 1
D55: Последние 3 игры команды 1 ДОМА | H55: Последние 3 игры команды 2 в гостях | L55: Второй прогноз на Тоталы | Z55: Х2 | AA55: =IF(Y57<6,Z57,IF(Y57<10,Z55,T57)) -> Х2 | AD55: А забьет | AE55: =(AE53+AE54)/2.5 -> 0.2933333333 | AF55: Б забьет | AG55: =(AG53+AG54)/2.5 -> 0.5066666667 | AK55: 3 | AL55: =Дома!L8 -> 0 | AM55: =Дома!M8 -> 2 | AN55: 3 | AO55: =Гости!L8 -> 0 | AP55: =Гости!M8 -> 2 | AQ55: 3 | AR55: =ДомаДома!L8 -> 1 | AS55: =ДомаДома!M8 -> 2 | AT55: 3 | AU55: =ГостиГости!L8 -> 0 | AV55: =ГостиГости!M8 -> 4
T56: П1 | U56: 2 | V56: 10BUH1 | W56: 10BUH2 | X56: КТО ПОБЕДИЛ | Y56: Разница | Z56: Ф1(+1) | AA56: =IF(Y57<6,Z56,IF(Y57<10,Z54,T56)) -> 1Х | AD56: Примерный счет c округлением: | AK56: 4 | AL56: =Дома!L7 -> 2 | AM56: =Дома!M7 -> 0 | AN56: 4 | AO56: =Гости!L7 -> 2 | AP56: =Гости!M7 -> 1 | AQ56: 4 | AR56: =ДомаДома!L7 -> 0 | AS56: =ДомаДома!M7 -> 0 | AT56: 4 | AU56: =ГостиГости!L7 -> 1 | AV56: =ГостиГости!M7 -> 1
E57: КОМАНДА 1 | F57: гости | G57: Очки | I57: хозяева | J57: КОМАНДА 2 | K57: Очки | L57: Второй анализ. | N57: Команда 1 | O57: Команда 2 | P57: =N58*N59 -> 0.3888888889 | T57: П2 | U57: 1 | V57: =IF(W46<=4,-(V53*0.2),IF(W46>=6,V53*0.1,IF(W46>=9,V53*0.2,0))) -> -2 | W57: =IF(AA46<=4,-(V54*0.2),IF(AA46>=6,V54*0.1,IF(AA46>=9,V54*0.2,0))) -> 0 | X57: =IF(X53>X54,1,IF(X53=X54,0,2)) -> 2 | Y57: =IF(X57=1,X53-X54,IF(X57=2,X54-X53,0)) -> 9.5 | Z57: Ф2(+1) | AD57: А забьет | AE57: =IF(AE55>0.5,1,0)+IF(AE55>0.7,1,0)+IF(AE55>0.9,1,0) -> 0 | AF57: Б забьет | AG57: =IF(AG55>0.5,1,0) + IF(AG55>0.7,1,0)+IF(AG55>0.9,1,0) -> 1 | AK57: 5 | AL57: =Дома!L6 -> 0 | AM57: =Дома!M6 -> 3 | AN57: 5 | AO57: =Гости!L6 -> 4 | AP57: =Гости!M6 -> 1 | AQ57: 5 | AR57: =ДомаДома!L6 -> 2 | AS57: =ДомаДома!M6 -> 1 | AT57: 5 | AU57: =ГостиГости!L6 -> 0 | AV57: =ГостиГости!M6 -> 0
D58: 1 игра | E58: =ДомаДома!L2 -> 2 | F58: =ДомаДома!M2 -> 2 | G58: =IF(E58>F58,2+(E58-F58),IF(E58=F58,1,0)) -> 1 | H58: 1 игра | I58: =ГостиГости!M2 -> 2 | J58: =ГостиГости!L2 -> 2 | K58: =IF(J58>I58,2+(J58-I58),IF(I58=J58,1,0)) -> 1 | L58: Забьёт в абстрактном матче | N58: =(E58+E59+E60+1+I58+I59+I60)/6 -> 1.166666667 | O58: =(J58+J59+J60+F58+F59+F60+1)/6 -> 2 | P58: =O58+O59 -> 3.2 | AK58: 6 | AL58: =Дома!L5 -> 2 | AM58: =Дома!M5 -> 0 | AN58: 6 | AO58: =Гости!L5 -> 2 | AP58: =Гости!M5 -> 0 | AQ58: 6 | AR58: =ДомаДома!L5 -> 0 | AS58: =ДомаДома!M5 -> 2 | AT58: 6 | AU58: =ГостиГости!L5 -> 1 | AV58: =ГостиГости!M5 -> 1
D59: 2 игра | E59: =ДомаДома!L3 -> 0 | F59: =ДомаДома!M3 -> 0 | G59: =IF(E59>F59,2+(E59-F59),IF(E59=F59,1,0)) -> 1 | H59: 2 игра | I59: =ГостиГости!M3 -> 1 | J59: =ГостиГости!L3 -> 2 | K59: =IF(J59>I59,2+(J59-I59),IF(I59=J59,1,0)) -> 3 | L59: Забьёт/пропустит в конкретном | N59: =(E58+E59+E60)/(F58+F59+F60+1) -> 0.3333333333 | O59: =(J58+J59+J60)/(I58+I59+I60+1) -> 1.2 | P59: =P57/P58 -> 0.1215277778 | AK59: 7 | AL59: =Дома!L4 -> 0 | AM59: =Дома!M4 -> 0 | AN59: 7 | AO59: =Гости!L4 -> 2 | AP59: =Гости!M4 -> 1 | AQ59: 7 | AR59: =ДомаДома!L4 -> 0 | AS59: =ДомаДома!M4 -> 3 | AT59: 7 | AU59: =ГостиГости!L4 -> 2 | AV59: =ГостиГости!M4 -> 1
D60: 3 игра | E60: =ДомаДома!L4 -> 0 | F60: =ДомаДома!M4 -> 3 | G60: =IF(E60>F60,2+(E60-F60),IF(E60=F60,1,0)) -> 0 | H60: 3 игра | I60: =ГостиГости!M4 -> 1 | J60: =ГостиГости!L4 -> 2 | K60: =IF(J60>I60,2+(J60-I60),IF(I60=J60,1,0)) -> 3 | L60: Забьёт в этом матче | N60: =P59 -> 0.1215277778 | O60: =P60 -> 8.228571429 | P60: =P58/P57 -> 8.228571429 | T60: Команда 1 | V60: ввод данных | Y60: Команда 2 | AA60: ввод данных | AK60: 8 | AL60: =Дома!L3 -> 0 | AM60: =Дома!M3 -> 0 | AN60: 8 | AO60: =Гости!L3 -> 2 | AP60: =Гости!M3 -> 2 | AQ60: 8 | AR60: =ДомаДома!L3 -> 0 | AS60: =ДомаДома!M3 -> 0 | AT60: 8 | AU60: =ГостиГости!L3 -> 2 | AV60: =ГостиГости!M3 -> 1
F61: Итого: | G61: =SUM(G58,G59,G60) +1 -> 3 | J61: Итого: | K61: =SUM(K58,K59,K60) -> 7 | L61: Счет матча | N61: =N58+N59+N60 -> 1.621527778 | O61: =O58+O59+O60 -> 11.42857143 | T61: Место в ТТ | V61: =E14 -> 6 | W61: из | X61: =H14 -> 16 | Y61: Место в ТТ | AA61: =K14 -> 5 | AB61: из | AC61: =H14 -> 16 | AK61: 9 | AL61: =Дома!L2 -> 2 | AM61: =Дома!M2 -> 2 | AN61: 9 | AO61: =Гости!L2 -> 2 | AP61: =Гости!M2 -> 2 | AQ61: 9 | AR61: =ДомаДома!L2 -> 2 | AS61: =ДомаДома!M2 -> 2 | AT61: 9 | AU61: =ГостиГости!L2 -> 2 | AV61: =ГостиГости!M2 -> 2
T62: Сколько мячей забито | V62: =OFFSET(Таблица!B1,MATCH(Расчеты!F14,Таблица!B2:'Таблица'!B100,0),5) -> 34 | Y62: Сколько мячей забито | AA62: =OFFSET(Таблица!B1,MATCH(I14,Таблица!B2:'Таблица'!B100,0),5) -> 39 | AJ62: 5из5 | AK62: 5 | AL62: =TREND(AL52:AL56,AK52:AK56,AK62) -> 1.4 | AM62: =TREND(AM52:AM56,AK52:AK56,AK62) -> 1.3 | AN62: 5 | AO62: =TREND(AO52:AO56,AN52:AN56,AN62) -> 1.7 | AP62: =TREND(AP52:AP56,AN52:AN56,AN62) -> 1.7 | AQ62: 5 | AR62: =TREND(AR52:AR56,AQ52:AQ56,AQ62) -> -0.3 | AS62: =TREND(AS52:AS56,AQ52:AQ56,AQ62) -> 1.1 | AT62: 5 | AU62: =TREND(AU52:AU56,AT52:AT56,AT62) -> -0.7 | AV62: =TREND(AV52:AV56,AT52:AT56,AT62) -> 2.2
T63: Забито за 3 игры дома | V63: =ДомаДома!S4 -> 2 | Y63: Забито за 3 игры в гостях | AA63: =ГостиГости!S4 -> 6 | AJ63: 5из10 | AK63: 5 | AL63: =TREND(AL52:AL61,AK52:AK61,AK63) -> 0.8242424242 | AM63: =TREND(AM52:AM61,AK52:AK61,AK63) -> 0.9939393939 | AN63: 5 | AO63: =TREND(AO52:AO61,AN52:AN61,AN63) -> 1.957575758 | AP63: =TREND(AP52:AP61,AN52:AN61,AN63) -> 1.315151515 | AQ63: 5 | AR63: =TREND(AR52:AR61,AQ52:AQ61,AQ63) -> 0.696969697 | AS63: =TREND(AS52:AS61,AQ52:AQ61,AQ63) -> 1.266666667 | AT63: 5 | AU63: =TREND(AU52:AU61,AT52:AT61,AT63) -> 1.387878788 | AV63: =TREND(AV52:AV61,AT52:AT61,AT63) -> 1.290909091
C64: Тест №3 Общая теория | I64: Победа 1 | J64: Ничья | K64: Победа 2 | M64: ПРОГНОЗЫ НА ТОТАЛЫ | T64: Игр сыграно за сезон | V64: =OFFSET(Таблица!B1,MATCH(Расчеты!F14,Таблица!B2:'Таблица'!B100,0),1) -> 28 | Y64: Игр сыграно за сезон | AA64: =OFFSET(Таблица!B1,MATCH(I14,Таблица!B2:'Таблица'!B100,0),1) -> 27 | AJ64: 10из10 | AK64: 10 | AL64: =TREND(AL52:AL61,AK52:AK61,AK64) -> 1.066666667 | AM64: =TREND(AM52:AM61,AK52:AK61,AK64) -> 0.9333333333 | AN64: 10 | AO64: =TREND(AO52:AO61,AN52:AN61,AN64) -> 2.533333333 | AP64: =TREND(AP52:AP61,AN52:AN61,AN64) -> 1.466666667 | AQ64: 10 | AR64: =TREND(AR52:AR61,AQ52:AQ61,AQ64) -> 0.6666666667 | AS64: =TREND(AS52:AS61,AQ52:AQ61,AQ64) -> 1.933333333 | AT64: 10 | AU64: =TREND(AU52:AU61,AT52:AT61,AT64) -> 1.266666667 | AV64: =TREND(AV52:AV61,AT52:AT61,AT64) -> 1.2
I65: =(E68+E67+E69)/13 -> 0.2307692308 | K65: =(H67+H68+H69)/13 -> 0.5384615385 | N65: Шансы => | O65: Забьёт | P65: Пропустит | Q65: примерный счёт | T65: Вероятный исход в процентах | Y65: РАСЧЁТ ДАННЫХ | AA65: Очки | AK65: Дома | AL65: Гости | AM65: Тотал | AN65: Дельта | AO65: К1 Заб | AP65: 2К Заб | AQ65: ОЗ | AR65: Тотал1 | AS65: Тотал2 | AT65: 1X2 | AU65: ОНЗ | AV65: Чет/нечет
C66: Расчёт команды 1 | E66: Число | F66: Расчёт команды 2 | H66: Число | I66: =(1+1-1)/3 -> 0.3333333333 | K66: =(1+1-1)/3 -> 0.3333333333 | M66: Команда 1 | O66: =P80 -> 1.333333333 | P66: =P79 -> 1.666666667 | Q66: =O78 -> 1 | T66: П1 | U66: Ничья | V66: П2 | W66: ТМ 2,5 | X66: ТБ2,5 | Y66: Команда1 | AA66: =T68+T70+IF(V62>AA62,T71,0) -> 13 | AJ66: 5_5 | AK66: =AVERAGE(AL62,AP62) -> 1.55 | AL66: =AVERAGE(AM62,AP62) -> 1.5 | AM66: =AK66+AL66 -> 3.05 | AN66: =AK66-AL66 -> 0.05 | AO66: =IF(AK66>1.5,"Да","-") -> Да | AP66: - | AQ66: =IF((AK66>1.5)*(AL66>1.5),"Да","-") -> - | AR66: =IF(AM66>=3.5,"ТБ2.5",IF(AM66>=2.5,"ТБ1.5",IF(AM66<=0.5,"ТМ2.5",IF(AM66<2,"ТМ3.5","-")))) -> ТБ1.5 | AS66: =IF(AM66>=4.5,"ТБ2.5",IF(AM66>=3.5,"ТБ1.5",IF(AM66<=0.5,"ТМ2.5",IF(AM66<1,"ТМ3.5","-")))) -> - | AT66: =IF(AN66>1.5,"П1",IF(AN66>1,"1X",IF(AN66<-1.5,"П2",IF(AN66<-1,"X2","-")))) -> - | AU66: =IF(AK66<-0.5,"Да",IF(AL66<-0.5,"Да","-")) -> - | AV66: =IF(ISEVEN(AM66*10),"Чет","Нечет") -> Чет
C67: Сколько Побед из 5 последних игр дома | E67: =ДомаДома!P6 -> 1 | F67: Сколько Побед из 5 последних игр в гостях | H67: =ГостиГости!P6 -> 2 | I67: =I65/I66 -> 0.6923076923 | J67: 1 | K67: =K65/K66 -> 1.615384615 | M67: Команда 2 | O67: =P66 -> 1.666666667 | P67: =O66 -> 1.333333333 | Q67: =P78 -> 2 | T67: =(AA66/T69)*100 -> 21.39917695 | U67: =100-(T67+V67) -> 37.44855967 | V67: =(AA67/T69)*100 -> 41.15226337 | W67: =100-X67 -> 22.6984127 | X67: =(AA68/W69)*100-10 -> 77.3015873 | Y67: Команда2 | AA67: =V68+V69+IF(AA62>V62,T71,0) -> 25 | AJ67: 5_10 | AK67: =AVERAGE(AL63,AP63) -> 1.06969697 | AL67: =AVERAGE(AM63,AP63) -> 1.154545455 | AM67: 2.224242424 | AN67: -0.08484848485 | AO67: - | AP67: - | AQ67: - | AR67: =IF(AM67>=3.5,"ТБ2.5",IF(AM67>=2.5,"ТБ1.5",IF(AM67<=0.5,"ТМ2.5",IF(AM67<2,"ТМ3.5","ТМ2")))) -> ТМ2 | AS67: =IF(AM67>=4.5,"ТБ2.5",IF(AM67>=3.5,"ТБ1.5",IF(AM67<=0.5,"ТМ2.5",IF(AM67<1,"ТМ3.5","-")))) -> - | AT67: =IF(AN67>1.5,"П1",IF(AN67>1,"1X",IF(AN67<-1.5,"П2",IF(AN67<-1,"X2","-")))) -> - | AU67: - | AV67: Чет
C68: Сколько Побед из 5 последних игр вообще | E68: =Дома!P6 -> 1 | F68: Сколько Побед из 5 последних игр вообще | H68: =Гости!P6 -> 3 | I68: =((I72-I67)*I67)/3 -> 0.6035502959 | J68: =(I72-J67)*1/3 -> 0.7692307692 | K68: =((I72-K67)*K67)*1/3 -> 0.9112426036 | M68: Тотал матча: | N68: =IF(N75>3,"ТБ 2,5",IF(N75>2,"ТБ 1,5","ТМ 2,5")) -> ТМ 2,5 | T68: =X61-V61 -> 10 | V68: =AC61-AA61 -> 11 | W68: =(V64+AA64)/2 -> 27.5 | Y68: =(V62/V64)+V63/3 -> 1.880952381 | Z68: =AA62/AA64+AA63/3 -> 3.444444444 | AA68: =(Y68+Z68)/2 -> 2.662698413 | AJ68: 10_10 | AK68: =AVERAGE(AL64,AP64) -> 1.266666667 | AL68: =AVERAGE(AM64,AP64) -> 1.2 | AM68: 2.466666667 | AN68: 0.06666666667 | AO68: - | AP68: - | AQ68: - | AR68: =IF(AM68>=3.5,"ТБ2.5",IF(AM68>=2.5,"ТБ1.5",IF(AM68<=0.5,"ТМ2.5",IF(AM68<2,"ТМ3.5","-")))) -> - | AS68: - | AT68: - | AU68: - | AV68: Чет
C69: Сколько Побед из 3 последних игр между командами | E69: =SUM(E70:E72) -> 1 | F69: Сколько Побед из 3 последних игр между командами | H69: =SUM(H70:H72) -> 2 | M69: =(E58+E59+E60)/3+O70/3 -> 1.666666667 | N69: =(I58+I59+I60)/3 -> 1.333333333 | T69: =X61-1+5+((V64+AA64)/2)+(((V62+AA64)/2)/2)-2 -> 60.75 | V69: =(AA63*3)/2 -> 9 | W69: =((W68/4)*3+(W68/2)+(W68)+(W68/5)*4)/W68 -> 3.05 | AJ69: 5_5 | AK69: =AVERAGE(AR62,AV62) -> 0.95 | AL69: =AVERAGE(AS62,AU62) -> 0.2 | AM69: 1.15 | AN69: 0.75 | AO69: - | AP69: - | AQ69: - | AR69: =IF(AM69>=3.5,"ТБ2.5",IF(AM69>=2.5,"ТБ1.5",IF(AM69<=0.5,"ТМ2.5",IF(AM69<2,"ТМ3.5","-")))) -> ТМ3.5 | AS69: - | AT69: - | AU69: - | AV69: Нечет
E70: =IF(K40=1,1,0) -> 1 | H70: =IF(K40=2,1,0) -> 0 | M70: =(J58+J59+J60)/3+O71/3 -> 3 | N70: =(F58+F59+F60)/3 -> 1.666666667 | O70: =IF(K40=1,L40,M40)+IF(K41=1,L41,M41)+IF(K42=1,L42,M42) -> 3 | P70: команда 1 | T70: =(V63*3)/2 -> 3 | AJ70: 5_10 | AK70: =AVERAGE(AR63,AV63) -> 0.9939393939 | AL70: =AVERAGE(AS63,AU63) -> 1.327272727 | AM70: 2.321212121 | AN70: -0.3333333333 | AO70: - | AP70: - | AQ70: - | AR70: =IF(AM70>=3.5,"ТБ2.5",IF(AM70>=2.5,"ТБ1.5",IF(AM70<=0.5,"ТМ2.5",IF(AM70<2,"ТМ3.5","ТМ2")))) -> ТМ2 | AS70: - | AT70: - | AU70: - | AV70: Нечет
D71: Тесты | E71: =IF(K41=1,1,0) -> 0 | H71: =IF(K41=2,1,0) -> 1 | O71: =IF(K40=2,L40,M40)+IF(K41=2,L41,M41)+IF(K42=2,L42,M42) -> 3 | P71: команда 2 | T71: =IF(V62>AA62,V62-AA62,IF(AA62>V62,AA62-V62,0)) -> 5 | AJ71: 10_10 | AK71: =AVERAGE(AR64,AV64) -> 0.9333333333 | AL71: =AVERAGE(AS64,AU64) -> 1.6 | AM71: 2.533333333 | AN71: -0.6666666667 | AO71: - | AP71: Да | AQ71: - | AR71: =IF(AM71>=3.5,"ТБ2.5",IF(AM71>=2.5,"ТБ1.5",IF(AM71<=0.5,"ТМ2.5",IF(AM71<2,"ТМ3.5","-")))) -> ТБ1.5 | AS71: - | AT71: - | AU71: - | AV71: Нечет
C72: №1 | D72: =IF(I68>K68,"П1",IF(K68>I68,"П2",0)) -> П2 | E72: =IF(K42=1,1,0) -> 0 | H72: =IF(K42=2,1,0) -> 1 | I72: =I67+J67+K67 -> 3.307692308
O73: =IF(O70>O71,O70/O71,O71/O70) -> 1 | P73: =IF(O70>O71,P70,P71) -> команда 2 | AJ73: Инверсия | AK73: Дома Все игры | AN73: Гости все игры | AQ73: ДомаДома | AT73: ГостиГости
C74: Общий прогноз | M74: =(M69*M70*O73)/3 -> 1.666666667 | Q74: =IF(Q66=0,1,Q66) -> 1 | T74: Расчет матчей | AK74: Игр | AL74: Заб | AM74: Проп | AN74: Игр | AO74: Заб | AP74: Проп | AQ74: Игр | AR74: Заб | AS74: Проп | AT74: Игр | AU74: Заб | AV74: Проп
C75: № Теста | D75: прогноз: | M75: 0.5 | N75: =(((P79+P80)*M74)/(M70*N69)-N76)/1.75 -> 0.4285714286 | Q75: =IF(Q67=0,1,Q67) -> 2 | T75: Вводные данные | V75: Хозяева | X75: Гости | Z75: =IF(W81-Y81>0.23,"П1",IF(W81>Y81,"1X",IF(Y81-W81>0.24,"П2",IF(Y81>W81,"Х2","")))) -> П2 | AA75: Расчет | AK75: 0 | AL75: =Дома!L2 -> 2 | AM75: =Дома!M2 -> 2 | AN75: 0 | AO75: =Гости!L2 -> 2 | AP75: =Гости!M2 -> 2 | AQ75: 0 | AR75: =ДомаДома!L2 -> 2 | AS75: =ДомаДома!M2 -> 2 | AT75: 0 | AU75: =ГостиГости!L2 -> 2 | AV75: =ГостиГости!M2 -> 2
C76: Тест № 1 | D76: =H51 -> П2 | M76: 1.5 | N76: =(Q74/Q75)*(Q75/Q74)/2 -> 0.5 | O76: Примерный счёт | T76: Голов забито дома | U76: =Дома!Z11+Гости!Z11 -> 16 | V76: Забито дома | W76: =Дома!Z11 -> 4 | X76: Забито в гостях | Y76: =Гости!AG11 -> 7 | Z76: =IF(W81>=1,"Yes","No") -> No | AA76: Ср. забитых дома | AB76: =U76/U80/U81 -> 1.333333333 | AK76: 1 | AL76: =Дома!L3 -> 0 | AM76: =Дома!M3 -> 0 | AN76: 1 | AO76: =Гости!L3 -> 2 | AP76: =Гости!M3 -> 2 | AQ76: 1 | AR76: =ДомаДома!L3 -> 0 | AS76: =ДомаДома!M3 -> 0 | AT76: 1 | AU76: =ГостиГости!L3 -> 2 | AV76: =ГостиГости!M3 -> 1
C77: Тест № 2 | D77: =O47 -> Ф2 (+1) | M77: 2.5 | O77: =M69*N69*(O70/3)/3 -> 0.7407407407 | P77: =M70*N70*(O71/3)/3 -> 1.666666667 | T77: Голов пропущено дома | U77: =Дома!AA11+Гости!AA11 -> 16 | V77: Пропущено дома | W77: =Дома!AA11 -> 8 | X77: Пропущено в гостях | Y77: =Гости!AH11 -> 5 | Z77: =IF(Y81>=1,"Yes","No") -> Yes | AA77: Ср. забитых в гостях | AB77: =U78/U80/U82 -> 1.375 | AK77: 2 | AL77: =Дома!L4 -> 0 | AM77: =Дома!M4 -> 0 | AN77: 2 | AO77: =Гости!L4 -> 2 | AP77: =Гости!M4 -> 1 | AQ77: 2 | AR77: =ДомаДома!L4 -> 0 | AS77: =ДомаДома!M4 -> 3 | AT77: 2 | AU77: =ГостиГости!L4 -> 2 | AV77: =ГостиГости!M4 -> 1
C78: Тест № 3 | D78: =IF(N61>O61,"П1",IF(O61>N61,"П2","Х")) -> П2 | M78: 3.5 | O78: =IF(O77>4.55,5,IF(O77>3.55,4,IF(O77>2.55,3,IF(O77>1.55,2,IF(O77>0.55,1,0))))) -> 1 | P78: =IF(P77>4.55,5,IF(P77>3.55,4,IF(P77>2.55,3,IF(P77>1.55,2,IF(P77>0.55,1,0))))) -> 2 | T78: Голов забито в гостях | U78: =Дома!AG11+Гости!AG11 -> 11 | V78: Матчей дома | W78: =Дома!V11 -> 6 | X78: Матчей в гостях | Y78: =Гости!AC11 -> 4 | Z78: команда 1 | AB78: команда 2 | AK78: 3 | AL78: =Дома!L5 -> 2 | AM78: =Дома!M5 -> 0 | AN78: 3 | AO78: =Гости!L5 -> 2 | AP78: =Гости!M5 -> 0 | AQ78: 3 | AR78: =ДомаДома!L5 -> 0 | AS78: =ДомаДома!M5 -> 2 | AT78: 3 | AU78: =ГостиГости!L5 -> 1 | AV78: =ГостиГости!M5 -> 1
C79: Тест № 4 | D79: =D72 -> П2 | P79: =IF(M70>=N70,N70,"0") -> 1.666666667 | Q79: к2 | T79: Голов пропущено в гостях | U79: =Дома!AH11+Гости!AH11 -> 7 | V79: Сила атаки | W79: =W76/W78 -> 0.6666666667 | X79: Сила атаки | Y79: =Y76/Y78 -> 1.75 | Z79: атака | AA79: оборона | AB79: атака | AC79: оборона | AK79: 4 | AL79: =Дома!L6 -> 0 | AM79: =Дома!M6 -> 3 | AN79: 4 | AO79: =Гости!L6 -> 4 | AP79: =Гости!M6 -> 1 | AQ79: 4 | AR79: =ДомаДома!L6 -> 2 | AS79: =ДомаДома!M6 -> 1 | AT79: 4 | AU79: =ГостиГости!L6 -> 0 | AV79: =ГостиГости!M6 -> 0
C80: Тотал | D80: =N68 -> ТМ 2,5 | M80: =((P79+P80)*M74)/(M70*N69)+N76 -> 1.75 | P80: =IF(M69>=N69,N69,"0") -> 1.333333333 | Q80: к1 | T80: Кол-во команд | U80: 2 | V80: Сила обороны | W80: =W77/W78 -> 1.333333333 | X80: Сила обороны | Y80: =Y77/Y78 -> 1.25 | Z80: =W79 -> 0.6666666667 | AA80: =W80 -> 1.333333333 | AB80: =Y79 -> 1.75 | AC80: =Y80 -> 1.25 | AK80: 5 | AL80: =Дома!L7 -> 2 | AM80: =Дома!M7 -> 0 | AN80: 5 | AO80: =Гости!L7 -> 2 | AP80: =Гости!M7 -> 1 | AQ80: 5 | AR80: =ДомаДома!L7 -> 0 | AS80: =ДомаДома!M7 -> 0 | AT80: 5 | AU80: =ГостиГости!L7 -> 1 | AV80: =ГостиГости!M7 -> 1
T81: Игр сыграно дома | U81: =(Дома!V11+Гости!V11)/2 -> 6 | V81: Расчет голов | W81: =(AVERAGE(W79,Y80))-0.25 -> 0.7083333333 | X81: Расчет голов | Y81: =(AVERAGE(Y79,W80))-0.5 -> 1.041666667 | AB81: Прогноз на матч | AK81: 6 | AL81: =Дома!L8 -> 0 | AM81: =Дома!M8 -> 2 | AN81: 6 | AO81: =Гости!L8 -> 0 | AP81: =Гости!M8 -> 2 | AQ81: 6 | AR81: =ДомаДома!L8 -> 1 | AS81: =ДомаДома!M8 -> 2 | AT81: 6 | AU81: =ГостиГости!L8 -> 0 | AV81: =ГостиГости!M8 -> 4
T82: Игр сыграно в гостях | U82: =(Дома!AC11+Гости!AC11)/2 -> 4 | AB82: =SUMIFS(U84:U89,W84:W89,">27,7%") -> 1 | AC82: =SUMIFS(Y84:Y89,AA84:AA89,">27,7%") -> 1 | AK82: 7 | AL82: =Дома!L9 -> 0 | AM82: =Дома!M9 -> 2 | AN82: 7 | AO82: =Гости!L9 -> 3 | AP82: =Гости!M9 -> 2 | AQ82: 7 | AR82: =ДомаДома!L9 -> 0 | AS82: =ДомаДома!M9 -> 1 | AT82: 7 | AU82: =ГостиГости!L9 -> 0 | AV82: =ГостиГости!M9 -> 1
T83: Расчитываем вероятность голов | AB83: =MAX(W84:W89) -> 0.4924642877 | AC83: =MAX(AA84:AA89) -> 0.3675688349 | AK83: 8 | AL83: =Дома!L10 -> 2 | AM83: =Дома!M10 -> 1 | AN83: 8 | AO83: =Гости!L10 -> 1 | AP83: =Гости!M10 -> 1 | AQ83: 8 | AR83: =ДомаДома!L10 -> 0 | AS83: =ДомаДома!M10 -> 1 | AT83: 8 | AU83: =ГостиГости!L10 -> 3 | AV83: =ГостиГости!M10 -> 0
C84: 15 матчей | D84: голы дома | E84: голы гости | F84: проп дома | G84: проп гости | H84: забито | I84: проп | J84: итог | T84: Забьют хозяева | U84: 1 | V84: Вероятность | W84: =_xlfn.POISSON.DIST(U84,W81,FALSE) -> 0.3488288704 | X84: Забьют гости | Y84: 1 | Z84: Вероятность | AA84: =_xlfn.POISSON.DIST(Y84,Y81,FALSE) -> 0.3675688349 | AK84: 9 | AL84: =Дома!L11 -> 0 | AM84: =Дома!M11 -> 0 | AN84: 9 | AO84: =Гости!L11 -> 1 | AP84: =Гости!M11 -> 1 | AQ84: 9 | AR84: =ДомаДома!L11 -> 2 | AS84: =ДомаДома!M11 -> 0 | AT84: 9 | AU84: =ГостиГости!L11 -> 3 | AV84: =ГостиГости!M11 -> 2
C85: =Очные!A1 -> Жарково | D85: =Дома!Z16 -> 5 | E85: =Дома!AG16 -> 11 | F85: =Дома!AA16 -> 11 | G85: =Дома!AH16 -> 5 | H85: =D85+E85 -> 16 | I85: =F85+G85 -> 16 | J85: =H85/I85 -> 1 | U85: 2 | W85: =_xlfn.POISSON.DIST(U85,W81,FALSE) -> 0.1235435583 | Y85: 2 | AA85: =_xlfn.POISSON.DIST(Y85,Y81,FALSE) -> 0.1914421015 | AJ85: 5из5 | AK85: 5 | AL85: =TREND(AL75:AL79,AK75:AK79,AK85) -> 0.2 | AM85: =TREND(AM75:AM79,AK75:AK79,AK85) -> 1.6 | AN85: 5 | AO85: =TREND(AO75:AO79,AN75:AN79,AN85) -> 3.6 | AP85: =TREND(AP75:AP79,AN75:AN79,AN85) -> 2.220446049e-16 | AQ85: 5 | AR85: =TREND(AR75:AR79,AQ75:AQ79,AQ85) -> 0.8 | AS85: =TREND(AS75:AS79,AQ75:AQ79,AQ85) -> 1.6 | AT85: 5 | AU85: =TREND(AU75:AU79,AT75:AT79,AT85) -> -0.1 | AV85: =TREND(AV75:AV79,AT75:AT79,AT85) -> -0.2
C86: =Очные!B1 -> Нови Белград | D86: =Гости!Z16 -> 20 | E86: =Гости!AG16 -> 8 | F86: =Гости!AA16 -> 9 | G86: =Гости!AH16 -> 6 | H86: =D86+E86 -> 28 | I86: =F86+G86 -> 15 | J86: =H86/I86 -> 1.866666667 | U86: 3 | W86: =_xlfn.POISSON.DIST(U86,W81,FALSE) -> 0.02917000682 | Y86: 3 | AA86: =_xlfn.POISSON.DIST(Y86,Y81,FALSE) -> 0.0664729519 | AJ86: 5из10 | AK86: 5 | AL86: =TREND(AL75:AL84,AK75:AK84,AK86) -> 0.7757575758 | AM86: =TREND(AM75:AM84,AK75:AK84,AK86) -> 1.006060606 | AN86: 5 | AO86: =TREND(AO75:AO84,AN75:AN84,AN86) -> 1.842424242 | AP86: =TREND(AP75:AP84,AN75:AN84,AN86) -> 1.284848485 | AQ86: 5 | AR86: =TREND(AR75:AR84,AQ75:AQ84,AQ86) -> 0.703030303 | AS86: =TREND(AS75:AS84,AQ75:AQ84,AQ86) -> 1.133333333 | AT86: 5 | AU86: =TREND(AU75:AU84,AT75:AT84,AT86) -> 1.412121212 | AV86: =TREND(AV75:AV84,AT75:AT84,AT86) -> 1.309090909
C87: Первый гол : | G87: =IF(J85>=J86,"1 команда","2 команда") -> 2 команда | U87: 4 | W87: =_xlfn.POISSON.DIST(U87,W81,FALSE) -> 0.00516552204 | Y87: 4 | AA87: =_xlfn.POISSON.DIST(Y87,Y81,FALSE) -> 0.01731066456 | AJ87: 10из10 | AK87: 10 | AL87: =TREND(AL75:AL84,AK75:AK84,AK87) -> 0.5333333333 | AM87: =TREND(AM75:AM84,AK75:AK84,AK87) -> 1.066666667 | AN87: 10 | AO87: =TREND(AO75:AO84,AN75:AN84,AN87) -> 1.266666667 | AP87: =TREND(AP75:AP84,AN75:AN84,AN87) -> 1.133333333 | AQ87: 10 | AR87: =TREND(AR75:AR84,AQ75:AQ84,AQ87) -> 0.7333333333 | AS87: =TREND(AS75:AS84,AQ75:AQ84,AQ87) -> 0.4666666667 | AT87: 10 | AU87: =TREND(AU75:AU84,AT75:AT84,AT87) -> 1.533333333 | AV87: =TREND(AV75:AV84,AT75:AT84,AT87) -> 1.4
U88: 5 | W88: =_xlfn.POISSON.DIST(U88,W81,FALSE) -> 0.000731782289 | Y88: 5 | AA88: =_xlfn.POISSON.DIST(Y88,Y81,FALSE) -> 0.00360638845 | AK88: Дома | AL88: Гости | AM88: Тотал | AN88: Дельта | AO88: К1 Заб | AP88: 2К Заб | AQ88: ОЗ | AR88: Тотал1 | AS88: Тотал2 | AT88: 1X2 | AU88: ОНЗ | AV88: Чет/нечет
U89: 0 | W89: =_xlfn.POISSON.DIST(U89,W81,FALSE) -> 0.4924642877 | Y89: 0 | AA89: =_xlfn.POISSON.DIST(Y89,Y81,FALSE) -> 0.3528660815 | AJ89: 5_5 | AK89: =AVERAGE(AL85,AP85) -> 0.1 | AL89: =AVERAGE(AM85,AP85) -> 0.8 | AM89: =AK89+AL89 -> 0.9 | AN89: =AK89-AL89 -> -0.7 | AO89: =IF(AK89>1.5,"Да","-") -> - | AP89: - | AQ89: =IF((AK89>1.5)*(AL89>1.5),"Да","-") -> - | AR89: =IF(AM89>=3.5,"ТБ2.5",IF(AM89>=2.5,"ТБ1.5",IF(AM89<=0.5,"ТМ2.5",IF(AM89<2,"ТМ3.5","-")))) -> ТМ3.5 | AS89: =IF(AM89>=4.5,"ТБ2.5",IF(AM89>=3.5,"ТБ1.5",IF(AM89<=0.5,"ТМ2.5",IF(AM89<1,"ТМ3.5","-")))) -> ТМ3.5 | AT89: =IF(AN89>1.5,"П1",IF(AN89>1,"1X",IF(AN89<-1.5,"П2",IF(AN89<-1,"X2","-")))) -> - | AU89: =IF(AK89<-0.5,"Да",IF(AL89<-0.5,"Да","-")) -> - | AV89: =IF(ISEVEN(AM89*10),"Чет","Нечет") -> Нечет
AJ90: 5_10 | AK90: =AVERAGE(AL86,AP86) -> 1.03030303 | AL90: =AVERAGE(AM86,AP86) -> 1.145454545 | AM90: 2.175757576 | AN90: -0.1151515152 | AO90: - | AP90: - | AQ90: - | AR90: =IF(AM90>=3.5,"ТБ2.5",IF(AM90>=2.5,"ТБ1.5",IF(AM90<=0.5,"ТМ2.5",IF(AM90<2,"ТМ3.5","ТМ2")))) -> ТМ2 | AS90: =IF(AM90>=4.5,"ТБ2.5",IF(AM90>=3.5,"ТБ1.5",IF(AM90<=0.5,"ТМ2.5",IF(AM90<1,"ТМ3.5","-")))) -> - | AT90: =IF(AN90>1.5,"П1",IF(AN90>1,"1X",IF(AN90<-1.5,"П2",IF(AN90<-1,"X2","-")))) -> - | AU90: - | AV90: Нечет
AJ91: 10_10 | AK91: =AVERAGE(AL87,AP87) -> 0.8333333333 | AL91: =AVERAGE(AM87,AP87) -> 1.1 | AM91: 1.933333333 | AN91: -0.2666666667 | AO91: - | AP91: - | AQ91: - | AR91: =IF(AM91>=3.5,"ТБ2.5",IF(AM91>=2.5,"ТБ1.5",IF(AM91<=0.5,"ТМ2.5",IF(AM91<2,"ТМ3.5","-")))) -> ТМ3.5 | AS91: - | AT91: - | AU91: - | AV91: Нечет
D92: Всего | K92: Дома | R92: На выезде | AJ92: 5_5 | AK92: =AVERAGE(AR85,AV85) -> 0.3 | AL92: =AVERAGE(AS85,AU85) -> 0.75 | AM92: 1.05 | AN92: -0.45 | AO92: - | AP92: - | AQ92: - | AR92: =IF(AM92>=3.5,"ТБ2.5",IF(AM92>=2.5,"ТБ1.5",IF(AM92<=0.5,"ТМ2.5",IF(AM92<2,"ТМ3.5","-")))) -> ТМ3.5 | AS92: - | AT92: - | AU92: - | AV92: Чет
D93: Игр | E93: В | F93: Н | G93: П | H93: Забито | I93: Пропущено | J93: Очки | K93: Игр | L93: В | M93: Н | N93: П | O93: Забито | P93: Пропущено | Q93: Очки | R93: Игр | S93: В | T93: Н | U93: П | V93: Забито | W93: Пропущено | X93: Очки | AJ93: 5_10 | AK93: =AVERAGE(AR86,AV86) -> 1.006060606 | AL93: =AVERAGE(AS86,AU86) -> 1.272727273 | AM93: 2.278787879 | AN93: -0.2666666667 | AO93: - | AP93: - | AQ93: - | AR93: =IF(AM93>=3.5,"ТБ2.5",IF(AM93>=2.5,"ТБ1.5",IF(AM93<=0.5,"ТМ2.5",IF(AM93<2,"ТМ3.5","ТМ2")))) -> ТМ2 | AS93: - | AT93: - | AU93: - | AV93: Чет
C94: Хозяева | D94: =Дома!O16 -> 15 | E94: =Дома!P16 -> 5 | F94: =Дома!Q16 -> 4 | G94: =Дома!R16 -> 6 | H94: =Дома!S16 -> 16 | I94: =Дома!T16 -> 16 | J94: =Дома!U16 -> 19 | K94: =Дома!V15 -> 7 | L94: =Дома!W16 -> 1 | M94: =Дома!X16 -> 3 | N94: =Дома!Y16 -> 4 | O94: =Дома!Z16 -> 5 | P94: =Дома!AA16 -> 11 | Q94: =Дома!AB16 -> 6 | R94: =Дома!AC16 -> 7 | S94: =Дома!AD16 -> 4 | T94: =Дома!AE16 -> 1 | U94: =Дома!AF16 -> 2 | V94: =Дома!AG16 -> 11 | W94: =Дома!AH16 -> 5 | X94: =Дома!AI16 -> 13 | AJ94: 10_10 | AK94: =AVERAGE(AR87,AV87) -> 1.066666667 | AL94: =AVERAGE(AS87,AU87) -> 1 | AM94: 2.066666667 | AN94: 0.06666666667 | AO94: - | AP94: - | AQ94: - | AR94: =IF(AM94>=3.5,"ТБ2.5",IF(AM94>=2.5,"ТБ1.5",IF(AM94<=0.5,"ТМ2.5",IF(AM94<2,"ТМ3.5","-")))) -> - | AS94: - | AT94: - | AU94: - | AV94: Чет
C95: Гости | D95: =Гости!O16 -> 15 | E95: =Гости!P16 -> 7 | F95: =Гости!Q16 -> 7 | G95: =Гости!R16 -> 1 | H95: =Гости!S16 -> 28 | I95: =Гости!U16 -> 28 | J95: =Гости!U16 -> 28 | K95: =Гости!V16 -> 9 | L95: =Гости!W16 -> 5 | M95: =Гости!X16 -> 3 | N95: =Гости!Y16 -> 1 | O95: =Гости!Z16 -> 20 | P95: =Гости!AA16 -> 9 | Q95: =Гости!AB16 -> 18 | R95: =Гости!AC16 -> 6 | S95: =Гости!AD16 -> 2 | T95: =Гости!AE16 -> 4 | U95: =Гости!AF16 -> 0 | V95: =Гости!AG16 -> 8 | W95: =Гости!AH16 -> 6 | X95: =Гости!AI16 -> 10
D96: Забивают | E96: Пропускают | F96: Забивают | G96: Пропускают | H96: Забивают | I96: Пропускают | K96: Т1 | L96: Т2 | M96: Заб1 | N96: Заб2 | O96: Ср. заб. | P96: Счет | R96: Забьет гол | T96: Обе забьют?
C97: Хозяева | D97: =H94/D94 -> 1.066666667 | E97: =I94/D94 -> 1.066666667 | F97: =O94/K94 -> 0.7142857143 | G97: =P94/K94 -> 1.571428571 | H97: =V94/R94 -> 1.571428571 | I97: =W94/R94 -> 0.7142857143 | K97: =AVERAGE(F97,D97)+AVERAGE(I98,E98)-AVERAGE(1.25,O97) -> 1.073809524 | L97: =AVERAGE(H98,D98)+AVERAGE(G97,E97)-AVERAGE(1.25,O97) -> 1.669047619 | M97: =AVERAGE(F97,D97) -> 0.8904761905 | N97: =AVERAGE(H98,D98) -> 1.6 | O97: =AVERAGE(Дома!L2:M16,Гости!L2:M16) -> 1.25 | P97: =ROUND(AVERAGE(K97,M97),0) -> 1 | Q97: =ROUND(AVERAGE(L97,N97),0) -> 2 | R97: =IF(P97>1,"ДА","НЕТ") -> НЕТ | S97: =IF(Q97>=1,"ДА","НЕТ") -> ДА | T97: =IF(AND(R97="ДА",S97="ДА"),"ДА","НЕТ") -> НЕТ
C98: Гости | D98: =H95/D95 -> 1.866666667 | E98: =I95/D95 -> 1.866666667 | F98: =O95/K95 -> 2.222222222 | G98: =P95/K95 -> 1 | H98: =V95/R95 -> 1.333333333 | I98: =W95/R95 -> 1
C101: Исходы №1 | F101: Исходы №2 | I101: Исходы №3 | L101: Исходы №4
C102: П1 | D102: Х | E102: П2 | F102: П1 | G102: Х | H102: П2 | I102: П1 | J102: Х | K102: П2 | L102: П1 | M102: П2 | S102: =Очные!A1 -> Жарково | AB102: =Очные!B1 -> Нови Белград
C103: =SUM(Дома!J2:J6) -> 2 | D103: =(SUM(Дома!K2:K6)+SUM(Гости!J2:J6))/1.5 -> 12 | E103: =SUM(Гости!K2:K6) -> 7 | F103: =Дома!P6/5/(Дома!P6/5+Дома!Q6/5+Гости!P6/5+Гости!Q6/5) -> 0.1111111111 | G103: =(Дома!Q6/5+Гости!Q6/5)/(Дома!P6/5+Дома!Q6/5+Гости!P6/5+Гости!Q6/5) -> 0.5555555556 | H103: =Гости!P6/5/(Дома!P6/5+Дома!Q6/5+Гости!P6/5+Гости!Q6/5) -> 0.3333333333 | I103: =Дома!S6+Дома!T6+Гости!S6+Гости!T6 -> 27 | J103: =Дома!S6+Дома!T6+Гости!S6+Гости!T6+ДомаДома!S6+ДомаДома!T6+ГостиГости!S6+ГостиГости!T6 -> 51 | K103: =ДомаДома!S6+ДомаДома!T6+ГостиГости!S6+ГостиГости!T6 -> 24 | L103: =E103+I103 -> 34 | M103: =C103+K103 -> 26 | T103: Матчей | U103: В | V103: Н | W103: П | X103: Заб | Y103: Проп | Z103: Очки | AA103: Место | AC103: Матчей | AD103: В | AE103: Н | AF103: П | AG103: Заб | AH103: Проп | AI103: Очки | AJ103: Место
C104: =C103/(C103+D103+E103) -> 0.09523809524 | D104: =D103/(C103+D103+E103) -> 0.5714285714 | E104: =E103/(C103+D103+E103) -> 0.3333333333 | I104: =I103/(I103+J103+K103) -> 0.2647058824 | J104: =J103/(I103+J103+K103) -> 0.5 | K104: =K103/(I103+J103+K103) -> 0.2352941176 | L104: =L103/(L103+M103) -> 0.5666666667 | M104: =M103/(L103+M103) -> 0.4333333333 | S104: Общая | T104: =MAX(Дома!O2:'Дома'!O21) -> 20 | U104: =MAX(Дома!P2:'Дома'!P21) -> 7 | V104: =MAX(Дома!Q2:'Дома'!Q21) -> 5 | W104: =MAX(Дома!R2:'Дома'!R21) -> 8 | X104: =MAX(Дома!S2:'Дома'!S21) -> 21 | Y104: =MAX(Дома!T2:'Дома'!T21) -> 21 | Z104: =MAX(Дома!U2:'Дома'!U21) -> 26 | AA104: =INDEX(Таблица!A:A,MATCH(Расчеты!S102,Таблица!B:B,FALSE),1) -> 6 | AB104: Общая | AC104: =MAX(Гости!O2:'Гости'!O21) -> 20 | AD104: =MAX(Гости!P2:'Гости'!P21) -> 8 | AE104: =MAX(Гости!Q2:'Гости'!Q21) -> 7 | AF104: =MAX(Гости!R2:'Гости'!R21) -> 5 | AG104: =MAX(Гости!S2:'Гости'!S21) -> 30 | AH104: =MAX(Гости!T2:'Гости'!T21) -> 22 | AI104: =MAX(Гости!U2:'Гости'!U21) -> 31 | AJ104: =INDEX(Таблица!A:A,MATCH(Расчеты!AB102,Таблица!B:B,FALSE),1) -> 5
C105: ДИ №1 | F105: ДИ №2 | I105: ДИ №3 | L105: ДИ №4 | S105: Дома | T105: =MAX(Дома!V2:'Дома'!V21) -> 10 | U105: =MAX(Дома!W2:'Дома'!W21) -> 2 | V105: =MAX(Дома!X2:'Дома'!X21) -> 3 | W105: =MAX(Дома!Y2:'Дома'!Y21) -> 5 | X105: =MAX(Дома!Z2:'Дома'!Z21) -> 7 | Y105: =MAX(Дома!AA2:'Дома'!AA21) -> 12 | Z105: =MAX(Дома!AB2:'Дома'!AB21) -> 9 | AA105: =INDEX(Таблица!K:K,MATCH(S102,Таблица!L:L,FALSE),1) -> 11 | AB105: Дома | AC105: =MAX(Гости!V2:'Гости'!V21) -> 12 | AD105: =MAX(Гости!W2:'Гости'!W21) -> 6 | AE105: =MAX(Гости!X2:'Гости'!X21) -> 3 | AF105: =MAX(Гости!Y2:'Гости'!Y21) -> 3 | AG105: =MAX(Гости!Z2:'Гости'!Z21) -> 22 | AH105: =MAX(Гости!AA2:'Гости'!AA21) -> 11 | AI105: =MAX(Гости!AB2:'Гости'!AB21) -> 21 | AJ105: =INDEX(Таблица!K:K,MATCH(AB102,Таблица!L:L,FALSE),1) -> 6
C106: 1Х | D106: 12 | E106: Х2 | F106: 1Х | G106: 12 | H106: Х2 | I106: 1Х | J106: 12 | K106: Х2 | L106: 1X2 | M106: ФОРА | S106: Гости | T106: =MAX(Дома!AC2:'Дома'!AC21) -> 10 | U106: =MAX(Дома!AD2:'Дома'!AD21) -> 5 | V106: =MAX(Дома!AE2:'Дома'!AE21) -> 2 | W106: =MAX(Дома!AF2:'Дома'!AF21) -> 3 | X106: =MAX(Дома!AG2:'Дома'!AG21) -> 14 | Y106: =MAX(Дома!AH2:'Дома'!AH21) -> 9 | Z106: =MAX(Дома!AI2:'Дома'!AI21) -> 17 | AA106: =INDEX(Таблица!U:U,MATCH(S102,Таблица!V:V,FALSE),1) -> 4 | AB106: Гости | AC106: =MAX(Гости!AC2:'Гости'!AC21) -> 8 | AD106: =MAX(Гости!AD2:'Гости'!AD21) -> 2 | AE106: =MAX(Гости!AE2:'Гости'!AE21) -> 4 | AF106: =MAX(Гости!AF2:'Гости'!AF21) -> 2 | AG106: =MAX(Гости!AG2:'Гости'!AG21) -> 8 | AH106: =MAX(Гости!AH2:'Гости'!AH21) -> 11 | AI106: =MAX(Гости!AI2:'Гости'!AI21) -> 10 | AJ106: =INDEX(Таблица!U:U,MATCH(AB102,Таблица!V:V,FALSE),1) -> 6
C107: =AVERAGE(C104,D104) -> 0.3333333333 | D107: =AVERAGE(C104,E104) -> 0.2142857143 | E107: =AVERAGE(D104,E104) -> 0.4523809524 | F107: =AVERAGE(F103,G103) -> 0.3333333333 | G107: =AVERAGE(F103,H103) -> 0.2222222222 | H107: =AVERAGE(G103,H103) -> 0.4444444444 | I107: =AVERAGE(I104,J104) -> 0.3823529412 | J107: =AVERAGE(I104,K104) -> 0.25 | K107: =AVERAGE(J104,K104) -> 0.3676470588 | L107: =IF(L104>M104,"1Х","Х2") -> 1Х | M107: =IF(L104>M104,"Ф1(0)","Ф2(0)") -> Ф1(0) | P107: Команды | Q107: Дмашние матчи | R107: Гостевые матчи | S107: Домашние голы | T107: Гостевые голы | U107: Среднее дома | V107: Среднее гости | W107: Атака дома | X107: Сила атаки дома | Y107: Сила атаки в гостях | Z107: взвешенная сила атаки дома | AA107: взвешенная сила атаки в гостях | AB107: Дома пропущенно | AC107: Пропущенно в гостях | AD107: среднее дома | AE107: среднее в гостях | AF107: защита дома | AG107: слабость дома | AH107: слабость гости | AI107: слабость дома | AJ107: слабость гости
C108: ТОТАЛЫ №1 | E108: ТОТАЛЫ №2 | G108: ТОТАЛЫ №3 | J108: З 1к | K108: П 1к | L108: З 2к | M108: П 2к | P108: =S102 -> Жарково | Q108: =T105 -> 10 | R108: =T106 -> 10 | S108: =X105 -> 7 | T108: =X106 -> 14 | U108: =S108/Q108 -> 0.7 | V108: 1.4 | W108: =U108/V108 -> 0.5 | X108: =U108/U110 -> 0.5310344828 | Y108: =V108/V110 -> 1.145454545 | Z108: =(U108+V108)/((U110+V110)) -> 0.826640159 | AA108: =(V108 + U108)/(U110 + V110) -> 0.826640159 | AB108: =Y105 -> 12 | AC108: =Y106 -> 9 | AD108: =AB108/Q108 -> 1.2 | AE108: =AC108/R108 -> 0.9 | AF108: =AE108/AD108 -> 0.75 | AG108: =AD108/AD110 -> 1.147826087 | AH108: =AE108/AE110 -> 0.99 | AI108: =(AD108 + AE108)/(AD110 +AE110) -> 1.074418605 | AJ108: =(AE108 + AD108)/(AD110 + AE110) -> 1.074418605
C109: ТБ | D109: ТМ | E109: ТБ | F109: ТМ | G109: Тотал №1 | H109: Тотал №2 | I109: Тотал №3 | J109: =Дома!S6 -> 4 | K109: =Дома!T6 -> 5 | L109: =Гости!S6 -> 12 | M109: =Гости!T6 -> 6 | P109: =AB102 -> Нови Белград | Q109: =AC105 -> 12 | R109: =AC106 -> 8 | S109: =AG105 -> 22 | T109: =AG106 -> 8 | U109: 1.833333333 | V109: 1 | W109: =U109/V109 -> 1.833333333 | X109: =U109/U110 -> 1.390804598 | Y109: =V109/V110 -> 0.8181818182 | Z109: =(U109 + V109)/(U110 + V110) -> 1.115308151 | AA109: =(V109 +U109)/(U110 + V110) -> 1.115308151 | AB109: =AH105 -> 11 | AC109: =AH106 -> 11 | AD109: =AB109/Q109 -> 0.9166666667 | AE109: =AC109/R109 -> 1.375 | AF109: =AE109/AD109 -> 1.5 | AG109: =AD109/AD110 -> 0.8768115942 | AH109: =AE109/AE110 -> 1.5125 | AI109: =(AD109+AE109)/(AD110+AE110) -> 1.17248062 | AJ109: =(AE109 + AD109)/(AD110 + AE110) -> 1.17248062
C110: =(Дома!S6+ДомаДома!T6+Гости!T6+ГостиГости!S6-0.2)/12 -> 2.066666667 | D110: =(Дома!T6+ДомаДома!S6+Гости!S6+ГостиГости!T6)/12 -> 2.166666667 | E110: =(Дома!T6+Гости!T6)/5 -> 2.2 | F110: =(Дома!S6+Гости!S6)/5 -> 3.2 | G110: =IF(AND(L112+M112<K109+L109/10-1,L112+M112<J109+L109/10-1),CONCATENATE("ТМ","("&((L112+M112)+(K109+M109)/50)&")"),CONCATENATE("ТБ","("&((L112+M112)+(J109+L109)/10-3&")"))) -> ТМ(2,42) | H110: =IF(AND(L112+M112+1<K109+L109/10,L112+M112+1<J109+K109/10),CONCATENATE("ТМ","("&((L112+M112+1)+(K109+M109)/50)&")"),CONCATENATE("ТБ","("&((L112+M112+0.5)+(J109+L109)/10-3&")"))) -> ТМ(3,42) | I110: =IF(AND(L112+M112<K109+L109/10-1,L112+M112<J109+L109/10-1),CONCATENATE("ТМ","("&((L112+M112)+(K109+M109)/50-1)&")"),CONCATENATE("ТБ","("&((L112+M112+0.5)+(J109+L109)/10-3&")"))) -> ТМ(1,42) | J110: З 1кд | K110: П 1кд | L110: З 2кг | M110: П 2кг | P110: Среднее | Q110: =SUM(Q108:Q109) -> 22 | R110: =SUM(R108:R109) -> 18 | S110: =SUM(S108:S109) -> 29 | T110: =SUM(T108:T109) -> 22 | U110: 1.318181818 | V110: 1.222222222 | W110: =U110/V110 -> 1.078512397 | X110: =U110/U110 -> 1 | Y110: =V110/V110 -> 1 | Z110: =U110/U110 -> 1 | AA110: =V110/V110 -> 1 | AB110: =AB108+AB109 -> 23 | AC110: =AC108+AC109 -> 20 | AD110: =AB110/Q110 -> 1.045454545 | AE110: =AC110/Q110 -> 0.9090909091 | AF110: =AE110/AD110 -> 0.8695652174 | AG110: =AD110/AD110 -> 1 | AH110: =AE110/AE110 -> 1 | AI110: =(AD110 +AE110)/(AD110 +AE110) -> 1 | AJ110: =(AE110 +AD110)/(AD110 + AE110) -> 1
C111: =D110/(C110+D110) -> 0.5118110236 | D111: =C110/(C110+D110) -> 0.4881889764 | E111: =F110/(E110+F110) -> 0.5925925926 | F111: =E110/(E110+F110) -> 0.4074074074 | J111: =ДомаДома!S6 -> 4 | K111: =ДомаДома!T6 -> 8 | L111: =ГостиГости!S6 -> 7 | M111: =ГостиГости!T6 -> 5 | P111: =S102 -> Жарково | R111: голов | S111: сила | T111: слабость | U111: голов | V111: Результат 1 | X111: Результат 2 | Z111: ПРОГНОЗ №1 | AB111: МИНУТА
C112: ИТБ №1 | E112: ИТБ №2 | G112: ИТМ №1 | I112: ИТМ №1 | L112: =J109/5 -> 0.8 | M112: =L111/5 -> 1.4 | R112: =U110 -> 1.318181818 | S112: =Z108 -> 0.826640159 | T112: =AJ109 -> 1.17248062 | U112: =R112*S112*T112 -> 1.27760761 | V112: =AZ13-1 -> 1 | W112: =BC13-1 -> 1 | X112: =AZ13 -> 2 | Y112: =BC13 -> 2 | Z112: =IF(X116-Z116>25,"П1",IF(X116>Z116,"1X",IF(Z116-X116>25,"П2",IF(Z116>X116,"X2","")))) -> X2 | AB112: 90
C113: ИТБ1 | D113: ИТБ2 | E113: ИТБ1 | F113: ИТБ2 | G113: ИТМ1 | H113: ИТМ2 | I113: ИТМ1 | J113: ИТМ2 | P113: =AB102 -> Нови Белград | R113: голов | S113: сила | T113: слабость | U113: голов
C114: =C110/2 -> 1.033333333 | D114: =D110/2+0.75 -> 1.833333333 | E114: =E110/2 -> 1.1 | F114: =F110/2.5 -> 1.28 | G114: =D114/2+0.35 -> 1.266666667 | H114: =C114/2+0.75 -> 1.266666667 | I114: =F114/2+0.5 -> 1.14 | J114: =E114/2+0.5 -> 1.05 | R114: =V110 -> 1.222222222 | S114: =AA109 -> 1.115308151 | T114: =AJ108 -> 1.074418605 | U114: =R114*S114*T114 -> 1.464598456
C115: =D114/(C114+D114) -> 0.6395348837 | D115: =C114/(C114+D114) -> 0.3604651163 | E115: =E114/(E114+F114) -> 0.4621848739 | F115: =F114/(E114+F114) -> 0.5378151261 | G115: =H114/(G114+H114) -> 0.5 | H115: =G114/(G114+H114) -> 0.5 | I115: =D115 -> 0.3604651163 | J115: =C115 -> 0.6395348837 | X115: 1 | Y115: X | Z115: 2 | AA115: МЕНЬШЕ 2,5 | AB115: БОЛЬШЕ 2,5
C116: =MAX(Дома!J2:J6) -> 2 | D116: =MIN(Дома!J2:J6) -> 0 | E116: 1к | F116: ТС | I116: В матче будет забито | V116: Шансы | X116: =BA17 -> 32.99152764 | Y116: =BA18 -> 25.45851762 | Z116: =BA19 -> 41.5298048 | AA116: =BA23 -> 48.33427095 | AB116: =BA22 -> 51.66572905
C117: =MAX(Дома!K2:K6) -> 3 | D117: =MIN(Дома!K2:K6) -> 0 | I117: =E120+E121 -> 1 | J117: =E120+E121+1 -> 2 | V117: Величина | X117: =BB17 -> 3.031081224 | Y117: =BB18 -> 3.927958473 | Z117: =BB19 -> 2.407909223 | AA117: =BB23 -> 2.068925382 | AB117: =BB22 -> 1.935518996
